Workbook

Sheet ACS_Notes (hidden)
A1: NOTES:
A4: Data are based on a sample and are subject to sampling variability. The degree of uncertainty for an estimate arising from sampling variability is represented through the use of a margin of error. The value shown here is the 90 percent margin of error. The margin of error can be interpreted roughly as providing a 90 percent probability that the interval defined by the estimate minus the margin of error and the estimate plus the margin of error (the lower and upper confidence bounds) contains the true value. In addition to sampling variability, the ACS estimates are subject to nonsampling error (for a discussion of nonsampling variability, see Accuracy of the Data). The effect of nonsampling error is not represented in these tables.
A8: In addition to sampling variability, the ACS estimates are subject to nonsampling error (for a discussion of nonsampling variability, see Accuracy of the Data. The link is located at the end of this worksheet.). The effect of nonsampling error is not represented in these tables.
A11: While the 2005-2009 American Community Survey (ACS) data generally reflect the November 2008 Office of Management and Budget (OMB) definitions of metropolitan and micropolitan statistical areas; in certain instances the names, codes, and boundaries of the principal cities shown in ACS tables may differ from the OMB definitions due to differences in the effective dates of the geographic entities.
A15: Estimates of urban and rural population, housing units, and characteristics reflect boundaries of urban areas defined based on Census 2000 data. Boundaries for urban areas have not been updated since Census 2000. As a result, data for urban and rural areas from the ACS do not necessarily reflect the results of ongoing urbanization.
A17: Explanation of Symbols:
A19: 1. An '**' entry in the margin of error column indicates that either no sample observations or too few sample observations were available to compute a standard error and thus the margin of error. A statistical test is not appropriate.
A21: 2. An '-' entry in the estimate column indicates that either no sample observations or too few sample observations were available to compute an estimate, or a ratio of medians cannot be calculated because one or both of the median estimates falls in the lowest interval or upper interval of an open-ended distribution.
A23: 3. An '-' following a median estimate means the median falls in the lowest interval of an open-ended distribution.
A24: 4. An '+' following a median estimate means the median falls in the upper interval of an open-ended distribution.
A25: 5. An '***' entry in the margin of error column indicates that the median falls in the lowest interval or upper interval of an open-ended distribution. A statistical test is not appropriate.
A26: 6. An '*****' entry in the margin of error column indicates that the estimate is controlled. A statistical test for sampling variability is not appropriate.
A28: Accuracy of Data

Sheet StartInstruction
A1: Demographic Profiles for Municipalities in Grafton County
A3: To view or print a Demographic Profile follow the steps below
A6: Step 1. | C6: Select the municipality you wish to
C7: Profile from the drop down box below.
A11: Step 2. | C11: Click one of the profile topic buttons below to review or print
C12: the information for the selected geography.
C13: Don't forget to adjust the axis on charts as necessary.
N28: Updated: | P28: 2020-12-18
N30: Next Update: | P30: Fall 2021 - 2020 Annual Employment and Wage data

Sheet ACS_Table_B08303 (hidden)
B1: B08303: TRAVEL TIME TO WORK
B2: Universe: Workers 16 years and over who did not work at home
B3: Data Set: 2006-2010 American Community Survey 3-Year Estimates
C5: Alexandria | E5: Ashland | G5: Bath | I5: Benton | K5: Bethlehem | M5: Bridgewater | O5: Bristol | Q5: Campton | S5: Canaan | U5: Dorchester | W5: Easton | Y5: Ellsworth | AA5: Enfield | AC5: Franconia | AE5: Grafton | AG5: Groton | AI5: Hanover | AK5: Haverhill | AM5: Hebron | AO5: Holderness | AQ5: Landaff | AS5: Lebanon | AU5: Lincoln | AW5: Lisbon | AY5: Littleton | BA5: Livermore | BC5: Lyman | BE5: Lyme | BG5: Monroe | BI5: Orange | BK5: Orford | BM5: Piermont | BO5: Plymouth | BQ5: Rumney | BS5: Sugar Hill | BU5: Thornton | BW5: Warren | BY5: Waterville Valley | CA5: Wentworth | CC5: Woodstock
C6: Esitimate | D6: Margin Of Error | E6: Esitimate | F6: Margin Of Error | G6: Esitimate | H6: Margin Of Error | I6: Esitimate | J6: Margin Of Error | K6: Esitimate | L6: Margin Of Error | M6: Esitimate | N6: Margin Of Error | O6: Esitimate | P6: Margin Of Error | Q6: Esitimate | R6: Margin Of Error | S6: Esitimate | T6: Margin Of Error | U6: Esitimate | V6: Margin Of Error | W6: Esitimate | X6: Margin Of Error | Y6: Esitimate | Z6: Margin Of Error | AA6: Esitimate | AB6: Margin Of Error | AC6: Esitimate | AD6: Margin Of Error | AE6: Esitimate | AF6: Margin Of Error | AG6: Esitimate | AH6: Margin Of Error | AI6: Esitimate | AJ6: Margin Of Error | AK6: Esitimate | AL6: Margin Of Error | AM6: Esitimate | AN6: Margin Of Error | AO6: Esitimate | AP6: Margin Of Error | AQ6: Esitimate | AR6: Margin Of Error | AS6: Esitimate | AT6: Margin Of Error | AU6: Esitimate | AV6: Margin Of Error | AW6: Esitimate | AX6: Margin Of Error | AY6: Esitimate | AZ6: Margin Of Error | BA6: Esitimate | BB6: Margin Of Error | BC6: Esitimate | BD6: Margin Of Error | BE6: Esitimate | BF6: Margin Of Error | BG6: Esitimate | BH6: Margin Of Error | BI6: Esitimate | BJ6: Margin Of Error | BK6: Esitimate | BL6: Margin Of Error | BM6: Esitimate | BN6: Margin Of Error | BO6: Esitimate | BP6: Margin Of Error | BQ6: Esitimate | BR6: Margin Of Error | BS6: Esitimate | BT6: Margin Of Error | BU6: Esitimate | BV6: Margin Of Error | BW6: Esitimate | BX6: Margin Of Error | BY6: Esitimate | BZ6: Margin Of Error | CA6: Esitimate | CB6: Margin Of Error | CC6: Esitimate | CD6: Margin Of Error
B7: Population Older than 16 not working at hom | C7: 1037 | D7: 163 | E7: 974 | F7: 177 | G7: 374 | H7: 71 | I7: 160 | J7: 47 | K7: 1312 | L7: 104 | M7: 479 | N7: 117 | O7: 1617 | P7: 182 | Q7: 1808 | R7: 273 | S7: 2366 | T7: 228 | U7: 162 | V7: 48 | W7: 141 | X7: 68 | Y7: 39 | Z7: 24 | AA7: 2490 | AB7: 199 | AC7: 472 | AD7: 105 | AE7: 584 | AF7: 131 | AG7: 256 | AH7: 91 | AI7: 4363 | AJ7: 368 | AK7: 2051 | AL7: 214 | AM7: 187 | AN7: 48 | AO7: 944 | AP7: 192 | AQ7: 225 | AR7: 44 | AS7: 7192 | AT7: 494 | AU7: 400 | AV7: 129 | AW7: 770 | AX7: 118 | AY7: 3186 | AZ7: 305 | BA7: 0 | BB7: 11 | BC7: 252 | BD7: 45 | BE7: 771 | BF7: 95 | BG7: 429 | BH7: 96 | BI7: 131 | BJ7: 39 | BK7: 822 | BL7: 322 | BM7: 441 | BN7: 72 | BO7: 2705 | BP7: 359 | BQ7: 720 | BR7: 142 | BS7: 300 | BT7: 64 | BU7: 1336 | BV7: 141 | BW7: 422 | BX7: 95 | BY7: 93 | BZ7: 40 | CA7: 425 | CB7: 88 | CC7: 545 | CD7: 132
B8: Less than 5 minutes | C8: 17 | D8: 13 | E8: 46 | F8: 35 | G8: 23 | H8: 13 | I8: 13 | J8: 10 | K8: 65 | L8: 66 | M8: 6 | N8: 11 | O8: 113 | P8: 57 | Q8: 16 | R8: 24 | S8: 86 | T8: 53 | U8: 2 | V8: 3 | W8: 4 | X8: 4 | Y8: 0 | Z8: 11 | AA8: 31 | AB8: 34 | AC8: 53 | AD8: 30 | AE8: 0 | AF8: 11 | AG8: 8 | AH8: 7 | AI8: 265 | AJ8: 94 | AK8: 162 | AL8: 96 | AM8: 18 | AN8: 13 | AO8: 55 | AP8: 34 | AQ8: 9 | AR8: 6 | AS8: 240 | AT8: 148 | AU8: 66 | AV8: 50 | AW8: 31 | AX8: 14 | AY8: 183 | AZ8: 149 | BA8: 0 | BB8: 11 | BC8: 2 | BD8: 2 | BE8: 38 | BF8: 18 | BG8: 30 | BH8: 18 | BI8: 6 | BJ8: 7 | BK8: 281 | BL8: 306 | BM8: 22 | BN8: 17 | BO8: 356 | BP8: 161 | BQ8: 29 | BR8: 24 | BS8: 34 | BT8: 30 | BU8: 22 | BV8: 26 | BW8: 18 | BX8: 11 | BY8: 29 | BZ8: 18 | CA8: 16 | CB8: 13 | CC8: 47 | CD8: 31
B9: 5 to 9 minutes | C9: 103 | D9: 51 | E9: 129 | F9: 71 | G9: 63 | H9: 40 | I9: 6 | J9: 6 | K9: 167 | L9: 61 | M9: 44 | N9: 44 | O9: 208 | P9: 93 | Q9: 330 | R9: 188 | S9: 353 | T9: 135 | U9: 5 | V9: 4 | W9: 17 | X9: 19 | Y9: 0 | Z9: 11 | AA9: 80 | AB9: 61 | AC9: 106 | AD9: 56 | AE9: 46 | AF9: 32 | AG9: 3 | AH9: 4 | AI9: 845 | AJ9: 190 | AK9: 214 | AL9: 111 | AM9: 31 | AN9: 21 | AO9: 105 | AP9: 63 | AQ9: 31 | AR9: 14 | AS9: 1072 | AT9: 273 | AU9: 162 | AV9: 65 | AW9: 99 | AX9: 29 | AY9: 509 | AZ9: 174 | BA9: 0 | BB9: 11 | BC9: 10 | BD9: 5 | BE9: 52 | BF9: 23 | BG9: 35 | BH9: 21 | BI9: 5 | BJ9: 5 | BK9: 63 | BL9: 31 | BM9: 41 | BN9: 24 | BO9: 625 | BP9: 244 | BQ9: 71 | BR9: 37 | BS9: 48 | BT9: 23 | BU9: 34 | BV9: 32 | BW9: 98 | BX9: 59 | BY9: 10 | BZ9: 8 | CA9: 68 | CB9: 55 | CC9: 157 | CD9: 60
B10: 10 to 14 minutes | C10: 94 | D10: 33 | E10: 204 | F10: 94 | G10: 59 | H10: 25 | I10: 7 | J10: 6 | K10: 195 | L10: 72 | M10: 96 | N10: 34 | O10: 230 | P10: 117 | Q10: 130 | R10: 69 | S10: 123 | T10: 93 | U10: 3 | V10: 4 | W10: 25 | X10: 28 | Y10: 8 | Z10: 9 | AA10: 399 | AB10: 182 | AC10: 53 | AD10: 34 | AE10: 16 | AF10: 15 | AG10: 9 | AH10: 13 | AI10: 1273 | AJ10: 239 | AK10: 178 | AL10: 85 | AM10: 12 | AN10: 8 | AO10: 187 | AP10: 69 | AQ10: 36 | AR10: 19 | AS10: 1891 | AT10: 313 | AU10: 71 | AV10: 45 | AW10: 98 | AX10: 34 | AY10: 568 | AZ10: 180 | BA10: 0 | BB10: 11 | BC10: 43 | BD10: 16 | BE10: 48 | BF10: 19 | BG10: 33 | BH10: 23 | BI10: 18 | BJ10: 9 | BK10: 43 | BL10: 23 | BM10: 33 | BN10: 15 | BO10: 196 | BP10: 97 | BQ10: 103 | BR10: 60 | BS10: 75 | BT10: 26 | BU10: 142 | BV10: 75 | BW10: 54 | BX10: 29 | BY10: 0 | BZ10: 11 | CA10: 42 | CB10: 17 | CC10: 72 | CD10: 34
B11: 15 to 19 minutes | C11: 180 | D11: 97 | E11: 168 | F11: 65 | G11: 70 | H11: 27 | I11: 9 | J11: 8 | K11: 208 | L11: 66 | M11: 69 | N11: 36 | O11: 91 | P11: 50 | Q11: 268 | R11: 178 | S11: 156 | T11: 100 | U11: 13 | V11: 14 | W11: 19 | X11: 19 | Y11: 0 | Z11: 11 | AA11: 407 | AB11: 129 | AC11: 41 | AD11: 26 | AE11: 18 | AF11: 20 | AG11: 4 | AH11: 6 | AI11: 923 | AJ11: 233 | AK11: 265 | AL11: 108 | AM11: 31 | AN11: 27 | AO11: 197 | AP11: 113 | AQ11: 34 | AR11: 18 | AS11: 1647 | AT11: 313 | AU11: 0 | AV11: 11 | AW11: 158 | AX11: 48 | AY11: 657 | AZ11: 244 | BA11: 0 | BB11: 11 | BC11: 22 | BD11: 11 | BE11: 94 | BF11: 40 | BG11: 39 | BH11: 19 | BI11: 7 | BJ11: 6 | BK11: 28 | BL11: 18 | BM11: 40 | BN11: 19 | BO11: 265 | BP11: 182 | BQ11: 86 | BR11: 36 | BS11: 42 | BT11: 24 | BU11: 220 | BV11: 73 | BW11: 33 | BX11: 20 | BY11: 0 | BZ11: 11 | CA11: 34 | CB11: 24 | CC11: 52 | CD11: 29
B12: 20 to 24 minutes | C12: 101 | D12: 39 | E12: 104 | F12: 49 | G12: 30 | H12: 18 | I12: 47 | J12: 19 | K12: 166 | L12: 68 | M12: 77 | N12: 35 | O12: 146 | P12: 59 | Q12: 334 | R12: 138 | S12: 281 | T12: 115 | U12: 20 | V12: 10 | W12: 25 | X12: 17 | Y12: 6 | Z12: 10 | AA12: 525 | AB12: 172 | AC12: 34 | AD12: 19 | AE12: 41 | AF12: 22 | AG12: 47 | AH12: 26 | AI12: 406 | AJ12: 145 | AK12: 195 | AL12: 94 | AM12: 41 | AN12: 18 | AO12: 95 | AP12: 67 | AQ12: 29 | AR12: 18 | AS12: 1080 | AT12: 245 | AU12: 34 | AV12: 42 | AW12: 160 | AX12: 53 | AY12: 408 | AZ12: 168 | BA12: 0 | BB12: 11 | BC12: 58 | BD12: 29 | BE12: 182 | BF12: 42 | BG12: 57 | BH12: 19 | BI12: 8 | BJ12: 5 | BK12: 64 | BL12: 35 | BM12: 35 | BN12: 18 | BO12: 239 | BP12: 193 | BQ12: 114 | BR12: 69 | BS12: 31 | BT12: 14 | BU12: 419 | BV12: 125 | BW12: 13 | BX12: 8 | BY12: 0 | BZ12: 11 | CA12: 31 | CB12: 15 | CC12: 39 | CD12: 34
B13: 25 to 29 minutes | C13: 42 | D13: 28 | E13: 12 | F13: 13 | G13: 27 | H13: 18 | I13: 7 | J13: 6 | K13: 121 | L13: 76 | M13: 13 | N13: 16 | O13: 126 | P13: 67 | Q13: 60 | R13: 55 | S13: 250 | T13: 110 | U13: 6 | V13: 5 | W13: 7 | X13: 10 | Y13: 8 | Z13: 13 | AA13: 373 | AB13: 126 | AC13: 17 | AD13: 18 | AE13: 16 | AF13: 10 | AG13: 8 | AH13: 6 | AI13: 89 | AJ13: 46 | AK13: 89 | AL13: 57 | AM13: 4 | AN13: 4 | AO13: 76 | AP13: 71 | AQ13: 12 | AR13: 9 | AS13: 113 | AT13: 65 | AU13: 30 | AV13: 24 | AW13: 33 | AX13: 16 | AY13: 158 | AZ13: 106 | BA13: 0 | BB13: 11 | BC13: 24 | BD13: 17 | BE13: 128 | BF13: 30 | BG13: 58 | BH13: 25 | BI13: 13 | BJ13: 11 | BK13: 64 | BL13: 32 | BM13: 18 | BN13: 14 | BO13: 157 | BP13: 100 | BQ13: 29 | BR13: 19 | BS13: 18 | BT13: 14 | BU13: 89 | BV13: 52 | BW13: 47 | BX13: 45 | BY13: 18 | BZ13: 21 | CA13: 11 | CB13: 10 | CC13: 13 | CD13: 9
B14: 30 to 34 minutes | C14: 164 | D14: 57 | E14: 70 | F14: 36 | G14: 20 | H14: 15 | I14: 29 | J14: 12 | K14: 159 | L14: 64 | M14: 43 | N14: 27 | O14: 367 | P14: 101 | Q14: 254 | R14: 139 | S14: 637 | T14: 161 | U14: 19 | V14: 10 | W14: 21 | X14: 16 | Y14: 3 | Z14: 5 | AA14: 253 | AB14: 120 | AC14: 17 | AD14: 13 | AE14: 36 | AF14: 21 | AG14: 46 | AH14: 29 | AI14: 225 | AJ14: 105 | AK14: 109 | AL14: 73 | AM14: 22 | AN14: 15 | AO14: 40 | AP14: 35 | AQ14: 34 | AR14: 17 | AS14: 531 | AT14: 203 | AU14: 27 | AV14: 21 | AW14: 40 | AX14: 32 | AY14: 358 | AZ14: 161 | BA14: 0 | BB14: 11 | BC14: 40 | BD14: 15 | BE14: 135 | BF14: 41 | BG14: 57 | BH14: 33 | BI14: 26 | BJ14: 13 | BK14: 100 | BL14: 29 | BM14: 65 | BN14: 29 | BO14: 368 | BP14: 213 | BQ14: 101 | BR14: 59 | BS14: 8 | BT14: 8 | BU14: 79 | BV14: 56 | BW14: 37 | BX14: 19 | BY14: 8 | BZ14: 10 | CA14: 69 | CB14: 29 | CC14: 24 | CD14: 22
B15: 35 to 39 minutes | C15: 38 | D15: 16 | E15: 9 | F15: 10 | G15: 12 | H15: 10 | I15: 0 | J15: 11 | K15: 29 | L15: 22 | M15: 31 | N15: 19 | O15: 64 | P15: 68 | Q15: 88 | R15: 75 | S15: 174 | T15: 84 | U15: 9 | V15: 13 | W15: 0 | X15: 11 | Y15: 0 | Z15: 11 | AA15: 169 | AB15: 117 | AC15: 24 | AD15: 18 | AE15: 69 | AF15: 30 | AG15: 2 | AH15: 3 | AI15: 0 | AJ15: 18 | AK15: 32 | AL15: 50 | AM15: 2 | AN15: 3 | AO15: 12 | AP15: 13 | AQ15: 0 | AR15: 11 | AS15: 63 | AT15: 47 | AU15: 5 | AV15: 8 | AW15: 8 | AX15: 8 | AY15: 98 | AZ15: 84 | BA15: 0 | BB15: 11 | BC15: 2 | BD15: 3 | BE15: 27 | BF15: 15 | BG15: 7 | BH15: 5 | BI15: 17 | BJ15: 14 | BK15: 33 | BL15: 20 | BM15: 15 | BN15: 10 | BO15: 83 | BP15: 118 | BQ15: 9 | BR15: 8 | BS15: 9 | BT15: 6 | BU15: 42 | BV15: 42 | BW15: 4 | BX15: 5 | BY15: 0 | BZ15: 11 | CA15: 21 | CB15: 14 | CC15: 4 | CD15: 6
B16: 40 to 44 minutes | C16: 34 | D16: 19 | E16: 36 | F16: 33 | G16: 28 | H16: 22 | I16: 2 | J16: 3 | K16: 30 | L16: 21 | M16: 11 | N16: 9 | O16: 86 | P16: 44 | Q16: 147 | R16: 103 | S16: 144 | T16: 115 | U16: 22 | V16: 18 | W16: 2 | X16: 3 | Y16: 0 | Z16: 11 | AA16: 58 | AB16: 57 | AC16: 45 | AD16: 29 | AE16: 67 | AF16: 29 | AG16: 0 | AH16: 11 | AI16: 42 | AJ16: 39 | AK16: 232 | AL16: 151 | AM16: 0 | AN16: 11 | AO16: 14 | AP16: 15 | AQ16: 11 | AR16: 9 | AS16: 30 | AT16: 35 | AU16: 0 | AV16: 11 | AW16: 34 | AX16: 24 | AY16: 33 | AZ16: 41 | BA16: 0 | BB16: 11 | BC16: 3 | BD16: 4 | BE16: 16 | BF16: 11 | BG16: 15 | BH16: 21 | BI16: 12 | BJ16: 10 | BK16: 21 | BL16: 15 | BM16: 71 | BN16: 20 | BO16: 137 | BP16: 148 | BQ16: 10 | BR16: 12 | BS16: 7 | BT16: 7 | BU16: 22 | BV16: 19 | BW16: 20 | BX16: 10 | BY16: 0 | BZ16: 11 | CA16: 34 | CB16: 18 | CC16: 3 | CD16: 6
B17: 45 to 59 minutes | C17: 172 | D17: 56 | E17: 70 | F17: 47 | G17: 22 | H17: 16 | I17: 9 | J17: 9 | K17: 78 | L17: 38 | M17: 29 | N17: 20 | O17: 141 | P17: 65 | Q17: 75 | R17: 49 | S17: 142 | T17: 84 | U17: 31 | V17: 15 | W17: 2 | X17: 3 | Y17: 11 | Z17: 12 | AA17: 26 | AB17: 31 | AC17: 15 | AD17: 20 | AE17: 187 | AF17: 83 | AG17: 71 | AH17: 67 | AI17: 135 | AJ17: 133 | AK17: 326 | AL17: 124 | AM17: 2 | AN17: 3 | AO17: 50 | AP17: 40 | AQ17: 4 | AR17: 8 | AS17: 244 | AT17: 121 | AU17: 5 | AV17: 8 | AW17: 54 | AX17: 28 | AY17: 77 | AZ17: 75 | BA17: 0 | BB17: 11 | BC17: 18 | BD17: 10 | BE17: 39 | BF17: 22 | BG17: 26 | BH17: 19 | BI17: 17 | BJ17: 14 | BK17: 81 | BL17: 32 | BM17: 71 | BN17: 25 | BO17: 134 | BP17: 111 | BQ17: 58 | BR17: 36 | BS17: 4 | BT17: 5 | BU17: 76 | BV17: 37 | BW17: 27 | BX17: 18 | BY17: 11 | BZ17: 11 | CA17: 56 | CB17: 26 | CC17: 75 | CD17: 41
B18: 60 to 89 minutes | C18: 25 | D18: 13 | E18: 74 | F18: 51 | G18: 15 | H18: 10 | I18: 21 | J18: 17 | K18: 62 | L18: 43 | M18: 50 | N18: 40 | O18: 30 | P18: 25 | Q18: 54 | R18: 52 | S18: 20 | T18: 19 | U18: 28 | V18: 28 | W18: 10 | X18: 11 | Y18: 1 | Z18: 3 | AA18: 138 | AB18: 100 | AC18: 18 | AD18: 18 | AE18: 54 | AF18: 30 | AG18: 28 | AH18: 18 | AI18: 83 | AJ18: 58 | AK18: 183 | AL18: 117 | AM18: 19 | AN18: 11 | AO18: 61 | AP18: 33 | AQ18: 18 | AR18: 13 | AS18: 154 | AT18: 116 | AU18: 0 | AV18: 11 | AW18: 22 | AX18: 19 | AY18: 97 | AZ18: 68 | BA18: 0 | BB18: 11 | BC18: 13 | BD18: 13 | BE18: 12 | BF18: 8 | BG18: 36 | BH18: 22 | BI18: 0 | BJ18: 11 | BK18: 20 | BL18: 13 | BM18: 7 | BN18: 7 | BO18: 140 | BP18: 97 | BQ18: 50 | BR18: 25 | BS18: 12 | BT18: 9 | BU18: 149 | BV18: 70 | BW18: 49 | BX18: 26 | BY18: 7 | BZ18: 9 | CA18: 23 | CB18: 12 | CC18: 51 | CD18: 38
B19: 90 or more minutes | C19: 67 | D19: 30 | E19: 52 | F19: 45 | G19: 5 | H19: 6 | I19: 10 | J19: 7 | K19: 32 | L19: 31 | M19: 10 | N19: 10 | O19: 15 | P19: 18 | Q19: 52 | R19: 42 | S19: 0 | T19: 11 | U19: 4 | V19: 5 | W19: 9 | X19: 9 | Y19: 2 | Z19: 3 | AA19: 31 | AB19: 38 | AC19: 49 | AD19: 36 | AE19: 34 | AF19: 22 | AG19: 30 | AH19: 18 | AI19: 77 | AJ19: 49 | AK19: 66 | AL19: 51 | AM19: 5 | AN19: 5 | AO19: 52 | AP19: 40 | AQ19: 7 | AR19: 6 | AS19: 127 | AT19: 87 | AU19: 0 | AV19: 11 | AW19: 33 | AX19: 16 | AY19: 40 | AZ19: 47 | BA19: 0 | BB19: 11 | BC19: 17 | BD19: 15 | BE19: 0 | BF19: 11 | BG19: 36 | BH19: 26 | BI19: 2 | BJ19: 5 | BK19: 24 | BL19: 14 | BM19: 23 | BN19: 19 | BO19: 5 | BP19: 10 | BQ19: 60 | BR19: 51 | BS19: 12 | BT19: 11 | BU19: 42 | BV19: 30 | BW19: 22 | BX19: 13 | BY19: 10 | BZ19: 9 | CA19: 20 | CB19: 18 | CC19: 8 | CD19: 7
C39: 642668 | D39: 3466 | E39: 28483 | F39: 1018 | G39: 21150 | H39: 846 | I39: 36744 | J39: 934 | K39: 14089 | L39: 645 | M39: 42727 | N39: 1151 | O39: 197866 | P39: 2634 | Q39: 70876 | R39: 1467 | S39: 148355 | T39: 1823 | U39: 61589 | V39: 1595 | W39: 20789 | X39: 620
C40: Estimate

Sheet PopulationCharacteristics (hidden)
B2: =CntyDataLink!$A35 -> Alexandria
G3: Land Area: | I3: =((CntyDataLink!F35*10.764)/43560)/640 -> 42.99912475 | K3: Water Area: | L3: =((CntyDataLink!G35*10.764)/43560)/640 -> 0.09590818827
B4: POPULATION CHARACTERISTICS
B19: Population | C19: ="Source: US Census; New Hampshire Office of Strategic Initiatives; "& L20&", "&P20&", and "&S20&" American Community Survey Table B01001" -> Source: US Census; New Hampshire Office of Strategic Initiatives; 2005-2009, 2010-2014, and 2015-2019 American Community Survey Table B01001 | N19: Population by Age | P19: ="Source: "& L20&", "&P20&", and "&S20&" American Community Survey Tables B01001 and B01002" -> Source: 2005-2009, 2010-2014, and 2015-2019 American Community Survey Tables B01001 and B01002
L20: 2005-2009 | P20: 2010-2014 | S20: 2015-2019
C21: 1980 | D21: 1990 | E21: 2000 | F21: 2015-2019 | G21: 2025 | H21: 2030 | L21: Estimate | N21: Margin of Error | O21: Percent Change | P21: Estimate | Q21: Margin of Error | R21: Percent Change | S21: Estimate | T21: Margin of Error | V21: Percent Change | W21: Statistically Significant Change
C22: =CntyDataLink!$E$20 -> 706 | D22: =CntyDataLink!$F$20 -> 1190 | E22: =CntyDataLink!$G$20 -> 1329 | F22: =CntyDataLink!$B$132 -> 2006 | G22: =CntyDataLink!$I$20 -> 1859 | H22: =CntyDataLink!$K$20 -> 1900 | K22: Under 15 yrs. | L22: =CntyDataLinkPrior10YearEstimate!$D$132 -> 314 | N22: =CntyDataLinkPrior10YearEstimate!$E$132 -> 60.72067193 | O22: =L22/SUM($L$22:$L$29) -> 0.1839484476 | P22: =CntyDataLinkPrior5YearEstimates!$D$132 -> 404 | Q22: =CntyDataLinkPrior5YearEstimates!$E$132 -> 78.33900689 | R22: =P22/SUM($P$22:$P$29) -> 0.2208857299 | S22: =CntyDataLink!$D$132 -> 207 | T22: =CntyDataLink!$E$132 -> 51.49757276 | U22: =S22/SUM($S$22:$S$29) -> 0.1031904287 | V22: =(S22-P22)/P22 -> -0.4876237624 | W22: =StatisticallySignificantCalcs!$A3 -> Y
K23: 15 to 24 yrs. | L23: =CntyDataLinkPrior10YearEstimate!$F$132 -> 227 | N23: =CntyDataLinkPrior10YearEstimate!$G$132 -> 62.22539674 | O23: =L23/SUM($L$22:$L$29) -> 0.1329818395 | P23: =CntyDataLinkPrior5YearEstimates!$F$132 -> 225 | Q23: =CntyDataLinkPrior5YearEstimates!$G$132 -> 59.26212956 | R23: 0.1230180426 | S23: =CntyDataLink!$F$132 -> 273 | T23: =CntyDataLink!$G$132 -> 74.27651042 | U23: 0.1360917248 | V23: 0.2133333333 | W23: =StatisticallySignificantCalcs!$A4 -> Y
B24: Percent Change | K24: 25 to 34 yrs. | L24: =CntyDataLinkPrior10YearEstimate!$H$132 -> 220 | N24: =CntyDataLinkPrior10YearEstimate!$I$132 -> 54.95452666 | O24: =L24/SUM($L$22:$L$29) -> 0.1288810779 | P24: =CntyDataLinkPrior5YearEstimates!$H$132 -> 136 | Q24: =CntyDataLinkPrior5YearEstimates!$I$132 -> 38.8458492 | R24: 0.07435757244 | S24: =CntyDataLink!$H$132 -> 191 | T24: =CntyDataLink!$I$132 -> 56.86826883 | U24: 0.09521435693 | V24: 0.4044117647 | W24: =StatisticallySignificantCalcs!$A5 -> Y
D25: =C21&"-"&(D21-1900) -> 1980-90 | E25: 1990-2000 | F25: =E21&"-19" -> 2000-19 | G25: =2019&"-"&(G21) -> 2019-2025 | H25: =G21&"-"&(H21) -> 2025-2030 | K25: 35 to 44 yrs. | L25: =CntyDataLinkPrior10YearEstimate!$J$132 -> 304 | N25: =CntyDataLinkPrior10YearEstimate!$K$132 -> 58.72818744 | O25: 0.1780902168 | P25: =CntyDataLinkPrior5YearEstimates!$J$132 -> 202 | Q25: =CntyDataLinkPrior5YearEstimates!$K$132 -> 51.73973328 | R25: 0.110442865 | S25: =CntyDataLink!$J$132 -> 247 | T25: =CntyDataLink!$K$132 -> 58.62593283 | U25: 0.1231306082 | V25: 0.2227722772 | W25: =StatisticallySignificantCalcs!$A6 -> Y
D26: =(D22-C22)/C22 -> 0.6855524079 | E26: =(E22-D22)/D22 -> 0.1168067227 | F26: =(F22-E22)/E22 -> 0.5094055681 | G26: =(G22-F22)/F22 -> -0.07328015952 | H26: =(H22-G22)/G22 -> 0.02205486821 | K26: 45 to 54 yrs. | L26: =CntyDataLinkPrior10YearEstimate!$L$132 -> 223 | N26: =CntyDataLinkPrior10YearEstimate!$M$132 -> 46.09772229 | O26: 0.1306385472 | P26: =CntyDataLinkPrior5YearEstimates!$L$132 -> 292 | Q26: =CntyDataLinkPrior5YearEstimates!$M$132 -> 59.68249325 | R26: 0.159650082 | S26: =CntyDataLink!$L$132 -> 339 | T26: =CntyDataLink!$M$132 -> 62.24949799 | U26: 0.1689930209 | V26: 0.1609589041 | W26: =StatisticallySignificantCalcs!$A7 -> Y
K27: 55 to 64 yrs. | L27: =CntyDataLinkPrior10YearEstimate!$N$132 -> 203 | N27: =CntyDataLinkPrior10YearEstimate!$O$132 -> 42.19004622 | O27: 0.1189220855 | P27: =CntyDataLinkPrior5YearEstimates!$N$132 -> 272 | Q27: =CntyDataLinkPrior5YearEstimates!$O$132 -> 52.53570215 | R27: 0.1487151449 | S27: =CntyDataLink!$N$132 -> 368 | T27: =CntyDataLink!$O$132 -> 60.91797764 | U27: 0.183449651 | V27: 0.3529411765 | W27: =StatisticallySignificantCalcs!$A8 -> Y
K28: 65 to 74 yrs. | L28: =CntyDataLinkPrior10YearEstimate!$P$132 -> 153 | N28: =CntyDataLinkPrior10YearEstimate!$Q$132 -> 36.08323711 | O28: 0.08963093146 | P28: =CntyDataLinkPrior5YearEstimates!$P$132 -> 174 | Q28: =CntyDataLinkPrior5YearEstimates!$Q$132 -> 37.12142239 | R28: 0.09513395298 | S28: =CntyDataLink!$P$132 -> 236 | T28: =CntyDataLink!$Q$132 -> 51.16639522 | U28: 0.1176470588 | V28: 0.3563218391 | W28: =StatisticallySignificantCalcs!$A9 -> Y
K29: Over 74 yrs. | L29: =CntyDataLinkPrior10YearEstimate!$R$132 -> 63 | N29: =CntyDataLinkPrior10YearEstimate!$S$132 -> 164.493161 | O29: 0.03690685413 | P29: =CntyDataLinkPrior5YearEstimates!$R$132 -> 124 | Q29: =CntyDataLinkPrior5YearEstimates!$S$132 -> 44.78839135 | R29: 0.06779661017 | S29: =CntyDataLink!$R$132 -> 145 | T29: =CntyDataLink!$S$132 -> 37.22902094 | U29: 0.07228315055 | V29: 0.1693548387 | W29: =StatisticallySignificantCalcs!$A10 -> Y
K30: Median Age (years) | L30: =CntyDataLinkPrior10YearEstimate!$AX132 -> 39.4 | N30: =CntyDataLinkPrior10YearEstimate!$AY$132 -> 3.6 | P30: =CntyDataLinkPrior5YearEstimates!$AX132 -> 43.1 | Q30: =CntyDataLinkPrior5YearEstimates!$AY$132 -> 2.8 | S30: =CntyDataLink!$AX$132 -> 48.4 | T30: =CntyDataLink!$AY$132 -> 2.3
B32: Population By Race | M32: Statistically Significant Change
M33: =IF(L36="","-",StatisticallySignificantCalcs!A20) -> N
C34: 2005-2009 | F34: 2010-2014 | I34: 2015-2019 | L34: Statistically Significant Change
C35: Estimate | D35: Margin of Error | F35: Estimate | G35: Margin of Error | I35: Estimate | J35: Margin of Error | L35: 2009-2019 | M35: 2014-2019
B36: White | C36: =CntyDataLinkPrior10YearEstimate!$AL$132 -> 1661 | D36: =CntyDataLinkPrior10YearEstimate!$AM$132 -> 194 | E36: =IF(C$36="-","-",VALUE(C36/$C$41)) -> 0.9730521383 | F36: =CntyDataLinkPrior5YearEstimates!$AL$132 -> 1700 | G36: =CntyDataLinkPrior5YearEstimates!$AM$132 -> 198 | H36: =IF(F$36="-","-",VALUE(F36/$F$41)) -> 0.9294696555 | I36: =CntyDataLink!$AL$132 -> 1907 | J36: =CntyDataLink!$AM$132 -> 232 | K36: =IF(I$36="-","-",VALUE(I36/$I$41)) -> 0.9506480558 | L36: =StatisticallySignificantCalcs!A20 -> N | M36: =StatisticallySignificantCalcs!J20 -> N
B37: Black | C37: =CntyDataLinkPrior10YearEstimate!$AN132 -> 0 | D37: =CntyDataLinkPrior10YearEstimate!$AO$132 -> 114 | E37: =IF(C$37="-","-",VALUE(C37/$C$41)) -> 0 | F37: =CntyDataLinkPrior5YearEstimates!$AN132 -> 73 | G37: =CntyDataLinkPrior5YearEstimates!$AO$132 -> 65 | H37: =IF(F$37="-","-",VALUE(F37/$F$41)) -> 0.0399125205 | I37: =CntyDataLink!$AN$132 -> 0 | J37: =CntyDataLink!$AO$132 -> 11 | K37: =IF(I$37="-","-",VALUE(I37/$I$41)) -> 0 | L37: =StatisticallySignificantCalcs!A21 -> N | M37: =StatisticallySignificantCalcs!J21 -> Y
B38: American Indian | C38: =CntyDataLinkPrior10YearEstimate!$AP$132 -> 0 | D38: =CntyDataLinkPrior10YearEstimate!$AQ$132 -> 114 | E38: =IF(C$38="-","-",VALUE(C38/$C$41)) -> 0 | F38: =CntyDataLinkPrior5YearEstimates!$AP$132 -> 11 | G38: =CntyDataLinkPrior5YearEstimates!$AQ$132 -> 14 | H38: =IF(F$38="-","-",VALUE(F38/$F$41)) -> 0.006014215418 | I38: =CntyDataLink!$AP$132 -> 0 | J38: =CntyDataLink!$AQ$132 -> 11 | K38: =IF(I$38="-","-",VALUE(I38/$I$41)) -> 0 | L38: =StatisticallySignificantCalcs!A22 -> N | M38: =StatisticallySignificantCalcs!J22 -> N
B39: Asian &Pacific Is. | C39: =CntyDataLinkPrior10YearEstimate!$AR$132 -> 9 | D39: =CntyDataLinkPrior10YearEstimate!$AS$132 -> 114.437756 | E39: =IF(C$39="-","-",VALUE(C39/$C$41)) -> 0.005272407733 | F39: =CntyDataLinkPrior5YearEstimates!$AR$132 -> 4 | G39: =CntyDataLinkPrior5YearEstimates!$AS$132 -> 13.03840481 | H39: =IF(F$39="-","-",VALUE(F39/$F$41)) -> 0.002186987425 | I39: =CntyDataLink!$AR$132 -> 35 | J39: =CntyDataLink!$AS$132 -> 34.78505426 | K39: =IF(I$39="-","-",VALUE(I39/$I$41)) -> 0.01744765703 | L39: =StatisticallySignificantCalcs!A23 -> N | M39: =StatisticallySignificantCalcs!J23 -> N
B40: Other* | C40: =CntyDataLinkPrior10YearEstimate!$AT$132 -> 13 | D40: =CntyDataLinkPrior10YearEstimate!$AU$132 -> 114.9826074 | E40: =IF(C$40="-","-",VALUE(C40/$C$41)) -> 0.007615700059 | F40: =CntyDataLinkPrior5YearEstimates!$AT$132 -> 14 | G40: =CntyDataLinkPrior5YearEstimates!$AU$132 -> 20.24845673 | H40: =IF(F$40="-","-",VALUE(F40/$F$41)) -> 0.007654455987 | I40: =CntyDataLink!$AT$132 -> 25 | J40: =CntyDataLink!$AU$132 -> 29.42787794 | K40: =IF(I$40="-","-",VALUE(I40/$I$41)) -> 0.01246261216 | L40: =StatisticallySignificantCalcs!A24 -> N | M40: =StatisticallySignificantCalcs!J24 -> N
B41: Total Population | C41: =CntyDataLinkPrior10YearEstimate!$B$132 -> 1707 | D41: =CntyDataLinkPrior10YearEstimate!$C$132 -> 193 | F41: =CntyDataLinkPrior5YearEstimates!$B$132 -> 1829 | G41: =CntyDataLinkPrior5YearEstimates!$C$132 -> 203 | I41: =CntyDataLink!$B$132 -> 2006 | J41: =CntyDataLink!$C$132 -> 227
B42: Hispanic | C42: =CntyDataLinkPrior10YearEstimate!$AV$132 -> 24 | D42: =CntyDataLinkPrior10YearEstimate!$AW$132 -> 22 | E42: =IF(C$42="-","-",VALUE(C42/$C$41)) -> 0.01405975395 | F42: =CntyDataLinkPrior5YearEstimates!$AV132 -> 27 | G42: =CntyDataLinkPrior5YearEstimates!$AW$132 -> 35 | H42: =IF(F$42="-","-",VALUE(F42/$F$41)) -> 0.01476216512 | I42: =CntyDataLink!$AV$132 -> 39 | J42: =CntyDataLink!$AW$132 -> 39 | K42: =IF(I$42="-","-",VALUE(I42/$I$41)) -> 0.01944167498 | L42: =StatisticallySignificantCalcs!A26 -> N | M42: =StatisticallySignificantCalcs!J26 -> N
B44: * | C44: Other includes population of 2 or more races
B46: ="Source: "& L20&", "&P20&", and "&S20&" American Community Survey Table B03002" -> Source: 2005-2009, 2010-2014, and 2015-2019 American Community Survey Table B03002
C48: Households and Families
D49: 2010-2014 | G49: 2010-2014 | J49: 2015-2019 | N49: Percent Change 2009-2019 | P49: Percent Change 2010-2019
D50: Estimate | E50: Margin of Error | G50: Estimate | H50: Margin of Error | J50: Estimate | K50: Margin of Error
C51: Total Households | D51: =CntyDataLinkPrior10YearEstimate!$T$132 -> 579 | E51: =CntyDataLinkPrior10YearEstimate!$U$132 -> 63 | G51: =CntyDataLinkPrior5YearEstimates!$T$132 -> 632 | H51: =CntyDataLinkPrior5YearEstimates!$U$132 -> 60 | J51: =CntyDataLink!$T$132 -> 715 | K51: =CntyDataLink!$U$132 -> 64 | N51: =(J51-D51)/D51 -> 0.2348877375 | P51: =(J51-G51)/G51 -> 0.1313291139
C52: Persons per Household | D52: =CntyDataLinkPrior10YearEstimate!$BD$132 -> 2.948186528 | E52: =CntyDataLinkPrior10YearEstimate!$BE$132 -> 0.22 | G52: =CntyDataLinkPrior5YearEstimates!$BD$132 -> 2.893987342 | H52: =CntyDataLinkPrior5YearEstimates!$BE$132 -> 0.22 | J52: =CntyDataLink!$BD$132 -> 2.805594406 | K52: =CntyDataLink!$BE$132 -> 0.26 | N52: =(J52-D52)/D52 -> -0.0483660452 | P52: =(J52-G52)/G52 -> -0.0305436499
C53: Family Households | D53: =CntyDataLinkPrior10YearEstimate!$V$132 -> 484 | E53: =CntyDataLinkPrior10YearEstimate!$U$132 -> 63 | G53: =CntyDataLinkPrior5YearEstimates!$V$132 -> 465 | H53: =CntyDataLinkPrior5YearEstimates!$U$132 -> 60 | J53: =CntyDataLink!$V$132 -> 520 | K53: =CntyDataLink!$U$132 -> 64 | N53: 0.07438016529 | P53: 0.1182795699
C54: Persons per Family Household | D54: =CntyDataLinkPrior10YearEstimate!$BF$132 -> 3.247933884 | E54: =CntyDataLinkPrior10YearEstimate!$BG$132 -> 0.5801853992 | G54: =CntyDataLinkPrior5YearEstimates!$BF$132 -> 3.483870968 | H54: =CntyDataLinkPrior5YearEstimates!$BG$132 -> 0.5560153208 | J54: =CntyDataLink!$BF$132 -> 3.294230769 | K54: =CntyDataLink!$BG$132 -> 0.5560153208 | N54: 0.01425425719 | P54: -0.05443376068
C55: Married-Couple Family Hh | D55: =CntyDataLinkPrior10YearEstimate!$X$132 -> 435 | E55: =CntyDataLinkPrior10YearEstimate!$Y$132 -> 59 | G55: =CntyDataLinkPrior5YearEstimates!$X$132 -> 415 | H55: =CntyDataLinkPrior5YearEstimates!$Y$132 -> 53 | J55: =CntyDataLink!$X$132 -> 484 | K55: =CntyDataLink!$Y$132 -> 61 | N55: 0.1126436782 | P55: 0.1662650602
C56: Single-Parent Family Hh | D56: =CntyDataLinkPrior10YearEstimate!$Z$132 -> 49 | E56: =CntyDataLinkPrior10YearEstimate!$AA$132 -> 21 | G56: =CntyDataLinkPrior5YearEstimates!$Z$132 -> 50 | H56: =CntyDataLinkPrior5YearEstimates!$AA$132 -> 23 | J56: =CntyDataLink!$Z$132 -> 36 | K56: =CntyDataLink!$AA$132 -> 18 | N56: -0.2653061224 | P56: =(J56-G56)/G56 -> -0.28
C57: Non-Family Households | D57: =CntyDataLinkPrior10YearEstimate!$AF$132 -> 95 | E57: =CntyDataLinkPrior10YearEstimate!$AG$132 -> 39 | G57: =CntyDataLinkPrior5YearEstimates!$AF$132 -> 167 | H57: =CntyDataLinkPrior5YearEstimates!$AG$132 -> 44 | J57: =CntyDataLink!$AF$132 -> 195 | K57: =CntyDataLink!$AG$132 -> 49 | N57: 1.052631579 | P57: 0.1676646707
C58: Persons per Non-Family Hh | D58: =CntyDataLinkPrior10YearEstimate!$BH$132 -> 1.421052632 | E58: =CntyDataLinkPrior10YearEstimate!$BI$132 -> 0.7649158029 | G58: =CntyDataLinkPrior5YearEstimates!$BH$132 -> 1.251497006 | H58: =CntyDataLinkPrior5YearEstimates!$BI$132 -> 0.5575548906 | J58: =CntyDataLink!$BH$132 -> 1.502564103 | K58: =CntyDataLink!$BI$132 -> 0.5575548906 | N58: =(J58-D58)/D58 -> 0.05735992403 | P58: 0.2006134217
B61: As a result of changes in the American Community Survey, direct comparisons between the data should be made with caution.
B63: Source: 2005-2009, 2010-2014, and 2015-2019 American Community Survey Table B11001
B64: POPULATION CHARACTERISTICS

Sheet SchoolEnrolEduAttain (hidden)
C2: =CntyDataLink!A50 -> Alexandria
C3: SOCIAL CHARACTERISTICS
C21: School Enrollment | F21: 2005-2009 | I21: 2010-2014 | L21: 2015-2019 | P21: Statistically Significant Change
F22: Estimate | G22: Margin of Error | H22: Percent of Population | I22: Estimate | J22: Margin of Error | K22: Percent of Population | L22: Estimate | M22: Margin of Error | N22: Percent of Population | P22: 2009-2019 | Q22: 2014-2019
C23: Population 3 years and over | F23: =CntyDataLinkPrior10YearEstimate!$B$140 -> 1644 | G23: =CntyDataLinkPrior10YearEstimate!$C$140 -> 188 | I23: =CntyDataLinkPrior5YearEstimates!$B$140 -> 1704 | J23: =CntyDataLinkPrior5YearEstimates!$C$140 -> 196 | L23: =CntyDataLink!$B$140 -> 1957 | M23: =CntyDataLink!$C$140 -> 215 | P23: =StatisticallySignificantCalcs!$A$45 -> Y | Q23: =StatisticallySignificantCalcs!$J$45 -> N
C24: Population 3 years & over enrolled in school | F24: =CntyDataLinkPrior10YearEstimate!$D$140 -> 359 | G24: =CntyDataLinkPrior10YearEstimate!$E$140 -> 76 | H24: =F24/$F$23 -> 0.2183698297 | I24: =CntyDataLinkPrior5YearEstimates!$D$140 -> 294 | J24: =CntyDataLinkPrior5YearEstimates!$E$140 -> 75 | K24: =I24/$I$23 -> 0.1725352113 | L24: =CntyDataLink!$D$140 -> 311 | M24: =CntyDataLink!$E$140 -> 75 | N24: =L24/$L$23 -> 0.1589167092 | P24: =StatisticallySignificantCalcs!$A$46 -> N | Q24: =StatisticallySignificantCalcs!$J$46 -> N
C25: Preprimary (Nursery, Preschool, Kindergarten) | F25: =CntyDataLinkPrior10YearEstimate!$F$140 -> 22 | G25: =CntyDataLinkPrior10YearEstimate!$G$140 -> 15.8113883 | H25: =F25/$F$23 -> 0.01338199513 | I25: =CntyDataLinkPrior5YearEstimates!$F$140 -> 31 | J25: =CntyDataLinkPrior5YearEstimates!$G$140 -> 22.47220505 | K25: =I25/$I$23 -> 0.01819248826 | L25: =CntyDataLink!$F$140 -> 9 | M25: =CntyDataLink!$G$140 -> 9.219544457 | N25: =L25/$L$23 -> 0.00459887583 | P25: =StatisticallySignificantCalcs!$A$47 -> N | Q25: =StatisticallySignificantCalcs!$J$47 -> N
C26: Nursery school and Preschool | F26: =CntyDataLinkPrior10YearEstimate!$H$140 -> 10 | G26: =CntyDataLinkPrior10YearEstimate!$I$140 -> 9 | H26: 0.006082725061 | I26: =CntyDataLinkPrior5YearEstimates!$H$140 -> 14 | J26: =CntyDataLinkPrior5YearEstimates!$I$140 -> 19 | K26: 0.008215962441 | L26: =CntyDataLink!$H$140 -> 4 | M26: =CntyDataLink!$I$140 -> 7 | N26: 0.002043944813 | P26: =StatisticallySignificantCalcs!$A$48 -> N | Q26: =StatisticallySignificantCalcs!$J$48 -> N
C27: Kindergarten | F27: =CntyDataLinkPrior10YearEstimate!$J$140 -> 12 | G27: =CntyDataLinkPrior10YearEstimate!$K$140 -> 13 | H27: 0.007299270073 | I27: =CntyDataLinkPrior5YearEstimates!$J$140 -> 17 | J27: =CntyDataLinkPrior5YearEstimates!$K$140 -> 12 | K27: 0.009976525822 | L27: =CntyDataLink!$J$140 -> 5 | M27: =CntyDataLink!$K$140 -> 6 | N27: 0.002554931017 | P27: =StatisticallySignificantCalcs!$A$49 -> N | Q27: =StatisticallySignificantCalcs!$J$49 -> N
C28: Elementary through High school | F28: =CntyDataLinkPrior10YearEstimate!$P$140 -> 267 | G28: =CntyDataLinkPrior10YearEstimate!$Q$140 -> 60.4814021 | H28: 0.1624087591 | I28: =CntyDataLinkPrior5YearEstimates!$P$140 -> 236 | J28: =CntyDataLinkPrior5YearEstimates!$Q$140 -> 64.50581369 | K28: 0.1384976526 | L28: =CntyDataLink!$P$140 -> 246 | M28: =CntyDataLink!$Q$140 -> 55.36244214 | N28: 0.125702606 | P28: =StatisticallySignificantCalcs!$A$50 -> N | Q28: =StatisticallySignificantCalcs!$J$50 -> N
C29: Elementary school (grades 1-8) | F29: =CntyDataLinkPrior10YearEstimate!$L$140 -> 176 | G29: =CntyDataLinkPrior10YearEstimate!$M$140 -> 48.60041152 | H29: 0.1070559611 | I29: =CntyDataLinkPrior5YearEstimates!$L$140 -> 145 | J29: =CntyDataLinkPrior5YearEstimates!$M$140 -> 47.16990566 | K29: 0.08509389671 | L29: =CntyDataLink!$L$140 -> 123 | M29: =CntyDataLink!$M$140 -> 36.06937759 | N29: 0.06285130301 | P29: =StatisticallySignificantCalcs!$A$51 -> N | Q29: =StatisticallySignificantCalcs!$J$51 -> N
C30: High school (grades 9-12) | F30: =CntyDataLinkPrior10YearEstimate!$N$140 -> 91 | G30: =CntyDataLinkPrior10YearEstimate!$O$140 -> 36 | H30: 0.05535279805 | I30: =CntyDataLinkPrior5YearEstimates!$N$140 -> 91 | J30: =CntyDataLinkPrior5YearEstimates!$O$140 -> 44 | K30: 0.05340375587 | L30: =CntyDataLink!$N$140 -> 123 | M30: =CntyDataLink!$O$140 -> 42 | N30: 0.06285130301 | P30: =StatisticallySignificantCalcs!$A$52 -> N | Q30: =StatisticallySignificantCalcs!$J$52 -> N
C31: College or Graduate School | F31: =CntyDataLinkPrior10YearEstimate!$R$140 -> 70 | G31: =CntyDataLinkPrior10YearEstimate!$S$140 -> 39.3192065 | H31: 0.04257907543 | I31: =CntyDataLinkPrior5YearEstimates!$R$140 -> 27 | J31: =CntyDataLinkPrior5YearEstimates!$S$140 -> 16.64331698 | K31: 0.01584507042 | L31: =CntyDataLink!$R$140 -> 56 | M31: =CntyDataLink!$S$140 -> 26.62705391 | N31: 0.02861522739 | P31: =StatisticallySignificantCalcs!$A$53 -> N | Q31: =StatisticallySignificantCalcs!$J$53 -> N
C33: ="Source: "&F21&", "& I21&" and "&L21&" American Community Survey Table B14001" -> Source: 2005-2009, 2010-2014 and 2015-2019 American Community Survey Table B14001
C50: Educational Attainment | F50: 2005-2009 | I50: 2010-2014 | L50: 2015.-2019 | P50: Statistically Significant Change
F51: Estimate | G51: Margin of Error | H51: Percent of Population | I51: Estimate | J51: Margin of Error | K51: Percent of Population | L51: Estimate | M51: Margin of Error | N51: Percent of Population | P51: 2009-2019 | Q51: 2014-2019
C52: Population 25 years and over | F52: =CntyDataLinkPrior10YearEstimate!$V$140 -> 1166 | G52: =CntyDataLinkPrior10YearEstimate!$W$140 -> 131 | I52: =CntyDataLinkPrior5YearEstimates!$V$140 -> 1200 | J52: =CntyDataLinkPrior5YearEstimates!$W$140 -> 129 | L52: =CntyDataLink!$V$140 -> 1526 | M52: =CntyDataLink!$W$140 -> 151 | P52: =StatisticallySignificantCalcs!A54 -> Y | Q52: =StatisticallySignificantCalcs!$J$54 -> Y
C53: Less than 9th Grade | F53: =CntyDataLinkPrior10YearEstimate!$X$140 -> 34 | G53: =CntyDataLinkPrior10YearEstimate!$Y$140 -> 230.6274051 | H53: =F53/$F$52 -> 0.02915951973 | I53: =CntyDataLinkPrior5YearEstimates!$X$140 -> 17 | J53: =CntyDataLinkPrior5YearEstimates!$Y$140 -> 28.44292531 | K53: =I53/$I$52 -> 0.01416666667 | L53: =CntyDataLink!$X$140 -> 23 | M53: =CntyDataLink!$Y$140 -> 27.49545417 | N53: =L53/$L$52 -> 0.01507208388 | P53: =StatisticallySignificantCalcs!A55 -> N | Q53: =StatisticallySignificantCalcs!$J$55 -> N
C54: 9th to 12th Grade, no Diploma | F54: =CntyDataLinkPrior10YearEstimate!$Z$140 -> 129 | G54: =CntyDataLinkPrior10YearEstimate!$AA$140 -> 42.26109322 | H54: =F54/$F$52 -> 0.1106346484 | I54: =CntyDataLinkPrior5YearEstimates!$Z$140 -> 87 | J54: =CntyDataLinkPrior5YearEstimates!$AA$140 -> 39.94996871 | K54: =I54/$I$52 -> 0.0725 | L54: =CntyDataLink!$Z$140 -> 88 | M54: =CntyDataLink!$AA$140 -> 33.43650699 | N54: =L54/$L$52 -> 0.05766710354 | P54: =StatisticallySignificantCalcs!A56 -> N | Q54: =StatisticallySignificantCalcs!$J$56 -> N
C55: High School Graduate | F55: =CntyDataLinkPrior10YearEstimate!$AB$140 -> 445 | G55: =CntyDataLinkPrior10YearEstimate!$AC$140 -> 65.19202405 | H55: 0.3816466552 | I55: =CntyDataLinkPrior5YearEstimates!$AB$140 -> 560 | J55: =CntyDataLinkPrior5YearEstimates!$AC$140 -> 84.50443775 | K55: 0.4666666667 | L55: =CntyDataLink!$AB$140 -> 627 | M55: =CntyDataLink!$AC$140 -> 95.60334722 | N55: 0.4108781127 | P55: =StatisticallySignificantCalcs!A57 -> N | Q55: =StatisticallySignificantCalcs!$J$57 -> N
C56: Some College, No Degree | F56: =CntyDataLinkPrior10YearEstimate!$AD$140 -> 276 | G56: =CntyDataLinkPrior10YearEstimate!$AE$140 -> 56.61271942 | H56: 0.2367066895 | I56: =CntyDataLinkPrior5YearEstimates!$AD$140 -> 210 | J56: =CntyDataLinkPrior5YearEstimates!$AE$140 -> 43.58898944 | K56: 0.175 | L56: =CntyDataLink!$AD$140 -> 303 | M56: =CntyDataLink!$AE$140 -> 58.94913061 | N56: 0.1985583224 | P56: =StatisticallySignificantCalcs!A58 -> Y | Q56: =StatisticallySignificantCalcs!$J$58 -> Y
C57: Associate Degree | F57: =CntyDataLinkPrior10YearEstimate!$AF$140 -> 77 | G57: =CntyDataLinkPrior10YearEstimate!$AG$140 -> 32.20248438 | H57: 0.06603773585 | I57: =CntyDataLinkPrior5YearEstimates!$AF$140 -> 100 | J57: =CntyDataLinkPrior5YearEstimates!$AG$140 -> 31.6227766 | K57: 0.08333333333 | L57: =CntyDataLink!$AF$140 -> 160 | M57: =CntyDataLink!$AG$140 -> 43.41658669 | N57: 0.1048492792 | P57: =StatisticallySignificantCalcs!A59 -> Y | Q57: =StatisticallySignificantCalcs!$J$59 -> Y
C58: Bachelor's Degree | F58: =CntyDataLinkPrior10YearEstimate!$AH$140 -> 143 | G58: =CntyDataLinkPrior10YearEstimate!$AI$140 -> 38.18376618 | H58: 0.1226415094 | I58: =CntyDataLinkPrior5YearEstimates!$AH$140 -> 163 | J58: =CntyDataLinkPrior5YearEstimates!$AI$140 -> 42.44997055 | K58: 0.1358333333 | L58: =CntyDataLink!$AH$140 -> 217 | M58: =CntyDataLink!$AI$140 -> 49.57822102 | N58: 0.1422018349 | P58: =StatisticallySignificantCalcs!A60 -> N | Q58: =StatisticallySignificantCalcs!$J$60 -> N
C59: Graduate or Professional Degree | F59: =CntyDataLinkPrior10YearEstimate!$AJ$140 -> 31 | G59: =CntyDataLinkPrior10YearEstimate!$AK$140 -> 15.32970972 | H59: 0.02658662093 | I59: =CntyDataLinkPrior5YearEstimates!$AJ$140 -> 55 | J59: =CntyDataLinkPrior5YearEstimates!$AK$140 -> 27.5317998 | K59: 0.04583333333 | L59: =CntyDataLink!$AJ$140 -> 86 | M59: =CntyDataLink!$AK$140 -> 39.69886648 | N59: 0.05635648755 | P59: =StatisticallySignificantCalcs!A61 -> N | Q59: =StatisticallySignificantCalcs!$J$61 -> N
C61: Percent of High School Graduate or Higher | H61: =SUM(F55:F59)/F52 -> 0.833619211 | K61: =SUM(I55:I59)/I52 -> 0.9066666667 | N61: =SUM(L55:L59)/L52 -> 0.9128440367
C62: Percent of Bachelor's Degree or Higher | H62: =SUM(F58:F59)/F52 -> 0.1492281304 | K62: =SUM(I58:I59)/I52 -> 0.1816666667 | N62: =SUM(L58:L59)/L52 -> 0.1985583224
C64: ="Source: "&F21&", "&I21&" and "&L21&" American Community Survey Table B15002" -> Source: 2005-2009, 2010-2014 and 2015-2019 American Community Survey Table B15002 | H64: Data from the American Community Survey are estimates

Sheet HousingCharacteristics (hidden)
B2: =CntyDataLink!$A35 -> Alexandria
B4: HOUSING CHARACTERISTICS
D27: ="Source: "& " "&D69&", "&G69&" and "&J69& " American Community Survey Table B25024; B25032" -> Source: 2005-2009, 2010-2014 and 2015-2019 American Community Survey Table B25024; B25032
B28: Units by Tenure & Vacancy
C30: 2005-2009 | F30: 2010-2014 | I30: 2015-2019 | L30: Percent Change | O30: Statistically Significant Change
C31: Estimate | D31: Margin of Error | E31: % | F31: Estimate | G31: Margin of Error | H31: % | I31: Estimate | J31: Margin of Error | K31: % | L31: 2009-2019 | M31: 2014-2019 | O31: 2009-2019 | P31: 2014-2019
B32: Total Units | C32: =CntyDataLinkPrior10YearEstimate!$B$108 -> 897 | D32: =CntyDataLinkPrior5YearEstimates!$C$108 -> 71 | F32: =CntyDataLinkPrior5YearEstimates!$B$108 -> 910 | G32: =CntyDataLinkPrior5YearEstimates!$C$108 -> 71 | I32: =CntyDataLink!$B$108 -> 1017 | J32: =CntyDataLink!$C$108 -> 82 | L32: =IF(I32="-","-",(I32-C32)/C32) -> 0.1337792642 | M32: =IF(I32="-","-",(I32-F32)/F32) -> 0.1175824176 | O32: =StatisticallySignificantCalcs!$A62 -> Y | P32: =StatisticallySignificantCalcs!$J62 -> N
B33: Occupied Units | C33: =CntyDataLinkPrior10YearEstimate!$D$108 -> 579 | D33: =CntyDataLinkPrior5YearEstimates!$E$108 -> 60 | E33: =ROUND(C33/C32,2)*100&"% of Total" -> 65% of Total | F33: =CntyDataLinkPrior5YearEstimates!$D$108 -> 632 | G33: =CntyDataLinkPrior5YearEstimates!$E$108 -> 60 | H33: =ROUND(F33/F32,2)*100&"% of Total" -> 69% of Total | I33: =CntyDataLink!$D$108 -> 715 | J33: =CntyDataLink!$E$108 -> 64 | K33: =ROUND(I33/I32,2)*100&"% of Total" -> 70% of Total | L33: =IF(I33="-","-",(I33-C33)/C33) -> 0.2348877375 | M33: 0.1313291139 | O33: =StatisticallySignificantCalcs!$A63 -> Y | P33: =StatisticallySignificantCalcs!$J63 -> N
B34: Owner Occupied | C34: =CntyDataLinkPrior10YearEstimate!$F$108 -> 521 | D34: =CntyDataLinkPrior5YearEstimates!$G$108 -> 65 | E34: =ROUND(C34/C33,2)*100&"% of Occ." -> 90% of Occ. | F34: =CntyDataLinkPrior5YearEstimates!$F$108 -> 530 | G34: =CntyDataLinkPrior5YearEstimates!$G$108 -> 65 | H34: =ROUND(F34/F33,2)*100&"% of Occ." -> 84% of Occ. | I34: =CntyDataLink!$F$108 -> 640 | J34: =CntyDataLink!$G$108 -> 58 | K34: =ROUND(I34/I33,2)*100&"% of Occ." -> 90% of Occ. | L34: =IF(I34="-","-",(I34-C34)/C34) -> 0.2284069098 | M34: 0.2075471698 | O34: =StatisticallySignificantCalcs!$A64 -> Y | P34: =StatisticallySignificantCalcs!$J64 -> Y
B35: Renter Occupied | C35: =CntyDataLinkPrior10YearEstimate!$H$108 -> 58 | D35: =CntyDataLinkPrior5YearEstimates!$I$108 -> 41 | E35: =ROUND(C35/C33,2)*100&"% of Occ." -> 10% of Occ. | F35: =CntyDataLinkPrior5YearEstimates!$H$108 -> 102 | G35: =CntyDataLinkPrior5YearEstimates!$I$108 -> 41 | H35: =ROUND(F35/F33,2)*100&"% of Occ." -> 16% of Occ. | I35: =CntyDataLink!$H$108 -> 75 | J35: =CntyDataLink!$I$108 -> 30 | K35: =ROUND(I35/I33,2)*100&"% of Occ." -> 10% of Occ. | L35: =IF(I35="-","-",(I35-C35)/C35) -> 0.2931034483 | M35: -0.2647058824 | O35: =StatisticallySignificantCalcs!$A65 -> N | P35: =StatisticallySignificantCalcs!$J65 -> N
B36: Vacant Units | C36: =CntyDataLinkPrior10YearEstimate!$J$108 -> 318 | D36: =CntyDataLinkPrior5YearEstimates!$K$108 -> 59 | E36: =ROUND(C36/C32,2)*100&"% of Total" -> 35% of Total | F36: =CntyDataLinkPrior5YearEstimates!$J$108 -> 278 | G36: =CntyDataLinkPrior5YearEstimates!$K$108 -> 59 | H36: =ROUND(F36/F32,2)*100&"% of Total" -> 31% of Total | I36: =CntyDataLink!$J$108 -> 302 | J36: =CntyDataLink!$K$108 -> 76 | K36: =ROUND(I36/I32,2)*100&"% of Total" -> 30% of Total | L36: =IF(I36="-",I36,VALUE((I36-C36)/C36)) -> -0.05031446541 | M36: 0.08633093525 | O36: =StatisticallySignificantCalcs!$A66 -> N | P36: =StatisticallySignificantCalcs!$J66 -> N
B37: Vacant For Sale | C37: =CntyDataLinkPrior10YearEstimate!$P$108 -> 42 | D37: =CntyDataLinkPrior5YearEstimates!$Q$108 -> 16 | E37: =ROUND(C37/(C34+C37),3)*100&"% Vac." -> 7.5% Vac. | F37: =CntyDataLinkPrior5YearEstimates!$P$108 -> 10 | G37: =CntyDataLinkPrior5YearEstimates!$Q$108 -> 16 | H37: =ROUND(F37/(F34+F37),3)*100&"% Vac." -> 1.9% Vac. | I37: =CntyDataLink!$P$108 -> 0 | J37: =CntyDataLink!$Q$108 -> 11 | K37: =ROUND(I37/(I34+I37),3)*100&"% Vac." -> 0% Vac. | L37: =IF(I37="-",I37,VALUE((I37-C37)/C37)) -> -1 | M37: -1 | O37: =StatisticallySignificantCalcs!$A67 -> Y | P37: =StatisticallySignificantCalcs!$J67 -> N
B38: Vacant For Rent | C38: =CntyDataLinkPrior10YearEstimate!$L$108 -> 0 | D38: =CntyDataLinkPrior5YearEstimates!$M$108 -> 11 | E38: =ROUND(C38/(C35+C38),3)*100&"% Vac." -> 0% Vac. | F38: =CntyDataLinkPrior5YearEstimates!$L$108 -> 0 | G38: =CntyDataLinkPrior5YearEstimates!$M$108 -> 11 | H38: =ROUND(F38/(F35+F38),3)*100&"% Vac." -> 0% Vac. | I38: =CntyDataLink!$L$108 -> 0 | J38: =CntyDataLink!$M$108 -> 11 | K38: =ROUND(I38/(I35+I38),3)*100&"% Vac." -> 0% Vac. | L38: =IF(I38="-",I38,VALUE((I38-C38)/C38)) ->  | O38: =StatisticallySignificantCalcs!$A68 -> N | P38: =StatisticallySignificantCalcs!$J68 -> N
B39: Vacant Seasonal | C39: =CntyDataLinkPrior10YearEstimate!$T$108 -> 240 | D39: =CntyDataLinkPrior5YearEstimates!$U$108 -> 56 | E39: =ROUND(C39/C32,2)*100&"% of Total" -> 27% of Total | F39: =CntyDataLinkPrior5YearEstimates!$T$108 -> 234 | G39: =CntyDataLinkPrior5YearEstimates!$U$108 -> 56 | H39: =ROUND(F39/F32,2)*100&"% of Total" -> 26% of Total | I39: =CntyDataLink!$T$108 -> 274 | J39: =CntyDataLink!$U$108 -> 76 | K39: =ROUND(I39/I32,2)*100&"% of Total" -> 27% of Total | L39: =IF(I39="-",I39,VALUE((I39-C39)/C39)) -> 0.1416666667 | M39: 0.1709401709 | O39: =StatisticallySignificantCalcs!$A69 -> N | P39: =StatisticallySignificantCalcs!$J69 -> N
B41: Data from the American Community Survey are estimates
B44: HOUSING CHARACTERISTICS
D65: ="Source: "& " "&D69&", "&G69&" and "&J69& " American Community Survey Table B25024; B25032" -> Source: 2005-2009, 2010-2014 and 2015-2019 American Community Survey Table B25024; B25032
C67: Units by Type
D69: 2005-2009 | G69: 2010-2014 | J69: 2015-2019 | M69: Percent Change | O69: Statistically Significant Change
D70: Estimate | E70: Margin of Error | F70: % of Total | G70: Estimate | H70: Margin of Error | I70: % of Total | J70: Estimate | K70: Margin of Error | L70: % of Total | M70: 2009-2019 | N70: 2014-2019 | O70: 2009-2019 | P70: 2014-2019
C71: Total Units | D71: =CntyDataLinkPrior10YearEstimate!$B$108 -> 897 | E71: =CntyDataLinkPrior10YearEstimate!$C$108 -> 79 | G71: =CntyDataLinkPrior5YearEstimates!$B$108 -> 910 | H71: =CntyDataLinkPrior5YearEstimates!$C$108 -> 71 | J71: =CntyDataLink!$B$108 -> 1017 | K71: =CntyDataLink!$C$108 -> 82 | O71: =StatisticallySignificantCalcs!$A70 -> Y | P71: =StatisticallySignificantCalcs!$J70 -> N
C72: Single Family Units | D72: =CntyDataLinkPrior10YearEstimate!$AT$108 -> 736 | E72: =CntyDataLinkPrior10YearEstimate!$AU$108 -> 79 | F72: =IF(D72="-","-",($D$72/$D$71)) -> 0.8205128205 | G72: =CntyDataLinkPrior5YearEstimates!$AT$108 -> 739 | H72: =CntyDataLinkPrior5YearEstimates!$AU$108 -> 71 | I72: =IF(G72="-","-",($G$72/$G$71)) -> 0.8120879121 | J72: =CntyDataLink!$AT$108 -> 739 | K72: =CntyDataLink!$AU$108 -> 70 | L72: =IF(J72="-","-",($J$72/$J$71)) -> 0.726647001 | M72: =IF(J72="-","-",($J72-$D72)/$D72) -> 0.004076086957 | N72: =IF(J72="-","-",($J72-$G72)/$G72) -> 0 | O72: =StatisticallySignificantCalcs!$A71 -> N | P72: =StatisticallySignificantCalcs!$J71 -> N
C73: SF Owner Occ. | D73: =CntyDataLinkPrior10YearEstimate!$AF$108 -> 447 | E73: =CntyDataLinkPrior10YearEstimate!$AG$108 -> 57 | G73: =CntyDataLinkPrior5YearEstimates!$AF$108 -> 476 | H73: =CntyDataLinkPrior5YearEstimates!$AG$108 -> 61 | J73: =CntyDataLink!$AF$108 -> 564 | K73: =CntyDataLink!$AG$108 -> 61 | O73: =StatisticallySignificantCalcs!$A72 -> Y | P73: =StatisticallySignificantCalcs!$J72 -> Y
C74: SF Renter Occ. | D74: =CntyDataLinkPrior10YearEstimate!$AN$108 -> 40 | E74: =CntyDataLinkPrior10YearEstimate!$AO$108 -> 26 | G74: =CntyDataLinkPrior5YearEstimates!$AN$108 -> 54 | H74: =CntyDataLinkPrior5YearEstimates!$AO$108 -> 29 | J74: =CntyDataLink!$AN$108 -> 35 | K74: =CntyDataLink!$AO$108 -> 20 | O74: =StatisticallySignificantCalcs!$A73 -> N | P74: =StatisticallySignificantCalcs!$J73 -> N
C75: Multi-family Units | D75: =CntyDataLinkPrior10YearEstimate!$AV$108 -> 92 | E75: =CntyDataLinkPrior10YearEstimate!$AW$108 -> 201.0149248 | F75: =IF(D75="-","-",$D$75/$D$71) -> 0.1025641026 | G75: =CntyDataLinkPrior5YearEstimates!$AV$108 -> 98 | H75: =CntyDataLinkPrior5YearEstimates!$AW$108 -> 45.43126677 | I75: =IF(G75="-","-",$G$75/$G$71) -> 0.1076923077 | J75: =CntyDataLink!$AV$108 -> 132 | K75: =CntyDataLink!$AW$108 -> 46.31414471 | L75: =IF(J75="-","-",$J$75/$J$71) -> 0.1297935103 | M75: =IF(J75="-","-",($J75-$D75)/$D75) -> 0.4347826087 | N75: =IF(J75="-","-",($J75-$G75)/$G75) -> 0.3469387755 | O75: =StatisticallySignificantCalcs!$A74 -> N | P75: =StatisticallySignificantCalcs!$J74 -> N
C76: MF Owner Occ. | D76: =CntyDataLinkPrior10YearEstimate!$AH$108 -> 28 | E76: =CntyDataLinkPrior10YearEstimate!$AI$108 -> 228.7247254 | G76: =CntyDataLinkPrior5YearEstimates!$AH$108 -> 14 | H76: =CntyDataLinkPrior5YearEstimates!$AI$108 -> 25.69046516 | J76: =CntyDataLink!$AH$108 -> 25 | K76: =CntyDataLink!$AI$108 -> 26.94438717 | O76: =StatisticallySignificantCalcs!$A75 -> N | P76: =StatisticallySignificantCalcs!$J75 -> N
C77: MF Renter Occ. | D77: =CntyDataLinkPrior10YearEstimate!$AP$108 -> 7 | E77: =CntyDataLinkPrior10YearEstimate!$AQ$108 -> 255.0137251 | G77: =CntyDataLinkPrior5YearEstimates!$AP$108 -> 25 | H77: =CntyDataLinkPrior5YearEstimates!$AQ$108 -> 30.14962686 | J77: =CntyDataLink!$AP$108 -> 23 | K77: =CntyDataLink!$AQ$108 -> 30.70830507 | O77: =StatisticallySignificantCalcs!$A76 -> N | P77: =StatisticallySignificantCalcs!$J76 -> N
C78: Mobile Home & Other | D78: =CntyDataLinkPrior10YearEstimate!$AX$108 -> 69 | E78: =CntyDataLinkPrior10YearEstimate!$AY$108 -> 118.4060809 | F78: =IF(D78="-","-",($D$78/$D$71)) -> 0.07692307692 | G78: =CntyDataLinkPrior5YearEstimates!$AX$108 -> 73 | H78: =CntyDataLinkPrior5YearEstimates!$AY$108 -> 25.49509757 | I78: =IF(G78="-","-",($G$78/$G$71)) -> 0.08021978022 | J78: =CntyDataLink!$AX$108 -> 146 | K78: =CntyDataLink!$AY$108 -> 65.9241989 | L78: =IF(J78="-","-",($J$78/$J$71)) -> 0.1435594887 | M78: =IF(J78="-","-",($J78-$D78)/$D78) -> 1.115942029 | N78: =IF(J78="-","-",($J78-$G78)/$G78) -> 1 | O78: =StatisticallySignificantCalcs!$A77 -> N | P78: =StatisticallySignificantCalcs!$J77 -> Y
B80: Data from the American Community Survey are estimates
B83: Units by Number of Bedrooms
D84: ="Source: "& " "&D69&", "&G69&" and "&J69& " American Community Survey Table B25041" -> Source: 2005-2009, 2010-2014 and 2015-2019 American Community Survey Table B25041
C86: 2005-2009 | G86: 2010-2014 | K86: 2015-2019 | O86: Statistically Significant Change
B87: Bedrooms | C87: Estimate | D87: Margin of Error | E87: % of Total | G87: Estimate | H87: Margin of Error | I87: % of Total | K87: Estimate | L87: Margin of Error | M87: % of Total | O87: 2009-2019 | P87: 2014-2019
B88: No Bedrooms | C88: =CntyDataLinkPrior10YearEstimate!$BR$108 -> 12 | D88: =CntyDataLinkPrior10YearEstimate!$BS$108 -> 18 | E88: =C88/SUM($C$88:$C$92) -> 0.01337792642 | G88: =CntyDataLinkPrior5YearEstimates!$BR$108 -> 9 | H88: =CntyDataLinkPrior5YearEstimates!$BS$108 -> 15 | I88: =G88/SUM($G$88:$G$92) -> 0.00989010989 | K88: =CntyDataLink!$BT$108 -> 40 | L88: =CntyDataLink!$BU$108 -> 24 | M88: =K88/SUM($K$88:$K$92) -> 0.03933136676 | O88: =StatisticallySignificantCalcs!$A78 -> N | P88: =StatisticallySignificantCalcs!$J78 -> Y
B89: 1 Bedroom | C89: =CntyDataLinkPrior10YearEstimate!$BT$108 -> 57 | D89: =CntyDataLinkPrior10YearEstimate!$BU$108 -> 32 | E89: =C89/SUM($C$88:$C$92) -> 0.0635451505 | G89: =CntyDataLinkPrior5YearEstimates!$BT$108 -> 60 | H89: =CntyDataLinkPrior5YearEstimates!$BU$108 -> 26 | I89: =G89/SUM($G$88:$G$92) -> 0.06593406593 | K89: =CntyDataLink!$BV$108 -> 80 | L89: =CntyDataLink!$BW$108 -> 33 | M89: =K89/SUM($K$88:$K$92) -> 0.07866273353 | O89: =StatisticallySignificantCalcs!$A79 -> Y | P89: =StatisticallySignificantCalcs!$J79 -> N
B90: 2 Bedrooms | C90: =CntyDataLinkPrior10YearEstimate!$BV$108 -> 238 | D90: =CntyDataLinkPrior10YearEstimate!$BW$108 -> 48 | E90: =C90/SUM($C$88:$C$92) -> 0.265328874 | G90: =CntyDataLinkPrior5YearEstimates!$BV$108 -> 329 | H90: =CntyDataLinkPrior5YearEstimates!$BW$108 -> 67 | I90: =G90/SUM($G$88:$G$92) -> 0.3615384615 | K90: =CntyDataLink!$BX$108 -> 299 | L90: =CntyDataLink!$BY$108 -> 63 | M90: =K90/SUM($K$88:$K$92) -> 0.2940019666 | O90: =StatisticallySignificantCalcs!$A80 -> Y | P90: =StatisticallySignificantCalcs!$J80 -> N
B91: 3 Bedrooms | C91: =CntyDataLinkPrior10YearEstimate!$BX$108 -> 391 | D91: =CntyDataLinkPrior10YearEstimate!$BY$108 -> 66 | E91: =C91/SUM($C$88:$C$92) -> 0.4358974359 | G91: =CntyDataLinkPrior5YearEstimates!$BX$108 -> 384 | H91: =CntyDataLinkPrior5YearEstimates!$BY$108 -> 65 | I91: =G91/SUM($G$88:$G$92) -> 0.421978022 | K91: =CntyDataLink!$BZ$108 -> 518 | L91: =CntyDataLink!$CA$108 -> 82 | M91: =K91/SUM($K$88:$K$92) -> 0.5093411996 | O91: =StatisticallySignificantCalcs!$A81 -> Y | P91: =StatisticallySignificantCalcs!$J81 -> Y
B92: 4+ Bedrooms | C92: =CntyDataLinkPrior10YearEstimate!$BZ$108 -> 199 | D92: =CntyDataLinkPrior10YearEstimate!$CA$108 -> 43.73785546 | E92: =C92/SUM($C$88:$C$92) -> 0.2218506132 | G92: =CntyDataLinkPrior5YearEstimates!$BZ$108 -> 128 | H92: =CntyDataLinkPrior5YearEstimates!$CA$108 -> 41.77319715 | I92: =G92/SUM($G$88:$G$92) -> 0.1406593407 | K92: =CntyDataLink!$CB$108 -> 80 | L92: =CntyDataLink!$CC$108 -> 26.90724809 | M92: =K92/SUM($K$88:$K$92) -> 0.07866273353 | O92: =StatisticallySignificantCalcs!$A82 -> N | P92: =StatisticallySignificantCalcs!$J82 -> N
B94: As a result of changes in the American Community Survey, direct comparisons between the 2009-2013 and 2015-2019 data should be made with caution.
B95: Data from the American Community Survey are estimates
B97: Units by Year Built
B98: ="Source: "&K86& " American Community Survey Table B25034" -> Source: 2015-2019 American Community Survey Table B25034
D100: Year Built | G100: Units | I100: % of Total | K100: Margin of Error
F101: 2014 or later | G101: =CntyDataLink!$AZ$108 -> 10 | I101: =G101/SUM($G$101:$G$110) -> 0.009832841691 | K101: =CntyDataLink!$BA$108 -> 8
F102: 2010 through 2013 | G102: =CntyDataLink!$BB$108 -> 7 | I102: 0.006882989184 | K102: =CntyDataLink!$BC$108 -> 7
F103: 2000 through 2009 | G103: =CntyDataLink!$BD$108 -> 232 | I103: 0.2281219272 | K103: =CntyDataLink!$BE$108 -> 56
F104: 1990 through 1999 | G104: =CntyDataLink!$BF$108 -> 132 | I104: 0.1297935103 | K104: =CntyDataLink!$BG$108 -> 32
F105: 1980 through 1989 | G105: =CntyDataLink!$BH$108 -> 269 | I105: 0.2645034415 | K105: =CntyDataLink!$BI$108 -> 60
F106: 1970 through 1979 | G106: =CntyDataLink!$BJ$108 -> 120 | I106: 0.1179941003 | K106: =CntyDataLink!$BK$108 -> 67
F107: 1960 through 1969 | G107: =CntyDataLink!$BL$108 -> 34 | I107: 0.03343166175 | K107: =CntyDataLink!$BM$108 -> 17
F108: 1950 through 1959 | G108: =CntyDataLink!$BN$108 -> 51 | I108: 0.05014749263 | K108: =CntyDataLink!$BO$108 -> 25
F109: 1940 through 1949 | G109: =CntyDataLink!$BP$108 -> 11 | I109: 0.01081612586 | K109: =CntyDataLink!$BQ$108 -> 10
F110: 1939 and earlier | G110: =CntyDataLink!$BR$108 -> 151 | I110: 0.1484759095 | K110: =CntyDataLink!$BS$108 -> 44
B112: Data from the American Community Survey are estimates

Sheet CntyDataLink (hidden)
A1: 1 | B1: =A1+1 -> 2 | C1: =B1+1 -> 3 | D1: 4 | E1: 5 | F1: 6 | G1: 7 | H1: 8 | I1: 9 | J1: 10 | K1: 11 | L1: 12 | M1: 13 | N1: 14 | O1: 15 | P1: =O1+1 -> 16 | Q1: 17 | R1: 18 | S1: 19 | T1: 20 | U1: 21 | V1: 22 | W1: 23 | X1: 24 | Y1: 25 | Z1: 26 | AA1: 27 | AB1: 28 | AC1: 29 | AD1: 30 | AE1: 31 | AF1: 32 | AG1: 33 | AH1: 34 | AI1: 35 | AJ1: 36 | AK1: 37 | AL1: 38 | AM1: 39 | AN1: 40 | AO1: 41 | AP1: 42 | AQ1: 43 | AR1: 44 | AS1: 45 | AT1: 46 | AU1: 47 | AV1: 48 | AW1: 49 | AX1: 50 | AY1: 51 | AZ1: 52 | BA1: 53 | BB1: 54 | BC1: 55 | BD1: 56 | BE1: 57 | BF1: 58 | BG1: 59 | BH1: 60 | BI1: 61 | BJ1: 62 | BK1: 63 | BL1: 64 | BM1: 65 | BN1: 66 | BO1: =BN1+1 -> 67 | BP1: 68 | BQ1: 69 | BR1: 70 | BS1: 71 | BT1: 72 | BU1: 73 | BV1: 74 | BW1: 75 | BX1: 76 | BY1: 77 | BZ1: 78 | CA1: 79 | CB1: 80 | CC1: 81 | CD1: 82 | CE1: 83 | CF1: 84 | CG1: 85 | CH1: 86 | CI1: 87 | CJ1: 88 | CK1: 89 | CL1: 90 | CM1: 91 | CN1: 92 | CO1: 93 | CP1: 94 | CQ1: 95 | CR1: 96 | CS1: 97 | CT1: 98 | CU1: 99 | CV1: 100 | CW1: 101 | CX1: 102 | CY1: 103 | CZ1: 104 | DA1: 105 | DB1: 106 | DC1: 107 | DD1: 108 | DE1: 109 | DF1: 110 | DG1: 111 | DH1: 112 | DI1: 113 | DJ1: 114 | DK1: 115 | DL1: 116 | DM1: 117 | DN1: 118 | DO1: 119 | DP1: 120 | DQ1: 121 | DR1: 122 | DS1: 123 | DT1: 124 | DU1: 125 | DV1: 126 | DW1: 127 | DX1: 128 | DY1: 129 | DZ1: 130 | EA1: =DZ1+1 -> 131 | EB1: 132 | EC1: 133 | ED1: 134 | EE1: 135 | EF1: 136 | EG1: 137 | EH1: 138 | EI1: 139 | EJ1: 140 | EK1: 141 | EL1: 142 | EM1: 143 | EN1: 144 | EO1: 145 | EP1: 146 | EQ1: 147 | ER1: 148 | ES1: 149 | ET1: 150 | EU1: 151 | EV1: 152 | EW1: 153 | EX1: 154 | EY1: 155 | EZ1: 156 | FA1: 157 | FB1: 158 | FC1: 159 | FD1: 160 | FE1: 161 | FF1: 162 | FG1: 163 | FH1: 164 | FI1: 165 | FJ1: 166 | FK1: 167 | FL1: 168 | FM1: 169 | FN1: 170 | FO1: 171 | FP1: 172 | FQ1: 173 | FR1: 174 | FS1: 175 | FT1: 176 | FU1: 177 | FV1: 178 | FW1: 179 | FX1: 180 | FY1: 181 | FZ1: 182 | GA1: 183 | GB1: 184 | GC1: 185 | GD1: 186 | GE1: 187 | GF1: 188 | GG1: 189 | GH1: 190 | GI1: 191 | GJ1: 192 | GK1: 193 | GL1: 194 | GM1: =GL1+1 -> 195 | GN1: 196 | GO1: 197 | GP1: 198 | GQ1: 199 | GR1: 200 | GS1: 201 | GT1: 202 | GU1: 203 | GV1: 204 | GW1: 205 | GX1: 206 | GY1: 207 | GZ1: 208 | HA1: 209 | HB1: 210 | HC1: 211 | HD1: 212 | HE1: 213 | HF1: 214 | HG1: 215 | HH1: 216 | HI1: 217 | HJ1: 218 | HK1: 219 | HL1: 220 | HM1: 221 | HN1: 222 | HO1: 223 | HP1: 224 | HQ1: 225 | HR1: 226 | HS1: 227 | HT1: 228 | HU1: 229 | HV1: 230 | HW1: 231 | HX1: 232 | HY1: 233 | HZ1: 234 | IA1: 235 | IB1: 236 | IC1: 237 | ID1: 238 | IE1: 239 | IF1: 240 | IG1: 241 | IH1: 242 | II1: 243 | IJ1: 244 | IK1: 245 | IL1: 246 | IM1: 247 | IN1: 248 | IO1: 249 | IP1: 250 | IQ1: 251 | IR1: 252 | IS1: 253 | IT1: 254 | IU1: 255
A3: Census 1990 Data - Query Name: DPCnty90Census
A4: TownName | B4: Cnty_Code | C4: Census_Cnty_Code | D4: LandAcres | E4: WaterAcres | F4: HousingUnits90Cen | G4: Persons90Cen | H4: Families90Cen | I4: Households90cen | J4: MalePop90cen | K4: FemalePop90cen | L4: WhitePop | M4: BlackPop | N4: AmerIndianPop | O4: AsianPIPop | P4: OtherRacePop | Q4: HispanicOrPop | R4: AgeUnder15_90cen | S4: Age15to24_90cen | T4: Age25to34_90cen | U4: Age35to44_90cen | V4: Age45to54_90cen | W4: Age55to64_90cen | X4: Age65to74_90cen | Y4: Age75andOver_90cen | Z4: PersonsInHH90cen | AA4: PersonsInFamHH90cen | AB4: PersonsInGC | AC4: PersonsPerHH90cen | AD4: PersonsPerFam90Cen | AE4: SinglePersonHH90cen | AF4: MarriedCoupleHH90cen | AG4: SingleParentHH90cen | AH4: NonFamilyHH90cen | AI4: TotalHousingUnits | AJ4: OccupiedHousingUnits | AK4: VacantHousingUnits | AL4: OwnerOccHU | AM4: RenterOccHU | AN4: VacantForRent90 | AO4: VacantForSale90 | AP4: VacantSeasonalRec | AQ4: SingFamHU90cen | AR4: MultiFamHU90cen | AS4: MobileHom90cen | AT4: SingFamOwnHU90cen | AU4: MultiFamOwnHU90cen | AV4: MobileHomOwnHU90cen | AW4: SingFamRntrHU90cen | AX4: MultiFamRntrHU90cen | AY4: MobileHomRntrHU90cen | AZ4: HU<5yrs90cen | BA4: HU5to20yrs90cen | BB4: HU20to50yrs90cen | BC4: HU>50yrs90cen | BD4: Units0Bedroom90cen | BE4: Units1Bedroom90cen | BF4: Units2Bedroom90cen | BG4: Units3Bedroom90cen | BH4: Units4+Bedroom90cen | BI4: HI<5K | BJ4: HI5Kto10K | BK4: HI10Kto15K | BL4: HI15Kto25K | BM4: HI25Kto35K | BN4: HI35Kto50K | BO4: HI50Kto75K | BP4: HI75Kto100K | BQ4: HI>100K | BR4: MedHI | BS4: HH<25HI<5K | BT4: HH<25HI5Kto10K | BU4: HH<25HI10Kto15K | BV4: HH<25HI15Kto25K | BW4: HH<25HI25Kto35K | BX4: HH<25HI35Kto50K | BY4: HH<25HI50Kto75K | BZ4: HH<25HI75Kto100K | CA4: HH<25HI>100K | CB4: HH25to34HI<5K | CC4: HH25to34HI5Kto10K | CD4: HH25to34HI10Kto15K | CE4: HH25to34HI15Kto25K | CF4: HH25to34HI25Kto35K | CG4: HH25to34HI35Kto50K | CH4: HH25to34HI50Kto75K | CI4: HH25to34HI75Kto100K | CJ4: HH25to34HI>100K | CK4: HH35to44HI<5K | CL4: HH35to44HI5Kto10K | CM4: HH35to44HI10Kto15K | CN4: HH35to44HI15Kto25K | CO4: HH35to44HI25Kto35K | CP4: HH35to44HI35Kto50K | CQ4: HH35to44HI50Kto75K | CR4: HH35to44HI75Kto100K | CS4: HH35to44HI>100K | CT4: HH45to54HI<5K | CU4: HH45to54HI5Kto10K | CV4: HH45to54HI10Kto15K | CW4: HH45to54HI15Kto25K | CX4: HH45to54HI25Kto35K | CY4: HH45to54HI35Kto50K | CZ4: HH45to54HI50Kto75K | DA4: HH45to54HI75Kto100K | DB4: HH45to54HI>100K | DC4: HH55to64HI<5K | DD4: HH55to64HI5Kto10K | DE4: HH55to64HI10Kto15K | DF4: HH55to64HI15Kto25K | DG4: HH55to64HI25Kto35K | DH4: HH55to64HI35Kto50K | DI4: HH55to64HI50Kto75K | DJ4: HH55to64HI75Kto100K | DK4: HH55to64HI>100K | DL4: HH65to74HI<5K | DM4: HH65to74HI5Kto10K | DN4: HH65to74HI10Kto15K | DO4: HH65to74HI15Kto25K | DP4: HH65to74HI25Kto35K | DQ4: HH65to74HI35Kto50K | DR4: HH65to74HI50Kto75K | DS4: HH65to74HI75Kto100K | DT4: HH65to74HI>100K | DU4: HH>75HI<5K | DV4: HH>75HI5Kto10K | DW4: HH>75HI10Kto15K | DX4: HH>75HI15Kto25K | DY4: HH>75HI25Kto35K | DZ4: HH>75HI35Kto50K | EA4: HH>75HI50Kto75K | EB4: HH>75HI75Kto100K | EC4: HH>75HI>100K | ED4: SchoolEnrollment1thru12 | EE4: Pop25andOver | EF4: HSGradorHigher | EG4: CollGradorHigher | EH4: NativePop | EI4: ForeignBornPop | EJ4: BornStateOfRes | EK4: NativePop2 | EL4: ForeignBornPop2 | EM4: DroveAlone | EN4: CarPooled | EO4: PublicTranspt | EP4: Walked | EQ4: OtherMeans | ER4: WorkedAtHome | ES4: HHInc<10K | ET4: HHInc10to15K | EU4: HHInc15to25K | EV4: HHInc25to35K | EW4: HHInc35to50K | EX4: HHInc50to75K | EY4: HHInc75to100K | EZ4: HHInc100to150K | FA4: HHInc>150K
A5: =VLOOKUP(DropDownList!$A$47,CntyQuery!$A$4:$FI$46,A1) -> Alexandria | B5: =VLOOKUP(DropDownList!$A$47,CntyQuery!$A$4:$FA$46,B1) -> 9005 | C5: =VLOOKUP(DropDownList!$A$47,CntyQuery!$A$4:$FA$46,C1) -> 00580 | D5: =VLOOKUP(DropDownList!$A$47,CntyQuery!$A$4:$FA$46,D1) -> 27867.68 | E5: =VLOOKUP(DropDownList!$A$47,CntyQuery!$A$4:$FA$46,E1) -> 53.53 | F5: =VLOOKUP(DropDownList!$A$47,CntyQuery!$A$4:$FA$46,F1) -> 721 | G5: =VLOOKUP(DropDownList!$A$47,CntyQuery!$A$4:$FA$46,G1) -> 1190 | H5: =VLOOKUP(DropDownList!$A$47,CntyQuery!$A$4:$FA$46,H1) -> 320 | I5: =VLOOKUP(DropDownList!$A$47,CntyQuery!$A$4:$FA$46,I1) -> 406 | J5: =VLOOKUP(DropDownList!$A$47,CntyQuery!$A$4:$FA$46,J1) -> 612 | K5: =VLOOKUP(DropDownList!$A$47,CntyQuery!$A$4:$FA$46,K1) -> 578 | L5: =VLOOKUP(DropDownList!$A$47,CntyQuery!$A$4:$FA$46,L1) -> 1181 | M5: =VLOOKUP(DropDownList!$A$47,CntyQuery!$A$4:$FA$46,M1) -> 1 | N5: =VLOOKUP(DropDownList!$A$47,CntyQuery!$A$4:$FA$46,N1) -> 2 | O5: =VLOOKUP(DropDownList!$A$47,CntyQuery!$A$4:$FA$46,O1) -> 0 | P5: =VLOOKUP(DropDownList!$A$47,CntyQuery!$A$4:$FA$46,P1) -> 6 | Q5: =VLOOKUP(DropDownList!$A$47,CntyQuery!$A$4:$FA$46,Q1) -> 17 | R5: =VLOOKUP(DropDownList!$A$47,CntyQuery!$A$4:$FA$46,R1) -> 309 | S5: =VLOOKUP(DropDownList!$A$47,CntyQuery!$A$4:$FA$46,S1) -> 148 | T5: =VLOOKUP(DropDownList!$A$47,CntyQuery!$A$4:$FA$46,T1) -> 225 | U5: =VLOOKUP(DropDownList!$A$47,CntyQuery!$A$4:$FA$46,U1) -> 202 | V5: =VLOOKUP(DropDownList!$A$47,CntyQuery!$A$4:$FA$46,V1) -> 130 | W5: =VLOOKUP(DropDownList!$A$47,CntyQuery!$A$4:$FA$46,W1) -> 87 | X5: =VLOOKUP(DropDownList!$A$47,CntyQuery!$A$4:$FA$46,X1) -> 63 | Y5: =VLOOKUP(DropDownList!$A$47,CntyQuery!$A$4:$FA$46,Y1) -> 26 | Z5: =VLOOKUP(DropDownList!$A$47,CntyQuery!$A$4:$FA$46,Z1) -> 1190 | AA5: =VLOOKUP(DropDownList!$A$47,CntyQuery!$A$4:$FA$46,AA1) -> 1071 | AB5: =VLOOKUP(DropDownList!$A$47,CntyQuery!$A$4:$FA$46,AB1) -> 0 | AC5: =VLOOKUP(DropDownList!$A$47,CntyQuery!$A$4:$FA$46,AC1) -> 2.931034483 | AD5: =VLOOKUP(DropDownList!$A$47,CntyQuery!$A$4:$FA$46,AD1) -> 3.346875 | AE5: =VLOOKUP(DropDownList!$A$47,CntyQuery!$A$4:$FA$46,AE1) -> 62 | AF5: =VLOOKUP(DropDownList!$A$47,CntyQuery!$A$4:$FA$46,AF1) -> 278 | AG5: =VLOOKUP(DropDownList!$A$47,CntyQuery!$A$4:$FA$46,AG1) -> 42 | AH5: =VLOOKUP(DropDownList!$A$47,CntyQuery!$A$4:$FA$46,AH1) -> 24 | AI5: =VLOOKUP(DropDownList!$A$47,CntyQuery!$A$4:$FA$46,AI1) -> 721 | AJ5: =VLOOKUP(DropDownList!$A$47,CntyQuery!$A$4:$FA$46,AJ1) -> 406 | AK5: =VLOOKUP(DropDownList!$A$47,CntyQuery!$A$4:$FA$46,AK1) -> 315 | AL5: =VLOOKUP(DropDownList!$A$47,CntyQuery!$A$4:$FA$46,AL1) -> 353 | AM5: =VLOOKUP(DropDownList!$A$47,CntyQuery!$A$4:$FA$46,AM1) -> 53 | AN5: =VLOOKUP(DropDownList!$A$47,CntyQuery!$A$4:$FA$46,AN1) -> 6 | AO5: =VLOOKUP(DropDownList!$A$47,CntyQuery!$A$4:$FA$46,AO1) -> 14 | AP5: =VLOOKUP(DropDownList!$A$47,CntyQuery!$A$4:$FA$46,AP1) -> 245 | AQ5: =VLOOKUP(DropDownList!$A$47,CntyQuery!$A$4:$FA$46,AQ1) -> 545 | AR5: =VLOOKUP(DropDownList!$A$47,CntyQuery!$A$4:$FA$46,AR1) -> 81 | AS5: =VLOOKUP(DropDownList!$A$47,CntyQuery!$A$4:$FA$46,AS1) -> 95 | AT5: =VLOOKUP(DropDownList!$A$47,CntyQuery!$A$4:$FA$46,AT1) -> 303 | AU5: =VLOOKUP(DropDownList!$A$47,CntyQuery!$A$4:$FA$46,AU1) -> 7 | AV5: =VLOOKUP(DropDownList!$A$47,CntyQuery!$A$4:$FA$46,AV1) -> 95 | AW5: =VLOOKUP(DropDownList!$A$47,CntyQuery!$A$4:$FA$46,AW1) -> 40 | AX5: =VLOOKUP(DropDownList!$A$47,CntyQuery!$A$4:$FA$46,AX1) -> 6 | AY5: =VLOOKUP(DropDownList!$A$47,CntyQuery!$A$4:$FA$46,AY1) -> 7 | AZ5: =VLOOKUP(DropDownList!$A$47,CntyQuery!$A$4:$FA$46,AZ1) -> 174 | BA5: =VLOOKUP(DropDownList!$A$47,CntyQuery!$A$4:$FA$46,BA1) -> 235 | BB5: =VLOOKUP(DropDownList!$A$47,CntyQuery!$A$4:$FA$46,BB1) -> 107 | BC5: =VLOOKUP(DropDownList!$A$47,CntyQuery!$A$4:$FA$46,BC1) -> 206 | BD5: =VLOOKUP(DropDownList!$A$47,CntyQuery!$A$4:$FA$46,BD1) -> 22 | BE5: =VLOOKUP(DropDownList!$A$47,CntyQuery!$A$4:$FA$46,BE1) -> 77 | BF5: =VLOOKUP(DropDownList!$A$47,CntyQuery!$A$4:$FA$46,BF1) -> 231 | BG5: =VLOOKUP(DropDownList!$A$47,CntyQuery!$A$4:$FA$46,BG1) -> 268 | BH5: =VLOOKUP(DropDownList!$A$47,CntyQuery!$A$4:$FA$46,BH1) -> 124 | BI5: =VLOOKUP(DropDownList!$A$47,CntyQuery!$A$4:$FA$46,BI1) -> 13 | BJ5: =VLOOKUP(DropDownList!$A$47,CntyQuery!$A$4:$FA$46,BJ1) -> 22 | BK5: =VLOOKUP(DropDownList!$A$47,CntyQuery!$A$4:$FA$46,BK1) -> 45 | BL5: =VLOOKUP(DropDownList!$A$47,CntyQuery!$A$4:$FA$46,BL1) -> 84 | BM5: =VLOOKUP(DropDownList!$A$47,CntyQuery!$A$4:$FA$46,BM1) -> 71 | BN5: =VLOOKUP(DropDownList!$A$47,CntyQuery!$A$4:$FA$46,BN1) -> 130 | BO5: =VLOOKUP(DropDownList!$A$47,CntyQuery!$A$4:$FA$46,BO1) -> 46 | BP5: =VLOOKUP(DropDownList!$A$47,CntyQuery!$A$4:$FA$46,BP1) -> 5 | BQ5: =VLOOKUP(DropDownList!$A$47,CntyQuery!$A$4:$FA$46,BQ1) -> 7 | BR5: =VLOOKUP(DropDownList!$A$47,CntyQuery!$A$4:$FA$46,BR1) -> 30461 | BS5: =VLOOKUP(DropDownList!$A$47,CntyQuery!$A$4:$FA$46,BS1) -> 2 | BT5: =VLOOKUP(DropDownList!$A$47,CntyQuery!$A$4:$FA$46,BT1) -> 0 | BU5: =VLOOKUP(DropDownList!$A$47,CntyQuery!$A$4:$FA$46,BU1) -> 3 | BV5: =VLOOKUP(DropDownList!$A$47,CntyQuery!$A$4:$FA$46,BV1) -> 6 | BW5: =VLOOKUP(DropDownList!$A$47,CntyQuery!$A$4:$FA$46,BW1) -> 2 | BX5: =VLOOKUP(DropDownList!$A$47,CntyQuery!$A$4:$FA$46,BX1) -> 2 | BY5: =VLOOKUP(DropDownList!$A$47,CntyQuery!$A$4:$FA$46,BY1) -> 0 | BZ5: =VLOOKUP(DropDownList!$A$47,CntyQuery!$A$4:$FA$46,BZ1) -> 3 | CA5: =VLOOKUP(DropDownList!$A$47,CntyQuery!$A$4:$FA$46,CA1) -> 0 | CB5: =VLOOKUP(DropDownList!$A$47,CntyQuery!$A$4:$FA$46,CB1) -> 6 | CC5: =VLOOKUP(DropDownList!$A$47,CntyQuery!$A$4:$FA$46,CC1) -> 5 | CD5: =VLOOKUP(DropDownList!$A$47,CntyQuery!$A$4:$FA$46,CD1) -> 6 | CE5: =VLOOKUP(DropDownList!$A$47,CntyQuery!$A$4:$FA$46,CE1) -> 21 | CF5: =VLOOKUP(DropDownList!$A$47,CntyQuery!$A$4:$FA$46,CF1) -> 25 | CG5: =VLOOKUP(DropDownList!$A$47,CntyQuery!$A$4:$FA$46,CG1) -> 37 | CH5: =VLOOKUP(DropDownList!$A$47,CntyQuery!$A$4:$FA$46,CH1) -> 0 | CI5: =VLOOKUP(DropDownList!$A$47,CntyQuery!$A$4:$FA$46,CI1) -> 0 | CJ5: =VLOOKUP(DropDownList!$A$47,CntyQuery!$A$4:$FA$46,CJ1) -> 4 | CK5: =VLOOKUP(DropDownList!$A$47,CntyQuery!$A$4:$FA$46,CK1) -> 5 | CL5: =VLOOKUP(DropDownList!$A$47,CntyQuery!$A$4:$FA$46,CL1) -> 0 | CM5: =VLOOKUP(DropDownList!$A$47,CntyQuery!$A$4:$FA$46,CM1) -> 13 | CN5: =VLOOKUP(DropDownList!$A$47,CntyQuery!$A$4:$FA$46,CN1) -> 23 | CO5: =VLOOKUP(DropDownList!$A$47,CntyQuery!$A$4:$FA$46,CO1) -> 35 | CP5: =VLOOKUP(DropDownList!$A$47,CntyQuery!$A$4:$FA$46,CP1) -> 51 | CQ5: =VLOOKUP(DropDownList!$A$47,CntyQuery!$A$4:$FA$46,CQ1) -> 14 | CR5: =VLOOKUP(DropDownList!$A$47,CntyQuery!$A$4:$FA$46,CR1) -> 0 | CS5: =VLOOKUP(DropDownList!$A$47,CntyQuery!$A$4:$FA$46,CS1) -> 0 | CT5: =VLOOKUP(DropDownList!$A$47,CntyQuery!$A$4:$FA$46,CT1) -> 0 | CU5: =VLOOKUP(DropDownList!$A$47,CntyQuery!$A$4:$FA$46,CU1) -> 4 | CV5: =VLOOKUP(DropDownList!$A$47,CntyQuery!$A$4:$FA$46,CV1) -> 4 | CW5: =VLOOKUP(DropDownList!$A$47,CntyQuery!$A$4:$FA$46,CW1) -> 2 | CX5: =VLOOKUP(DropDownList!$A$47,CntyQuery!$A$4:$FA$46,CX1) -> 4 | CY5: =VLOOKUP(DropDownList!$A$47,CntyQuery!$A$4:$FA$46,CY1) -> 22 | CZ5: =VLOOKUP(DropDownList!$A$47,CntyQuery!$A$4:$FA$46,CZ1) -> 8 | DA5: =VLOOKUP(DropDownList!$A$47,CntyQuery!$A$4:$FA$46,DA1) -> 0 | DB5: =VLOOKUP(DropDownList!$A$47,CntyQuery!$A$4:$FA$46,DB1) -> 0 | DC5: =VLOOKUP(DropDownList!$A$47,CntyQuery!$A$4:$FA$46,DC1) -> 0 | DD5: =VLOOKUP(DropDownList!$A$47,CntyQuery!$A$4:$FA$46,DD1) -> 2 | DE5: =VLOOKUP(DropDownList!$A$47,CntyQuery!$A$4:$FA$46,DE1) -> 3 | DF5: =VLOOKUP(DropDownList!$A$47,CntyQuery!$A$4:$FA$46,DF1) -> 13 | DG5: =VLOOKUP(DropDownList!$A$47,CntyQuery!$A$4:$FA$46,DG1) -> 3 | DH5: =VLOOKUP(DropDownList!$A$47,CntyQuery!$A$4:$FA$46,DH1) -> 14 | DI5: =VLOOKUP(DropDownList!$A$47,CntyQuery!$A$4:$FA$46,DI1) -> 13 | DJ5: =VLOOKUP(DropDownList!$A$47,CntyQuery!$A$4:$FA$46,DJ1) -> 2 | DK5: =VLOOKUP(DropDownList!$A$47,CntyQuery!$A$4:$FA$46,DK1) -> 3 | DL5: =VLOOKUP(DropDownList!$A$47,CntyQuery!$A$4:$FA$46,DL1) -> 0 | DM5: =VLOOKUP(DropDownList!$A$47,CntyQuery!$A$4:$FA$46,DM1) -> 5 | DN5: =VLOOKUP(DropDownList!$A$47,CntyQuery!$A$4:$FA$46,DN1) -> 16 | DO5: =VLOOKUP(DropDownList!$A$47,CntyQuery!$A$4:$FA$46,DO1) -> 19 | DP5: =VLOOKUP(DropDownList!$A$47,CntyQuery!$A$4:$FA$46,DP1) -> 0 | DQ5: =VLOOKUP(DropDownList!$A$47,CntyQuery!$A$4:$FA$46,DQ1) -> 4 | DR5: =VLOOKUP(DropDownList!$A$47,CntyQuery!$A$4:$FA$46,DR1) -> 9 | DS5: =VLOOKUP(DropDownList!$A$47,CntyQuery!$A$4:$FA$46,DS1) -> 0 | DT5: =VLOOKUP(DropDownList!$A$47,CntyQuery!$A$4:$FA$46,DT1) -> 0 | DU5: =VLOOKUP(DropDownList!$A$47,CntyQuery!$A$4:$FA$46,DU1) -> 0 | DV5: =VLOOKUP(DropDownList!$A$47,CntyQuery!$A$4:$FA$46,DV1) -> 6 | DW5: =VLOOKUP(DropDownList!$A$47,CntyQuery!$A$4:$FA$46,DW1) -> 0 | DX5: =VLOOKUP(DropDownList!$A$47,CntyQuery!$A$4:$FA$46,DX1) -> 0 | DY5: =VLOOKUP(DropDownList!$A$47,CntyQuery!$A$4:$FA$46,DY1) -> 2 | DZ5: =VLOOKUP(DropDownList!$A$47,CntyQuery!$A$4:$FA$46,DZ1) -> 0 | EA5: =VLOOKUP(DropDownList!$A$47,CntyQuery!$A$4:$FA$46,EA1) -> 2 | EB5: =VLOOKUP(DropDownList!$A$47,CntyQuery!$A$4:$FA$46,EB1) -> 0 | EC5: =VLOOKUP(DropDownList!$A$47,CntyQuery!$A$4:$FA$46,EC1) -> 0 | ED5: =VLOOKUP(DropDownList!$A$47,CntyQuery!$A$4:$FA$46,ED1) -> 242 | EE5: =VLOOKUP(DropDownList!$A$47,CntyQuery!$A$4:$FA$46,EE1) -> 721 | EF5: =VLOOKUP(DropDownList!$A$47,CntyQuery!$A$4:$FA$46,EF1) -> 577 | EG5: =VLOOKUP(DropDownList!$A$47,CntyQuery!$A$4:$FA$46,EG1) -> 118 | EH5: =VLOOKUP(DropDownList!$A$47,CntyQuery!$A$4:$FA$46,EH1) -> 1178 | EI5: =VLOOKUP(DropDownList!$A$47,CntyQuery!$A$4:$FA$46,EI1) -> 24 | EJ5: =VLOOKUP(DropDownList!$A$47,CntyQuery!$A$4:$FA$46,EJ1) -> 633 | EK5: =VLOOKUP(DropDownList!$A$47,CntyQuery!$A$4:$FA$46,EK1) -> 1178 | EL5: =VLOOKUP(DropDownList!$A$47,CntyQuery!$A$4:$FA$46,EL1) -> 24 | EM5: =VLOOKUP(DropDownList!$A$47,CntyQuery!$A$4:$FA$46,EM1) -> 404 | EN5: =VLOOKUP(DropDownList!$A$47,CntyQuery!$A$4:$FA$46,EN1) -> 86 | EO5: =VLOOKUP(DropDownList!$A$47,CntyQuery!$A$4:$FA$46,EO1) -> 0 | EP5: =VLOOKUP(DropDownList!$A$47,CntyQuery!$A$4:$FA$46,EP1) -> 12 | EQ5: =VLOOKUP(DropDownList!$A$47,CntyQuery!$A$4:$FA$46,EQ1) -> 5 | ER5: =VLOOKUP(DropDownList!$A$47,CntyQuery!$A$4:$FA$46,ER1) -> 47 | ES5: =VLOOKUP(DropDownList!$A$47,CntyQuery!$A$4:$FA$46,ES1) -> 35 | ET5: =VLOOKUP(DropDownList!$A$47,CntyQuery!$A$4:$FA$46,ET1) -> 45 | EU5: =VLOOKUP(DropDownList!$A$47,CntyQuery!$A$4:$FA$46,EU1) -> 84 | EV5: =VLOOKUP(DropDownList!$A$47,CntyQuery!$A$4:$FA$46,EV1) -> 71 | EW5: =VLOOKUP(DropDownList!$A$47,CntyQuery!$A$4:$FA$46,EW1) -> 130 | EX5: =VLOOKUP(DropDownList!$A$47,CntyQuery!$A$4:$FA$46,EX1) -> 46 | EY5: =VLOOKUP(DropDownList!$A$47,CntyQuery!$A$4:$FA$46,EY1) -> 5 | EZ5: =VLOOKUP(DropDownList!$A$47,CntyQuery!$A$4:$FA$46,EZ1) -> 7 | FA5: =VLOOKUP(DropDownList!$A$47,CntyQuery!$A$4:$FA$46,FA1) -> 0
A8: Census 1990 Data - Query Name: TownSTF1Qry1
A9: NAME | B9: COUSUBFP | C9: Census_Cnty_Code | D9: FIPS | E9: LandAcres | F9: WaterAcres | G9: HousingUnits90Cen | H9: P01Persons90Cen | I9: P02Families90Cen | J9: P03Households90cen | K9: P05MalePop90cen | L9: P05FemalePop90cen | M9: P06WhitePop | N9: P06BlackPop | O9: P06AmerIndianPop | P9: P06AsianPIPop | Q9: P06OtherRacePop | R9: P08HispanicOrPop | S9: P11AgeUnder15_90cen | T9: P11Age15to24_90cen | U9: P11Age25to34_90cen | V9: P11Age35to44_90cen | W9: P11Age45to54_90cen | X9: P11Age55to64_90cen | Y9: P11Age65to74_90cen | Z9: P11Age75andOver_90cen | AA9: P15PersonsInHH90cen | AB9: P15PersonsInFamHH90cen | AC9: P15PersonsInGC | AD9: PersonsPerHH90cen | AE9: PersonsPerFam90Cen | AF9: P16SinglePersonHH90cen | AG9: P16MarriedCoupleHH90cen | AH9: P16SingleParentHH90cen | AI9: P16NonFamilyHH90cen | AJ9: H01TotalHousingUnits | AK9: H02OccupiedHousingUnits | AL9: H02VacantHousingUnits | AM9: H03OwnerOccHU | AN9: H03RenterOccHU | AO9: H05VacantForRent90 | AP9: H05VacantForSale90 | AQ9: H05VacantSeasonalRec | AR9: H23OOHUVal<15k | AS9: H23OOHUVal15to19k | AT9: H23OOHUVal20to24k | AU9: H23OOHUVal25to29k | AV9: H23OOHUVal30to34k | AW9: H23OOHUVal35to39k | AX9: H23OOHUVal40to44k | AY9: H23OOHUVal45to49k | AZ9: H23OOHUVal50to59k | BA9: H23OOHUVal60to74k | BB9: H23OOHUVal75to99k | BC9: H23OOHUVal100to124k | BD9: H23OOHUVal125to149k | BE9: H23OOHUVal150to174k | BF9: H23OOHUVal175to199k | BG9: H23OOHUVal200to249k | BH9: H23OOHUVal250to299k | BI9: H23OOHUVal300to399k | BJ9: H23OOHUVal400to499k | BK9: H23OOHUVal500kOrMore | BL9: H23BOOHUMedVal | BM9: H41SingFamHU90cen | BN9: H41MultiFamHU90cen | BO9: H41MobileHom90cen | BP9: H43SingFamOwnHU90cen | BQ9: H43MultiFamOwnHU90cen | BR9: H43MobileHomOwnHU90cen | BS9: H43SingFamRntrHU90cen | BT9: H43MultiFamRntrHU90cen | BU9: H43MobileHomRntrHU90cen | BV9: H41HU1UnitDet | BW9: H41HU1UnitAtt | BX9: H41HU2Unit | BY9: H41HU3to4Unit | BZ9: H41HU5to9Unit | CA9: H41HU10to19Unit | CB9: H41HU20to49Unit | CC9: H41HU50PlusUnit | CD9: H41HUMobilH | CE9: H41HUOther
A10: =VLOOKUP(DropDownList!$B$47,CntyQuery!$A$51:$CE$93,A$1) -> Alexandria | B10: =VLOOKUP(DropDownList!$B$47,CntyQuery!$A$51:$CE$93,B$1) -> 501 | C10: =VLOOKUP(DropDownList!$B$47,CntyQuery!$A$51:$CE$93,C$1) -> 9005 | D10: =VLOOKUP(DropDownList!$B$47,CntyQuery!$A$51:$CE$93,D$1) -> 00580 | E10: =VLOOKUP(DropDownList!$B$47,CntyQuery!$A$51:$CE$93,E$1) -> 27867.68 | F10: =VLOOKUP(DropDownList!$B$47,CntyQuery!$A$51:$CE$93,F$1) -> 53.53 | G10: =VLOOKUP(DropDownList!$B$47,CntyQuery!$A$51:$CE$93,G$1) -> 721 | H10: =VLOOKUP(DropDownList!$B$47,CntyQuery!$A$51:$CE$93,H$1) -> 1190 | I10: =VLOOKUP(DropDownList!$B$47,CntyQuery!$A$51:$CE$93,I$1) -> 320 | J10: =VLOOKUP(DropDownList!$B$47,CntyQuery!$A$51:$CE$93,J$1) -> 406 | K10: =VLOOKUP(DropDownList!$B$47,CntyQuery!$A$51:$CE$93,K$1) -> 612 | L10: =VLOOKUP(DropDownList!$B$47,CntyQuery!$A$51:$CE$93,L$1) -> 578 | M10: =VLOOKUP(DropDownList!$B$47,CntyQuery!$A$51:$CE$93,M$1) -> 1181 | N10: =VLOOKUP(DropDownList!$B$47,CntyQuery!$A$51:$CE$93,N$1) -> 1 | O10: =VLOOKUP(DropDownList!$B$47,CntyQuery!$A$51:$CE$93,O$1) -> 2 | P10: =VLOOKUP(DropDownList!$B$47,CntyQuery!$A$51:$CE$93,P$1) -> 0 | Q10: =VLOOKUP(DropDownList!$B$47,CntyQuery!$A$51:$CE$93,Q$1) -> 6 | R10: =VLOOKUP(DropDownList!$B$47,CntyQuery!$A$51:$CE$93,R$1) -> 17 | S10: =VLOOKUP(DropDownList!$B$47,CntyQuery!$A$51:$CE$93,S$1) -> 309 | T10: =VLOOKUP(DropDownList!$B$47,CntyQuery!$A$51:$CE$93,T$1) -> 148 | U10: =VLOOKUP(DropDownList!$B$47,CntyQuery!$A$51:$CE$93,U$1) -> 225 | V10: =VLOOKUP(DropDownList!$B$47,CntyQuery!$A$51:$CE$93,V$1) -> 202 | W10: =VLOOKUP(DropDownList!$B$47,CntyQuery!$A$51:$CE$93,W$1) -> 130 | X10: =VLOOKUP(DropDownList!$B$47,CntyQuery!$A$51:$CE$93,X$1) -> 87 | Y10: =VLOOKUP(DropDownList!$B$47,CntyQuery!$A$51:$CE$93,Y$1) -> 63 | Z10: =VLOOKUP(DropDownList!$B$47,CntyQuery!$A$51:$CE$93,Z$1) -> 26 | AA10: =VLOOKUP(DropDownList!$B$47,CntyQuery!$A$51:$CE$93,AA$1) -> 1190 | AB10: =VLOOKUP(DropDownList!$B$47,CntyQuery!$A$51:$CE$93,AB$1) -> 1071 | AC10: =VLOOKUP(DropDownList!$B$47,CntyQuery!$A$51:$CE$93,AC$1) -> 0 | AD10: =VLOOKUP(DropDownList!$B$47,CntyQuery!$A$51:$CE$93,AD$1) -> 2.931034483 | AE10: =VLOOKUP(DropDownList!$B$47,CntyQuery!$A$51:$CE$93,AE$1) -> 3.346875 | AF10: =VLOOKUP(DropDownList!$B$47,CntyQuery!$A$51:$CE$93,AF$1) -> 62 | AG10: =VLOOKUP(DropDownList!$B$47,CntyQuery!$A$51:$CE$93,AG$1) -> 278 | AH10: =VLOOKUP(DropDownList!$B$47,CntyQuery!$A$51:$CE$93,AH$1) -> 42 | AI10: =VLOOKUP(DropDownList!$B$47,CntyQuery!$A$51:$CE$93,AI$1) -> 24 | AJ10: =VLOOKUP(DropDownList!$B$47,CntyQuery!$A$51:$CE$93,AJ$1) -> 721 | AK10: =VLOOKUP(DropDownList!$B$47,CntyQuery!$A$51:$CE$93,AK$1) -> 406 | AL10: =VLOOKUP(DropDownList!$B$47,CntyQuery!$A$51:$CE$93,AL$1) -> 315 | AM10: =VLOOKUP(DropDownList!$B$47,CntyQuery!$A$51:$CE$93,AM$1) -> 353 | AN10: =VLOOKUP(DropDownList!$B$47,CntyQuery!$A$51:$CE$93,AN$1) -> 53 | AO10: =VLOOKUP(DropDownList!$B$47,CntyQuery!$A$51:$CE$93,AO$1) -> 6 | AP10: =VLOOKUP(DropDownList!$B$47,CntyQuery!$A$51:$CE$93,AP$1) -> 14 | AQ10: =VLOOKUP(DropDownList!$B$47,CntyQuery!$A$51:$CE$93,AQ$1) -> 245 | AR10: =VLOOKUP(DropDownList!$B$47,CntyQuery!$A$51:$CE$93,AR$1) -> 2 | AS10: =VLOOKUP(DropDownList!$B$47,CntyQuery!$A$51:$CE$93,AS$1) -> 2 | AT10: =VLOOKUP(DropDownList!$B$47,CntyQuery!$A$51:$CE$93,AT$1) -> 2 | AU10: =VLOOKUP(DropDownList!$B$47,CntyQuery!$A$51:$CE$93,AU$1) -> 6 | AV10: =VLOOKUP(DropDownList!$B$47,CntyQuery!$A$51:$CE$93,AV$1) -> 3 | AW10: =VLOOKUP(DropDownList!$B$47,CntyQuery!$A$51:$CE$93,AW$1) -> 1 | AX10: =VLOOKUP(DropDownList!$B$47,CntyQuery!$A$51:$CE$93,AX$1) -> 6 | AY10: =VLOOKUP(DropDownList!$B$47,CntyQuery!$A$51:$CE$93,AY$1) -> 2 | AZ10: =VLOOKUP(DropDownList!$B$47,CntyQuery!$A$51:$CE$93,AZ$1) -> 18 | BA10: =VLOOKUP(DropDownList!$B$47,CntyQuery!$A$51:$CE$93,BA$1) -> 28 | BB10: =VLOOKUP(DropDownList!$B$47,CntyQuery!$A$51:$CE$93,BB$1) -> 70 | BC10: =VLOOKUP(DropDownList!$B$47,CntyQuery!$A$51:$CE$93,BC$1) -> 34 | BD10: =VLOOKUP(DropDownList!$B$47,CntyQuery!$A$51:$CE$93,BD$1) -> 19 | BE10: =VLOOKUP(DropDownList!$B$47,CntyQuery!$A$51:$CE$93,BE$1) -> 12 | BF10: =VLOOKUP(DropDownList!$B$47,CntyQuery!$A$51:$CE$93,BF$1) -> 4 | BG10: =VLOOKUP(DropDownList!$B$47,CntyQuery!$A$51:$CE$93,BG$1) -> 3 | BH10: =VLOOKUP(DropDownList!$B$47,CntyQuery!$A$51:$CE$93,BH$1) -> 2 | BI10: =VLOOKUP(DropDownList!$B$47,CntyQuery!$A$51:$CE$93,BI$1) -> 1 | BJ10: =VLOOKUP(DropDownList!$B$47,CntyQuery!$A$51:$CE$93,BJ$1) -> 0 | BK10: =VLOOKUP(DropDownList!$B$47,CntyQuery!$A$51:$CE$93,BK$1) -> 0 | BL10: =VLOOKUP(DropDownList!$B$47,CntyQuery!$A$51:$CE$93,BL$1) -> 88400 | BM10: =VLOOKUP(DropDownList!$B$47,CntyQuery!$A$51:$CE$93,BM$1) -> 545 | BN10: =VLOOKUP(DropDownList!$B$47,CntyQuery!$A$51:$CE$93,BN$1) -> 81 | BO10: =VLOOKUP(DropDownList!$B$47,CntyQuery!$A$51:$CE$93,BO$1) -> 95 | BP10: =VLOOKUP(DropDownList!$B$47,CntyQuery!$A$51:$CE$93,BP$1) -> 303 | BQ10: =VLOOKUP(DropDownList!$B$47,CntyQuery!$A$51:$CE$93,BQ$1) -> 7 | BR10: =VLOOKUP(DropDownList!$B$47,CntyQuery!$A$51:$CE$93,BR$1) -> 43 | BS10: =VLOOKUP(DropDownList!$B$47,CntyQuery!$A$51:$CE$93,BS$1) -> 40 | BT10: =VLOOKUP(DropDownList!$B$47,CntyQuery!$A$51:$CE$93,BT$1) -> 6 | BU10: =VLOOKUP(DropDownList!$B$47,CntyQuery!$A$51:$CE$93,BU$1) -> 7 | BV10: =VLOOKUP(DropDownList!$B$47,CntyQuery!$A$51:$CE$93,BV$1) -> 545 | BW10: =VLOOKUP(DropDownList!$B$47,CntyQuery!$A$51:$CE$93,BW$1) -> 6 | BX10: =VLOOKUP(DropDownList!$B$47,CntyQuery!$A$51:$CE$93,BX$1) -> 38 | BY10: =VLOOKUP(DropDownList!$B$47,CntyQuery!$A$51:$CE$93,BY$1) -> 37 | BZ10: =VLOOKUP(DropDownList!$B$47,CntyQuery!$A$51:$CE$93,BZ$1) -> 0 | CA10: =VLOOKUP(DropDownList!$B$47,CntyQuery!$A$51:$CE$93,CA$1) -> 0 | CB10: =VLOOKUP(DropDownList!$B$47,CntyQuery!$A$51:$CE$93,CB$1) -> 0 | CC10: =VLOOKUP(DropDownList!$B$47,CntyQuery!$A$51:$CE$93,CC$1) -> 0 | CD10: =VLOOKUP(DropDownList!$B$47,CntyQuery!$A$51:$CE$93,CD$1) -> 92 | CE10: =VLOOKUP(DropDownList!$B$47,CntyQuery!$A$51:$CE$93,CE$1) -> 3
A13: Census 1990 Data - Query Name: TownSTF3Qry1
A14: NAME | B14: FIPS | C14: COUSUBFP | D14: LandAcres | E14: WaterAcres | F14: HousingUnits90Cen | G14: P01Persons90Cen | H14: P02Families90Cen | I14: P03Households90cen | J14: H25HU<5yrs90cen | K14: H25HU5to20yrs90cen | L14: H25HU20to50yrs90cen | M14: H25HU>50yrs90cen | N14: H31Units0Bedroom90cen | O14: H31Units1Bedroom90cen | P14: H31Units2Bedroom90cen | Q14: H31Units3Bedroom90cen | R14: H31Units4Bedroom90cen | S14: H31Units5+Bedroom90cen | T14: P80HI<5K | U14: P80HI5Kto10K | V14: P80HI10Kto15K | W14: P80HI15Kto25K | X14: P80HI25Kto35K | Y14: P80HI35Kto50K | Z14: P80HI50Kto75K | AA14: P80HI75Kto100K | AB14: P80HI>100K | AC14: P80AMedHI | AD14: P86HH<25HI<5K | AE14: P86HH<25HI5Kto10K | AF14: P86HH<25HI10Kto15K | AG14: P86HH<25HI15Kto25K | AH14: P86HH<25HI25Kto35K | AI14: P86HH<25HI35Kto50K | AJ14: P86HH<25HI50Kto75K | AK14: P86HH<25HI75Kto100K | AL14: P86HH<25HI>100K | AM14: P86HH25to34HI<5K | AN14: P86HH25to34HI5Kto10K | AO14: P86HH25to34HI10Kto15K | AP14: P86HH25to34HI15Kto25K | AQ14: P86HH25to34HI25Kto35K | AR14: P86HH25to34HI35Kto50K | AS14: P86HH25to34HI50Kto75K | AT14: P86HH25to34HI75Kto100K | AU14: P86HH25to34HI>100K | AV14: P86HH35to44HI<5K | AW14: P86HH35to44HI5Kto10K | AX14: P86HH35to44HI10Kto15K | AY14: P86HH35to44HI15Kto25K | AZ14: P86HH35to44HI25Kto35K | BA14: P86HH35to44HI35Kto50K | BB14: P86HH35to44HI50Kto75K | BC14: P86HH35to44HI75Kto100K | BD14: P86HH35to44HI>100K | BE14: P86HH45to54HI<5K | BF14: P86HH45to54HI5Kto10K | BG14: P86HH45to54HI10Kto15K | BH14: P86HH45to54HI15Kto25K | BI14: P86HH45to54HI25Kto35K | BJ14: P86HH45to54HI35Kto50K | BK14: P86HH45to54HI50Kto75K | BL14: P86HH45to54HI75Kto100K | BM14: P86HH45to54HI>100K | BN14: P86HH55to64HI<5K | BO14: P86HH55to64HI5Kto10K | BP14: P86HH55to64HI10Kto15K | BQ14: P86HH55to64HI15Kto25K | BR14: P86HH55to64HI25Kto35K | BS14: P86HH55to64HI35Kto50K | BT14: P86HH55to64HI50Kto75K | BU14: P86HH55to64HI75Kto100K | BV14: P86HH55to64HI>100K | BW14: P86HH65to74HI<5K | BX14: P86HH65to74HI5Kto10K | BY14: P86HH65to74HI10Kto15K | BZ14: P86HH65to74HI15Kto25K | CA14: P86HH65to74HI25Kto35K | CB14: P86HH65to74HI35Kto50K | CC14: P86HH65to74HI50Kto75K | CD14: P86HH65to74HI75Kto100K | CE14: P86HH65to74HI>100K | CF14: P86HH>75HI<5K | CG14: P86HH>75HI5Kto10K | CH14: P86HH>75HI10Kto15K | CI14: P86HH>75HI15Kto25K | CJ14: P86HH>75HI25Kto35K | CK14: P86HH>75HI35Kto50K | CL14: P86HH>75HI50Kto75K | CM14: P86HH>75HI75Kto100K | CN14: P86HH>75HI>100K | CO14: P54SchlEnrlPrePrim | CP14: P54SchlEnrlElemThrHS | CQ14: P54SchlEnrlCollege | CR14: P54NotEnrlInSch | CS14: P57Pop25andOver | CT14: P57LessThan9thGrade | CU14: P579thto12thNoDip | CV14: P57HSGrad | CW14: P57SomeCollege | CX14: P57AssocDeg | CY14: P57BachelDeg | CZ14: P57GradorProfDeg | DA14: P57HSGradorHigher | DB14: P57CollGradorHigher | DC14: P42NativePop | DD14: P42ForeignBornPop | DE14: P42BornStateOfRes | DF14: P37NativePop2 | DG14: P37ForeignBornPop2 | DH14: P49DroveAlone | DI14: P49CarPooled | DJ14: P49PublicTranspt | DK14: P49Walked | DL14: P49OtherMeans | DM14: P49WorkedAtHome | DN14: P80HHInc<10K | DO14: P80HHInc10to15K | DP14: P80HHInc15to25K | DQ14: P80HHInc25to35K | DR14: P80HHInc35to50K | DS14: P80HHInc50to75K | DT14: P80HHInc75to100K | DU14: P80HHInc100to150K | DV14: P80HHInc>150K | DW14: H25YearStBlt89to90 | DX14: H25YearStBlt85to88 | DY14: H25YearStBlt80to84 | DZ14: H25YearStBlt70to79 | EA14: H25YearStBlt60to69 | EB14: H25YearStBlt50to59 | EC14: H25YearStBlt40to49 | ED14: H25YearStBlt39earlier | EE14: P107FamInc<10K | EF14: P107FamInc10to15K | EG14: P107FamInc15to25K | EH14: P107FamInc25to35K | EI14: P107FamInc35to50K | EJ14: P107FamInc50to75K | EK14: P107FamInc75to100K | EL14: P107FamInc100to150K | EM14: P107FamInc>150K | EN14: P107AMedFamInc | EO14: P110NonFamInc<10K | EP14: P110NonFamInc10to15K | EQ14: P110NonFamInc15to25K | ER14: P110NonFamInc25to35K | ES14: P110NonFamInc35to50K | ET14: P110NonFamInc50to75K | EU14: P110NonFamInc75to100K | EV14: P110NonFamInc100to150K | EW14: P110NonFamInc>150K | EX14: P110AMedNonFamInc | EY14: H16HU1Room | EZ14: H16HU2Room | FA14: H16HU3Room | FB14: H16HU4Room | FC14: H16HU5Room | FD14: H16HU6Room | FE14: H16HU7Room | FF14: H16HU8Room | FG14: H16HU9+Room | FH14: H43GrossRnt<100 | FI14: H43GrossRnt100to149 | FJ14: H43GrossRnt150to199 | FK14: H43GrossRnt200to249 | FL14: H43GrossRnt250to299 | FM14: H43GrossRnt300to349 | FN14: H43GrossRnt350to399 | FO14: H43GrossRnt400to449 | FP14: H43GrossRnt450to499 | FQ14: H43GrossRnt500to549 | FR14: H43GrossRnt550to599 | FS14: H43GrossRnt600to649 | FT14: H43GrossRnt650to699 | FU14: H43GrossRnt700to749 | FV14: H43GrossRnt750to999 | FW14: H43GrossRnt1000Plus | FX14: H43NoCashRent | FY14: H43MedGrossRent | FZ14: H51GrossRnt<20PctHHInc | GA14: H51GrossRnt20to24PctHHInc | GB14: H51GrossRnt25to29PctHHInc | GC14: H51GrossRnt30to34PctHHInc | GD14: H51GrossRnt35PctOrMoreHHInc | GE14: H51GrossRntAsPctHHIncNotComp | GF14: H52HUwMtgMoOwnCst<200 | GG14: H52HUwMtgMoOwnCst200to299 | GH14: H52HUwMtgMoOwnCst300to399 | GI14: H52HUwMtgMoOwnCst400to499 | GJ14: H52HUwMtgMoOwnCst500to599 | GK14: H52HUwMtgMoOwnCst600to699 | GL14: H52HUwMtgMoOwnCst700to799 | GM14: H52HUwMtgMoOwnCst800to899 | GN14: H52HUwMtgMoOwnCst900to999 | GO14: H52HUwMtgMoOwnCst1000to1249 | GP14: H52HUwMtgMoOwnCst1250to1499 | GQ14: H52HUwMtgMoOwnCst1500to1999 | GR14: H52HUwMtgMoOwnCst2000More | GS14: H52HUwNoMtgMoOwnCst<100 | GT14: H52HUwNoMtgMoOwnCst100to149 | GU14: H52HUwNoMtgMoOwnCst150to199 | GV14: H52HUwNoMtgMoOwnCst200to249 | GW14: H52HUwNoMtgMoOwnCst250to299 | GX14: H52HUwNoMtgMoOwnCst300to349 | GY14: H52HUwNoMtgMoOwnCst350to399 | GZ14: H52HUwNoMtgMoOwnCst400More | HA14: H52AMedMoOwnCstWMortg | HB14: H52AMedMoOwnCstWNoMortg | HC14: H58HUwMtgMOC<20pHHInc | HD14: H58HUwMtgMOC20to24pHHInc | HE14: H58HUwMtgMOC25to29pHHInc | HF14: H58HUwMtgMOC30to34pHHInc | HG14: H58wMtgMOC>35pHHInc | HH14: H58HUwMtgMOCNotComp | HI14: H58HUwNoMtgMOC<20pHHInc | HJ14: H58HUwNoMtgMOC20to24pHHInc | HK14: H58HUwNoMtgMOC25to29pHHInc | HL14: H58HUwNoMtgMOC30to34pHHInc | HM14: H58wNoMtgMOC>35pHHInc | HN14: H58HUwNoMtgMOCNotComp | HO14: H61OOHUVal<15k | HP14: H61OOHUVal15to19k | HQ14: H61OOHUVal20to24k | HR14: H61OOHUVal25to29k | HS14: H61OOHUVal30to34k | HT14: H61OOHUVal35to39k | HU14: H61OOHUVal40to44k | HV14: H61OOHUVal45to49k | HW14: H61OOHUVal50to59k | HX14: H61OOHUVal60to74k | HY14: H61OOHUVal75to99k | HZ14: H61OOHUVal100to124k | IA14: H61OOHUVal125to149k | IB14: H61OOHUVal150to174k | IC14: H61OOHUVal175to199k | ID14: H61OOHUVal200to249k | IE14: H61OOHUVal250to299k | IF14: H61OOHUVal300to399k | IG14: H61OOHUVal400to499k | IH14: H61OOHUVal500kOrMore | II14: H61aOOHUMedVal
A19: TOWN_NAME | B19: FIPS | C19: TOWNCNTY | D19: COUSUB | E19: POP80 | F19: POP90CDCEN | G19: POP2000CEN | H19: POP2010CEN | I19: POP2025-Proj | J19: POP2030-Proj | K19: POP2040-Proj | L19: SF80 | M19: MF80 | N19: MH80 | O19: SF81 | P19: MF81 | Q19: MH81 | R19: SF82 | S19: MF82 | T19: MH82 | U19: SF83 | V19: MF83 | W19: MH83 | X19: SF84_OSP | Y19: MF84_OSP | Z19: MH84_OSP | AA19: SF85_OSP | AB19: MF85_OSP | AC19: MH85_OSP | AD19: SF86_OSP | AE19: MF86_OSP | AF19: MH86_OSP | AG19: SF87_OSP | AH19: MF87_OSP | AI19: MH87_OSP | AJ19: SF88_OSP | AK19: MF88_OSP | AL19: MH88_OSP | AM19: SF89_OSP | AN19: MF89_OSP | AO19: MH89_OSP | AP19: SF90_OSP | AQ19: MF90_OSP | AR19: MH90_OSP | AS19: SF91_OSP | AT19: MF91_OSP | AU19: MH91_OSP | AV19: SF92_OSP | AW19: MF92_OSP | AX19: MH92_OSP | AY19: SF93_OSP | AZ19: MF93_OSP | BA19: MH93_OSP | BB19: SF94_OSP | BC19: MF94_OSP | BD19: MH94_OSP | BE19: SF95_OSP | BF19: MF95_OSP | BG19: MH95_OSP | BH19: SF96_OSP | BI19: MF96_OSP | BJ19: MH96_OSP | BK19: SF97_OSP | BL19: MF97_OSP | BM19: MH97_OSP | BN19: SF98_OSP | BO19: MF98_OSP | BP19: MH98_OSP | BQ19: SF99_OSP | BR19: MF99_OSP | BS19: MH99_OSP | BT19: SF00_OSP | BU19: MF00_OSP | BV19: MH00_OSP | BW19: SF01_OSP | BX19: MF01_OSP | BY19: MH01_OSP | BZ19: SF02_OSP | CA19: MF02_OSP | CB19: MH02_OSP | CC19: SF03_OSP | CD19: MF03_OSP | CE19: MH03_OSP | CF19: SF04_OSP | CG19: MF04_OSP | CH19: MH04_OSP | CI19: SF05_OSP | CJ19: MF05_OSP | CK19: MH05_OSP | CL19: SF06_OSP | CM19: MF06_OSP | CN19: MH06_OSP | CO19: SF07_OSP | CP19: MF07_OSP | CQ19: MH07_OSP | CR19: SF08_OSP | CS19: MF08_OSP | CT19: MH08_OSP | CU19: SF09_OSP | CV19: MF09_OSP | CW19: MH09_OSP | CX19: SF10_OSP | CY19: MF10_OSP | CZ19: MH10_OSP | DA19: SF11_OSP | DB19: MF11_OSP | DC19: MH11_OSP | DD19: SF12_OSP | DE19: MF12_OSP | DF19: MH12_OSP | DG19: SF13_OSP | DH19: MF13_OSP | DI19: MH13_OSP | DJ19: SF14_OSP | DK19: MF14_OSP | DL19: MH14_OSP | DM19: SF15_OSP | DN19: MF15_OSP | DO19: MH15_OSP | DP19: SF16_OSP | DQ19: MF16_OSP | DR19: MH16_OSP | DS19: SF17_OSP | DT19: MF17_OSP | DU19: MH17_OSP | DV19: SF18_OSP | DW19: MF18_OSP | DX19: MH18_OSP | DY19: SF19_OSP | DZ19: MF19_OSP | EA19: MH19_OSP | EB19: COMMENTS | EC19: CNTY_CODE
A20: =VLOOKUP(DropDownList!$B$47,CntyQuery!$A$118:$FZ$157,A$1) -> Alexandria | B20: =VLOOKUP(DropDownList!$B$47,CntyQuery!$A$118:$FZ$157,B$1) -> 9005 | C20: =VLOOKUP(DropDownList!$B$47,CntyQuery!$A$118:$FZ$157,C$1) -> 501 | D20: =VLOOKUP(DropDownList!$B$47,CntyQuery!$A$118:$FZ$157,D$1) -> 00580 | E20: =VLOOKUP(DropDownList!$B$47,CntyQuery!$A$118:$FZ$157,E$1) -> 706 | F20: =VLOOKUP(DropDownList!$B$47,CntyQuery!$A$118:$FZ$157,F$1) -> 1190 | G20: =VLOOKUP(DropDownList!$B$47,CntyQuery!$A$118:$FZ$157,G$1) -> 1329 | H20: =VLOOKUP(DropDownList!$B$47,CntyQuery!$A$118:$FZ$157,H$1) -> 1613 | I20: =VLOOKUP(DropDownList!$B$47,CntyQuery!$A$118:$FZ$157,I$1) -> 1859 | J20: =VLOOKUP(DropDownList!$B$47,CntyQuery!$A$118:$FZ$157,J$1) -> 1882 | K20: =VLOOKUP(DropDownList!$B$47,CntyQuery!$A$118:$FZ$157,K$1) -> 1900 | L20: =VLOOKUP(DropDownList!$B$47,CntyQuery!$A$118:$FZ$157,L$1) -> 8 | M20: =VLOOKUP(DropDownList!$B$47,CntyQuery!$A$118:$FZ$157,M$1) -> 0 | N20: =VLOOKUP(DropDownList!$B$47,CntyQuery!$A$118:$FZ$157,N$1) -> 0 | O20: =VLOOKUP(DropDownList!$B$47,CntyQuery!$A$118:$FZ$157,O$1) -> 13 | P20: =VLOOKUP(DropDownList!$B$47,CntyQuery!$A$118:$FZ$157,P$1) -> 0 | Q20: =VLOOKUP(DropDownList!$B$47,CntyQuery!$A$118:$FZ$157,Q$1) -> 1 | R20: =VLOOKUP(DropDownList!$B$47,CntyQuery!$A$118:$FZ$157,R$1) -> 12 | S20: =VLOOKUP(DropDownList!$B$47,CntyQuery!$A$118:$FZ$157,S$1) -> 0 | T20: =VLOOKUP(DropDownList!$B$47,CntyQuery!$A$118:$FZ$157,T$1) -> 0 | U20: =VLOOKUP(DropDownList!$B$47,CntyQuery!$A$118:$FZ$157,U$1) -> 15 | V20: =VLOOKUP(DropDownList!$B$47,CntyQuery!$A$118:$FZ$157,V$1) -> 0 | W20: =VLOOKUP(DropDownList!$B$47,CntyQuery!$A$118:$FZ$157,W$1) -> 0 | X20: =VLOOKUP(DropDownList!$B$47,CntyQuery!$A$118:$FZ$157,X$1) -> 17 | Y20: =VLOOKUP(DropDownList!$B$47,CntyQuery!$A$118:$FZ$157,Y$1) -> 0 | Z20: =VLOOKUP(DropDownList!$B$47,CntyQuery!$A$118:$FZ$157,Z$1) -> 0 | AA20: =VLOOKUP(DropDownList!$B$47,CntyQuery!$A$118:$FZ$157,AA$1) -> 32 | AB20: =VLOOKUP(DropDownList!$B$47,CntyQuery!$A$118:$FZ$157,AB$1) -> 0 | AC20: =VLOOKUP(DropDownList!$B$47,CntyQuery!$A$118:$FZ$157,AC$1) -> 0 | AD20: =VLOOKUP(DropDownList!$B$47,CntyQuery!$A$118:$FZ$157,AD$1) -> 72 | AE20: =VLOOKUP(DropDownList!$B$47,CntyQuery!$A$118:$FZ$157,AE$1) -> 0 | AF20: =VLOOKUP(DropDownList!$B$47,CntyQuery!$A$118:$FZ$157,AF$1) -> 0 | AG20: =VLOOKUP(DropDownList!$B$47,CntyQuery!$A$118:$FZ$157,AG$1) -> 19 | AH20: =VLOOKUP(DropDownList!$B$47,CntyQuery!$A$118:$FZ$157,AH$1) -> 2 | AI20: =VLOOKUP(DropDownList!$B$47,CntyQuery!$A$118:$FZ$157,AI$1) -> 3 | AJ20: =VLOOKUP(DropDownList!$B$47,CntyQuery!$A$118:$FZ$157,AJ$1) -> 34 | AK20: =VLOOKUP(DropDownList!$B$47,CntyQuery!$A$118:$FZ$157,AK$1) -> 0 | AL20: =VLOOKUP(DropDownList!$B$47,CntyQuery!$A$118:$FZ$157,AL$1) -> 0 | AM20: =VLOOKUP(DropDownList!$B$47,CntyQuery!$A$118:$FZ$157,AM$1) -> 27 | AN20: =VLOOKUP(DropDownList!$B$47,CntyQuery!$A$118:$FZ$157,AN$1) -> 0 | AO20: =VLOOKUP(DropDownList!$B$47,CntyQuery!$A$118:$FZ$157,AO$1) -> 0 | AP20: =VLOOKUP(DropDownList!$B$47,CntyQuery!$A$118:$FZ$157,AP$1) -> 1 | AQ20: =VLOOKUP(DropDownList!$B$47,CntyQuery!$A$118:$FZ$157,AQ$1) -> 0 | AR20: =VLOOKUP(DropDownList!$B$47,CntyQuery!$A$118:$FZ$157,AR$1) -> 0 | AS20: =VLOOKUP(DropDownList!$B$47,CntyQuery!$A$118:$FZ$157,AS$1) -> 15 | AT20: =VLOOKUP(DropDownList!$B$47,CntyQuery!$A$118:$FZ$157,AT$1) -> 0 | AU20: =VLOOKUP(DropDownList!$B$47,CntyQuery!$A$118:$FZ$157,AU$1) -> 4 | AV20: =VLOOKUP(DropDownList!$B$47,CntyQuery!$A$118:$FZ$157,AV$1) -> 10 | AW20: =VLOOKUP(DropDownList!$B$47,CntyQuery!$A$118:$FZ$157,AW$1) -> 0 | AX20: =VLOOKUP(DropDownList!$B$47,CntyQuery!$A$118:$FZ$157,AX$1) -> 4 | AY20: =VLOOKUP(DropDownList!$B$47,CntyQuery!$A$118:$FZ$157,AY$1) -> 8 | AZ20: =VLOOKUP(DropDownList!$B$47,CntyQuery!$A$118:$FZ$157,AZ$1) -> 0 | BA20: =VLOOKUP(DropDownList!$B$47,CntyQuery!$A$118:$FZ$157,BA$1) -> 5 | BB20: =VLOOKUP(DropDownList!$B$47,CntyQuery!$A$118:$FZ$157,BB$1) -> 8 | BC20: =VLOOKUP(DropDownList!$B$47,CntyQuery!$A$118:$FZ$157,BC$1) -> 0 | BD20: =VLOOKUP(DropDownList!$B$47,CntyQuery!$A$118:$FZ$157,BD$1) -> 3 | BE20: =VLOOKUP(DropDownList!$B$47,CntyQuery!$A$118:$FZ$157,BE$1) -> 11 | BF20: =VLOOKUP(DropDownList!$B$47,CntyQuery!$A$118:$FZ$157,BF$1) -> 0 | BG20: =VLOOKUP(DropDownList!$B$47,CntyQuery!$A$118:$FZ$157,BG$1) -> 4 | BH20: =VLOOKUP(DropDownList!$B$47,CntyQuery!$A$118:$FZ$157,BH$1) -> 10 | BI20: =VLOOKUP(DropDownList!$B$47,CntyQuery!$A$118:$FZ$157,BI$1) -> 0 | BJ20: =VLOOKUP(DropDownList!$B$47,CntyQuery!$A$118:$FZ$157,BJ$1) -> 2 | BK20: =VLOOKUP(DropDownList!$B$47,CntyQuery!$A$118:$FZ$157,BK$1) -> 9 | BL20: =VLOOKUP(DropDownList!$B$47,CntyQuery!$A$118:$FZ$157,BL$1) -> 0 | BM20: =VLOOKUP(DropDownList!$B$47,CntyQuery!$A$118:$FZ$157,BM$1) -> 8 | BN20: =VLOOKUP(DropDownList!$B$47,CntyQuery!$A$118:$FZ$157,BN$1) -> 9 | BO20: =VLOOKUP(DropDownList!$B$47,CntyQuery!$A$118:$FZ$157,BO$1) -> 0 | BP20: =VLOOKUP(DropDownList!$B$47,CntyQuery!$A$118:$FZ$157,BP$1) -> 0 | BQ20: =VLOOKUP(DropDownList!$B$47,CntyQuery!$A$118:$FZ$157,BQ$1) -> 16 | BR20: =VLOOKUP(DropDownList!$B$47,CntyQuery!$A$118:$FZ$157,BR$1) -> 0 | BS20: =VLOOKUP(DropDownList!$B$47,CntyQuery!$A$118:$FZ$157,BS$1) -> 2 | BT20: =VLOOKUP(DropDownList!$B$47,CntyQuery!$A$118:$FZ$157,BT$1) -> 12 | BU20: =VLOOKUP(DropDownList!$B$47,CntyQuery!$A$118:$FZ$157,BU$1) -> 0 | BV20: =VLOOKUP(DropDownList!$B$47,CntyQuery!$A$118:$FZ$157,BV$1) -> 2 | BW20: =VLOOKUP(DropDownList!$B$47,CntyQuery!$A$118:$FZ$157,BW$1) -> 28 | BX20: =VLOOKUP(DropDownList!$B$47,CntyQuery!$A$118:$FZ$157,BX$1) -> 0 | BY20: =VLOOKUP(DropDownList!$B$47,CntyQuery!$A$118:$FZ$157,BY$1) -> 5 | BZ20: =VLOOKUP(DropDownList!$B$47,CntyQuery!$A$118:$FZ$157,BZ$1) -> 24 | CA20: =VLOOKUP(DropDownList!$B$47,CntyQuery!$A$118:$FZ$157,CA$1) -> 0 | CB20: =VLOOKUP(DropDownList!$B$47,CntyQuery!$A$118:$FZ$157,CB$1) -> 0 | CC20: =VLOOKUP(DropDownList!$B$47,CntyQuery!$A$118:$FZ$157,CC$1) -> 11 | CD20: =VLOOKUP(DropDownList!$B$47,CntyQuery!$A$118:$FZ$157,CD$1) -> 0 | CE20: =VLOOKUP(DropDownList!$B$47,CntyQuery!$A$118:$FZ$157,CE$1) -> 0 | CF20: =VLOOKUP(DropDownList!$B$47,CntyQuery!$A$118:$FZ$157,CF$1) -> 10 | CG20: =VLOOKUP(DropDownList!$B$47,CntyQuery!$A$118:$FZ$157,CG$1) -> 0 | CH20: =VLOOKUP(DropDownList!$B$47,CntyQuery!$A$118:$FZ$157,CH$1) -> 3 | CI20: =VLOOKUP(DropDownList!$B$47,CntyQuery!$A$118:$FZ$157,CI$1) -> 18 | CJ20: =VLOOKUP(DropDownList!$B$47,CntyQuery!$A$118:$FZ$157,CJ$1) -> 2 | CK20: =VLOOKUP(DropDownList!$B$47,CntyQuery!$A$118:$FZ$157,CK$1) -> 0 | CL20: =VLOOKUP(DropDownList!$B$47,CntyQuery!$A$118:$FZ$157,CL$1) -> 21 | CM20: =VLOOKUP(DropDownList!$B$47,CntyQuery!$A$118:$FZ$157,CM$1) -> 0 | CN20: =VLOOKUP(DropDownList!$B$47,CntyQuery!$A$118:$FZ$157,CN$1) -> 0 | CO20: =VLOOKUP(DropDownList!$B$47,CntyQuery!$A$118:$FZ$157,CO$1) -> 14 | CP20: =VLOOKUP(DropDownList!$B$47,CntyQuery!$A$118:$FZ$157,CP$1) -> 0 | CQ20: =VLOOKUP(DropDownList!$B$47,CntyQuery!$A$118:$FZ$157,CQ$1) -> 0 | CR20: =VLOOKUP(DropDownList!$B$47,CntyQuery!$A$118:$FZ$157,CR$1) -> 6 | CS20: =VLOOKUP(DropDownList!$B$47,CntyQuery!$A$118:$FZ$157,CS$1) -> 2 | CT20: =VLOOKUP(DropDownList!$B$47,CntyQuery!$A$118:$FZ$157,CT$1) -> 0 | CU20: =VLOOKUP(DropDownList!$B$47,CntyQuery!$A$118:$FZ$157,CU$1) -> 4 | CV20: =VLOOKUP(DropDownList!$B$47,CntyQuery!$A$118:$FZ$157,CV$1) -> 0 | CW20: =VLOOKUP(DropDownList!$B$47,CntyQuery!$A$118:$FZ$157,CW$1) -> 0 | CX20: =VLOOKUP(DropDownList!$B$47,CntyQuery!$A$118:$FZ$157,CX$1) -> 5 | CY20: =VLOOKUP(DropDownList!$B$47,CntyQuery!$A$118:$FZ$157,CY$1) -> 0 | CZ20: =VLOOKUP(DropDownList!$B$47,CntyQuery!$A$118:$FZ$157,CZ$1) -> 0 | DA20: =VLOOKUP(DropDownList!$B$47,CntyQuery!$A$118:$FZ$157,DA$1) -> 6 | DB20: =VLOOKUP(DropDownList!$B$47,CntyQuery!$A$118:$FZ$157,DB$1) -> 0 | DC20: =VLOOKUP(DropDownList!$B$47,CntyQuery!$A$118:$FZ$157,DC$1) -> 0 | DD20: =VLOOKUP(DropDownList!$B$47,CntyQuery!$A$118:$FZ$157,DD$1) -> 1 | DE20: =VLOOKUP(DropDownList!$B$47,CntyQuery!$A$118:$FZ$157,DE$1) -> 0 | DF20: =VLOOKUP(DropDownList!$B$47,CntyQuery!$A$118:$FZ$157,DF$1) -> 1 | DG20: =VLOOKUP(DropDownList!$B$47,CntyQuery!$A$118:$FZ$157,DG$1) -> 8 | DH20: =VLOOKUP(DropDownList!$B$47,CntyQuery!$A$118:$FZ$157,DH$1) -> 0 | DI20: =VLOOKUP(DropDownList!$B$47,CntyQuery!$A$118:$FZ$157,DI$1) -> 2 | DJ20: =VLOOKUP(DropDownList!$B$47,CntyQuery!$A$118:$FZ$157,DJ$1) -> 5 | DK20: =VLOOKUP(DropDownList!$B$47,CntyQuery!$A$118:$FZ$157,DK$1) -> 0 | DL20: =VLOOKUP(DropDownList!$B$47,CntyQuery!$A$118:$FZ$157,DL$1) -> 0 | DM20: =VLOOKUP(DropDownList!$B$47,CntyQuery!$A$118:$FZ$157,DM$1) -> 3 | DN20: =VLOOKUP(DropDownList!$B$47,CntyQuery!$A$118:$FZ$157,DN$1) -> 0 | DO20: =VLOOKUP(DropDownList!$B$47,CntyQuery!$A$118:$FZ$157,DO$1) -> 0 | DP20: =VLOOKUP(DropDownList!$B$47,CntyQuery!$A$118:$FZ$157,DP$1) -> 2 | DQ20: =VLOOKUP(DropDownList!$B$47,CntyQuery!$A$118:$FZ$157,DQ$1) -> 0 | DR20: =VLOOKUP(DropDownList!$B$47,CntyQuery!$A$118:$FZ$157,DR$1) -> 0 | DS20: =VLOOKUP(DropDownList!$B$47,CntyQuery!$A$118:$FZ$157,DS$1) -> 0 | DT20: =VLOOKUP(DropDownList!$B$47,CntyQuery!$A$118:$FZ$157,DT$1) -> 0 | DU20: =VLOOKUP(DropDownList!$B$47,CntyQuery!$A$118:$FZ$157,DU$1) -> 0 | DV20: =VLOOKUP(DropDownList!$B$47,CntyQuery!$A$118:$FZ$157,DV$1) -> 2 | DW20: =VLOOKUP(DropDownList!$B$47,CntyQuery!$A$118:$FZ$157,DW$1) -> 0 | DX20: =VLOOKUP(DropDownList!$B$47,CntyQuery!$A$118:$FZ$157,DX$1) -> 2 | DY20: =VLOOKUP(DropDownList!$B$47,CntyQuery!$A$118:$FZ$157,DY$1) -> 1 | DZ20: =VLOOKUP(DropDownList!$B$47,CntyQuery!$A$118:$FZ$157,DZ$1) -> 0 | EA20: =VLOOKUP(DropDownList!$B$47,CntyQuery!$A$118:$FZ$157,EA$1) -> 0 | EB20: =VLOOKUP(DropDownList!$B$47,CntyQuery!$A$118:$FZ$157,EB$1) ->  | EC20: =VLOOKUP(DropDownList!$B$47,CntyQuery!$A$118:$FZ$157,EC$1) -> 5
A23: NH Employment Data | B23: Query Name: DPQryEmploymentByCnty
A24: AreaName | B24: COUNTYCODE | C24: TOTP & G2001 | D24: TOT2001 | E24: GOODPRO2001 | F24: SERVICEPROMAN2001 | G24: WAGEP & G2001 | H24: WAGETOT2001 | I24: WAGEGOODPRO2001 | J24: WAGESERVICEPRO2001 | K24: TOTP & G2002 | L24: TOT2002 | M24: GOODPRO2002 | N24: SERVICEPROMAN2002 | O24: WAGEP & G2002 | P24: WAGETOT2002 | Q24: WAGEGOODPRO2002 | R24: WAGESERVICEPRO2002 | S24: TOTP & G2003 | T24: TOT2003 | U24: GOODPRO2003 | V24: SERVICEPROMAN2003 | W24: WAGEP & G2003 | X24: WAGETOT2003 | Y24: WAGEGOODPRO2003 | Z24: WAGESERVICEPRO2003 | AA24: TOTP & G2004 | AB24: TOT2004 | AC24: GOODPRO2004 | AD24: SERVICEPROMAN2004 | AE24: WAGEP & G2004 | AF24: WAGETOT2004 | AG24: WAGEGOODPRO2004 | AH24: WAGESERVICEPRO2004 | AI24: TOTP & G2005 | AJ24: TOT2005 | AK24: GOODPRO2005 | AL24: SERVICEPROMAN2005 | AM24: WAGEP & G2005 | AN24: WAGETOT2005 | AO24: WAGEGOODPRO2005 | AP24: WAGESERVICEPRO2005 | AQ24: TOTP & G2006 | AR24: TOT2006 | AS24: GOODPRO2006 | AT24: SERVICEPROMAN2006 | AU24: WAGEP & G2006 | AV24: WAGETOT2006 | AW24: WAGEGOODPRO2006 | AX24: WAGESERVICEPRO2006 | AY24: TOTP & G2007 | AZ24: TOT2007 | BA24: GOODPRO2007 | BB24: SERVICEPROMAN2007 | BC24: WAGEP & G2007 | BD24: WAGETOT2007 | BE24: WAGEGOODPRO2007 | BF24: WAGESERVICEPRO2007 | BG24: TOTP & G2008 | BH24: TOT2008 | BI24: GOODPRO2008 | BJ24: SERVICEPROMAN2008 | BK24: WAGEP & G2008 | BL24: WAGETOT2008 | BM24: WAGEGOODPRO2008 | BN24: WAGESERVICEPRO2008 | BO24: TOTP & G2009 | BP24: TOT2009 | BQ24: GOODPRO2009 | BR24: SERVICEPROMAN2009 | BS24: WAGEP & G2009 | BT24: WAGETOT2009 | BU24: WAGEGOODPRO2009 | BV24: WAGESERVICEPRO2009 | BW24: TOTP & G2010 | BX24: TOT2010 | BY24: GOODPRO2010 | BZ24: SERVICEPROMAN2010 | CA24: WAGEP & G2010 | CB24: WAGETOT2010 | CC24: WAGEGOODPRO2010 | CD24: WAGESERVICEPRO2010 | CE24: TOTP & G2011 | CF24: TOT2011 | CG24: GOODPRO2011 | CH24: SERVICEPROMAN2011 | CI24: WAGEP & G2011 | CJ24: WAGETOT2011 | CK24: WAGEGOODPRO2011 | CL24: WAGESERVICEPRO2011 | CM24: TOTP & G2012 | CN24: TOT2012 | CO24: GOODPRO2012 | CP24: SERVICEPROMAN2012 | CQ24: WAGEP & G2012 | CR24: WAGETOT2012 | CS24: WAGEGOODPRO2012 | CT24: WAGESERVICEPRO2012 | CU24: TOTP & G2013 | CV24: TOT2013 | CW24: GOODPRO2013 | CX24: SERVICEPROMAN2013 | CY24: WAGEP & G2013 | CZ24: WAGETOT2013 | DA24: WAGEGOODPRO2013 | DB24: WAGESERVICEPRO2013 | DC24: TOTP & G2014 | DD24: TOT2014 | DE24: GOODPRO2014 | DF24: SERVICEPROMAN2014 | DG24: WAGEP & G2014 | DH24: WAGETOT2014 | DI24: WAGEGOODPRO2014 | DJ24: WAGESERVICEPRO2014 | DK24: TOTP & G2015 | DL24: TOT2015 | DM24: GOODPRO2015 | DN24: SERVICEPROMAN2015 | DO24: WAGEP & G2015 | DP24: WAGETOT2015 | DQ24: WAGEGOODPRO2015 | DR24: WAGESERVICEPRO2015 | DS24: TOTP & G2016 | DT24: TOT2016 | DU24: GOODPRO2016 | DV24: SERVICEPROMAN2016 | DW24: WAGEP & G2016 | DX24: WAGETOT2016 | DY24: WAGEGOODPRO2016 | DZ24: WAGESERVICEPRO2016 | EA24: TOTP & G2017 | EB24: TOT2017 | EC24: GOODPRO2017 | ED24: SERVICEPROMAN2017 | EE24: WAGEP & G2017 | EF24: WAGETOT2017 | EG24: WAGEGOODPRO2017 | EH24: WAGESERVICEPRO2017 | EI24: TOTP & G2018 | EJ24: TOT2018 | EK24: GOODPRO2018 | EL24: SERVICEPROMAN2018 | EM24: WAGEP & G2018 | EN24: WAGETOT2018 | EO24: WAGEGOODPRO2018 | EP24: WAGESERVICEPRO2018 | EQ24: TOTP & G2019 | ER24: TOT2019 | ES24: TOTGov2019 | ET24: GOODPRO2019 | EU24: SERVICEPROMAN2019 | EV24: WAGEP & G2019 | EW24: WAGETOT2019 | EX24: WAGEGov2019 | EY24: WAGEGOODPRO2019 | EZ24: WAGESERVICEPRO2019 | FA24: SummaryLevel
A25: =VLOOKUP(DropDownList!$B$47,CntyQuery!$A$170:$FJ$213,A$1) -> Alexandria | B25: =VLOOKUP(DropDownList!$B$47,CntyQuery!$A$170:$FJ$213,B$1) -> 5 | C25: =VLOOKUP(DropDownList!$B$47,CntyQuery!$A$170:$FJ$213,C$1) -> 55 | D25: =VLOOKUP(DropDownList!$B$47,CntyQuery!$A$170:$FJ$213,D$1) -> 37 | E25: =VLOOKUP(DropDownList!$B$47,CntyQuery!$A$170:$FJ$213,E$1) -> n | F25: =VLOOKUP(DropDownList!$B$47,CntyQuery!$A$170:$FJ$213,F$1) -> n | G25: =VLOOKUP(DropDownList!$B$47,CntyQuery!$A$170:$FJ$213,G$1) -> 396.46 | H25: =VLOOKUP(DropDownList!$B$47,CntyQuery!$A$170:$FJ$213,H$1) -> 428.66 | I25: =VLOOKUP(DropDownList!$B$47,CntyQuery!$A$170:$FJ$213,I$1) -> n | J25: =VLOOKUP(DropDownList!$B$47,CntyQuery!$A$170:$FJ$213,J$1) -> n | K25: =VLOOKUP(DropDownList!$B$47,CntyQuery!$A$170:$FJ$213,K$1) -> 46 | L25: =VLOOKUP(DropDownList!$B$47,CntyQuery!$A$170:$FJ$213,L$1) -> 29 | M25: =VLOOKUP(DropDownList!$B$47,CntyQuery!$A$170:$FJ$213,M$1) -> n | N25: =VLOOKUP(DropDownList!$B$47,CntyQuery!$A$170:$FJ$213,N$1) -> n | O25: =VLOOKUP(DropDownList!$B$47,CntyQuery!$A$170:$FJ$213,O$1) -> 479.02 | P25: =VLOOKUP(DropDownList!$B$47,CntyQuery!$A$170:$FJ$213,P$1) -> 548.77 | Q25: =VLOOKUP(DropDownList!$B$47,CntyQuery!$A$170:$FJ$213,Q$1) -> n | R25: =VLOOKUP(DropDownList!$B$47,CntyQuery!$A$170:$FJ$213,R$1) -> n | S25: =VLOOKUP(DropDownList!$B$47,CntyQuery!$A$170:$FJ$213,S$1) -> 45 | T25: =VLOOKUP(DropDownList!$B$47,CntyQuery!$A$170:$FJ$213,T$1) -> 26 | U25: =VLOOKUP(DropDownList!$B$47,CntyQuery!$A$170:$FJ$213,U$1) -> 17 | V25: =VLOOKUP(DropDownList!$B$47,CntyQuery!$A$170:$FJ$213,V$1) -> 9 | W25: =VLOOKUP(DropDownList!$B$47,CntyQuery!$A$170:$FJ$213,W$1) -> 501 | X25: =VLOOKUP(DropDownList!$B$47,CntyQuery!$A$170:$FJ$213,X$1) -> 601.56 | Y25: =VLOOKUP(DropDownList!$B$47,CntyQuery!$A$170:$FJ$213,Y$1) -> 668.23 | Z25: =VLOOKUP(DropDownList!$B$47,CntyQuery!$A$170:$FJ$213,Z$1) -> 465.61 | AA25: =VLOOKUP(DropDownList!$B$47,CntyQuery!$A$170:$FJ$213,AA$1) -> 60 | AB25: =VLOOKUP(DropDownList!$B$47,CntyQuery!$A$170:$FJ$213,AB$1) -> 37 | AC25: =VLOOKUP(DropDownList!$B$47,CntyQuery!$A$170:$FJ$213,AC$1) -> n | AD25: =VLOOKUP(DropDownList!$B$47,CntyQuery!$A$170:$FJ$213,AD$1) -> n | AE25: =VLOOKUP(DropDownList!$B$47,CntyQuery!$A$170:$FJ$213,AE$1) -> 463.24 | AF25: =VLOOKUP(DropDownList!$B$47,CntyQuery!$A$170:$FJ$213,AF$1) -> 571.01 | AG25: =VLOOKUP(DropDownList!$B$47,CntyQuery!$A$170:$FJ$213,AG$1) -> n | AH25: =VLOOKUP(DropDownList!$B$47,CntyQuery!$A$170:$FJ$213,AH$1) -> n | AI25: =VLOOKUP(DropDownList!$B$47,CntyQuery!$A$170:$FJ$213,AI$1) -> 66 | AJ25: =VLOOKUP(DropDownList!$B$47,CntyQuery!$A$170:$FJ$213,AJ$1) -> 42 | AK25: =VLOOKUP(DropDownList!$B$47,CntyQuery!$A$170:$FJ$213,AK$1) -> n | AL25: =VLOOKUP(DropDownList!$B$47,CntyQuery!$A$170:$FJ$213,AL$1) -> n | AM25: =VLOOKUP(DropDownList!$B$47,CntyQuery!$A$170:$FJ$213,AM$1) -> 417.21 | AN25: =VLOOKUP(DropDownList!$B$47,CntyQuery!$A$170:$FJ$213,AN$1) -> 506.59 | AO25: =VLOOKUP(DropDownList!$B$47,CntyQuery!$A$170:$FJ$213,AO$1) -> n | AP25: =VLOOKUP(DropDownList!$B$47,CntyQuery!$A$170:$FJ$213,AP$1) -> n | AQ25: =VLOOKUP(DropDownList!$B$47,CntyQuery!$A$170:$FJ$213,AQ$1) -> 71 | AR25: =VLOOKUP(DropDownList!$B$47,CntyQuery!$A$170:$FJ$213,AR$1) -> 45 | AS25: =VLOOKUP(DropDownList!$B$47,CntyQuery!$A$170:$FJ$213,AS$1) -> 28 | AT25: =VLOOKUP(DropDownList!$B$47,CntyQuery!$A$170:$FJ$213,AT$1) -> 16 | AU25: =VLOOKUP(DropDownList!$B$47,CntyQuery!$A$170:$FJ$213,AU$1) -> 432.7 | AV25: =VLOOKUP(DropDownList!$B$47,CntyQuery!$A$170:$FJ$213,AV$1) -> 536.17 | AW25: =VLOOKUP(DropDownList!$B$47,CntyQuery!$A$170:$FJ$213,AW$1) -> 618.92 | AX25: =VLOOKUP(DropDownList!$B$47,CntyQuery!$A$170:$FJ$213,AX$1) -> 391.88 | AY25: =VLOOKUP(DropDownList!$B$47,CntyQuery!$A$170:$FJ$213,AY$1) -> 79 | AZ25: =VLOOKUP(DropDownList!$B$47,CntyQuery!$A$170:$FJ$213,AZ$1) -> 50 | BA25: =VLOOKUP(DropDownList!$B$47,CntyQuery!$A$170:$FJ$213,BA$1) -> 26 | BB25: =VLOOKUP(DropDownList!$B$47,CntyQuery!$A$170:$FJ$213,BB$1) -> 24 | BC25: =VLOOKUP(DropDownList!$B$47,CntyQuery!$A$170:$FJ$213,BC$1) -> 418.05 | BD25: =VLOOKUP(DropDownList!$B$47,CntyQuery!$A$170:$FJ$213,BD$1) -> 488.92 | BE25: =VLOOKUP(DropDownList!$B$47,CntyQuery!$A$170:$FJ$213,BE$1) -> 491.48 | BF25: =VLOOKUP(DropDownList!$B$47,CntyQuery!$A$170:$FJ$213,BF$1) -> 486.22 | BG25: =VLOOKUP(DropDownList!$B$47,CntyQuery!$A$170:$FJ$213,BG$1) -> 79 | BH25: =VLOOKUP(DropDownList!$B$47,CntyQuery!$A$170:$FJ$213,BH$1) -> 53 | BI25: =VLOOKUP(DropDownList!$B$47,CntyQuery!$A$170:$FJ$213,BI$1) -> n | BJ25: =VLOOKUP(DropDownList!$B$47,CntyQuery!$A$170:$FJ$213,BJ$1) -> n | BK25: =VLOOKUP(DropDownList!$B$47,CntyQuery!$A$170:$FJ$213,BK$1) -> 508.23 | BL25: =VLOOKUP(DropDownList!$B$47,CntyQuery!$A$170:$FJ$213,BL$1) -> 603.54 | BM25: =VLOOKUP(DropDownList!$B$47,CntyQuery!$A$170:$FJ$213,BM$1) -> n | BN25: =VLOOKUP(DropDownList!$B$47,CntyQuery!$A$170:$FJ$213,BN$1) -> n | BO25: =VLOOKUP(DropDownList!$B$47,CntyQuery!$A$170:$FJ$213,BO$1) -> 87 | BP25: =VLOOKUP(DropDownList!$B$47,CntyQuery!$A$170:$FJ$213,BP$1) -> 61 | BQ25: =VLOOKUP(DropDownList!$B$47,CntyQuery!$A$170:$FJ$213,BQ$1) -> 7 | BR25: =VLOOKUP(DropDownList!$B$47,CntyQuery!$A$170:$FJ$213,BR$1) -> 54 | BS25: =VLOOKUP(DropDownList!$B$47,CntyQuery!$A$170:$FJ$213,BS$1) -> 604.86 | BT25: =VLOOKUP(DropDownList!$B$47,CntyQuery!$A$170:$FJ$213,BT$1) -> 735.62 | BU25: =VLOOKUP(DropDownList!$B$47,CntyQuery!$A$170:$FJ$213,BU$1) -> 593.11 | BV25: =VLOOKUP(DropDownList!$B$47,CntyQuery!$A$170:$FJ$213,BV$1) -> 753.21 | BW25: =VLOOKUP(DropDownList!$B$47,CntyQuery!$A$170:$FJ$213,BW$1) -> 97 | BX25: =VLOOKUP(DropDownList!$B$47,CntyQuery!$A$170:$FJ$213,BX$1) -> 73 | BY25: =VLOOKUP(DropDownList!$B$47,CntyQuery!$A$170:$FJ$213,BY$1) -> 14 | BZ25: =VLOOKUP(DropDownList!$B$47,CntyQuery!$A$170:$FJ$213,BZ$1) -> 59 | CA25: =VLOOKUP(DropDownList!$B$47,CntyQuery!$A$170:$FJ$213,CA$1) -> 615.14 | CB25: =VLOOKUP(DropDownList!$B$47,CntyQuery!$A$170:$FJ$213,CB$1) -> 705.85 | CC25: =VLOOKUP(DropDownList!$B$47,CntyQuery!$A$170:$FJ$213,CC$1) -> 596.76 | CD25: =VLOOKUP(DropDownList!$B$47,CntyQuery!$A$170:$FJ$213,CD$1) -> 731.28 | CE25: =VLOOKUP(DropDownList!$B$47,CntyQuery!$A$170:$FJ$213,CE$1) -> 94 | CF25: =VLOOKUP(DropDownList!$B$47,CntyQuery!$A$170:$FJ$213,CF$1) -> 68 | CG25: =VLOOKUP(DropDownList!$B$47,CntyQuery!$A$170:$FJ$213,CG$1) -> 15 | CH25: =VLOOKUP(DropDownList!$B$47,CntyQuery!$A$170:$FJ$213,CH$1) -> 53 | CI25: =VLOOKUP(DropDownList!$B$47,CntyQuery!$A$170:$FJ$213,CI$1) -> 591.66 | CJ25: =VLOOKUP(DropDownList!$B$47,CntyQuery!$A$170:$FJ$213,CJ$1) -> 692.45 | CK25: =VLOOKUP(DropDownList!$B$47,CntyQuery!$A$170:$FJ$213,CK$1) -> 577.03 | CL25: =VLOOKUP(DropDownList!$B$47,CntyQuery!$A$170:$FJ$213,CL$1) -> 725.89 | CM25: =VLOOKUP(DropDownList!$B$47,CntyQuery!$A$170:$FJ$213,CM$1) -> 95 | CN25: =VLOOKUP(DropDownList!$B$47,CntyQuery!$A$170:$FJ$213,CN$1) -> 74 | CO25: =VLOOKUP(DropDownList!$B$47,CntyQuery!$A$170:$FJ$213,CO$1) -> 14 | CP25: =VLOOKUP(DropDownList!$B$47,CntyQuery!$A$170:$FJ$213,CP$1) -> 60 | CQ25: =VLOOKUP(DropDownList!$B$47,CntyQuery!$A$170:$FJ$213,CQ$1) -> 647.63 | CR25: =VLOOKUP(DropDownList!$B$47,CntyQuery!$A$170:$FJ$213,CR$1) -> 732.4 | CS25: =VLOOKUP(DropDownList!$B$47,CntyQuery!$A$170:$FJ$213,CS$1) -> 576.71 | CT25: =VLOOKUP(DropDownList!$B$47,CntyQuery!$A$170:$FJ$213,CT$1) -> 769.06 | CU25: =VLOOKUP(DropDownList!$B$47,CntyQuery!$A$170:$FJ$213,CU$1) -> 100 | CV25: =VLOOKUP(DropDownList!$B$47,CntyQuery!$A$170:$FJ$213,CV$1) -> 73 | CW25: =VLOOKUP(DropDownList!$B$47,CntyQuery!$A$170:$FJ$213,CW$1) -> 15 | CX25: =VLOOKUP(DropDownList!$B$47,CntyQuery!$A$170:$FJ$213,CX$1) -> 58 | CY25: =VLOOKUP(DropDownList!$B$47,CntyQuery!$A$170:$FJ$213,CY$1) -> 660.27 | CZ25: =VLOOKUP(DropDownList!$B$47,CntyQuery!$A$170:$FJ$213,CZ$1) -> 778.35 | DA25: =VLOOKUP(DropDownList!$B$47,CntyQuery!$A$170:$FJ$213,DA$1) -> 682.89 | DB25: =VLOOKUP(DropDownList!$B$47,CntyQuery!$A$170:$FJ$213,DB$1) -> 803.73 | DC25: =VLOOKUP(DropDownList!$B$47,CntyQuery!$A$170:$FJ$213,DC$1) -> 98 | DD25: =VLOOKUP(DropDownList!$B$47,CntyQuery!$A$170:$FJ$213,DD$1) -> 70 | DE25: =VLOOKUP(DropDownList!$B$47,CntyQuery!$A$170:$FJ$213,DE$1) -> 14 | DF25: =VLOOKUP(DropDownList!$B$47,CntyQuery!$A$170:$FJ$213,DF$1) -> 57 | DG25: =VLOOKUP(DropDownList!$B$47,CntyQuery!$A$170:$FJ$213,DG$1) -> 655.68 | DH25: =VLOOKUP(DropDownList!$B$47,CntyQuery!$A$170:$FJ$213,DH$1) -> 781.58 | DI25: =VLOOKUP(DropDownList!$B$47,CntyQuery!$A$170:$FJ$213,DI$1) -> 636.75 | DJ25: =VLOOKUP(DropDownList!$B$47,CntyQuery!$A$170:$FJ$213,DJ$1) -> 816.4 | DK25: =VLOOKUP(DropDownList!$B$47,CntyQuery!$A$170:$FJ$213,DK$1) -> 90 | DL25: =VLOOKUP(DropDownList!$B$47,CntyQuery!$A$170:$FJ$213,DL$1) -> 67 | DM25: =VLOOKUP(DropDownList!$B$47,CntyQuery!$A$170:$FJ$213,DM$1) -> 16 | DN25: =VLOOKUP(DropDownList!$B$47,CntyQuery!$A$170:$FJ$213,DN$1) -> 51 | DO25: =VLOOKUP(DropDownList!$B$47,CntyQuery!$A$170:$FJ$213,DO$1) -> 660.23 | DP25: =VLOOKUP(DropDownList!$B$47,CntyQuery!$A$170:$FJ$213,DP$1) -> 757.82 | DQ25: =VLOOKUP(DropDownList!$B$47,CntyQuery!$A$170:$FJ$213,DQ$1) -> 488.69 | DR25: =VLOOKUP(DropDownList!$B$47,CntyQuery!$A$170:$FJ$213,DR$1) -> 842.86 | DS25: =VLOOKUP(DropDownList!$B$47,CntyQuery!$A$170:$FJ$213,DS$1) -> 99 | DT25: =VLOOKUP(DropDownList!$B$47,CntyQuery!$A$170:$FJ$213,DT$1) -> 74 | DU25: =VLOOKUP(DropDownList!$B$47,CntyQuery!$A$170:$FJ$213,DU$1) -> 15 | DV25: =VLOOKUP(DropDownList!$B$47,CntyQuery!$A$170:$FJ$213,DV$1) -> 59 | DW25: =VLOOKUP(DropDownList!$B$47,CntyQuery!$A$170:$FJ$213,DW$1) -> 647.94 | DX25: =VLOOKUP(DropDownList!$B$47,CntyQuery!$A$170:$FJ$213,DX$1) -> 741.21 | DY25: =VLOOKUP(DropDownList!$B$47,CntyQuery!$A$170:$FJ$213,DY$1) -> 502.63 | DZ25: =VLOOKUP(DropDownList!$B$47,CntyQuery!$A$170:$FJ$213,DZ$1) -> 801.53 | EA25: =VLOOKUP(DropDownList!$B$47,CntyQuery!$A$170:$FJ$213,EA$1) -> 107 | EB25: =VLOOKUP(DropDownList!$B$47,CntyQuery!$A$170:$FJ$213,EB$1) -> 81 | EC25: =VLOOKUP(DropDownList!$B$47,CntyQuery!$A$170:$FJ$213,EC$1) -> n | ED25: =VLOOKUP(DropDownList!$B$47,CntyQuery!$A$170:$FJ$213,ED$1) -> n | EE25: =VLOOKUP(DropDownList!$B$47,CntyQuery!$A$170:$FJ$213,EE$1) -> 558.16 | EF25: =VLOOKUP(DropDownList!$B$47,CntyQuery!$A$170:$FJ$213,EF$1) -> 616.09 | EG25: =VLOOKUP(DropDownList!$B$47,CntyQuery!$A$170:$FJ$213,EG$1) -> n | EH25: =VLOOKUP(DropDownList!$B$47,CntyQuery!$A$170:$FJ$213,EH$1) -> n | EI25: =VLOOKUP(DropDownList!$B$47,CntyQuery!$A$170:$FJ$213,EI$1) -> 120 | EJ25: =VLOOKUP(DropDownList!$B$47,CntyQuery!$A$170:$FJ$213,EJ$1) -> 97 | EK25: =VLOOKUP(DropDownList!$B$47,CntyQuery!$A$170:$FJ$213,EK$1) -> n | EL25: =VLOOKUP(DropDownList!$B$47,CntyQuery!$A$170:$FJ$213,EL$1) -> n | EM25: =VLOOKUP(DropDownList!$B$47,CntyQuery!$A$170:$FJ$213,EM$1) -> 492.05 | EN25: =VLOOKUP(DropDownList!$B$47,CntyQuery!$A$170:$FJ$213,EN$1) -> 511.84 | EO25: =VLOOKUP(DropDownList!$B$47,CntyQuery!$A$170:$FJ$213,EO$1) -> n | EP25: =VLOOKUP(DropDownList!$B$47,CntyQuery!$A$170:$FJ$213,EP$1) -> n | EQ25: =VLOOKUP(DropDownList!$B$47,CntyQuery!$A$170:$FJ$213,EQ$1) -> 100 | ER25: =VLOOKUP(DropDownList!$B$47,CntyQuery!$A$170:$FJ$213,ER$1) -> 75 | ES25: =VLOOKUP(DropDownList!$B$47,CntyQuery!$A$170:$FJ$213,ES$1) -> 25 | ET25: =VLOOKUP(DropDownList!$B$47,CntyQuery!$A$170:$FJ$213,ET$1) -> n | EU25: =VLOOKUP(DropDownList!$B$47,CntyQuery!$A$170:$FJ$213,EU$1) -> n | EV25: =VLOOKUP(DropDownList!$B$47,CntyQuery!$A$170:$FJ$213,EV$1) -> 602.32 | EW25: =VLOOKUP(DropDownList!$B$47,CntyQuery!$A$170:$FJ$213,EW$1) -> 675.4 | EX25: =VLOOKUP(DropDownList!$B$47,CntyQuery!$A$170:$FJ$213,EX$1) -> 382.32 | EY25: =VLOOKUP(DropDownList!$B$47,CntyQuery!$A$170:$FJ$213,EY$1) -> n | EZ25: =VLOOKUP(DropDownList!$B$47,CntyQuery!$A$170:$FJ$213,EZ$1) -> n | FA25: =VLOOKUP(DropDownList!$B$47,CntyQuery!$A$170:$FJ$213,FA$1) -> 60
M32: =IF((CntyDataLink!$BL$25)="n",NA(),IF(VALUE(CntyDataLink!$BL$25)="",NA(),VALUE(CntyDataLink!$BL$25))) -> 603.54
A33: Census 2000 - Query Name: TownAllQuery3 | B33: 2 | C33: =B33+1 -> 3 | D33: =C33+1 -> 4 | E33: 5 | F33: 6 | G33: 7 | H33: 8 | I33: 9 | J33: 10 | K33: 11 | L33: 12 | M33: 13 | N33: 14 | O33: 15 | P33: 16 | Q33: 17 | R33: 18 | S33: 19 | T33: 20 | U33: 21 | V33: 22 | W33: 23 | X33: 24 | Y33: 25 | Z33: 26 | AA33: 27 | AB33: 28 | AC33: 29 | AD33: 30 | AE33: 31 | AF33: 32 | AG33: 33 | AH33: 34 | AI33: 35 | AJ33: 36 | AK33: 37 | AL33: 38 | AM33: 39 | AN33: 40 | AO33: 41 | AP33: 42 | AQ33: 43 | AR33: 44 | AS33: 45 | AT33: 46 | AU33: 47 | AV33: 48 | AW33: 49 | AX33: 50 | AY33: 51 | AZ33: 52 | BA33: 53 | BB33: 54 | BC33: 55 | BD33: 56 | BE33: 57 | BF33: 58 | BG33: 59 | BH33: 60 | BI33: 61 | BJ33: 62 | BK33: 63 | BL33: 64 | BM33: 65 | BN33: 66 | BO33: 67 | BP33: =BO33+1 -> 68 | BQ33: 69 | BR33: 70 | BS33: 71 | BT33: 72 | BU33: 73 | BV33: 74 | BW33: 75 | BX33: 76 | BY33: 77 | BZ33: 78 | CA33: 79 | CB33: 80 | CC33: 81 | CD33: 82 | CE33: 83 | CF33: 84 | CG33: 85 | CH33: 86 | CI33: 87 | CJ33: 88 | CK33: 89 | CL33: 90 | CM33: 91 | CN33: 92 | CO33: 93 | CP33: 94 | CQ33: 95 | CR33: 96 | CS33: 97 | CT33: 98 | CU33: 99 | CV33: 100 | CW33: 101 | CX33: 102
A34: NAME | B34: COUNTY | C34: LOGRECNO | D34: COUSUB | E34: TRACT | F34: AREALAND | G34: AREAWATR | H34: POP100 | I34: HU100 | J34: 2000Population | K34: PopOfOneRace | L34: PopWhite | M34: PopBlack | N34: PopAmIndian | O34: PopAsian | P34: PopHawaiian | Q34: PopOtherRace | R34: Pop2orMoreRaces | S34: PopHispanicLatino | T34: PopNotHispanicLatino | U34: PopMale | V34: PopMale<15 | W34: PopMale15to24 | X34: PopMale25to34 | Y34: PopMale35to44 | Z34: PopMale45to54 | AA34: PopMale55to64 | AB34: PopMale65to74 | AC34: PopMale75to84 | AD34: PopMale85andOver | AE34: PopFemale | AF34: PopFemale<15 | AG34: PopFemale15to24 | AH34: PopFemale25to34 | AI34: PopFemale35t44 | AJ34: PopFemale45to54 | AK34: PopFemale55to64 | AL34: PopFemale65to74 | AM34: PopFemale75to84 | AN34: PopFemale85andOver | AO34: Households2000 | AP34: PopInHH | AQ34: AvgHHSize | AR34: HHs1Person | AS34: HHs2orMorePerson | AT34: HHsFamily | AU34: HHMarriedCoupleFam | AV34: HHSingleParentFam | AW34: HHsNonFamily | AX34: Families | AY34: PopInFam | AZ34: AvgFamSize | BA34: TotHsUnits | BB34: OccHsUnits | BC34: OwnerOccHU | BD34: RenterOccHU | BE34: VctHsUnits | BF34: VctHUForRent | BG34: VctHUForSale | BH34: VctHUSeasonal | BI34: PopInOccHU | BJ34: PopInOwnOccHU | BK34: PopInRntOccHU | BL34: AvgHHSize2 | BM34: AvgHHSizOwnOcc | BN34: AvgHHSizRntOcc | BO34: OwnOccWhtHsHldr | BP34: OwnOccBlkHsHldr | BQ34: OwnOccAmIHsHldr | BR34: OwnOccAsnHsHldr | BS34: OwnOccPIsHsHldr | BT34: OwnOccORHsHldr | BU34: OwnOcc2RcHsHldr | BV34: RntOccWhtHsHldr | BW34: RntOccBlkHsHldr | BX34: RntOccAmIHsHldr | BY34: RntOccAsnHsHldr | BZ34: RntOccPIsHsHldr | CA34: RntOccORHsHldr | CB34: RntOcc2RcHsHldr | CC34: OwnOccHH15to24 | CD34: OwnOccHH25to34 | CE34: OwnOccHH35to44 | CF34: OwnOccHH45to54 | CG34: OwnOccHH55to64 | CH34: OwnOccHH65to74 | CI34: OwnOccHH75to84 | CJ34: OwnOccHH85Over | CK34: RntOccHH15to24 | CL34: RntOccHH25to34 | CM34: RntOccHH35to44 | CN34: RntOccHH45to54 | CO34: RntOccHH55to64 | CP34: RntOccHH65to74 | CQ34: RntOccHH75to84 | CR34: RntOccHH85Over | CS34: P27TotalPop | CT34: P27PopInHseHlds | CU34: P27PopInGrpQtrs | CV34: Median Age Total | CW34: Median Age (Male) | CX34: Median Age (Female)
A35: =VLOOKUP(DropDownList!$B$47,CntyQryCensus!$A$4:$CW$46,A$1) -> Alexandria | B35: =VLOOKUP(DropDownList!$B$47,CntyQryCensus!$A$4:$CW$46,B$1) -> 009 | C35: =VLOOKUP(DropDownList!$B$47,CntyQryCensus!$A$4:$CW$46,C$1) -> 0010322 | D35: =VLOOKUP(DropDownList!$B$47,CntyQryCensus!$A$4:$CW$46,D$1) -> 00580 | E35: =VLOOKUP(DropDownList!$B$47,CntyQryCensus!$A$4:$CW$46,E$1) ->  | F35: =VLOOKUP(DropDownList!$B$47,CntyQryCensus!$A$4:$CW$46,F$1) -> 111366295 | G35: =VLOOKUP(DropDownList!$B$47,CntyQryCensus!$A$4:$CW$46,G$1) -> 248399 | H35: =VLOOKUP(DropDownList!$B$47,CntyQryCensus!$A$4:$CW$46,H$1) -> 1329 | I35: =VLOOKUP(DropDownList!$B$47,CntyQryCensus!$A$4:$CW$46,I$1) -> 783 | J35: =VLOOKUP(DropDownList!$B$47,CntyQryCensus!$A$4:$CW$46,J$1) -> 1329 | K35: =VLOOKUP(DropDownList!$B$47,CntyQryCensus!$A$4:$CW$46,K$1) -> 1310 | L35: =VLOOKUP(DropDownList!$B$47,CntyQryCensus!$A$4:$CW$46,L$1) -> 1300 | M35: =VLOOKUP(DropDownList!$B$47,CntyQryCensus!$A$4:$CW$46,M$1) -> 1 | N35: =VLOOKUP(DropDownList!$B$47,CntyQryCensus!$A$4:$CW$46,N$1) -> 4 | O35: =VLOOKUP(DropDownList!$B$47,CntyQryCensus!$A$4:$CW$46,O$1) -> 5 | P35: =VLOOKUP(DropDownList!$B$47,CntyQryCensus!$A$4:$CW$46,P$1) -> 0 | Q35: =VLOOKUP(DropDownList!$B$47,CntyQryCensus!$A$4:$CW$46,Q$1) -> 0 | R35: =VLOOKUP(DropDownList!$B$47,CntyQryCensus!$A$4:$CW$46,R$1) -> 19 | S35: =VLOOKUP(DropDownList!$B$47,CntyQryCensus!$A$4:$CW$46,S$1) -> 3 | T35: =VLOOKUP(DropDownList!$B$47,CntyQryCensus!$A$4:$CW$46,T$1) -> 1326 | U35: =VLOOKUP(DropDownList!$B$47,CntyQryCensus!$A$4:$CW$46,U$1) -> 662 | V35: =VLOOKUP(DropDownList!$B$47,CntyQryCensus!$A$4:$CW$46,V$1) -> 129 | W35: =VLOOKUP(DropDownList!$B$47,CntyQryCensus!$A$4:$CW$46,W$1) -> 70 | X35: =VLOOKUP(DropDownList!$B$47,CntyQryCensus!$A$4:$CW$46,X$1) -> 77 | Y35: =VLOOKUP(DropDownList!$B$47,CntyQryCensus!$A$4:$CW$46,Y$1) -> 122 | Z35: =VLOOKUP(DropDownList!$B$47,CntyQryCensus!$A$4:$CW$46,Z$1) -> 116 | AA35: =VLOOKUP(DropDownList!$B$47,CntyQryCensus!$A$4:$CW$46,AA$1) -> 70 | AB35: =VLOOKUP(DropDownList!$B$47,CntyQryCensus!$A$4:$CW$46,AB$1) -> 46 | AC35: =VLOOKUP(DropDownList!$B$47,CntyQryCensus!$A$4:$CW$46,AC$1) -> 31 | AD35: =VLOOKUP(DropDownList!$B$47,CntyQryCensus!$A$4:$CW$46,AD$1) -> 1 | AE35: =VLOOKUP(DropDownList!$B$47,CntyQryCensus!$A$4:$CW$46,AE$1) -> 667 | AF35: =VLOOKUP(DropDownList!$B$47,CntyQryCensus!$A$4:$CW$46,AF$1) -> 138 | AG35: =VLOOKUP(DropDownList!$B$47,CntyQryCensus!$A$4:$CW$46,AG$1) -> 58 | AH35: =VLOOKUP(DropDownList!$B$47,CntyQryCensus!$A$4:$CW$46,AH$1) -> 75 | AI35: =VLOOKUP(DropDownList!$B$47,CntyQryCensus!$A$4:$CW$46,AI$1) -> 138 | AJ35: =VLOOKUP(DropDownList!$B$47,CntyQryCensus!$A$4:$CW$46,AJ$1) -> 115 | AK35: =VLOOKUP(DropDownList!$B$47,CntyQryCensus!$A$4:$CW$46,AK$1) -> 71 | AL35: =VLOOKUP(DropDownList!$B$47,CntyQryCensus!$A$4:$CW$46,AL$1) -> 47 | AM35: =VLOOKUP(DropDownList!$B$47,CntyQryCensus!$A$4:$CW$46,AM$1) -> 17 | AN35: =VLOOKUP(DropDownList!$B$47,CntyQryCensus!$A$4:$CW$46,AN$1) -> 8 | AO35: =VLOOKUP(DropDownList!$B$47,CntyQryCensus!$A$4:$CW$46,AO$1) -> 504 | AP35: =VLOOKUP(DropDownList!$B$47,CntyQryCensus!$A$4:$CW$46,AP$1) -> 1329 | AQ35: =VLOOKUP(DropDownList!$B$47,CntyQryCensus!$A$4:$CW$46,AQ$1) -> 2.64 | AR35: =VLOOKUP(DropDownList!$B$47,CntyQryCensus!$A$4:$CW$46,AR$1) -> 85 | AS35: =VLOOKUP(DropDownList!$B$47,CntyQryCensus!$A$4:$CW$46,AS$1) -> 419 | AT35: =VLOOKUP(DropDownList!$B$47,CntyQryCensus!$A$4:$CW$46,AT$1) -> 386 | AU35: =VLOOKUP(DropDownList!$B$47,CntyQryCensus!$A$4:$CW$46,AU$1) -> 326 | AV35: =VLOOKUP(DropDownList!$B$47,CntyQryCensus!$A$4:$CW$46,AV$1) -> 60 | AW35: =VLOOKUP(DropDownList!$B$47,CntyQryCensus!$A$4:$CW$46,AW$1) -> 33 | AX35: =VLOOKUP(DropDownList!$B$47,CntyQryCensus!$A$4:$CW$46,AX$1) -> 386 | AY35: =VLOOKUP(DropDownList!$B$47,CntyQryCensus!$A$4:$CW$46,AY$1) -> 1133 | AZ35: =VLOOKUP(DropDownList!$B$47,CntyQryCensus!$A$4:$CW$46,AZ$1) -> 2.94 | BA35: =VLOOKUP(DropDownList!$B$47,CntyQryCensus!$A$4:$CW$46,BA$1) -> 783 | BB35: =VLOOKUP(DropDownList!$B$47,CntyQryCensus!$A$4:$CW$46,BB$1) -> 504 | BC35: =VLOOKUP(DropDownList!$B$47,CntyQryCensus!$A$4:$CW$46,BC$1) -> 436 | BD35: =VLOOKUP(DropDownList!$B$47,CntyQryCensus!$A$4:$CW$46,BD$1) -> 68 | BE35: =VLOOKUP(DropDownList!$B$47,CntyQryCensus!$A$4:$CW$46,BE$1) -> 279 | BF35: =VLOOKUP(DropDownList!$B$47,CntyQryCensus!$A$4:$CW$46,BF$1) -> 1 | BG35: =VLOOKUP(DropDownList!$B$47,CntyQryCensus!$A$4:$CW$46,BG$1) -> 10 | BH35: =VLOOKUP(DropDownList!$B$47,CntyQryCensus!$A$4:$CW$46,BH$1) -> 260 | BI35: =VLOOKUP(DropDownList!$B$47,CntyQryCensus!$A$4:$CW$46,BI$1) -> 1329 | BJ35: =VLOOKUP(DropDownList!$B$47,CntyQryCensus!$A$4:$CW$46,BJ$1) -> 1149 | BK35: =VLOOKUP(DropDownList!$B$47,CntyQryCensus!$A$4:$CW$46,BK$1) -> 180 | BL35: =VLOOKUP(DropDownList!$B$47,CntyQryCensus!$A$4:$CW$46,BL$1) -> 2.64 | BM35: =VLOOKUP(DropDownList!$B$47,CntyQryCensus!$A$4:$CW$46,BM$1) -> 2.64 | BN35: =VLOOKUP(DropDownList!$B$47,CntyQryCensus!$A$4:$CW$46,BN$1) -> 2.65 | BO35: =VLOOKUP(DropDownList!$B$47,CntyQryCensus!$A$4:$CW$46,BO$1) -> 428 | BP35: =VLOOKUP(DropDownList!$B$47,CntyQryCensus!$A$4:$CW$46,BP$1) -> 1 | BQ35: =VLOOKUP(DropDownList!$B$47,CntyQryCensus!$A$4:$CW$46,BQ$1) -> 1 | BR35: =VLOOKUP(DropDownList!$B$47,CntyQryCensus!$A$4:$CW$46,BR$1) -> 1 | BS35: =VLOOKUP(DropDownList!$B$47,CntyQryCensus!$A$4:$CW$46,BS$1) -> 0 | BT35: =VLOOKUP(DropDownList!$B$47,CntyQryCensus!$A$4:$CW$46,BT$1) -> 0 | BU35: =VLOOKUP(DropDownList!$B$47,CntyQryCensus!$A$4:$CW$46,BU$1) -> 5 | BV35: =VLOOKUP(DropDownList!$B$47,CntyQryCensus!$A$4:$CW$46,BV$1) -> 68 | BW35: =VLOOKUP(DropDownList!$B$47,CntyQryCensus!$A$4:$CW$46,BW$1) -> 0 | BX35: =VLOOKUP(DropDownList!$B$47,CntyQryCensus!$A$4:$CW$46,BX$1) -> 0 | BY35: =VLOOKUP(DropDownList!$B$47,CntyQryCensus!$A$4:$CW$46,BY$1) -> 0 | BZ35: =VLOOKUP(DropDownList!$B$47,CntyQryCensus!$A$4:$CW$46,BZ$1) -> 0 | CA35: =VLOOKUP(DropDownList!$B$47,CntyQryCensus!$A$4:$CW$46,CA$1) -> 0 | CB35: =VLOOKUP(DropDownList!$B$47,CntyQryCensus!$A$4:$CW$46,CB$1) -> 0 | CC35: =VLOOKUP(DropDownList!$B$47,CntyQryCensus!$A$4:$CW$46,CC$1) -> 3 | CD35: =VLOOKUP(DropDownList!$B$47,CntyQryCensus!$A$4:$CW$46,CD$1) -> 48 | CE35: =VLOOKUP(DropDownList!$B$47,CntyQryCensus!$A$4:$CW$46,CE$1) -> 118 | CF35: =VLOOKUP(DropDownList!$B$47,CntyQryCensus!$A$4:$CW$46,CF$1) -> 110 | CG35: =VLOOKUP(DropDownList!$B$47,CntyQryCensus!$A$4:$CW$46,CG$1) -> 71 | CH35: =VLOOKUP(DropDownList!$B$47,CntyQryCensus!$A$4:$CW$46,CH$1) -> 52 | CI35: =VLOOKUP(DropDownList!$B$47,CntyQryCensus!$A$4:$CW$46,CI$1) -> 30 | CJ35: =VLOOKUP(DropDownList!$B$47,CntyQryCensus!$A$4:$CW$46,CJ$1) -> 4 | CK35: =VLOOKUP(DropDownList!$B$47,CntyQryCensus!$A$4:$CW$46,CK$1) -> 5 | CL35: =VLOOKUP(DropDownList!$B$47,CntyQryCensus!$A$4:$CW$46,CL$1) -> 23 | CM35: =VLOOKUP(DropDownList!$B$47,CntyQryCensus!$A$4:$CW$46,CM$1) -> 14 | CN35: =VLOOKUP(DropDownList!$B$47,CntyQryCensus!$A$4:$CW$46,CN$1) -> 14 | CO35: =VLOOKUP(DropDownList!$B$47,CntyQryCensus!$A$4:$CW$46,CO$1) -> 2 | CP35: =VLOOKUP(DropDownList!$B$47,CntyQryCensus!$A$4:$CW$46,CP$1) -> 4 | CQ35: =VLOOKUP(DropDownList!$B$47,CntyQryCensus!$A$4:$CW$46,CQ$1) -> 6 | CR35: =VLOOKUP(DropDownList!$B$47,CntyQryCensus!$A$4:$CW$46,CR$1) -> 0 | CS35: =VLOOKUP(DropDownList!$B$47,CntyQryCensus!$A$4:$CW$46,CS$1) -> 1329 | CT35: =VLOOKUP(DropDownList!$B$47,CntyQryCensus!$A$4:$CW$46,CT$1) -> 1329 | CU35: =VLOOKUP(DropDownList!$B$47,CntyQryCensus!$A$4:$CW$46,CU$1) -> 0 | CV35: =VLOOKUP(DropDownList!$B$47,CntyQryCensus!$A$4:$CW$46,CV$1) -> 40.3 | CW35: =VLOOKUP(DropDownList!$B$47,CntyQryCensus!$A$4:$CW$46,CW$1) -> 40.6 | CX35: =VLOOKUP(DropDownList!$B$47,CntyQryCensus!$A$4:$CW$46,CX$1) -> 
A38: Census 2000 DemoProfile Sample Data Tables 2&3 - DPTab23TownQry
A39: NAME | B39: COUSUB | C39: AREANAME | D39: PopInSchool | E39: Preschool | F39: Kindergarten | G39: Elementary | H39: HighSchool | I39: College | J39: Pop25andOver | K39: HighSchoolGrad | L39: SomeCollege | M39: AssocDegree | N39: BachelDegree | O39: GradDegree | P39: HSGradorHigher | Q39: CollegeGradorHigher | R39: Pop5to20yrs | S39: Pop5to20wDis | T39: Pop21to64 | U39: Pop21to64wDis | V39: Pop65over | W39: Pop65overwDis | X39: Pop5yrsOver | Y39: SameHUin95 | Z39: DiffHUinUSin95 | AA39: HUinSameCountyin95 | AB39: HUinSameStatein95 | AC39: TotalPop | AD39: NativePop | AE39: NatPopBornUS | AF39: NatPopBornInStatRes | AG39: NatPopBornDiffState | AH39: NatPopBornOutUS | AI39: FornBornPop | AJ39: FornPopEnt90to00 | AK39: FornPopNatCit | AL39: FornPopNotCit | AM39: Households | AN39: HHIncLessThn10k | AO39: HHInc10to15K | AP39: HHInc15to25K | AQ39: HHInc25to35K | AR39: HHInc35to50K | AS39: HHInc50to75K | AT39: HHInc75to100K | AU39: HHInc100to150K | AV39: HHInc150to200K | AW39: HHIncOver200K | AX39: MedianHHInc | AY39: HHwithPubAssistInc | AZ39: MeanPubAssist | BA39: FamilyHH | BB39: FHHIncLessThn10k | BC39: FHHInc10to15K | BD39: FHHInc15to25K | BE39: FHHInc25to35K | BF39: FHHInc35to50K | BG39: FHHInc50to75K | BH39: FHHInc75to100K | BI39: FHHInc100to150K | BJ39: FHHInc150to200K | BK39: FHHIncOver200K | BL39: MedianFHHInc | BM39: PerCapitaInc | BN39: PovStatFamilies | BO39: PovStatFHHwChilUnd18 | BP39: PovStatFHHwChilUnd5 | BQ39: PovStFmalHH | BR39: DP3088 | BS39: DP3089 | BT39: PovStatIndiv | BU39: PovStatIndiv18yrOver | BV39: PovStatIndiv65yrOver | BW39: DP3093 | BX39: DP3094 | BY39: DP3095
A40: =VLOOKUP(DropDownList!$B$47,CntyQryCensus!$A$54:$BY$96,A$1) -> Alexandria | B40: =VLOOKUP(DropDownList!$B$47,CntyQryCensus!$A$54:$BY$96,B$1) -> 00580 | C40: =VLOOKUP(DropDownList!$B$47,CntyQryCensus!$A$54:$BY$96,C$1) -> Alexandria town, Grafton County, New Hampshire | D40: =VLOOKUP(DropDownList!$B$47,CntyQryCensus!$A$54:$BY$96,D$1) -> 315 | E40: =VLOOKUP(DropDownList!$B$47,CntyQryCensus!$A$54:$BY$96,E$1) -> 20 | F40: =VLOOKUP(DropDownList!$B$47,CntyQryCensus!$A$54:$BY$96,F$1) -> 13 | G40: =VLOOKUP(DropDownList!$B$47,CntyQryCensus!$A$54:$BY$96,G$1) -> 156 | H40: =VLOOKUP(DropDownList!$B$47,CntyQryCensus!$A$54:$BY$96,H$1) -> 80 | I40: =VLOOKUP(DropDownList!$B$47,CntyQryCensus!$A$54:$BY$96,I$1) -> 46 | J40: =VLOOKUP(DropDownList!$B$47,CntyQryCensus!$A$54:$BY$96,J$1) -> 927 | K40: =VLOOKUP(DropDownList!$B$47,CntyQryCensus!$A$54:$BY$96,K$1) -> 330 | L40: =VLOOKUP(DropDownList!$B$47,CntyQryCensus!$A$54:$BY$96,L$1) -> 211 | M40: =VLOOKUP(DropDownList!$B$47,CntyQryCensus!$A$54:$BY$96,M$1) -> 68 | N40: =VLOOKUP(DropDownList!$B$47,CntyQryCensus!$A$54:$BY$96,N$1) -> 117 | O40: =VLOOKUP(DropDownList!$B$47,CntyQryCensus!$A$54:$BY$96,O$1) -> 54 | P40: =VLOOKUP(DropDownList!$B$47,CntyQryCensus!$A$54:$BY$96,P$1) -> 780 | Q40: =VLOOKUP(DropDownList!$B$47,CntyQryCensus!$A$54:$BY$96,Q$1) -> 171 | R40: =VLOOKUP(DropDownList!$B$47,CntyQryCensus!$A$54:$BY$96,R$1) -> 299 | S40: =VLOOKUP(DropDownList!$B$47,CntyQryCensus!$A$54:$BY$96,S$1) -> 32 | T40: =VLOOKUP(DropDownList!$B$47,CntyQryCensus!$A$54:$BY$96,T$1) -> 819 | U40: =VLOOKUP(DropDownList!$B$47,CntyQryCensus!$A$54:$BY$96,U$1) -> 241 | V40: =VLOOKUP(DropDownList!$B$47,CntyQryCensus!$A$54:$BY$96,V$1) -> 139 | W40: =VLOOKUP(DropDownList!$B$47,CntyQryCensus!$A$54:$BY$96,W$1) -> 53 | X40: =VLOOKUP(DropDownList!$B$47,CntyQryCensus!$A$54:$BY$96,X$1) -> 1257 | Y40: =VLOOKUP(DropDownList!$B$47,CntyQryCensus!$A$54:$BY$96,Y$1) -> 752 | Z40: =VLOOKUP(DropDownList!$B$47,CntyQryCensus!$A$54:$BY$96,Z$1) -> 493 | AA40: =VLOOKUP(DropDownList!$B$47,CntyQryCensus!$A$54:$BY$96,AA$1) -> 194 | AB40: =VLOOKUP(DropDownList!$B$47,CntyQryCensus!$A$54:$BY$96,AB$1) -> 299 | AC40: =VLOOKUP(DropDownList!$B$47,CntyQryCensus!$A$54:$BY$96,AC$1) -> 1329 | AD40: =VLOOKUP(DropDownList!$B$47,CntyQryCensus!$A$54:$BY$96,AD$1) -> 1296 | AE40: =VLOOKUP(DropDownList!$B$47,CntyQryCensus!$A$54:$BY$96,AE$1) -> 1284 | AF40: =VLOOKUP(DropDownList!$B$47,CntyQryCensus!$A$54:$BY$96,AF$1) -> 695 | AG40: =VLOOKUP(DropDownList!$B$47,CntyQryCensus!$A$54:$BY$96,AG$1) -> 589 | AH40: =VLOOKUP(DropDownList!$B$47,CntyQryCensus!$A$54:$BY$96,AH$1) -> 12 | AI40: =VLOOKUP(DropDownList!$B$47,CntyQryCensus!$A$54:$BY$96,AI$1) -> 33 | AJ40: =VLOOKUP(DropDownList!$B$47,CntyQryCensus!$A$54:$BY$96,AJ$1) -> 9 | AK40: =VLOOKUP(DropDownList!$B$47,CntyQryCensus!$A$54:$BY$96,AK$1) -> 20 | AL40: =VLOOKUP(DropDownList!$B$47,CntyQryCensus!$A$54:$BY$96,AL$1) -> 13 | AM40: =VLOOKUP(DropDownList!$B$47,CntyQryCensus!$A$54:$BY$96,AM$1) -> 502 | AN40: =VLOOKUP(DropDownList!$B$47,CntyQryCensus!$A$54:$BY$96,AN$1) -> 15 | AO40: =VLOOKUP(DropDownList!$B$47,CntyQryCensus!$A$54:$BY$96,AO$1) -> 25 | AP40: =VLOOKUP(DropDownList!$B$47,CntyQryCensus!$A$54:$BY$96,AP$1) -> 65 | AQ40: =VLOOKUP(DropDownList!$B$47,CntyQryCensus!$A$54:$BY$96,AQ$1) -> 89 | AR40: =VLOOKUP(DropDownList!$B$47,CntyQryCensus!$A$54:$BY$96,AR$1) -> 96 | AS40: =VLOOKUP(DropDownList!$B$47,CntyQryCensus!$A$54:$BY$96,AS$1) -> 121 | AT40: =VLOOKUP(DropDownList!$B$47,CntyQryCensus!$A$54:$BY$96,AT$1) -> 55 | AU40: =VLOOKUP(DropDownList!$B$47,CntyQryCensus!$A$54:$BY$96,AU$1) -> 17 | AV40: =VLOOKUP(DropDownList!$B$47,CntyQryCensus!$A$54:$BY$96,AV$1) -> 14 | AW40: =VLOOKUP(DropDownList!$B$47,CntyQryCensus!$A$54:$BY$96,AW$1) -> 5 | AX40: =VLOOKUP(DropDownList!$B$47,CntyQryCensus!$A$54:$BY$96,AX$1) -> 42667 | AY40: =VLOOKUP(DropDownList!$B$47,CntyQryCensus!$A$54:$BY$96,AY$1) -> 14 | AZ40: =VLOOKUP(DropDownList!$B$47,CntyQryCensus!$A$54:$BY$96,AZ$1) -> 1279 | BA40: =VLOOKUP(DropDownList!$B$47,CntyQryCensus!$A$54:$BY$96,BA$1) -> 383 | BB40: =VLOOKUP(DropDownList!$B$47,CntyQryCensus!$A$54:$BY$96,BB$1) -> 12 | BC40: =VLOOKUP(DropDownList!$B$47,CntyQryCensus!$A$54:$BY$96,BC$1) -> 10 | BD40: =VLOOKUP(DropDownList!$B$47,CntyQryCensus!$A$54:$BY$96,BD$1) -> 31 | BE40: =VLOOKUP(DropDownList!$B$47,CntyQryCensus!$A$54:$BY$96,BE$1) -> 72 | BF40: =VLOOKUP(DropDownList!$B$47,CntyQryCensus!$A$54:$BY$96,BF$1) -> 82 | BG40: =VLOOKUP(DropDownList!$B$47,CntyQryCensus!$A$54:$BY$96,BG$1) -> 102 | BH40: =VLOOKUP(DropDownList!$B$47,CntyQryCensus!$A$54:$BY$96,BH$1) -> 42 | BI40: =VLOOKUP(DropDownList!$B$47,CntyQryCensus!$A$54:$BY$96,BI$1) -> 15 | BJ40: =VLOOKUP(DropDownList!$B$47,CntyQryCensus!$A$54:$BY$96,BJ$1) -> 14 | BK40: =VLOOKUP(DropDownList!$B$47,CntyQryCensus!$A$54:$BY$96,BK$1) -> 3 | BL40: =VLOOKUP(DropDownList!$B$47,CntyQryCensus!$A$54:$BY$96,BL$1) -> 45938 | BM40: =VLOOKUP(DropDownList!$B$47,CntyQryCensus!$A$54:$BY$96,BM$1) -> 19323 | BN40: =VLOOKUP(DropDownList!$B$47,CntyQryCensus!$A$54:$BY$96,BN$1) -> 18 | BO40: =VLOOKUP(DropDownList!$B$47,CntyQryCensus!$A$54:$BY$96,BO$1) -> 10 | BP40: =VLOOKUP(DropDownList!$B$47,CntyQryCensus!$A$54:$BY$96,BP$1) -> 6 | BQ40: =VLOOKUP(DropDownList!$B$47,CntyQryCensus!$A$54:$BY$96,BQ$1) -> 6 | BR40: =VLOOKUP(DropDownList!$B$47,CntyQryCensus!$A$54:$BY$96,BR$1) -> 6 | BS40: =VLOOKUP(DropDownList!$B$47,CntyQryCensus!$A$54:$BY$96,BS$1) -> 6 | BT40: =VLOOKUP(DropDownList!$B$47,CntyQryCensus!$A$54:$BY$96,BT$1) -> 82 | BU40: =VLOOKUP(DropDownList!$B$47,CntyQryCensus!$A$54:$BY$96,BU$1) -> 51 | BV40: =VLOOKUP(DropDownList!$B$47,CntyQryCensus!$A$54:$BY$96,BV$1) -> 0 | BW40: =VLOOKUP(DropDownList!$B$47,CntyQryCensus!$A$54:$BY$96,BW$1) -> 28 | BX40: =VLOOKUP(DropDownList!$B$47,CntyQryCensus!$A$54:$BY$96,BX$1) -> 15 | BY40: =VLOOKUP(DropDownList!$B$47,CntyQryCensus!$A$54:$BY$96,BY$1) -> 25
A43: Census 2000 DemoProfile Sample Data Table 4 - DPTab4TownQry
A44: NAME | B44: COUSUB | C44: TotHousingUnits | D44: 1UnitDet | E44: 1UnitAtt | F44: 2Units | G44: 3to4Units | H44: 5to9Units | I44: 10to19Units | J44: 20orMoreUnits | K44: MobileHomes | L44: BoatRvVan | M44: SingleFamilyUnits | N44: MultiFamUnits | O44: MobileHomeUnits | P44: YearBuilt99to00 | Q44: YearBuilt95to98 | R44: YearBUilt90to94 | S44: YearBuilt80to89 | T44: YearBuilt70to79 | U44: YearBuilt60to69 | V44: YearBuilt40to59 | W44: YearBuilt39orEarlier | X44: Rooms1 | Y44: Rooms2 | Z44: Rooms3 | AA44: Rooms4 | AB44: Rooms5 | AC44: Rooms6 | AD44: Rooms7 | AE44: Rooms8 | AF44: Rooms9orMore | AG44: MedianRooms | AH44: OccHU1 | AI44: YrHHMvdIn99to00 | AJ44: YrHHMvdIn95to98 | AK44: YrHHMvdIn90to94 | AL44: YrHHMvdIn80to89 | AM44: YrHHMvdIn70to79 | AN44: YrHHMvdIn69orBefore | AO44: HeatFuelNatGas | AP44: HeatFuelBotGas | AQ44: HeatFuelElectric | AR44: HeatFuelOil | AS44: HeatFuelCoal | AT44: HeatFuelWood | AU44: HeatFuelSolar | AV44: HeatFuelOther | AW44: HeatFuelNone | AX44: LackCompPlumb | AY44: LackCompKit | AZ44: NoTelephone | BA44: OccHU | BB44: OccPerRm1orLess | BC44: OccPerRm1to1_5 | BD44: OccPerRm1_5orMore | BE44: SpecOwnOccUnits | BF44: Value<50K | BG44: Value50to100K | BH44: Value100to150K | BI44: Value150to200K | BJ44: Value200to300K | BK44: Value300to500K | BL44: Value500Kto1mil | BM44: Value1MilorMore | BN44: MedianValue | BO44: WithMortg | BP44: MnthOwnCst<300 | BQ44: MnthOwnCst300to500 | BR44: MnthOwnCst500to700 | BS44: MnthOwnCst700to1000 | BT44: MnthOwnCst1000to1500 | BU44: MnthOwnCst1500to2000 | BV44: MnthOwnCst2000orMore | BW44: MediMnthOwnCst | BX44: NotMrtg | BY44: NotMrtgMediMnthOwnCst | BZ44: OwnCst%HHInc<15 | CA44: OwnCst%HHInc15to20 | CB44: OwnCst%HHInc20to25 | CC44: OwnCst%HHInc25to30 | CD44: OwnCst%HHInc30to35 | CE44: OwnCst%HHInc35orMor | CF44: NotComputed | CG44: SpecRntOccUnits | CH44: Rnt<200 | CI44: Rnt200to300 | CJ44: Rnt300to500 | CK44: Rnt500to750 | CL44: Rnt750to1000 | CM44: Rnt1000to1500 | CN44: Rnt1500orMore | CO44: NoRent | CP44: MedianRent | CQ44: Rnt%HHInc<15 | CR44: Rnt%HHInc15to20 | CS44: Rnt%HHInc20to25 | CT44: Rnt%HHInc25to30 | CU44: Rnt%HHInc30to35 | CV44: Rnt%HHInc35orMore | CW44: Rnt%NotCompute
A45: =VLOOKUP(DropDownList!$B$47,CntyQryCensus!$A$104:$CX$146,A$1) -> Alexandria | B45: =VLOOKUP(DropDownList!$B$47,CntyQryCensus!$A$104:$CX$146,B$1) -> 00580 | C45: =VLOOKUP(DropDownList!$B$47,CntyQryCensus!$A$104:$CX$146,C$1) -> 783 | D45: =VLOOKUP(DropDownList!$B$47,CntyQryCensus!$A$104:$CX$146,D$1) -> 607 | E45: =VLOOKUP(DropDownList!$B$47,CntyQryCensus!$A$104:$CX$146,E$1) -> 75 | F45: =VLOOKUP(DropDownList!$B$47,CntyQryCensus!$A$104:$CX$146,F$1) -> 8 | G45: =VLOOKUP(DropDownList!$B$47,CntyQryCensus!$A$104:$CX$146,G$1) -> 0 | H45: =VLOOKUP(DropDownList!$B$47,CntyQryCensus!$A$104:$CX$146,H$1) -> 0 | I45: =VLOOKUP(DropDownList!$B$47,CntyQryCensus!$A$104:$CX$146,I$1) -> 2 | J45: =VLOOKUP(DropDownList!$B$47,CntyQryCensus!$A$104:$CX$146,J$1) -> 0 | K45: =VLOOKUP(DropDownList!$B$47,CntyQryCensus!$A$104:$CX$146,K$1) -> 87 | L45: =VLOOKUP(DropDownList!$B$47,CntyQryCensus!$A$104:$CX$146,L$1) -> 4 | M45: =VLOOKUP(DropDownList!$B$47,CntyQryCensus!$A$104:$CX$146,M$1) -> 607 | N45: =VLOOKUP(DropDownList!$B$47,CntyQryCensus!$A$104:$CX$146,N$1) -> 85 | O45: =VLOOKUP(DropDownList!$B$47,CntyQryCensus!$A$104:$CX$146,O$1) -> 91 | P45: =VLOOKUP(DropDownList!$B$47,CntyQryCensus!$A$104:$CX$146,P$1) -> 6 | Q45: =VLOOKUP(DropDownList!$B$47,CntyQryCensus!$A$104:$CX$146,Q$1) -> 53 | R45: =VLOOKUP(DropDownList!$B$47,CntyQryCensus!$A$104:$CX$146,R$1) -> 83 | S45: =VLOOKUP(DropDownList!$B$47,CntyQryCensus!$A$104:$CX$146,S$1) -> 249 | T45: =VLOOKUP(DropDownList!$B$47,CntyQryCensus!$A$104:$CX$146,T$1) -> 104 | U45: =VLOOKUP(DropDownList!$B$47,CntyQryCensus!$A$104:$CX$146,U$1) -> 56 | V45: =VLOOKUP(DropDownList!$B$47,CntyQryCensus!$A$104:$CX$146,V$1) -> 81 | W45: =VLOOKUP(DropDownList!$B$47,CntyQryCensus!$A$104:$CX$146,W$1) -> 151 | X45: =VLOOKUP(DropDownList!$B$47,CntyQryCensus!$A$104:$CX$146,X$1) -> 22 | Y45: =VLOOKUP(DropDownList!$B$47,CntyQryCensus!$A$104:$CX$146,Y$1) -> 28 | Z45: =VLOOKUP(DropDownList!$B$47,CntyQryCensus!$A$104:$CX$146,Z$1) -> 45 | AA45: =VLOOKUP(DropDownList!$B$47,CntyQryCensus!$A$104:$CX$146,AA$1) -> 149 | AB45: =VLOOKUP(DropDownList!$B$47,CntyQryCensus!$A$104:$CX$146,AB$1) -> 165 | AC45: =VLOOKUP(DropDownList!$B$47,CntyQryCensus!$A$104:$CX$146,AC$1) -> 163 | AD45: =VLOOKUP(DropDownList!$B$47,CntyQryCensus!$A$104:$CX$146,AD$1) -> 95 | AE45: =VLOOKUP(DropDownList!$B$47,CntyQryCensus!$A$104:$CX$146,AE$1) -> 71 | AF45: =VLOOKUP(DropDownList!$B$47,CntyQryCensus!$A$104:$CX$146,AF$1) -> 45 | AG45: =VLOOKUP(DropDownList!$B$47,CntyQryCensus!$A$104:$CX$146,AG$1) -> 5.4 | AH45: =VLOOKUP(DropDownList!$B$47,CntyQryCensus!$A$104:$CX$146,AH$1) -> 504 | AI45: =VLOOKUP(DropDownList!$B$47,CntyQryCensus!$A$104:$CX$146,AI$1) -> 69 | AJ45: =VLOOKUP(DropDownList!$B$47,CntyQryCensus!$A$104:$CX$146,AJ$1) -> 162 | AK45: =VLOOKUP(DropDownList!$B$47,CntyQryCensus!$A$104:$CX$146,AK$1) -> 90 | AL45: =VLOOKUP(DropDownList!$B$47,CntyQryCensus!$A$104:$CX$146,AL$1) -> 105 | AM45: =VLOOKUP(DropDownList!$B$47,CntyQryCensus!$A$104:$CX$146,AM$1) -> 40 | AN45: =VLOOKUP(DropDownList!$B$47,CntyQryCensus!$A$104:$CX$146,AN$1) -> 38 | AO45: =VLOOKUP(DropDownList!$B$47,CntyQryCensus!$A$104:$CX$146,AO$1) -> 3 | AP45: =VLOOKUP(DropDownList!$B$47,CntyQryCensus!$A$104:$CX$146,AP$1) -> 70 | AQ45: =VLOOKUP(DropDownList!$B$47,CntyQryCensus!$A$104:$CX$146,AQ$1) -> 9 | AR45: =VLOOKUP(DropDownList!$B$47,CntyQryCensus!$A$104:$CX$146,AR$1) -> 280 | AS45: =VLOOKUP(DropDownList!$B$47,CntyQryCensus!$A$104:$CX$146,AS$1) -> 3 | AT45: =VLOOKUP(DropDownList!$B$47,CntyQryCensus!$A$104:$CX$146,AT$1) -> 139 | AU45: =VLOOKUP(DropDownList!$B$47,CntyQryCensus!$A$104:$CX$146,AU$1) -> 0 | AV45: =VLOOKUP(DropDownList!$B$47,CntyQryCensus!$A$104:$CX$146,AV$1) -> 0 | AW45: =VLOOKUP(DropDownList!$B$47,CntyQryCensus!$A$104:$CX$146,AW$1) -> 0 | AX45: =VLOOKUP(DropDownList!$B$47,CntyQryCensus!$A$104:$CX$146,AX$1) -> 11 | AY45: =VLOOKUP(DropDownList!$B$47,CntyQryCensus!$A$104:$CX$146,AY$1) -> 11 | AZ45: =VLOOKUP(DropDownList!$B$47,CntyQryCensus!$A$104:$CX$146,AZ$1) -> 6 | BA45: =VLOOKUP(DropDownList!$B$47,CntyQryCensus!$A$104:$CX$146,BA$1) -> 504 | BB45: =VLOOKUP(DropDownList!$B$47,CntyQryCensus!$A$104:$CX$146,BB$1) -> 495 | BC45: =VLOOKUP(DropDownList!$B$47,CntyQryCensus!$A$104:$CX$146,BC$1) -> 5 | BD45: =VLOOKUP(DropDownList!$B$47,CntyQryCensus!$A$104:$CX$146,BD$1) -> 4 | BE45: =VLOOKUP(DropDownList!$B$47,CntyQryCensus!$A$104:$CX$146,BE$1) -> 266 | BF45: =VLOOKUP(DropDownList!$B$47,CntyQryCensus!$A$104:$CX$146,BF$1) -> 23 | BG45: =VLOOKUP(DropDownList!$B$47,CntyQryCensus!$A$104:$CX$146,BG$1) -> 161 | BH45: =VLOOKUP(DropDownList!$B$47,CntyQryCensus!$A$104:$CX$146,BH$1) -> 49 | BI45: =VLOOKUP(DropDownList!$B$47,CntyQryCensus!$A$104:$CX$146,BI$1) -> 23 | BJ45: =VLOOKUP(DropDownList!$B$47,CntyQryCensus!$A$104:$CX$146,BJ$1) -> 6 | BK45: =VLOOKUP(DropDownList!$B$47,CntyQryCensus!$A$104:$CX$146,BK$1) -> 4 | BL45: =VLOOKUP(DropDownList!$B$47,CntyQryCensus!$A$104:$CX$146,BL$1) -> 0 | BM45: =VLOOKUP(DropDownList!$B$47,CntyQryCensus!$A$104:$CX$146,BM$1) -> 0 | BN45: =VLOOKUP(DropDownList!$B$47,CntyQryCensus!$A$104:$CX$146,BN$1) -> 86600 | BO45: =VLOOKUP(DropDownList!$B$47,CntyQryCensus!$A$104:$CX$146,BO$1) -> 170 | BP45: =VLOOKUP(DropDownList!$B$47,CntyQryCensus!$A$104:$CX$146,BP$1) -> 2 | BQ45: =VLOOKUP(DropDownList!$B$47,CntyQryCensus!$A$104:$CX$146,BQ$1) -> 11 | BR45: =VLOOKUP(DropDownList!$B$47,CntyQryCensus!$A$104:$CX$146,BR$1) -> 35 | BS45: =VLOOKUP(DropDownList!$B$47,CntyQryCensus!$A$104:$CX$146,BS$1) -> 79 | BT45: =VLOOKUP(DropDownList!$B$47,CntyQryCensus!$A$104:$CX$146,BT$1) -> 29 | BU45: =VLOOKUP(DropDownList!$B$47,CntyQryCensus!$A$104:$CX$146,BU$1) -> 14 | BV45: =VLOOKUP(DropDownList!$B$47,CntyQryCensus!$A$104:$CX$146,BV$1) -> 0 | BW45: =VLOOKUP(DropDownList!$B$47,CntyQryCensus!$A$104:$CX$146,BW$1) -> 805 | BX45: =VLOOKUP(DropDownList!$B$47,CntyQryCensus!$A$104:$CX$146,BX$1) -> 96 | BY45: =VLOOKUP(DropDownList!$B$47,CntyQryCensus!$A$104:$CX$146,BY$1) -> 314 | BZ45: =VLOOKUP(DropDownList!$B$47,CntyQryCensus!$A$104:$CX$146,BZ$1) -> 90 | CA45: =VLOOKUP(DropDownList!$B$47,CntyQryCensus!$A$104:$CX$146,CA$1) -> 62 | CB45: =VLOOKUP(DropDownList!$B$47,CntyQryCensus!$A$104:$CX$146,CB$1) -> 41 | CC45: =VLOOKUP(DropDownList!$B$47,CntyQryCensus!$A$104:$CX$146,CC$1) -> 27 | CD45: =VLOOKUP(DropDownList!$B$47,CntyQryCensus!$A$104:$CX$146,CD$1) -> 12 | CE45: =VLOOKUP(DropDownList!$B$47,CntyQryCensus!$A$104:$CX$146,CE$1) -> 31 | CF45: =VLOOKUP(DropDownList!$B$47,CntyQryCensus!$A$104:$CX$146,CF$1) -> 3 | CG45: =VLOOKUP(DropDownList!$B$47,CntyQryCensus!$A$104:$CX$146,CG$1) -> 58 | CH45: =VLOOKUP(DropDownList!$B$47,CntyQryCensus!$A$104:$CX$146,CH$1) -> 2 | CI45: =VLOOKUP(DropDownList!$B$47,CntyQryCensus!$A$104:$CX$146,CI$1) -> 0 | CJ45: =VLOOKUP(DropDownList!$B$47,CntyQryCensus!$A$104:$CX$146,CJ$1) -> 17 | CK45: =VLOOKUP(DropDownList!$B$47,CntyQryCensus!$A$104:$CX$146,CK$1) -> 24 | CL45: =VLOOKUP(DropDownList!$B$47,CntyQryCensus!$A$104:$CX$146,CL$1) -> 10 | CM45: =VLOOKUP(DropDownList!$B$47,CntyQryCensus!$A$104:$CX$146,CM$1) -> 0 | CN45: =VLOOKUP(DropDownList!$B$47,CntyQryCensus!$A$104:$CX$146,CN$1) -> 0 | CO45: =VLOOKUP(DropDownList!$B$47,CntyQryCensus!$A$104:$CX$146,CO$1) -> 5 | CP45: =VLOOKUP(DropDownList!$B$47,CntyQryCensus!$A$104:$CX$146,CP$1) -> 594 | CQ45: =VLOOKUP(DropDownList!$B$47,CntyQryCensus!$A$104:$CX$146,CQ$1) -> 25 | CR45: =VLOOKUP(DropDownList!$B$47,CntyQryCensus!$A$104:$CX$146,CR$1) -> 7 | CS45: =VLOOKUP(DropDownList!$B$47,CntyQryCensus!$A$104:$CX$146,CS$1) -> 7 | CT45: =VLOOKUP(DropDownList!$B$47,CntyQryCensus!$A$104:$CX$146,CT$1) -> 6 | CU45: =VLOOKUP(DropDownList!$B$47,CntyQryCensus!$A$104:$CX$146,CU$1) -> 2 | CV45: =VLOOKUP(DropDownList!$B$47,CntyQryCensus!$A$104:$CX$146,CV$1) -> 6 | CW45: =VLOOKUP(DropDownList!$B$47,CntyQryCensus!$A$104:$CX$146,CW$1) -> 5
A48: Census 2000 SummaryFile3 Sample Data - SF3TownQry1SocialChar
A49: TOWN_NAME | B49: LOGRECNO | C49: COUSUB | D49: P01TotalPopulation | E49: P02SampleCountOfPop | F49: P03Pop100pctCount | G49: P05UrbanPopulation | H49: P05RuralPopulation | I49: P06WhiteAlone | J49: P06BlackOrAfAm | K49: P06AmIndAlone | L49: P06AsianAlone | M49: P06HawaiianOrPI | N49: P06OtherRace | O49: P06TwoPlusRaces | P49: P07NotHispanicOrLatino | Q49: P07HispanicOrLatino | R49: P08MalePop | S49: P08FemalePop | T49: P09PopInHouseholds | U49: P09PopInFamHH | V49: P09PopInNonFamHH | W49: P09PopInGroupQtr | X49: P13TotalHH | Y49: P13FamilyHH | Z49: P13FamHHolder15to24yrs | AA49: P13FamHHolder25to34yrs | AB49: P13FamHHolder35to44yrs | AC49: P13FamHHolder45to54yrs | AD49: P13FamHHolder55to64yrs | AE49: P13FamHHolder65to74yrs | AF49: P13FamHHolder75to84yrs | AG49: P13FamHHolder85yrsOver | AH49: P13NonFamilyHH | AI49: P13NonFamHHolder15to24yrs | AJ49: P13NonFamHHolder25to34yrs | AK49: P13NonFamHHolder35to44yrs | AL49: P13NonFamHHolder45to54yrs | AM49: P13NonFamHHolder55to64yrs | AN49: P13NonFamHHolder65to74yrs | AO49: P13NonFamHHolder75to84yrs | AP49: P13NonFamHHolder85yrsOver | AQ49: P18Pop15yrsOver | AR49: P18MaritalStatNeverMarried | AS49: P18MaritalStatNowMarried | AT49: P18MaritalStatSeparated | AU49: P18MaritalStatWidowed | AV49: P18MaritalStatWidowFemale | AW49: P18MaritalStatDivorced | AX49: P18MaritalStatDivorcedFemale | AY49: P21NativeBornPop | AZ49: P21NatPopBornInState | BA49: P21NatPopBornOtherState | BB49: P021005 | BC49: P021006 | BD49: P021007 | BE49: P021008 | BF49: P21NatPopBornOutUS | BG49: P21ForeignBornPop | BH49: P021014 | BI49: P021015 | BJ49: P24Pop5YrsPlus | BK49: P24ResSameHouseIn95 | BL49: P24ResDiffHouseIn95 | BM49: P24ResDiffHouseInUSIn95 | BN49: P24ResDiffHouseSameCountyIn95 | BO49: P24ResDiffHouseDiffCountyIn95 | BP49: P24ResDiffHouseDiffCntySamStIn95 | BQ49: P24ResDiffHouseDiffCntyDifStIn95 | BR49: P24ResDiffHouseDiffCntyNEStIn95 | BS49: P24ResDiffHouseDiffCntyMWStIn95 | BT49: P24ResDiffHouseDiffCntySoStIn95 | BU49: P24ResDiffHouseDiffCntyWstStIn95 | BV49: P24ResDiffInPR | BW49: P24ResDiffElsewhereIn95 | BX49: P26Workers16yrsOver | BY49: P26WorkedInState | BZ49: P26WorkedInCnty | CA49: P26WorkedOutsideCnty | CB49: P26WorkedOutsideState | CC49: P30Workers16Over | CD49: P30TranspToWrkCar | CE49: P30TranspToWrkPublic | CF49: P30TranspToWrkOther | CG49: P30WrkdAtHome | CH49: P31WrkrsNotWrkAtHom | CI49: P31TravTim<5min | CJ49: P31TravTim5to9Min | CK49: P31TravTim10to14Min | CL49: P31TravTim15to19Min | CM49: P31TravTim20to24Min | CN49: P31TravTim25to29Min | CO49: P31TravTim30to34Min | CP49: P31TravTim35to39Min | CQ49: P31TravTim40to44Min | CR49: P31TravTim45to59Min | CS49: P31TravTim60to89Min | CT49: P31TravTim90MinMore | CU49: P31WorkAtHome | CV49: P36SchEnrlPop3yrOver | CW49: P36NurserSchEnrl | CX49: P36KinderSchEnrl | CY49: P36ElemSchEnrl | CZ49: P36HighSchEnrl | DA49: P36CollGradSchEnrl | DB49: P37Pop25yrsOver | DC49: P37EduAtain<9grd | DD49: P37EduAtainHSnoDip | DE49: P37EduAtainHSgrad | DF49: P37EduAtainCollNoDeg | DG49: P37EduAtainAssocDeg | DH49: P37EduAtainBachDeg | DI49: P37EduAtainGradProfDeg | DJ49: P42NIPop5to15 | DK49: P42NIPop5to15wDisabl | DL49: P42NIPop16to20 | DM49: P42NIPop16to20wDisab | DN49: P42NIPop16to20wDisEmp | DO49: P42NIPop16to21NoDis | DP49: P42NIPop16to21NoDisEmpl | DQ49: P42NIPop21to64 | DR49: P42NIPop21to64wDis | DS49: P42NIPop21to64wDisEmp | DT49: P42NIPop21to64NoDis | DU49: P42NIPop21to64NoDisEmp | DV49: P42NIPop65to74 | DW49: P42NIPop65to74wDis | DX49: P42NIPop75Over | DY49: P42NIPop75OverwDis | DZ49: P43Pop16YrsOver | EA49: P43Pop16OvrInLaborForce | EB49: P43Pop16OvrCivlLabFrc | EC49: P43Pop16OvrCivlLbrFrcEmp | ED49: P48Families | EE49: P48MarriedFam | EF49: P48MarrFamNoWorkers | EG49: P48MarrFam1Worker | EH49: P48MarrFam2Worker | EI49: P48MarrFamHusbWifeWorked | EJ49: P48MarrFamOther | EK49: P48MarrFam3PlusWorker | EL49: P48MarrFam3WorkHsbWif | EM49: P48MarrFam3PlsWrkOther | EN49: P48OtherFam | EO49: P48MaleHHNoWif | EP49: P48MaleHHNoWifNoWorker | EQ49: P48MaleHHNoWif1Worker | ER49: P48MaleHHNoWif2Worker | ES49: P48MaleHHNoWif3PlusWorker | ET49: P48FemaleHHNoHsb | EU49: P48FemaleHHNoHsbNoWorker | EV49: P48FemaleHHNoHsb1Worker | EW49: P48FemaleHHNoHsb2Worker | EX49: P48FemaleHHNoHsb3Worker | EY49: P49EmpCivPop16YrOver | EZ49: P49IndustAgricult | FA49: P49IndustConst | FB49: P49IndustMnftg | FC49: P49IndustWhlslTrd | FD49: P49IndustRtlTrd | FE49: P49IndustTrspWrhsUtlt | FF49: P49IndustInfrm | FG49: P49IndustFinInsRE | FH49: P49IndustPrfsScntfMngmt | FI49: P49IndustEduHlthSocSrv | FJ49: P49IndustArtsEntRec | FK49: P49IndustOthrSrvc | FL49: P49IndustPubAdm | FM49: P50OccupMngmtProfs | FN49: P50OccupService | FO49: P50OccupSalesOff | FP49: P50OccupFarmFishForest | FQ49: P50OccupConstExtrctMaint | FR49: P50OccupPrdctTrnspMatMv
A50: =VLOOKUP(DropDownList!$B$47,CntyQryCensus!$A$156:$FR$198,A$1) -> Alexandria | B50: =VLOOKUP(DropDownList!$B$47,CntyQryCensus!$A$156:$FR$198,B$1) -> 0001149 | C50: =VLOOKUP(DropDownList!$B$47,CntyQryCensus!$A$156:$FR$198,C$1) -> 00580 | D50: =VLOOKUP(DropDownList!$B$47,CntyQryCensus!$A$156:$FR$198,D$1) -> 1329 | E50: =VLOOKUP(DropDownList!$B$47,CntyQryCensus!$A$156:$FR$198,E$1) -> 611 | F50: =VLOOKUP(DropDownList!$B$47,CntyQryCensus!$A$156:$FR$198,F$1) -> 1329 | G50: =VLOOKUP(DropDownList!$B$47,CntyQryCensus!$A$156:$FR$198,G$1) -> 0 | H50: =VLOOKUP(DropDownList!$B$47,CntyQryCensus!$A$156:$FR$198,H$1) -> 1329 | I50: =VLOOKUP(DropDownList!$B$47,CntyQryCensus!$A$156:$FR$198,I$1) -> 1307 | J50: =VLOOKUP(DropDownList!$B$47,CntyQryCensus!$A$156:$FR$198,J$1) -> 0 | K50: =VLOOKUP(DropDownList!$B$47,CntyQryCensus!$A$156:$FR$198,K$1) -> 5 | L50: =VLOOKUP(DropDownList!$B$47,CntyQryCensus!$A$156:$FR$198,L$1) -> 2 | M50: =VLOOKUP(DropDownList!$B$47,CntyQryCensus!$A$156:$FR$198,M$1) -> 0 | N50: =VLOOKUP(DropDownList!$B$47,CntyQryCensus!$A$156:$FR$198,N$1) -> 2 | O50: =VLOOKUP(DropDownList!$B$47,CntyQryCensus!$A$156:$FR$198,O$1) -> 13 | P50: =VLOOKUP(DropDownList!$B$47,CntyQryCensus!$A$156:$FR$198,P$1) -> 1307 | Q50: =VLOOKUP(DropDownList!$B$47,CntyQryCensus!$A$156:$FR$198,Q$1) -> 22 | R50: =VLOOKUP(DropDownList!$B$47,CntyQryCensus!$A$156:$FR$198,R$1) -> 670 | S50: =VLOOKUP(DropDownList!$B$47,CntyQryCensus!$A$156:$FR$198,S$1) -> 659 | T50: =VLOOKUP(DropDownList!$B$47,CntyQryCensus!$A$156:$FR$198,T$1) -> 1329 | U50: =VLOOKUP(DropDownList!$B$47,CntyQryCensus!$A$156:$FR$198,U$1) -> 1162 | V50: =VLOOKUP(DropDownList!$B$47,CntyQryCensus!$A$156:$FR$198,V$1) -> 167 | W50: =VLOOKUP(DropDownList!$B$47,CntyQryCensus!$A$156:$FR$198,W$1) -> 0 | X50: =VLOOKUP(DropDownList!$B$47,CntyQryCensus!$A$156:$FR$198,X$1) -> 502 | Y50: =VLOOKUP(DropDownList!$B$47,CntyQryCensus!$A$156:$FR$198,Y$1) -> 383 | Z50: =VLOOKUP(DropDownList!$B$47,CntyQryCensus!$A$156:$FR$198,Z$1) -> 11 | AA50: =VLOOKUP(DropDownList!$B$47,CntyQryCensus!$A$156:$FR$198,AA$1) -> 55 | AB50: =VLOOKUP(DropDownList!$B$47,CntyQryCensus!$A$156:$FR$198,AB$1) -> 108 | AC50: =VLOOKUP(DropDownList!$B$47,CntyQryCensus!$A$156:$FR$198,AC$1) -> 94 | AD50: =VLOOKUP(DropDownList!$B$47,CntyQryCensus!$A$156:$FR$198,AD$1) -> 70 | AE50: =VLOOKUP(DropDownList!$B$47,CntyQryCensus!$A$156:$FR$198,AE$1) -> 27 | AF50: =VLOOKUP(DropDownList!$B$47,CntyQryCensus!$A$156:$FR$198,AF$1) -> 18 | AG50: =VLOOKUP(DropDownList!$B$47,CntyQryCensus!$A$156:$FR$198,AG$1) -> 0 | AH50: =VLOOKUP(DropDownList!$B$47,CntyQryCensus!$A$156:$FR$198,AH$1) -> 119 | AI50: =VLOOKUP(DropDownList!$B$47,CntyQryCensus!$A$156:$FR$198,AI$1) -> 4 | AJ50: =VLOOKUP(DropDownList!$B$47,CntyQryCensus!$A$156:$FR$198,AJ$1) -> 11 | AK50: =VLOOKUP(DropDownList!$B$47,CntyQryCensus!$A$156:$FR$198,AK$1) -> 29 | AL50: =VLOOKUP(DropDownList!$B$47,CntyQryCensus!$A$156:$FR$198,AL$1) -> 27 | AM50: =VLOOKUP(DropDownList!$B$47,CntyQryCensus!$A$156:$FR$198,AM$1) -> 19 | AN50: =VLOOKUP(DropDownList!$B$47,CntyQryCensus!$A$156:$FR$198,AN$1) -> 15 | AO50: =VLOOKUP(DropDownList!$B$47,CntyQryCensus!$A$156:$FR$198,AO$1) -> 14 | AP50: =VLOOKUP(DropDownList!$B$47,CntyQryCensus!$A$156:$FR$198,AP$1) -> 0 | AQ50: =VLOOKUP(DropDownList!$B$47,CntyQryCensus!$A$156:$FR$198,AQ$1) -> 1064 | AR50: =VLOOKUP(DropDownList!$B$47,CntyQryCensus!$A$156:$FR$198,AR$1) -> 215 | AS50: =VLOOKUP(DropDownList!$B$47,CntyQryCensus!$A$156:$FR$198,AS$1) -> 685 | AT50: =VLOOKUP(DropDownList!$B$47,CntyQryCensus!$A$156:$FR$198,AT$1) -> 15 | AU50: =VLOOKUP(DropDownList!$B$47,CntyQryCensus!$A$156:$FR$198,AU$1) -> 40 | AV50: =VLOOKUP(DropDownList!$B$47,CntyQryCensus!$A$156:$FR$198,AV$1) -> 27 | AW50: =VLOOKUP(DropDownList!$B$47,CntyQryCensus!$A$156:$FR$198,AW$1) -> 109 | AX50: =VLOOKUP(DropDownList!$B$47,CntyQryCensus!$A$156:$FR$198,AX$1) -> 58 | AY50: =VLOOKUP(DropDownList!$B$47,CntyQryCensus!$A$156:$FR$198,AY$1) -> 1296 | AZ50: =VLOOKUP(DropDownList!$B$47,CntyQryCensus!$A$156:$FR$198,AZ$1) -> 695 | BA50: =VLOOKUP(DropDownList!$B$47,CntyQryCensus!$A$156:$FR$198,BA$1) -> 589 | BB50: =VLOOKUP(DropDownList!$B$47,CntyQryCensus!$A$156:$FR$198,BB$1) -> 489 | BC50: =VLOOKUP(DropDownList!$B$47,CntyQryCensus!$A$156:$FR$198,BC$1) -> 29 | BD50: =VLOOKUP(DropDownList!$B$47,CntyQryCensus!$A$156:$FR$198,BD$1) -> 50 | BE50: =VLOOKUP(DropDownList!$B$47,CntyQryCensus!$A$156:$FR$198,BE$1) -> 21 | BF50: =VLOOKUP(DropDownList!$B$47,CntyQryCensus!$A$156:$FR$198,BF$1) -> 12 | BG50: =VLOOKUP(DropDownList!$B$47,CntyQryCensus!$A$156:$FR$198,BG$1) -> 33 | BH50: =VLOOKUP(DropDownList!$B$47,CntyQryCensus!$A$156:$FR$198,BH$1) -> 20 | BI50: =VLOOKUP(DropDownList!$B$47,CntyQryCensus!$A$156:$FR$198,BI$1) -> 13 | BJ50: =VLOOKUP(DropDownList!$B$47,CntyQryCensus!$A$156:$FR$198,BJ$1) -> 1257 | BK50: =VLOOKUP(DropDownList!$B$47,CntyQryCensus!$A$156:$FR$198,BK$1) -> 752 | BL50: =VLOOKUP(DropDownList!$B$47,CntyQryCensus!$A$156:$FR$198,BL$1) -> 505 | BM50: =VLOOKUP(DropDownList!$B$47,CntyQryCensus!$A$156:$FR$198,BM$1) -> 493 | BN50: =VLOOKUP(DropDownList!$B$47,CntyQryCensus!$A$156:$FR$198,BN$1) -> 194 | BO50: =VLOOKUP(DropDownList!$B$47,CntyQryCensus!$A$156:$FR$198,BO$1) -> 299 | BP50: =VLOOKUP(DropDownList!$B$47,CntyQryCensus!$A$156:$FR$198,BP$1) -> 170 | BQ50: =VLOOKUP(DropDownList!$B$47,CntyQryCensus!$A$156:$FR$198,BQ$1) -> 129 | BR50: =VLOOKUP(DropDownList!$B$47,CntyQryCensus!$A$156:$FR$198,BR$1) -> 86 | BS50: =VLOOKUP(DropDownList!$B$47,CntyQryCensus!$A$156:$FR$198,BS$1) -> 2 | BT50: =VLOOKUP(DropDownList!$B$47,CntyQryCensus!$A$156:$FR$198,BT$1) -> 27 | BU50: =VLOOKUP(DropDownList!$B$47,CntyQryCensus!$A$156:$FR$198,BU$1) -> 14 | BV50: =VLOOKUP(DropDownList!$B$47,CntyQryCensus!$A$156:$FR$198,BV$1) -> 0 | BW50: =VLOOKUP(DropDownList!$B$47,CntyQryCensus!$A$156:$FR$198,BW$1) -> 12 | BX50: =VLOOKUP(DropDownList!$B$47,CntyQryCensus!$A$156:$FR$198,BX$1) -> 689 | BY50: =VLOOKUP(DropDownList!$B$47,CntyQryCensus!$A$156:$FR$198,BY$1) -> 665 | BZ50: =VLOOKUP(DropDownList!$B$47,CntyQryCensus!$A$156:$FR$198,BZ$1) -> 422 | CA50: =VLOOKUP(DropDownList!$B$47,CntyQryCensus!$A$156:$FR$198,CA$1) -> 243 | CB50: =VLOOKUP(DropDownList!$B$47,CntyQryCensus!$A$156:$FR$198,CB$1) -> 24 | CC50: =VLOOKUP(DropDownList!$B$47,CntyQryCensus!$A$156:$FR$198,CC$1) -> 689 | CD50: =VLOOKUP(DropDownList!$B$47,CntyQryCensus!$A$156:$FR$198,CD$1) -> 640 | CE50: =VLOOKUP(DropDownList!$B$47,CntyQryCensus!$A$156:$FR$198,CE$1) -> 6 | CF50: =VLOOKUP(DropDownList!$B$47,CntyQryCensus!$A$156:$FR$198,CF$1) -> 2 | CG50: =VLOOKUP(DropDownList!$B$47,CntyQryCensus!$A$156:$FR$198,CG$1) -> 37 | CH50: =VLOOKUP(DropDownList!$B$47,CntyQryCensus!$A$156:$FR$198,CH$1) -> 652 | CI50: =VLOOKUP(DropDownList!$B$47,CntyQryCensus!$A$156:$FR$198,CI$1) -> 54 | CJ50: =VLOOKUP(DropDownList!$B$47,CntyQryCensus!$A$156:$FR$198,CJ$1) -> 101 | CK50: =VLOOKUP(DropDownList!$B$47,CntyQryCensus!$A$156:$FR$198,CK$1) -> 79 | CL50: =VLOOKUP(DropDownList!$B$47,CntyQryCensus!$A$156:$FR$198,CL$1) -> 61 | CM50: =VLOOKUP(DropDownList!$B$47,CntyQryCensus!$A$156:$FR$198,CM$1) -> 38 | CN50: =VLOOKUP(DropDownList!$B$47,CntyQryCensus!$A$156:$FR$198,CN$1) -> 42 | CO50: =VLOOKUP(DropDownList!$B$47,CntyQryCensus!$A$156:$FR$198,CO$1) -> 94 | CP50: =VLOOKUP(DropDownList!$B$47,CntyQryCensus!$A$156:$FR$198,CP$1) -> 31 | CQ50: =VLOOKUP(DropDownList!$B$47,CntyQryCensus!$A$156:$FR$198,CQ$1) -> 31 | CR50: =VLOOKUP(DropDownList!$B$47,CntyQryCensus!$A$156:$FR$198,CR$1) -> 73 | CS50: =VLOOKUP(DropDownList!$B$47,CntyQryCensus!$A$156:$FR$198,CS$1) -> 28 | CT50: =VLOOKUP(DropDownList!$B$47,CntyQryCensus!$A$156:$FR$198,CT$1) -> 20 | CU50: =VLOOKUP(DropDownList!$B$47,CntyQryCensus!$A$156:$FR$198,CU$1) -> 37 | CV50: =VLOOKUP(DropDownList!$B$47,CntyQryCensus!$A$156:$FR$198,CV$1) -> 1283 | CW50: =VLOOKUP(DropDownList!$B$47,CntyQryCensus!$A$156:$FR$198,CW$1) -> 20 | CX50: =VLOOKUP(DropDownList!$B$47,CntyQryCensus!$A$156:$FR$198,CX$1) -> 13 | CY50: =VLOOKUP(DropDownList!$B$47,CntyQryCensus!$A$156:$FR$198,CY$1) -> 156 | CZ50: =VLOOKUP(DropDownList!$B$47,CntyQryCensus!$A$156:$FR$198,CZ$1) -> 80 | DA50: =VLOOKUP(DropDownList!$B$47,CntyQryCensus!$A$156:$FR$198,DA$1) -> 46 | DB50: =VLOOKUP(DropDownList!$B$47,CntyQryCensus!$A$156:$FR$198,DB$1) -> 927 | DC50: =VLOOKUP(DropDownList!$B$47,CntyQryCensus!$A$156:$FR$198,DC$1) -> 18 | DD50: =VLOOKUP(DropDownList!$B$47,CntyQryCensus!$A$156:$FR$198,DD$1) -> 129 | DE50: =VLOOKUP(DropDownList!$B$47,CntyQryCensus!$A$156:$FR$198,DE$1) -> 330 | DF50: =VLOOKUP(DropDownList!$B$47,CntyQryCensus!$A$156:$FR$198,DF$1) -> 211 | DG50: =VLOOKUP(DropDownList!$B$47,CntyQryCensus!$A$156:$FR$198,DG$1) -> 68 | DH50: =VLOOKUP(DropDownList!$B$47,CntyQryCensus!$A$156:$FR$198,DH$1) -> 117 | DI50: =VLOOKUP(DropDownList!$B$47,CntyQryCensus!$A$156:$FR$198,DI$1) -> 54 | DJ50: =VLOOKUP(DropDownList!$B$47,CntyQryCensus!$A$156:$FR$198,DJ$1) -> 213 | DK50: =VLOOKUP(DropDownList!$B$47,CntyQryCensus!$A$156:$FR$198,DK$1) -> 14 | DL50: =VLOOKUP(DropDownList!$B$47,CntyQryCensus!$A$156:$FR$198,DL$1) -> 86 | DM50: =VLOOKUP(DropDownList!$B$47,CntyQryCensus!$A$156:$FR$198,DM$1) -> 18 | DN50: =VLOOKUP(DropDownList!$B$47,CntyQryCensus!$A$156:$FR$198,DN$1) -> 11 | DO50: =VLOOKUP(DropDownList!$B$47,CntyQryCensus!$A$156:$FR$198,DO$1) -> 68 | DP50: =VLOOKUP(DropDownList!$B$47,CntyQryCensus!$A$156:$FR$198,DP$1) -> 26 | DQ50: =VLOOKUP(DropDownList!$B$47,CntyQryCensus!$A$156:$FR$198,DQ$1) -> 819 | DR50: =VLOOKUP(DropDownList!$B$47,CntyQryCensus!$A$156:$FR$198,DR$1) -> 241 | DS50: =VLOOKUP(DropDownList!$B$47,CntyQryCensus!$A$156:$FR$198,DS$1) -> 188 | DT50: =VLOOKUP(DropDownList!$B$47,CntyQryCensus!$A$156:$FR$198,DT$1) -> 578 | DU50: =VLOOKUP(DropDownList!$B$47,CntyQryCensus!$A$156:$FR$198,DU$1) -> 467 | DV50: =VLOOKUP(DropDownList!$B$47,CntyQryCensus!$A$156:$FR$198,DV$1) -> 92 | DW50: =VLOOKUP(DropDownList!$B$47,CntyQryCensus!$A$156:$FR$198,DW$1) -> 26 | DX50: =VLOOKUP(DropDownList!$B$47,CntyQryCensus!$A$156:$FR$198,DX$1) -> 47 | DY50: =VLOOKUP(DropDownList!$B$47,CntyQryCensus!$A$156:$FR$198,DY$1) -> 27 | DZ50: =VLOOKUP(DropDownList!$B$47,CntyQryCensus!$A$156:$FR$198,DZ$1) -> 1044 | EA50: =VLOOKUP(DropDownList!$B$47,CntyQryCensus!$A$156:$FR$198,EA$1) -> 738 | EB50: =VLOOKUP(DropDownList!$B$47,CntyQryCensus!$A$156:$FR$198,EB$1) -> 738 | EC50: =VLOOKUP(DropDownList!$B$47,CntyQryCensus!$A$156:$FR$198,EC$1) -> 711 | ED50: =VLOOKUP(DropDownList!$B$47,CntyQryCensus!$A$156:$FR$198,ED$1) -> 383 | EE50: =VLOOKUP(DropDownList!$B$47,CntyQryCensus!$A$156:$FR$198,EE$1) -> 336 | EF50: =VLOOKUP(DropDownList!$B$47,CntyQryCensus!$A$156:$FR$198,EF$1) -> 36 | EG50: =VLOOKUP(DropDownList!$B$47,CntyQryCensus!$A$156:$FR$198,EG$1) -> 71 | EH50: =VLOOKUP(DropDownList!$B$47,CntyQryCensus!$A$156:$FR$198,EH$1) -> 189 | EI50: =VLOOKUP(DropDownList!$B$47,CntyQryCensus!$A$156:$FR$198,EI$1) -> 186 | EJ50: =VLOOKUP(DropDownList!$B$47,CntyQryCensus!$A$156:$FR$198,EJ$1) -> 3 | EK50: =VLOOKUP(DropDownList!$B$47,CntyQryCensus!$A$156:$FR$198,EK$1) -> 40 | EL50: =VLOOKUP(DropDownList!$B$47,CntyQryCensus!$A$156:$FR$198,EL$1) -> 36 | EM50: =VLOOKUP(DropDownList!$B$47,CntyQryCensus!$A$156:$FR$198,EM$1) -> 4 | EN50: =VLOOKUP(DropDownList!$B$47,CntyQryCensus!$A$156:$FR$198,EN$1) -> 47 | EO50: =VLOOKUP(DropDownList!$B$47,CntyQryCensus!$A$156:$FR$198,EO$1) -> 18 | EP50: =VLOOKUP(DropDownList!$B$47,CntyQryCensus!$A$156:$FR$198,EP$1) -> 0 | EQ50: =VLOOKUP(DropDownList!$B$47,CntyQryCensus!$A$156:$FR$198,EQ$1) -> 12 | ER50: =VLOOKUP(DropDownList!$B$47,CntyQryCensus!$A$156:$FR$198,ER$1) -> 4 | ES50: =VLOOKUP(DropDownList!$B$47,CntyQryCensus!$A$156:$FR$198,ES$1) -> 2 | ET50: =VLOOKUP(DropDownList!$B$47,CntyQryCensus!$A$156:$FR$198,ET$1) -> 29 | EU50: =VLOOKUP(DropDownList!$B$47,CntyQryCensus!$A$156:$FR$198,EU$1) -> 5 | EV50: =VLOOKUP(DropDownList!$B$47,CntyQryCensus!$A$156:$FR$198,EV$1) -> 18 | EW50: =VLOOKUP(DropDownList!$B$47,CntyQryCensus!$A$156:$FR$198,EW$1) -> 6 | EX50: =VLOOKUP(DropDownList!$B$47,CntyQryCensus!$A$156:$FR$198,EX$1) -> 0 | EY50: =VLOOKUP(DropDownList!$B$47,CntyQryCensus!$A$156:$FR$198,EY$1) -> 711 | EZ50: =VLOOKUP(DropDownList!$B$47,CntyQryCensus!$A$156:$FR$198,EZ$1) -> 34 | FA50: =VLOOKUP(DropDownList!$B$47,CntyQryCensus!$A$156:$FR$198,FA$1) -> 64 | FB50: =VLOOKUP(DropDownList!$B$47,CntyQryCensus!$A$156:$FR$198,FB$1) -> 190 | FC50: =VLOOKUP(DropDownList!$B$47,CntyQryCensus!$A$156:$FR$198,FC$1) -> 17 | FD50: =VLOOKUP(DropDownList!$B$47,CntyQryCensus!$A$156:$FR$198,FD$1) -> 89 | FE50: =VLOOKUP(DropDownList!$B$47,CntyQryCensus!$A$156:$FR$198,FE$1) -> 41 | FF50: =VLOOKUP(DropDownList!$B$47,CntyQryCensus!$A$156:$FR$198,FF$1) -> 7 | FG50: =VLOOKUP(DropDownList!$B$47,CntyQryCensus!$A$156:$FR$198,FG$1) -> 25 | FH50: =VLOOKUP(DropDownList!$B$47,CntyQryCensus!$A$156:$FR$198,FH$1) -> 46 | FI50: =VLOOKUP(DropDownList!$B$47,CntyQryCensus!$A$156:$FR$198,FI$1) -> 108 | FJ50: =VLOOKUP(DropDownList!$B$47,CntyQryCensus!$A$156:$FR$198,FJ$1) -> 43 | FK50: =VLOOKUP(DropDownList!$B$47,CntyQryCensus!$A$156:$FR$198,FK$1) -> 17 | FL50: =VLOOKUP(DropDownList!$B$47,CntyQryCensus!$A$156:$FR$198,FL$1) -> 30 | FM50: =VLOOKUP(DropDownList!$B$47,CntyQryCensus!$A$156:$FR$198,FM$1) -> 188 | FN50: =VLOOKUP(DropDownList!$B$47,CntyQryCensus!$A$156:$FR$198,FN$1) -> 99 | FO50: =VLOOKUP(DropDownList!$B$47,CntyQryCensus!$A$156:$FR$198,FO$1) -> 124 | FP50: =VLOOKUP(DropDownList!$B$47,CntyQryCensus!$A$156:$FR$198,FP$1) -> 22 | FQ50: =VLOOKUP(DropDownList!$B$47,CntyQryCensus!$A$156:$FR$198,FQ$1) -> 86 | FR50: =VLOOKUP(DropDownList!$B$47,CntyQryCensus!$A$156:$FR$198,FR$1) -> 192
A53: Census 2000 SummaryFile3 Sample Data - SF3TownQry2aIncomeChar
A54: NAME | B54: LOGRECNO | C54: COUNTY | D54: TotalPop | E54: P52Households1 | F54: P52HHInc<10K | G54: P52HHInc10to15K | H54: P52HHInc15to20K | I54: P52HHInc20to25K | J54: P52HHInc25to30K | K54: P52HHInc30to35K | L54: P52HHInc35to40K | M54: P52HHInc40to45K | N54: P52HHInc45to50K | O54: P52HHInc50to60K | P54: P52HHInc60to75K | Q54: P52HHInc75to100K | R54: P52HHInc100to125K | S54: P52HHInc125to150K | T54: P52HHInc150to200K | U54: P52HHInc>200K | V54: P53MedianHHInc | W54: P54AggregHHInc | X54: P55Households2 | Y54: P55HHUnder25yrs | Z54: P55HH<25HHInc<10K | AA54: P55HH<25HHInc10to15K | AB54: P55HH<25HHInc15to20K | AC54: P55HH<25HHInc20to25K | AD54: P55HH<25HHInc25to30K | AE54: P55HH<25HHInc30to35K | AF54: P55HH<25HHInc35to40K | AG54: P55HH<25HHInc40to45K | AH54: P55HH<25HHInc45to50K | AI54: P55HH<25HHInc50to60K | AJ54: P55HH<25HHInc60to75K | AK54: P55HH<25HHInc75to100K | AL54: P55HH<25HHInc100to125K | AM54: P55HH<25HHInc125to150K | AN54: P55HH<25HHInc150to200K | AO54: P55HH<25HHInc>200K | AP54: P55HH25to34yrs | AQ54: P55HH25to34HHInc<10K | AR54: P55HH25to34HHInc10to15K | AS54: P55HH25to34HHInc15to20K | AT54: P55HH25to34HHInc20to25K | AU54: P55HH25to34HHInc25to30K | AV54: P55HH25to34HHInc30to35K | AW54: P55HH25to34HHInc35to40K | AX54: P55HH25to34HHInc40to45K | AY54: P55HH25to34HHInc45to50K | AZ54: P55HH25to34HHInc50to60K | BA54: P55HH25to34HHInc60to75K | BB54: P55HH25to34HHInc75to100K | BC54: P55HH25to34HHInc100to125K | BD54: P55HH25to34HHInc125to150K | BE54: P55HH25to34HHInc150to200K | BF54: P55HH25to34HHInc>200K | BG54: P55HH35to44yrs | BH54: P55HH35to44HHInc<10K | BI54: P55HH35to44HHInc10to15K | BJ54: P55HH35to44HHInc15to20K | BK54: P55HH35to44HHInc20to25K | BL54: P55HH35to44HHInc25to30K | BM54: P55HH35to44HHInc30to35K | BN54: P55HH35to44HHInc35to40K | BO54: P55HH35to44HHInc40to45K | BP54: P55HH35to44HHInc45to50K | BQ54: P55HH35to44HHInc50to60K | BR54: P55HH35to44HHInc60to75K | BS54: P55HH35to44HHInc75to100K | BT54: P55HH35to44HHInc100to125K | BU54: P55HH35to44HHInc125to150K | BV54: P55HH35to44HHInc150to200K | BW54: P55HH35to44HHInc>200K | BX54: P55HH45to54yrs | BY54: P55HH45to55HHInc<10K | BZ54: P55HH45to55HHInc10to15K | CA54: P55HH45to55HHInc15to20K | CB54: P55HH45to55HHInc20to25K | CC54: P55HH45to55HHInc25to30K | CD54: P55HH45to55HHInc30to35K | CE54: P55HH45to55HHInc35to40K | CF54: P55HH45to55HHInc40to45K | CG54: P55HH45to55HHInc45to50K | CH54: P55HH45to55HHInc50to60K | CI54: P55HH45to55HHInc60to75K | CJ54: P55HH45to55HHInc75to100K | CK54: P55HH45to55HHInc100to125K | CL54: P55HH45to55HHInc125to150K | CM54: P55HH45to55HHInc150to200K | CN54: P55HH45to55HHInc>200K | CO54: P55HH55to64yrs | CP54: P55HH55to64HHInc<10K | CQ54: P55HH55to64HHInc10to15K | CR54: P55HH55to64HHInc15to20K | CS54: P55HH55to64HHInc20to25K | CT54: P55HH55to64HHInc25to30K | CU54: P55HH55to64HHInc30to35K | CV54: P55HH55to64HHInc35to40K | CW54: P55HH55to64HHInc40to45K | CX54: P55HH55to64HHInc45to50K | CY54: P55HH55to64HHInc50to60K | CZ54: P55HH55to64HHInc60to75K | DA54: P55HH55to64HHInc75to100K | DB54: P55HH55to64HHInc100to125K | DC54: P55HH55to64HHInc125to150K | DD54: P55HH55to64HHInc150to200K | DE54: P55HH55to64HHInc>200K | DF54: P55HH65to74yrs | DG54: P55HH65to74HHInc<10K | DH54: P55HH65to74HHInc10to15K | DI54: P55HH65to74HHInc15to20K | DJ54: P55HH65to74HHInc20to25K | DK54: P55HH65to74HHInc25to30K | DL54: P55HH65to74HHInc30to35K | DM54: P55HH65to74HHInc35to40K | DN54: P55HH65to74HHInc40to45K | DO54: P55HH65to74HHInc45to50K | DP54: P55HH65to74HHInc50to60K | DQ54: P55HH65to74HHInc60to75K | DR54: P55HH65to74HHInc75to100K | DS54: P55HH65to74HHInc100to125K | DT54: P55HH65to74HHInc125to150K | DU54: P55HH65to74HHInc150to200K | DV54: P55HH65to74HHInc>200K | DW54: P55HH>75yrs | DX54: P55HH>75HHInc<10K | DY54: P55HH>75HHInc10to15K | DZ54: P55HH>75HHInc15to20K | EA54: P55HH>75HHInc20to25K | EB54: P55HH>75HHInc25to30K | EC54: P55HH>75HHInc30to35K | ED54: P55HH>75HHInc35to40K | EE54: P55HH>75HHInc40to45K | EF54: P55HH>75HHInc45to50K | EG54: P55HH>75HHInc50to60K | EH54: P55HH>75HHInc60to75K | EI54: P55HH>75HHInc75to100K | EJ54: P55HH>75HHInc100to125K | EK54: P55HH>75HHInc125to150K | EL54: P55HH>75HHInc150to200K | EM54: P55HH>75HHInc>200K | EN54: P56MedHHInc | EO54: P56MedHHIncHH<25y | EP54: P56MedHHIncHH25to34y | EQ54: P56MedHHIncHH35to44y | ER54: P56MedHHIncHH45to54y | ES54: P56MedHHIncHH55to64y | ET54: P56MedHHIncHH65to74y | EU54: P56MedHHIncHH>75y | EV54: P58Households3 | EW54: P58HHwithEarnings | EX54: P58HHNoEarnings | EY54: P59HHwWageSalInc | EZ54: P59HHNoWageSalInc | FA54: P60HHwSelfEmpInc | FB54: P60HHNoSelfEmpInc | FC54: P61HHwIndDivInc | FD54: P61HHNoIndDivInc | FE54: P62HHwSocSecInc | FF54: P62HHNoSocSecInc | FG54: P63HHwSSI | FH54: P63HHNoSSI | FI54: P64HHwPubAssInc | FJ54: P64HHNoPubAssInc | FK54: P65HHwRetInc | FL54: P65HHNoRetInc | FM54: P66HHwOtherTypInc | FN54: P66HHNoOtherTypInc | FO54: P67AggregEarnings | FP54: P68AggregWageSalInc | FQ54: P69AggregSelfEmpInc | FR54: P70AggregIntDivInc | FS54: P71AggregSocSecInc | FT54: P72AggregSSIInc | FU54: P73AggregPublicAssInc | FV54: P74AggregRetireInc | FW54: P76Families1 | FX54: P76FamInc<10K | FY54: P76FamInc10to15K | FZ54: P76FamInc15to20K | GA54: P76FamInc20to25K | GB54: P76FamInc25to30K | GC54: P76FamInc30to35K | GD54: P76FamInc35to40K | GE54: P76FamInc40to45K | GF54: P76FamInc45to50K | GG54: P76FamInc50to60K | GH54: P76FamInc60to75K | GI54: P76FamInc75to100K | GJ54: P76FamInc100to125K | GK54: P76FamInc125to150K | GL54: P76FamInc150to200K | GM54: P76FamInc>200K | GN54: P77MedFamInc | GO54: P78AggregFamInc | GP54: P79NonFamHH | GQ54: P79NonFamHHwInc<10K | GR54: P79NonFamHHwInc10to15K | GS54: P79NonFamHHwInc15to20K | GT54: P79NonFamHHwInc20to25K | GU54: P79NonFamHHwInc25to30K | GV54: P79NonFamHHwInc30to35K | GW54: P79NonFamHHwInc35to40K | GX54: P79NonFamHHwInc40to45K | GY54: P79NonFamHHwInc45to50K | GZ54: P79NonFamHHwInc50to60K | HA54: P79NonFamHHwInc60to75K | HB54: P79NonFamHHwInc75to100K | HC54: P79NonFamHHwInc100to125K | HD54: P79NonFamHHwInc125to150K | HE54: P79NonFamHHwInc150to200K | HF54: P79NonFamHHwInc200KorMore | HG54: P80MedNonFamInc | HH54: P82PerCapitaInc
A55: =VLOOKUP(DropDownList!$B$47,CntyQryCensus!$A$206:$HH$248,A$1) -> Alexandria | B55: =VLOOKUP(DropDownList!$B$47,CntyQryCensus!$A$206:$HH$248,B$1) -> 0001149 | C55: =VLOOKUP(DropDownList!$B$47,CntyQryCensus!$A$206:$HH$248,C$1) -> 00580 | D55: =VLOOKUP(DropDownList!$B$47,CntyQryCensus!$A$206:$HH$248,D$1) -> 1329 | E55: =VLOOKUP(DropDownList!$B$47,CntyQryCensus!$A$206:$HH$248,E$1) -> 502 | F55: =VLOOKUP(DropDownList!$B$47,CntyQryCensus!$A$206:$HH$248,F$1) -> 15 | G55: =VLOOKUP(DropDownList!$B$47,CntyQryCensus!$A$206:$HH$248,G$1) -> 25 | H55: =VLOOKUP(DropDownList!$B$47,CntyQryCensus!$A$206:$HH$248,H$1) -> 33 | I55: =VLOOKUP(DropDownList!$B$47,CntyQryCensus!$A$206:$HH$248,I$1) -> 32 | J55: =VLOOKUP(DropDownList!$B$47,CntyQryCensus!$A$206:$HH$248,J$1) -> 34 | K55: =VLOOKUP(DropDownList!$B$47,CntyQryCensus!$A$206:$HH$248,K$1) -> 55 | L55: =VLOOKUP(DropDownList!$B$47,CntyQryCensus!$A$206:$HH$248,L$1) -> 30 | M55: =VLOOKUP(DropDownList!$B$47,CntyQryCensus!$A$206:$HH$248,M$1) -> 41 | N55: =VLOOKUP(DropDownList!$B$47,CntyQryCensus!$A$206:$HH$248,N$1) -> 25 | O55: =VLOOKUP(DropDownList!$B$47,CntyQryCensus!$A$206:$HH$248,O$1) -> 72 | P55: =VLOOKUP(DropDownList!$B$47,CntyQryCensus!$A$206:$HH$248,P$1) -> 49 | Q55: =VLOOKUP(DropDownList!$B$47,CntyQryCensus!$A$206:$HH$248,Q$1) -> 55 | R55: =VLOOKUP(DropDownList!$B$47,CntyQryCensus!$A$206:$HH$248,R$1) -> 10 | S55: =VLOOKUP(DropDownList!$B$47,CntyQryCensus!$A$206:$HH$248,S$1) -> 7 | T55: =VLOOKUP(DropDownList!$B$47,CntyQryCensus!$A$206:$HH$248,T$1) -> 14 | U55: =VLOOKUP(DropDownList!$B$47,CntyQryCensus!$A$206:$HH$248,U$1) -> 5 | V55: =VLOOKUP(DropDownList!$B$47,CntyQryCensus!$A$206:$HH$248,V$1) -> 42667 | W55: =VLOOKUP(DropDownList!$B$47,CntyQryCensus!$A$206:$HH$248,W$1) -> 25698500 | X55: =VLOOKUP(DropDownList!$B$47,CntyQryCensus!$A$206:$HH$248,X$1) -> 502 | Y55: =VLOOKUP(DropDownList!$B$47,CntyQryCensus!$A$206:$HH$248,Y$1) -> 15 | Z55: =VLOOKUP(DropDownList!$B$47,CntyQryCensus!$A$206:$HH$248,Z$1) -> 0 | AA55: =VLOOKUP(DropDownList!$B$47,CntyQryCensus!$A$206:$HH$248,AA$1) -> 0 | AB55: =VLOOKUP(DropDownList!$B$47,CntyQryCensus!$A$206:$HH$248,AB$1) -> 4 | AC55: =VLOOKUP(DropDownList!$B$47,CntyQryCensus!$A$206:$HH$248,AC$1) -> 2 | AD55: =VLOOKUP(DropDownList!$B$47,CntyQryCensus!$A$206:$HH$248,AD$1) -> 2 | AE55: =VLOOKUP(DropDownList!$B$47,CntyQryCensus!$A$206:$HH$248,AE$1) -> 2 | AF55: =VLOOKUP(DropDownList!$B$47,CntyQryCensus!$A$206:$HH$248,AF$1) -> 2 | AG55: =VLOOKUP(DropDownList!$B$47,CntyQryCensus!$A$206:$HH$248,AG$1) -> 3 | AH55: =VLOOKUP(DropDownList!$B$47,CntyQryCensus!$A$206:$HH$248,AH$1) -> 0 | AI55: =VLOOKUP(DropDownList!$B$47,CntyQryCensus!$A$206:$HH$248,AI$1) -> 0 | AJ55: =VLOOKUP(DropDownList!$B$47,CntyQryCensus!$A$206:$HH$248,AJ$1) -> 0 | AK55: =VLOOKUP(DropDownList!$B$47,CntyQryCensus!$A$206:$HH$248,AK$1) -> 0 | AL55: =VLOOKUP(DropDownList!$B$47,CntyQryCensus!$A$206:$HH$248,AL$1) -> 0 | AM55: =VLOOKUP(DropDownList!$B$47,CntyQryCensus!$A$206:$HH$248,AM$1) -> 0 | AN55: =VLOOKUP(DropDownList!$B$47,CntyQryCensus!$A$206:$HH$248,AN$1) -> 0 | AO55: =VLOOKUP(DropDownList!$B$47,CntyQryCensus!$A$206:$HH$248,AO$1) -> 0 | AP55: =VLOOKUP(DropDownList!$B$47,CntyQryCensus!$A$206:$HH$248,AP$1) -> 66 | AQ55: =VLOOKUP(DropDownList!$B$47,CntyQryCensus!$A$206:$HH$248,AQ$1) -> 2 | AR55: =VLOOKUP(DropDownList!$B$47,CntyQryCensus!$A$206:$HH$248,AR$1) -> 0 | AS55: =VLOOKUP(DropDownList!$B$47,CntyQryCensus!$A$206:$HH$248,AS$1) -> 3 | AT55: =VLOOKUP(DropDownList!$B$47,CntyQryCensus!$A$206:$HH$248,AT$1) -> 4 | AU55: =VLOOKUP(DropDownList!$B$47,CntyQryCensus!$A$206:$HH$248,AU$1) -> 11 | AV55: =VLOOKUP(DropDownList!$B$47,CntyQryCensus!$A$206:$HH$248,AV$1) -> 5 | AW55: =VLOOKUP(DropDownList!$B$47,CntyQryCensus!$A$206:$HH$248,AW$1) -> 8 | AX55: =VLOOKUP(DropDownList!$B$47,CntyQryCensus!$A$206:$HH$248,AX$1) -> 10 | AY55: =VLOOKUP(DropDownList!$B$47,CntyQryCensus!$A$206:$HH$248,AY$1) -> 9 | AZ55: =VLOOKUP(DropDownList!$B$47,CntyQryCensus!$A$206:$HH$248,AZ$1) -> 6 | BA55: =VLOOKUP(DropDownList!$B$47,CntyQryCensus!$A$206:$HH$248,BA$1) -> 2 | BB55: =VLOOKUP(DropDownList!$B$47,CntyQryCensus!$A$206:$HH$248,BB$1) -> 6 | BC55: =VLOOKUP(DropDownList!$B$47,CntyQryCensus!$A$206:$HH$248,BC$1) -> 0 | BD55: =VLOOKUP(DropDownList!$B$47,CntyQryCensus!$A$206:$HH$248,BD$1) -> 0 | BE55: =VLOOKUP(DropDownList!$B$47,CntyQryCensus!$A$206:$HH$248,BE$1) -> 0 | BF55: =VLOOKUP(DropDownList!$B$47,CntyQryCensus!$A$206:$HH$248,BF$1) -> 0 | BG55: =VLOOKUP(DropDownList!$B$47,CntyQryCensus!$A$206:$HH$248,BG$1) -> 137 | BH55: =VLOOKUP(DropDownList!$B$47,CntyQryCensus!$A$206:$HH$248,BH$1) -> 3 | BI55: =VLOOKUP(DropDownList!$B$47,CntyQryCensus!$A$206:$HH$248,BI$1) -> 5 | BJ55: =VLOOKUP(DropDownList!$B$47,CntyQryCensus!$A$206:$HH$248,BJ$1) -> 5 | BK55: =VLOOKUP(DropDownList!$B$47,CntyQryCensus!$A$206:$HH$248,BK$1) -> 0 | BL55: =VLOOKUP(DropDownList!$B$47,CntyQryCensus!$A$206:$HH$248,BL$1) -> 2 | BM55: =VLOOKUP(DropDownList!$B$47,CntyQryCensus!$A$206:$HH$248,BM$1) -> 17 | BN55: =VLOOKUP(DropDownList!$B$47,CntyQryCensus!$A$206:$HH$248,BN$1) -> 8 | BO55: =VLOOKUP(DropDownList!$B$47,CntyQryCensus!$A$206:$HH$248,BO$1) -> 12 | BP55: =VLOOKUP(DropDownList!$B$47,CntyQryCensus!$A$206:$HH$248,BP$1) -> 9 | BQ55: =VLOOKUP(DropDownList!$B$47,CntyQryCensus!$A$206:$HH$248,BQ$1) -> 19 | BR55: =VLOOKUP(DropDownList!$B$47,CntyQryCensus!$A$206:$HH$248,BR$1) -> 16 | BS55: =VLOOKUP(DropDownList!$B$47,CntyQryCensus!$A$206:$HH$248,BS$1) -> 32 | BT55: =VLOOKUP(DropDownList!$B$47,CntyQryCensus!$A$206:$HH$248,BT$1) -> 2 | BU55: =VLOOKUP(DropDownList!$B$47,CntyQryCensus!$A$206:$HH$248,BU$1) -> 4 | BV55: =VLOOKUP(DropDownList!$B$47,CntyQryCensus!$A$206:$HH$248,BV$1) -> 3 | BW55: =VLOOKUP(DropDownList!$B$47,CntyQryCensus!$A$206:$HH$248,BW$1) -> 0 | BX55: =VLOOKUP(DropDownList!$B$47,CntyQryCensus!$A$206:$HH$248,BX$1) -> 121 | BY55: =VLOOKUP(DropDownList!$B$47,CntyQryCensus!$A$206:$HH$248,BY$1) -> 7 | BZ55: =VLOOKUP(DropDownList!$B$47,CntyQryCensus!$A$206:$HH$248,BZ$1) -> 10 | CA55: =VLOOKUP(DropDownList!$B$47,CntyQryCensus!$A$206:$HH$248,CA$1) -> 0 | CB55: =VLOOKUP(DropDownList!$B$47,CntyQryCensus!$A$206:$HH$248,CB$1) -> 3 | CC55: =VLOOKUP(DropDownList!$B$47,CntyQryCensus!$A$206:$HH$248,CC$1) -> 11 | CD55: =VLOOKUP(DropDownList!$B$47,CntyQryCensus!$A$206:$HH$248,CD$1) -> 5 | CE55: =VLOOKUP(DropDownList!$B$47,CntyQryCensus!$A$206:$HH$248,CE$1) -> 5 | CF55: =VLOOKUP(DropDownList!$B$47,CntyQryCensus!$A$206:$HH$248,CF$1) -> 9 | CG55: =VLOOKUP(DropDownList!$B$47,CntyQryCensus!$A$206:$HH$248,CG$1) -> 5 | CH55: =VLOOKUP(DropDownList!$B$47,CntyQryCensus!$A$206:$HH$248,CH$1) -> 23 | CI55: =VLOOKUP(DropDownList!$B$47,CntyQryCensus!$A$206:$HH$248,CI$1) -> 19 | CJ55: =VLOOKUP(DropDownList!$B$47,CntyQryCensus!$A$206:$HH$248,CJ$1) -> 12 | CK55: =VLOOKUP(DropDownList!$B$47,CntyQryCensus!$A$206:$HH$248,CK$1) -> 5 | CL55: =VLOOKUP(DropDownList!$B$47,CntyQryCensus!$A$206:$HH$248,CL$1) -> 3 | CM55: =VLOOKUP(DropDownList!$B$47,CntyQryCensus!$A$206:$HH$248,CM$1) -> 4 | CN55: =VLOOKUP(DropDownList!$B$47,CntyQryCensus!$A$206:$HH$248,CN$1) -> 0 | CO55: =VLOOKUP(DropDownList!$B$47,CntyQryCensus!$A$206:$HH$248,CO$1) -> 89 | CP55: =VLOOKUP(DropDownList!$B$47,CntyQryCensus!$A$206:$HH$248,CP$1) -> 3 | CQ55: =VLOOKUP(DropDownList!$B$47,CntyQryCensus!$A$206:$HH$248,CQ$1) -> 0 | CR55: =VLOOKUP(DropDownList!$B$47,CntyQryCensus!$A$206:$HH$248,CR$1) -> 6 | CS55: =VLOOKUP(DropDownList!$B$47,CntyQryCensus!$A$206:$HH$248,CS$1) -> 9 | CT55: =VLOOKUP(DropDownList!$B$47,CntyQryCensus!$A$206:$HH$248,CT$1) -> 2 | CU55: =VLOOKUP(DropDownList!$B$47,CntyQryCensus!$A$206:$HH$248,CU$1) -> 15 | CV55: =VLOOKUP(DropDownList!$B$47,CntyQryCensus!$A$206:$HH$248,CV$1) -> 5 | CW55: =VLOOKUP(DropDownList!$B$47,CntyQryCensus!$A$206:$HH$248,CW$1) -> 7 | CX55: =VLOOKUP(DropDownList!$B$47,CntyQryCensus!$A$206:$HH$248,CX$1) -> 2 | CY55: =VLOOKUP(DropDownList!$B$47,CntyQryCensus!$A$206:$HH$248,CY$1) -> 16 | CZ55: =VLOOKUP(DropDownList!$B$47,CntyQryCensus!$A$206:$HH$248,CZ$1) -> 6 | DA55: =VLOOKUP(DropDownList!$B$47,CntyQryCensus!$A$206:$HH$248,DA$1) -> 3 | DB55: =VLOOKUP(DropDownList!$B$47,CntyQryCensus!$A$206:$HH$248,DB$1) -> 3 | DC55: =VLOOKUP(DropDownList!$B$47,CntyQryCensus!$A$206:$HH$248,DC$1) -> 0 | DD55: =VLOOKUP(DropDownList!$B$47,CntyQryCensus!$A$206:$HH$248,DD$1) -> 7 | DE55: =VLOOKUP(DropDownList!$B$47,CntyQryCensus!$A$206:$HH$248,DE$1) -> 5 | DF55: =VLOOKUP(DropDownList!$B$47,CntyQryCensus!$A$206:$HH$248,DF$1) -> 42 | DG55: =VLOOKUP(DropDownList!$B$47,CntyQryCensus!$A$206:$HH$248,DG$1) -> 0 | DH55: =VLOOKUP(DropDownList!$B$47,CntyQryCensus!$A$206:$HH$248,DH$1) -> 6 | DI55: =VLOOKUP(DropDownList!$B$47,CntyQryCensus!$A$206:$HH$248,DI$1) -> 11 | DJ55: =VLOOKUP(DropDownList!$B$47,CntyQryCensus!$A$206:$HH$248,DJ$1) -> 2 | DK55: =VLOOKUP(DropDownList!$B$47,CntyQryCensus!$A$206:$HH$248,DK$1) -> 2 | DL55: =VLOOKUP(DropDownList!$B$47,CntyQryCensus!$A$206:$HH$248,DL$1) -> 9 | DM55: =VLOOKUP(DropDownList!$B$47,CntyQryCensus!$A$206:$HH$248,DM$1) -> 0 | DN55: =VLOOKUP(DropDownList!$B$47,CntyQryCensus!$A$206:$HH$248,DN$1) -> 0 | DO55: =VLOOKUP(DropDownList!$B$47,CntyQryCensus!$A$206:$HH$248,DO$1) -> 0 | DP55: =VLOOKUP(DropDownList!$B$47,CntyQryCensus!$A$206:$HH$248,DP$1) -> 8 | DQ55: =VLOOKUP(DropDownList!$B$47,CntyQryCensus!$A$206:$HH$248,DQ$1) -> 2 | DR55: =VLOOKUP(DropDownList!$B$47,CntyQryCensus!$A$206:$HH$248,DR$1) -> 2 | DS55: =VLOOKUP(DropDownList!$B$47,CntyQryCensus!$A$206:$HH$248,DS$1) -> 0 | DT55: =VLOOKUP(DropDownList!$B$47,CntyQryCensus!$A$206:$HH$248,DT$1) -> 0 | DU55: =VLOOKUP(DropDownList!$B$47,CntyQryCensus!$A$206:$HH$248,DU$1) -> 0 | DV55: =VLOOKUP(DropDownList!$B$47,CntyQryCensus!$A$206:$HH$248,DV$1) -> 0 | DW55: =VLOOKUP(DropDownList!$B$47,CntyQryCensus!$A$206:$HH$248,DW$1) -> 32 | DX55: =VLOOKUP(DropDownList!$B$47,CntyQryCensus!$A$206:$HH$248,DX$1) -> 0 | DY55: =VLOOKUP(DropDownList!$B$47,CntyQryCensus!$A$206:$HH$248,DY$1) -> 4 | DZ55: =VLOOKUP(DropDownList!$B$47,CntyQryCensus!$A$206:$HH$248,DZ$1) -> 4 | EA55: =VLOOKUP(DropDownList!$B$47,CntyQryCensus!$A$206:$HH$248,EA$1) -> 12 | EB55: =VLOOKUP(DropDownList!$B$47,CntyQryCensus!$A$206:$HH$248,EB$1) -> 4 | EC55: =VLOOKUP(DropDownList!$B$47,CntyQryCensus!$A$206:$HH$248,EC$1) -> 2 | ED55: =VLOOKUP(DropDownList!$B$47,CntyQryCensus!$A$206:$HH$248,ED$1) -> 2 | EE55: =VLOOKUP(DropDownList!$B$47,CntyQryCensus!$A$206:$HH$248,EE$1) -> 0 | EF55: =VLOOKUP(DropDownList!$B$47,CntyQryCensus!$A$206:$HH$248,EF$1) -> 0 | EG55: =VLOOKUP(DropDownList!$B$47,CntyQryCensus!$A$206:$HH$248,EG$1) -> 0 | EH55: =VLOOKUP(DropDownList!$B$47,CntyQryCensus!$A$206:$HH$248,EH$1) -> 4 | EI55: =VLOOKUP(DropDownList!$B$47,CntyQryCensus!$A$206:$HH$248,EI$1) -> 0 | EJ55: =VLOOKUP(DropDownList!$B$47,CntyQryCensus!$A$206:$HH$248,EJ$1) -> 0 | EK55: =VLOOKUP(DropDownList!$B$47,CntyQryCensus!$A$206:$HH$248,EK$1) -> 0 | EL55: =VLOOKUP(DropDownList!$B$47,CntyQryCensus!$A$206:$HH$248,EL$1) -> 0 | EM55: =VLOOKUP(DropDownList!$B$47,CntyQryCensus!$A$206:$HH$248,EM$1) -> 0 | EN55: =VLOOKUP(DropDownList!$B$47,CntyQryCensus!$A$206:$HH$248,EN$1) -> 42667 | EO55: =VLOOKUP(DropDownList!$B$47,CntyQryCensus!$A$206:$HH$248,EO$1) -> 26875 | EP55: =VLOOKUP(DropDownList!$B$47,CntyQryCensus!$A$206:$HH$248,EP$1) -> 40000 | EQ55: =VLOOKUP(DropDownList!$B$47,CntyQryCensus!$A$206:$HH$248,EQ$1) -> 53438 | ER55: =VLOOKUP(DropDownList!$B$47,CntyQryCensus!$A$206:$HH$248,ER$1) -> 51528 | ES55: =VLOOKUP(DropDownList!$B$47,CntyQryCensus!$A$206:$HH$248,ES$1) -> 43750 | ET55: =VLOOKUP(DropDownList!$B$47,CntyQryCensus!$A$206:$HH$248,ET$1) -> 28750 | EU55: =VLOOKUP(DropDownList!$B$47,CntyQryCensus!$A$206:$HH$248,EU$1) -> 22000 | EV55: =VLOOKUP(DropDownList!$B$47,CntyQryCensus!$A$206:$HH$248,EV$1) -> 502 | EW55: =VLOOKUP(DropDownList!$B$47,CntyQryCensus!$A$206:$HH$248,EW$1) -> 429 | EX55: =VLOOKUP(DropDownList!$B$47,CntyQryCensus!$A$206:$HH$248,EX$1) -> 73 | EY55: =VLOOKUP(DropDownList!$B$47,CntyQryCensus!$A$206:$HH$248,EY$1) -> 420 | EZ55: =VLOOKUP(DropDownList!$B$47,CntyQryCensus!$A$206:$HH$248,EZ$1) -> 82 | FA55: =VLOOKUP(DropDownList!$B$47,CntyQryCensus!$A$206:$HH$248,FA$1) -> 110 | FB55: =VLOOKUP(DropDownList!$B$47,CntyQryCensus!$A$206:$HH$248,FB$1) -> 392 | FC55: =VLOOKUP(DropDownList!$B$47,CntyQryCensus!$A$206:$HH$248,FC$1) -> 150 | FD55: =VLOOKUP(DropDownList!$B$47,CntyQryCensus!$A$206:$HH$248,FD$1) -> 352 | FE55: =VLOOKUP(DropDownList!$B$47,CntyQryCensus!$A$206:$HH$248,FE$1) -> 124 | FF55: =VLOOKUP(DropDownList!$B$47,CntyQryCensus!$A$206:$HH$248,FF$1) -> 378 | FG55: =VLOOKUP(DropDownList!$B$47,CntyQryCensus!$A$206:$HH$248,FG$1) -> 16 | FH55: =VLOOKUP(DropDownList!$B$47,CntyQryCensus!$A$206:$HH$248,FH$1) -> 486 | FI55: =VLOOKUP(DropDownList!$B$47,CntyQryCensus!$A$206:$HH$248,FI$1) -> 14 | FJ55: =VLOOKUP(DropDownList!$B$47,CntyQryCensus!$A$206:$HH$248,FJ$1) -> 488 | FK55: =VLOOKUP(DropDownList!$B$47,CntyQryCensus!$A$206:$HH$248,FK$1) -> 80 | FL55: =VLOOKUP(DropDownList!$B$47,CntyQryCensus!$A$206:$HH$248,FL$1) -> 422 | FM55: =VLOOKUP(DropDownList!$B$47,CntyQryCensus!$A$206:$HH$248,FM$1) -> 82 | FN55: =VLOOKUP(DropDownList!$B$47,CntyQryCensus!$A$206:$HH$248,FN$1) -> 420 | FO55: =VLOOKUP(DropDownList!$B$47,CntyQryCensus!$A$206:$HH$248,FO$1) -> 21955900 | FP55: =VLOOKUP(DropDownList!$B$47,CntyQryCensus!$A$206:$HH$248,FP$1) -> 18994000 | FQ55: =VLOOKUP(DropDownList!$B$47,CntyQryCensus!$A$206:$HH$248,FQ$1) -> 2961900 | FR55: =VLOOKUP(DropDownList!$B$47,CntyQryCensus!$A$206:$HH$248,FR$1) -> 592200 | FS55: =VLOOKUP(DropDownList!$B$47,CntyQryCensus!$A$206:$HH$248,FS$1) -> 1471000 | FT55: =VLOOKUP(DropDownList!$B$47,CntyQryCensus!$A$206:$HH$248,FT$1) -> 158600 | FU55: =VLOOKUP(DropDownList!$B$47,CntyQryCensus!$A$206:$HH$248,FU$1) -> 17900 | FV55: =VLOOKUP(DropDownList!$B$47,CntyQryCensus!$A$206:$HH$248,FV$1) -> 1223600 | FW55: =VLOOKUP(DropDownList!$B$47,CntyQryCensus!$A$206:$HH$248,FW$1) -> 383 | FX55: =VLOOKUP(DropDownList!$B$47,CntyQryCensus!$A$206:$HH$248,FX$1) -> 12 | FY55: =VLOOKUP(DropDownList!$B$47,CntyQryCensus!$A$206:$HH$248,FY$1) -> 10 | FZ55: =VLOOKUP(DropDownList!$B$47,CntyQryCensus!$A$206:$HH$248,FZ$1) -> 17 | GA55: =VLOOKUP(DropDownList!$B$47,CntyQryCensus!$A$206:$HH$248,GA$1) -> 14 | GB55: =VLOOKUP(DropDownList!$B$47,CntyQryCensus!$A$206:$HH$248,GB$1) -> 19 | GC55: =VLOOKUP(DropDownList!$B$47,CntyQryCensus!$A$206:$HH$248,GC$1) -> 53 | GD55: =VLOOKUP(DropDownList!$B$47,CntyQryCensus!$A$206:$HH$248,GD$1) -> 34 | GE55: =VLOOKUP(DropDownList!$B$47,CntyQryCensus!$A$206:$HH$248,GE$1) -> 28 | GF55: =VLOOKUP(DropDownList!$B$47,CntyQryCensus!$A$206:$HH$248,GF$1) -> 20 | GG55: =VLOOKUP(DropDownList!$B$47,CntyQryCensus!$A$206:$HH$248,GG$1) -> 58 | GH55: =VLOOKUP(DropDownList!$B$47,CntyQryCensus!$A$206:$HH$248,GH$1) -> 44 | GI55: =VLOOKUP(DropDownList!$B$47,CntyQryCensus!$A$206:$HH$248,GI$1) -> 42 | GJ55: =VLOOKUP(DropDownList!$B$47,CntyQryCensus!$A$206:$HH$248,GJ$1) -> 11 | GK55: =VLOOKUP(DropDownList!$B$47,CntyQryCensus!$A$206:$HH$248,GK$1) -> 4 | GL55: =VLOOKUP(DropDownList!$B$47,CntyQryCensus!$A$206:$HH$248,GL$1) -> 14 | GM55: =VLOOKUP(DropDownList!$B$47,CntyQryCensus!$A$206:$HH$248,GM$1) -> 3 | GN55: =VLOOKUP(DropDownList!$B$47,CntyQryCensus!$A$206:$HH$248,GN$1) -> 45938 | GO55: =VLOOKUP(DropDownList!$B$47,CntyQryCensus!$A$206:$HH$248,GO$1) -> 20926300 | GP55: =VLOOKUP(DropDownList!$B$47,CntyQryCensus!$A$206:$HH$248,GP$1) -> 119 | GQ55: =VLOOKUP(DropDownList!$B$47,CntyQryCensus!$A$206:$HH$248,GQ$1) -> 4 | GR55: =VLOOKUP(DropDownList!$B$47,CntyQryCensus!$A$206:$HH$248,GR$1) -> 15 | GS55: =VLOOKUP(DropDownList!$B$47,CntyQryCensus!$A$206:$HH$248,GS$1) -> 19 | GT55: =VLOOKUP(DropDownList!$B$47,CntyQryCensus!$A$206:$HH$248,GT$1) -> 21 | GU55: =VLOOKUP(DropDownList!$B$47,CntyQryCensus!$A$206:$HH$248,GU$1) -> 13 | GV55: =VLOOKUP(DropDownList!$B$47,CntyQryCensus!$A$206:$HH$248,GV$1) -> 7 | GW55: =VLOOKUP(DropDownList!$B$47,CntyQryCensus!$A$206:$HH$248,GW$1) -> 0 | GX55: =VLOOKUP(DropDownList!$B$47,CntyQryCensus!$A$206:$HH$248,GX$1) -> 3 | GY55: =VLOOKUP(DropDownList!$B$47,CntyQryCensus!$A$206:$HH$248,GY$1) -> 10 | GZ55: =VLOOKUP(DropDownList!$B$47,CntyQryCensus!$A$206:$HH$248,GZ$1) -> 13 | HA55: =VLOOKUP(DropDownList!$B$47,CntyQryCensus!$A$206:$HH$248,HA$1) -> 3 | HB55: =VLOOKUP(DropDownList!$B$47,CntyQryCensus!$A$206:$HH$248,HB$1) -> 7 | HC55: =VLOOKUP(DropDownList!$B$47,CntyQryCensus!$A$206:$HH$248,HC$1) -> 2 | HD55: =VLOOKUP(DropDownList!$B$47,CntyQryCensus!$A$206:$HH$248,HD$1) -> 0 | HE55: =VLOOKUP(DropDownList!$B$47,CntyQryCensus!$A$206:$HH$248,HE$1) -> 0 | HF55: =VLOOKUP(DropDownList!$B$47,CntyQryCensus!$A$206:$HH$248,HF$1) -> 2 | HG55: =VLOOKUP(DropDownList!$B$47,CntyQryCensus!$A$206:$HH$248,HG$1) -> 25114 | HH55: =VLOOKUP(DropDownList!$B$47,CntyQryCensus!$A$206:$HH$248,HH$1) -> 19323
A58: Census 2000 SummaryFile3 Sample Data - SF3TownQry2bPovertyChar
A59: NAME | B59: LOGRECNO | C59: COUNTY | D59: TotalPop | E59: P52Households1 | F59: P82PerCapitaInc | G59: P87PopForPovStatus | H59: P87PopWIncBelowPovStatus | I59: P87PopUnder5yrBelowPoverty | J59: P87Pop5yrBelowPoverty | K59: P87Pop5to11yrBelowPoverty | L59: P87Pop12to17yrBelowPoverty | M59: P87Pop18to64yrBelowPoverty | N59: P87Pop65to74yrBelowPoverty | O59: P87PopOver75yrBelowPoverty | P59: P87PopWIncAbovePovStatus | Q59: P87PopUnder5yrAbovePoverty | R59: P87Pop5yrAbovePoverty | S59: P87Pop5to11yrAbovePoverty | T59: P87Pop12to17yrAbovePoverty | U59: P87Pop18to64yrAbovePoverty | V59: P87Pop65to74yrAbovePoverty | W59: P87PopOver75yrAbovePoverty | X59: P90Families | Y59: P90FamWIncBelowPov | Z59: P90MarCupFamWIncBelowPov | AA59: P90MCFamWRltdChld<18WIncBelowPov | AB59: P90MCFamWRltdChld<5WIncBelowPov | AC59: P90MaleHhlrWIncBelowPov | AD59: P90MaleHhlrWRltdChld<18yrWIncBelowPov | AE59: P90MaleHhlrWRltdChld<5yrWIncBelowPov | AF59: P90FemaleHhlrWIncBelowPov | AG59: P90FemaleHhlrWRltdChld<18yWIncBelowPov | AH59: P90FemaleHhlrWRltdChld<5yWIncBelowPov | AI59: P90FamWIncAbovePov | AJ59: P90MarCupFamWIncAbovePov | AK59: P90MCFamWRltdChld<18WIncAbovePov | AL59: P90MCFamWRltdChld<5WIncAbovePov | AM59: P90MaleHhlrWIncAbovePov | AN59: P90MaleHhlrWRltdChld<18yrWIncAbovePov | AO59: P90MaleHhlrWRltdChld<5yrWIncAbovePov | AP59: P90FemaleHhlrWIncAbovePov | AQ59: P90FemaleHhlrWRltdChld<18yWIncAbovePov | AR59: P90FemaleHhlrWRltdChld<5yWIncAbovePov | AS59: P92Households | AT59: P92HHwIncBelowPov | AU59: P92FamHHwIncBelowPov | AV59: P92MCFamHHwIncBelowPov | AW59: P92MaleFamHHwIncBelowPov | AX59: P92FemaleFamHHwIncBelowPov | AY59: P92NonFamHHwIncBelowPov | AZ59: P92NonFamMaleHHwIncBelowPov | BA59: P92NonFamFemaleHHwIncBelowPov | BB59: P92HHwIncAbovePov | BC59: P92FamHHwIncAbovePov | BD59: P92MCFamHHwIncAbovePov | BE59: P92MaleFamHHwIncAbovePov | BF59: P92FemaleFamHHwIncAbovePov | BG59: P92NonFamHHwIncAbovePov | BH59: P92NonFamMaleHHwIncAbovePov | BI59: P92NonFamFemaleHHwIncAbovePov
A60: =VLOOKUP(DropDownList!$B$47,CntyQryCensus!$A$256:$BI$298,A$1) -> Alexandria | B60: =VLOOKUP(DropDownList!$B$47,CntyQryCensus!$A$256:$BI$298,B$1) -> 0001149 | C60: =VLOOKUP(DropDownList!$B$47,CntyQryCensus!$A$256:$BI$298,C$1) -> 00580 | D60: =VLOOKUP(DropDownList!$B$47,CntyQryCensus!$A$256:$BI$298,D$1) -> 1329 | E60: =VLOOKUP(DropDownList!$B$47,CntyQryCensus!$A$256:$BI$298,E$1) -> 502 | F60: =VLOOKUP(DropDownList!$B$47,CntyQryCensus!$A$256:$BI$298,F$1) -> 19323 | G60: =VLOOKUP(DropDownList!$B$47,CntyQryCensus!$A$256:$BI$298,G$1) -> 1308 | H60: =VLOOKUP(DropDownList!$B$47,CntyQryCensus!$A$256:$BI$298,H$1) -> 82 | I60: =VLOOKUP(DropDownList!$B$47,CntyQryCensus!$A$256:$BI$298,I$1) -> 13 | J60: =VLOOKUP(DropDownList!$B$47,CntyQryCensus!$A$256:$BI$298,J$1) -> 5 | K60: =VLOOKUP(DropDownList!$B$47,CntyQryCensus!$A$256:$BI$298,K$1) -> 7 | L60: =VLOOKUP(DropDownList!$B$47,CntyQryCensus!$A$256:$BI$298,L$1) -> 6 | M60: =VLOOKUP(DropDownList!$B$47,CntyQryCensus!$A$256:$BI$298,M$1) -> 51 | N60: =VLOOKUP(DropDownList!$B$47,CntyQryCensus!$A$256:$BI$298,N$1) -> 0 | O60: =VLOOKUP(DropDownList!$B$47,CntyQryCensus!$A$256:$BI$298,O$1) -> 0 | P60: =VLOOKUP(DropDownList!$B$47,CntyQryCensus!$A$256:$BI$298,P$1) -> 1226 | Q60: =VLOOKUP(DropDownList!$B$47,CntyQryCensus!$A$256:$BI$298,Q$1) -> 59 | R60: =VLOOKUP(DropDownList!$B$47,CntyQryCensus!$A$256:$BI$298,R$1) -> 20 | S60: =VLOOKUP(DropDownList!$B$47,CntyQryCensus!$A$256:$BI$298,S$1) -> 88 | T60: =VLOOKUP(DropDownList!$B$47,CntyQryCensus!$A$256:$BI$298,T$1) -> 115 | U60: =VLOOKUP(DropDownList!$B$47,CntyQryCensus!$A$256:$BI$298,U$1) -> 805 | V60: =VLOOKUP(DropDownList!$B$47,CntyQryCensus!$A$256:$BI$298,V$1) -> 92 | W60: =VLOOKUP(DropDownList!$B$47,CntyQryCensus!$A$256:$BI$298,W$1) -> 47 | X60: =VLOOKUP(DropDownList!$B$47,CntyQryCensus!$A$256:$BI$298,X$1) -> 383 | Y60: =VLOOKUP(DropDownList!$B$47,CntyQryCensus!$A$256:$BI$298,Y$1) -> 18 | Z60: =VLOOKUP(DropDownList!$B$47,CntyQryCensus!$A$256:$BI$298,Z$1) -> 12 | AA60: =VLOOKUP(DropDownList!$B$47,CntyQryCensus!$A$256:$BI$298,AA$1) -> 4 | AB60: =VLOOKUP(DropDownList!$B$47,CntyQryCensus!$A$256:$BI$298,AB$1) -> 0 | AC60: =VLOOKUP(DropDownList!$B$47,CntyQryCensus!$A$256:$BI$298,AC$1) -> 0 | AD60: =VLOOKUP(DropDownList!$B$47,CntyQryCensus!$A$256:$BI$298,AD$1) -> 0 | AE60: =VLOOKUP(DropDownList!$B$47,CntyQryCensus!$A$256:$BI$298,AE$1) -> 0 | AF60: =VLOOKUP(DropDownList!$B$47,CntyQryCensus!$A$256:$BI$298,AF$1) -> 6 | AG60: =VLOOKUP(DropDownList!$B$47,CntyQryCensus!$A$256:$BI$298,AG$1) -> 6 | AH60: =VLOOKUP(DropDownList!$B$47,CntyQryCensus!$A$256:$BI$298,AH$1) -> 3 | AI60: =VLOOKUP(DropDownList!$B$47,CntyQryCensus!$A$256:$BI$298,AI$1) -> 365 | AJ60: =VLOOKUP(DropDownList!$B$47,CntyQryCensus!$A$256:$BI$298,AJ$1) -> 324 | AK60: =VLOOKUP(DropDownList!$B$47,CntyQryCensus!$A$256:$BI$298,AK$1) -> 121 | AL60: =VLOOKUP(DropDownList!$B$47,CntyQryCensus!$A$256:$BI$298,AL$1) -> 19 | AM60: =VLOOKUP(DropDownList!$B$47,CntyQryCensus!$A$256:$BI$298,AM$1) -> 18 | AN60: =VLOOKUP(DropDownList!$B$47,CntyQryCensus!$A$256:$BI$298,AN$1) -> 16 | AO60: =VLOOKUP(DropDownList!$B$47,CntyQryCensus!$A$256:$BI$298,AO$1) -> 2 | AP60: =VLOOKUP(DropDownList!$B$47,CntyQryCensus!$A$256:$BI$298,AP$1) -> 23 | AQ60: =VLOOKUP(DropDownList!$B$47,CntyQryCensus!$A$256:$BI$298,AQ$1) -> 19 | AR60: =VLOOKUP(DropDownList!$B$47,CntyQryCensus!$A$256:$BI$298,AR$1) -> 5 | AS60: =VLOOKUP(DropDownList!$B$47,CntyQryCensus!$A$256:$BI$298,AS$1) -> 502 | AT60: =VLOOKUP(DropDownList!$B$47,CntyQryCensus!$A$256:$BI$298,AT$1) -> 22 | AU60: =VLOOKUP(DropDownList!$B$47,CntyQryCensus!$A$256:$BI$298,AU$1) -> 18 | AV60: =VLOOKUP(DropDownList!$B$47,CntyQryCensus!$A$256:$BI$298,AV$1) -> 12 | AW60: =VLOOKUP(DropDownList!$B$47,CntyQryCensus!$A$256:$BI$298,AW$1) -> 0 | AX60: =VLOOKUP(DropDownList!$B$47,CntyQryCensus!$A$256:$BI$298,AX$1) -> 6 | AY60: =VLOOKUP(DropDownList!$B$47,CntyQryCensus!$A$256:$BI$298,AY$1) -> 4 | AZ60: =VLOOKUP(DropDownList!$B$47,CntyQryCensus!$A$256:$BI$298,AZ$1) -> 0 | BA60: =VLOOKUP(DropDownList!$B$47,CntyQryCensus!$A$256:$BI$298,BA$1) -> 4 | BB60: =VLOOKUP(DropDownList!$B$47,CntyQryCensus!$A$256:$BI$298,BB$1) -> 480 | BC60: =VLOOKUP(DropDownList!$B$47,CntyQryCensus!$A$256:$BI$298,BC$1) -> 365 | BD60: =VLOOKUP(DropDownList!$B$47,CntyQryCensus!$A$256:$BI$298,BD$1) -> 324 | BE60: =VLOOKUP(DropDownList!$B$47,CntyQryCensus!$A$256:$BI$298,BE$1) -> 18 | BF60: =VLOOKUP(DropDownList!$B$47,CntyQryCensus!$A$256:$BI$298,BF$1) -> 23 | BG60: =VLOOKUP(DropDownList!$B$47,CntyQryCensus!$A$256:$BI$298,BG$1) -> 115 | BH60: =VLOOKUP(DropDownList!$B$47,CntyQryCensus!$A$256:$BI$298,BH$1) -> 62 | BI60: =VLOOKUP(DropDownList!$B$47,CntyQryCensus!$A$256:$BI$298,BI$1) -> 53
S61: =SUM(R60:T60) -> 223
A63: Census 2000 SummaryFile3 Sample Data - SF3TownQry7HousingA
A64: NAME | B64: LOGRECNO | C64: COUNTY | D64: TotalPop | E64: H1HousingUnitsTotal | F64: H2SampleHU | G64: H2SampleOccHU | H64: H2SampleVacHU | I64: H3HU100pctCount | J64: H5HUTotal | K64: H5HUUrban | L64: H5HUUrbanInUrbanAreas | M64: H5HUUrbanInUrbanClusters | N64: H5HURural | O64: H5HURuralFarm | P64: H5HURuralNonFarm | Q64: H7HUOcc | R64: H7HUOwnrOcc | S64: H7HURentrOcc | T64: H8HUVacant | U64: H8HUVacantForRent | V64: H8HUVacantForSale | W64: H8HUVacRentedorSold | X64: H8HUVacSeasonal | Y64: H8HUVacForMigrantWrkrs | Z64: H8HUOtherVacant | AA64: H14OccHUa | AB64: H14OwnerOccHU | AC64: H14OwnOccHuHh15to24 | AD64: H14OwnOccHuHh25to34 | AE64: H14OwnOccHuHh35to44 | AF64: H14OwnOccHuHh45to54 | AG64: H14OwnOccHuHh55to59 | AH64: H14OwnOccHuHh60to64 | AI64: H14OwnOccHuHh65to74 | AJ64: H14OwnOccHuHh75to84 | AK64: H14OwnOccHuHh85Over | AL64: H14RenterOccHU1 | AM64: H14RntrOccHuHh15to24 | AN64: H14RntrOccHuHh25to34 | AO64: H14RntrOccHuHh35to44 | AP64: H14RntrOccHuHh45to54 | AQ64: H14RntrOccHuHh55to59 | AR64: H14RntrOccHuHh60to64 | AS64: H14RntrOccHuHh65to74 | AT64: H14RntrOccHuHh75to84 | AU64: H14RntrOccHuHh85Over | AV64: H15PopInOccHU | AW64: H15PopInOwnOccHU1 | AX64: H15PopInRentOccHU1 | AY64: H17OccupHUb | AZ64: H17OwnOccHU2 | BA64: H17OwnOccHU1PersonHH | BB64: H17OwnOccHU2PersonHH | BC64: H17OwnOccHU3PersonHH | BD64: H17OwnOccHU4PersonHH | BE64: H17OwnOccHU5PersonHH | BF64: H17OwnOccHU6PersonHH | BG64: H17OwnOccHU7PlusPersonHH | BH64: H17RentOccHU2 | BI64: H17RntOccHU1PersonHH | BJ64: H17RntOccHU2PersonHH | BK64: H17RntOccHU3PersonHH | BL64: H17RntOccHU4PersonHH | BM64: H17RntOccHU5PersonHH | BN64: H17RntOccHU6PersonHH | BO64: H17RntOccHU7PlusPersonHH | BP64: H18AvgHHSize | BQ64: H18AvgHHSizeOwnOcc | BR64: H18AvgHHSizeRentOcc | BS64: H23TotHU | BT64: H23HU1Room | BU64: H23HU2Room | BV64: H23HU3Room | BW64: H23HU4Room | BX64: H23HU5Room | BY64: H23HU6Room | BZ64: H23HU7Room | CA64: H23HU8Room | CB64: H23HU9orMoreRoom | CC64: H24MedianNumRooms | CD64: H25AggregNumRooms | CE64: H30TotalHU | CF64: H30Det1HU | CG64: H30Att1HU | CH64: H30Units2 | CI64: H30Units3or4 | CJ64: H30Units5to9 | CK64: H30Units10to19 | CL64: H30Units20to49 | CM64: H30Units50orMore | CN64: H30UnitsMobileHome | CO64: H30UnitsBoatRv | CP64: H32OccHUcTotal | CQ64: H32OwnerOccHU3 | CR64: H32OwnOccHU1Det | CS64: H32OwnOccHU1Att | CT64: H32OwnOccHU2Unit | CU64: H32OwnOccHU3to4Unit | CV64: H32OwnOccHU5to9Unit | CW64: H32OwnOccHU10to19Unit | CX64: H32OwnOccHU20to49Unit | CY64: H32OwnOccHU50plusUnit | CZ64: H32OwnOccHUMobHom | DA64: H32OwnOccHUBoatRVOth | DB64: H32RentrOccHU3 | DC64: H32RntrOccHU1Det | DD64: H32RntrOccHU1Att | DE64: H32RntrOccHU2Unit | DF64: H32RntrOccHU3to4Unit | DG64: H32RntrOccHU5to9Unit | DH64: H32RntrOccHU10to19Unit | DI64: H32RntrOccHU20to49Unit | DJ64: H32RntrOccHU50PlusUnit | DK64: H32RntrOccHUMobHom | DL64: H32RntrOccHUBoatRVOth | DM64: H33TotPopInOccHU | DN64: H33PopInOwnOccHU2 | DO64: H33PopInOOHU1Det | DP64: H33PopInOOHU1Att | DQ64: H33PopInOOHU2unit | DR64: H33PopInOOHU3to4Unit | DS64: H33PopInOOHU5to9Unit | DT64: H33PopInOOHU10to19Unit | DU64: H33PopInOOHU20to49Unit | DV64: H33PopInOOHU50PlusUnit | DW64: H33PopInOOHUMobilHome | DX64: H33PopInOOHUOtherUnit | DY64: H33PopInRentOccHU2 | DZ64: H33PopInROHU1Det | EA64: H33PopInROHU1Att | EB64: H33PopInROHU2Unit | EC64: H33PopInROHU3to4Unit | ED64: H33PopInROHU5to9Unit | EE64: H33PopInROHU10to19Unit | EF64: H33PopInROHU20to49Unit | EG64: H33PopInROHU50PlusUnit | EH64: H33PopInROHUMobilHome | EI64: H33PopInROHUOtherUnit | EJ64: H36OccHousingUnitsdTotal | EK64: H36OwnerOccHU4 | EL64: H36OOHUBuilt99to0300 | EM64: H36OOHUBuilt95to98 | EN64: H36OOHUBuilt90to94 | EO64: H36OOHUBuilt80to89 | EP64: H36OOHUBuilt70to79 | EQ64: H36OOHUBuilt60to69 | ER64: H36OOHUBuilt50to59 | ES64: H36OOHUBuilt40to49 | ET64: H36OOHUBuilt39Earlier | EU64: H36RentOccHU4 | EV64: H36ROHUBuilt99to0300 | EW64: H36ROHUBuilt95to98 | EX64: H36ROHUBuilt90to94 | EY64: H36ROHUBuilt80to89 | EZ64: H36ROHUBuilt70to79 | FA64: H36ROHUBuilt60to69 | FB64: H36ROHUBuilt50to59 | FC64: H36ROHUBuilt40to49 | FD64: H36ROHUBuilt39Earlier | FE64: H40OccupHousUnitse | FF64: H40HeatFuelUtilGas | FG64: H40HeatFuelBotGas | FH64: H40HeatFuelElect | FI64: H40HeatFuelOilKero | FJ64: H40HeatFuelCoal | FK64: H40HeatFuelWood | FL64: H40HeatFuelSolar | FM64: H40HeatFuelOther | FN64: H40HeatFuelNone | FO64: H41TotalHU | FP64: H41HUNoBdrm | FQ64: H41HU1Bdrm | FR64: H41HU2Bdrm | FS64: H41HU3Bdrm | FT64: H41HU4Bdrm | FU64: H41HU5MoreBdrm | FV64: H42OccuHousUnitf | FW64: H42OwnerOccHU5 | FX64: H42OOHUNoBdrm | FY64: H42OOHU1Bdrm | FZ64: H42OOHU2Bdrm | GA64: H42OOHU3Bdrm | GB64: H42OOHU4Bdrm | GC64: H42OOHU5PlusBdrm | GD64: H42RentOccHU5 | GE64: H42ROHUNoBdrm | GF64: H42ROHU1Bdrm | GG64: H42ROHU2Bdrm | GH64: H42ROHU3Bdrm | GI64: H42ROHU4Bdrm | GJ64: H42ROHU5PlusBdrm | GK64: H48OccupHousUnitsg | GL64: H48OwnerOccHU6 | GM64: H48OOHUwCompltPlumFacil | GN64: H48OOHULackCompltPlumFacil | GO64: H48RentOccHU6 | GP64: H48ROHUwCompltPlumFacil | GQ64: H48ROHULackCompltPlumFacil | GR64: H51OccupHousUnitf | GS64: H51OwnerOccHU7 | GT64: H51OOHUwCompleteKitFacil | GU64: H51OOHULackCompleteKitFacil | GV64: H51RenterOccHU7 | GW64: H51ROHUwCompleteKitFacil | GX64: H51ROHULackCompleteKitFacil
A65: =VLOOKUP(DropDownList!$B47,CntyQryCensus!$A$306:$GX$348,A$1) -> Alexandria | B65: =VLOOKUP(DropDownList!$B47,CntyQryCensus!$A$306:$GX$348,B$1) -> 0001149 | C65: =VLOOKUP(DropDownList!$B47,CntyQryCensus!$A$306:$GX$348,C$1) -> 00580 | D65: =VLOOKUP(DropDownList!$B47,CntyQryCensus!$A$306:$GX$348,D$1) -> 1329 | E65: =VLOOKUP(DropDownList!$B47,CntyQryCensus!$A$306:$GX$348,E$1) -> 783 | F65: =VLOOKUP(DropDownList!$B47,CntyQryCensus!$A$306:$GX$348,F$1) -> 365 | G65: =VLOOKUP(DropDownList!$B47,CntyQryCensus!$A$306:$GX$348,G$1) -> 227 | H65: =VLOOKUP(DropDownList!$B47,CntyQryCensus!$A$306:$GX$348,H$1) -> 138 | I65: =VLOOKUP(DropDownList!$B47,CntyQryCensus!$A$306:$GX$348,I$1) -> 783 | J65: =VLOOKUP(DropDownList!$B47,CntyQryCensus!$A$306:$GX$348,J$1) -> 783 | K65: =VLOOKUP(DropDownList!$B47,CntyQryCensus!$A$306:$GX$348,K$1) -> 0 | L65: =VLOOKUP(DropDownList!$B47,CntyQryCensus!$A$306:$GX$348,L$1) -> 0 | M65: =VLOOKUP(DropDownList!$B47,CntyQryCensus!$A$306:$GX$348,M$1) -> 0 | N65: =VLOOKUP(DropDownList!$B47,CntyQryCensus!$A$306:$GX$348,N$1) -> 783 | O65: =VLOOKUP(DropDownList!$B47,CntyQryCensus!$A$306:$GX$348,O$1) -> 6 | P65: =VLOOKUP(DropDownList!$B47,CntyQryCensus!$A$306:$GX$348,P$1) -> 777 | Q65: =VLOOKUP(DropDownList!$B47,CntyQryCensus!$A$306:$GX$348,Q$1) -> 504 | R65: =VLOOKUP(DropDownList!$B47,CntyQryCensus!$A$306:$GX$348,R$1) -> 433 | S65: =VLOOKUP(DropDownList!$B47,CntyQryCensus!$A$306:$GX$348,S$1) -> 71 | T65: =VLOOKUP(DropDownList!$B47,CntyQryCensus!$A$306:$GX$348,T$1) -> 279 | U65: =VLOOKUP(DropDownList!$B47,CntyQryCensus!$A$306:$GX$348,U$1) -> 2 | V65: =VLOOKUP(DropDownList!$B47,CntyQryCensus!$A$306:$GX$348,V$1) -> 9 | W65: =VLOOKUP(DropDownList!$B47,CntyQryCensus!$A$306:$GX$348,W$1) -> 2 | X65: =VLOOKUP(DropDownList!$B47,CntyQryCensus!$A$306:$GX$348,X$1) -> 264 | Y65: =VLOOKUP(DropDownList!$B47,CntyQryCensus!$A$306:$GX$348,Y$1) -> 0 | Z65: =VLOOKUP(DropDownList!$B47,CntyQryCensus!$A$306:$GX$348,Z$1) -> 2 | AA65: =VLOOKUP(DropDownList!$B47,CntyQryCensus!$A$306:$GX$348,AA$1) -> 504 | AB65: =VLOOKUP(DropDownList!$B47,CntyQryCensus!$A$306:$GX$348,AB$1) -> 433 | AC65: =VLOOKUP(DropDownList!$B47,CntyQryCensus!$A$306:$GX$348,AC$1) -> 7 | AD65: =VLOOKUP(DropDownList!$B47,CntyQryCensus!$A$306:$GX$348,AD$1) -> 47 | AE65: =VLOOKUP(DropDownList!$B47,CntyQryCensus!$A$306:$GX$348,AE$1) -> 125 | AF65: =VLOOKUP(DropDownList!$B47,CntyQryCensus!$A$306:$GX$348,AF$1) -> 102 | AG65: =VLOOKUP(DropDownList!$B47,CntyQryCensus!$A$306:$GX$348,AG$1) -> 46 | AH65: =VLOOKUP(DropDownList!$B47,CntyQryCensus!$A$306:$GX$348,AH$1) -> 31 | AI65: =VLOOKUP(DropDownList!$B47,CntyQryCensus!$A$306:$GX$348,AI$1) -> 40 | AJ65: =VLOOKUP(DropDownList!$B47,CntyQryCensus!$A$306:$GX$348,AJ$1) -> 35 | AK65: =VLOOKUP(DropDownList!$B47,CntyQryCensus!$A$306:$GX$348,AK$1) -> 0 | AL65: =VLOOKUP(DropDownList!$B47,CntyQryCensus!$A$306:$GX$348,AL$1) -> 71 | AM65: =VLOOKUP(DropDownList!$B47,CntyQryCensus!$A$306:$GX$348,AM$1) -> 9 | AN65: =VLOOKUP(DropDownList!$B47,CntyQryCensus!$A$306:$GX$348,AN$1) -> 27 | AO65: =VLOOKUP(DropDownList!$B47,CntyQryCensus!$A$306:$GX$348,AO$1) -> 12 | AP65: =VLOOKUP(DropDownList!$B47,CntyQryCensus!$A$306:$GX$348,AP$1) -> 15 | AQ65: =VLOOKUP(DropDownList!$B47,CntyQryCensus!$A$306:$GX$348,AQ$1) -> 0 | AR65: =VLOOKUP(DropDownList!$B47,CntyQryCensus!$A$306:$GX$348,AR$1) -> 2 | AS65: =VLOOKUP(DropDownList!$B47,CntyQryCensus!$A$306:$GX$348,AS$1) -> 4 | AT65: =VLOOKUP(DropDownList!$B47,CntyQryCensus!$A$306:$GX$348,AT$1) -> 2 | AU65: =VLOOKUP(DropDownList!$B47,CntyQryCensus!$A$306:$GX$348,AU$1) -> 0 | AV65: =VLOOKUP(DropDownList!$B47,CntyQryCensus!$A$306:$GX$348,AV$1) -> 1329 | AW65: =VLOOKUP(DropDownList!$B47,CntyQryCensus!$A$306:$GX$348,AW$1) -> 1141 | AX65: =VLOOKUP(DropDownList!$B47,CntyQryCensus!$A$306:$GX$348,AX$1) -> 188 | AY65: =VLOOKUP(DropDownList!$B47,CntyQryCensus!$A$306:$GX$348,AY$1) -> 504 | AZ65: =VLOOKUP(DropDownList!$B47,CntyQryCensus!$A$306:$GX$348,AZ$1) -> 433 | BA65: =VLOOKUP(DropDownList!$B47,CntyQryCensus!$A$306:$GX$348,BA$1) -> 72 | BB65: =VLOOKUP(DropDownList!$B47,CntyQryCensus!$A$306:$GX$348,BB$1) -> 184 | BC65: =VLOOKUP(DropDownList!$B47,CntyQryCensus!$A$306:$GX$348,BC$1) -> 57 | BD65: =VLOOKUP(DropDownList!$B47,CntyQryCensus!$A$306:$GX$348,BD$1) -> 73 | BE65: =VLOOKUP(DropDownList!$B47,CntyQryCensus!$A$306:$GX$348,BE$1) -> 37 | BF65: =VLOOKUP(DropDownList!$B47,CntyQryCensus!$A$306:$GX$348,BF$1) -> 10 | BG65: =VLOOKUP(DropDownList!$B47,CntyQryCensus!$A$306:$GX$348,BG$1) -> 0 | BH65: =VLOOKUP(DropDownList!$B47,CntyQryCensus!$A$306:$GX$348,BH$1) -> 71 | BI65: =VLOOKUP(DropDownList!$B47,CntyQryCensus!$A$306:$GX$348,BI$1) -> 14 | BJ65: =VLOOKUP(DropDownList!$B47,CntyQryCensus!$A$306:$GX$348,BJ$1) -> 33 | BK65: =VLOOKUP(DropDownList!$B47,CntyQryCensus!$A$306:$GX$348,BK$1) -> 5 | BL65: =VLOOKUP(DropDownList!$B47,CntyQryCensus!$A$306:$GX$348,BL$1) -> 8 | BM65: =VLOOKUP(DropDownList!$B47,CntyQryCensus!$A$306:$GX$348,BM$1) -> 5 | BN65: =VLOOKUP(DropDownList!$B47,CntyQryCensus!$A$306:$GX$348,BN$1) -> 6 | BO65: =VLOOKUP(DropDownList!$B47,CntyQryCensus!$A$306:$GX$348,BO$1) -> 0 | BP65: =VLOOKUP(DropDownList!$B47,CntyQryCensus!$A$306:$GX$348,BP$1) -> 3 | BQ65: =VLOOKUP(DropDownList!$B47,CntyQryCensus!$A$306:$GX$348,BQ$1) -> 3 | BR65: =VLOOKUP(DropDownList!$B47,CntyQryCensus!$A$306:$GX$348,BR$1) -> 3 | BS65: =VLOOKUP(DropDownList!$B47,CntyQryCensus!$A$306:$GX$348,BS$1) -> 783 | BT65: =VLOOKUP(DropDownList!$B47,CntyQryCensus!$A$306:$GX$348,BT$1) -> 22 | BU65: =VLOOKUP(DropDownList!$B47,CntyQryCensus!$A$306:$GX$348,BU$1) -> 28 | BV65: =VLOOKUP(DropDownList!$B47,CntyQryCensus!$A$306:$GX$348,BV$1) -> 45 | BW65: =VLOOKUP(DropDownList!$B47,CntyQryCensus!$A$306:$GX$348,BW$1) -> 149 | BX65: =VLOOKUP(DropDownList!$B47,CntyQryCensus!$A$306:$GX$348,BX$1) -> 165 | BY65: =VLOOKUP(DropDownList!$B47,CntyQryCensus!$A$306:$GX$348,BY$1) -> 163 | BZ65: =VLOOKUP(DropDownList!$B47,CntyQryCensus!$A$306:$GX$348,BZ$1) -> 95 | CA65: =VLOOKUP(DropDownList!$B47,CntyQryCensus!$A$306:$GX$348,CA$1) -> 71 | CB65: =VLOOKUP(DropDownList!$B47,CntyQryCensus!$A$306:$GX$348,CB$1) -> 45 | CC65: =VLOOKUP(DropDownList!$B47,CntyQryCensus!$A$306:$GX$348,CC$1) -> 5 | CD65: =VLOOKUP(DropDownList!$B47,CntyQryCensus!$A$306:$GX$348,CD$1) -> 4295 | CE65: =VLOOKUP(DropDownList!$B47,CntyQryCensus!$A$306:$GX$348,CE$1) -> 783 | CF65: =VLOOKUP(DropDownList!$B47,CntyQryCensus!$A$306:$GX$348,CF$1) -> 607 | CG65: =VLOOKUP(DropDownList!$B47,CntyQryCensus!$A$306:$GX$348,CG$1) -> 75 | CH65: =VLOOKUP(DropDownList!$B47,CntyQryCensus!$A$306:$GX$348,CH$1) -> 8 | CI65: =VLOOKUP(DropDownList!$B47,CntyQryCensus!$A$306:$GX$348,CI$1) -> 0 | CJ65: =VLOOKUP(DropDownList!$B47,CntyQryCensus!$A$306:$GX$348,CJ$1) -> 0 | CK65: =VLOOKUP(DropDownList!$B47,CntyQryCensus!$A$306:$GX$348,CK$1) -> 2 | CL65: =VLOOKUP(DropDownList!$B47,CntyQryCensus!$A$306:$GX$348,CL$1) -> 0 | CM65: =VLOOKUP(DropDownList!$B47,CntyQryCensus!$A$306:$GX$348,CM$1) -> 0 | CN65: =VLOOKUP(DropDownList!$B47,CntyQryCensus!$A$306:$GX$348,CN$1) -> 87 | CO65: =VLOOKUP(DropDownList!$B47,CntyQryCensus!$A$306:$GX$348,CO$1) -> 4 | CP65: =VLOOKUP(DropDownList!$B47,CntyQryCensus!$A$306:$GX$348,CP$1) -> 504 | CQ65: =VLOOKUP(DropDownList!$B47,CntyQryCensus!$A$306:$GX$348,CQ$1) -> 433 | CR65: =VLOOKUP(DropDownList!$B47,CntyQryCensus!$A$306:$GX$348,CR$1) -> 383 | CS65: =VLOOKUP(DropDownList!$B47,CntyQryCensus!$A$306:$GX$348,CS$1) -> 7 | CT65: =VLOOKUP(DropDownList!$B47,CntyQryCensus!$A$306:$GX$348,CT$1) -> 2 | CU65: =VLOOKUP(DropDownList!$B47,CntyQryCensus!$A$306:$GX$348,CU$1) -> 0 | CV65: =VLOOKUP(DropDownList!$B47,CntyQryCensus!$A$306:$GX$348,CV$1) -> 0 | CW65: =VLOOKUP(DropDownList!$B47,CntyQryCensus!$A$306:$GX$348,CW$1) -> 2 | CX65: =VLOOKUP(DropDownList!$B47,CntyQryCensus!$A$306:$GX$348,CX$1) -> 0 | CY65: =VLOOKUP(DropDownList!$B47,CntyQryCensus!$A$306:$GX$348,CY$1) -> 0 | CZ65: =VLOOKUP(DropDownList!$B47,CntyQryCensus!$A$306:$GX$348,CZ$1) -> 39 | DA65: =VLOOKUP(DropDownList!$B47,CntyQryCensus!$A$306:$GX$348,DA$1) -> 0 | DB65: =VLOOKUP(DropDownList!$B47,CntyQryCensus!$A$306:$GX$348,DB$1) -> 71 | DC65: =VLOOKUP(DropDownList!$B47,CntyQryCensus!$A$306:$GX$348,DC$1) -> 45 | DD65: =VLOOKUP(DropDownList!$B47,CntyQryCensus!$A$306:$GX$348,DD$1) -> 5 | DE65: =VLOOKUP(DropDownList!$B47,CntyQryCensus!$A$306:$GX$348,DE$1) -> 6 | DF65: =VLOOKUP(DropDownList!$B47,CntyQryCensus!$A$306:$GX$348,DF$1) -> 0 | DG65: =VLOOKUP(DropDownList!$B47,CntyQryCensus!$A$306:$GX$348,DG$1) -> 0 | DH65: =VLOOKUP(DropDownList!$B47,CntyQryCensus!$A$306:$GX$348,DH$1) -> 0 | DI65: =VLOOKUP(DropDownList!$B47,CntyQryCensus!$A$306:$GX$348,DI$1) -> 0 | DJ65: =VLOOKUP(DropDownList!$B47,CntyQryCensus!$A$306:$GX$348,DJ$1) -> 0 | DK65: =VLOOKUP(DropDownList!$B47,CntyQryCensus!$A$306:$GX$348,DK$1) -> 15 | DL65: =VLOOKUP(DropDownList!$B47,CntyQryCensus!$A$306:$GX$348,DL$1) -> 0 | DM65: =VLOOKUP(DropDownList!$B47,CntyQryCensus!$A$306:$GX$348,DM$1) -> 1329 | DN65: =VLOOKUP(DropDownList!$B47,CntyQryCensus!$A$306:$GX$348,DN$1) -> 1141 | DO65: =VLOOKUP(DropDownList!$B47,CntyQryCensus!$A$306:$GX$348,DO$1) -> 1035 | DP65: =VLOOKUP(DropDownList!$B47,CntyQryCensus!$A$306:$GX$348,DP$1) -> 17 | DQ65: =VLOOKUP(DropDownList!$B47,CntyQryCensus!$A$306:$GX$348,DQ$1) -> 2 | DR65: =VLOOKUP(DropDownList!$B47,CntyQryCensus!$A$306:$GX$348,DR$1) -> 0 | DS65: =VLOOKUP(DropDownList!$B47,CntyQryCensus!$A$306:$GX$348,DS$1) -> 0 | DT65: =VLOOKUP(DropDownList!$B47,CntyQryCensus!$A$306:$GX$348,DT$1) -> 8 | DU65: =VLOOKUP(DropDownList!$B47,CntyQryCensus!$A$306:$GX$348,DU$1) -> 0 | DV65: =VLOOKUP(DropDownList!$B47,CntyQryCensus!$A$306:$GX$348,DV$1) -> 0 | DW65: =VLOOKUP(DropDownList!$B47,CntyQryCensus!$A$306:$GX$348,DW$1) -> 79 | DX65: =VLOOKUP(DropDownList!$B47,CntyQryCensus!$A$306:$GX$348,DX$1) -> 0 | DY65: =VLOOKUP(DropDownList!$B47,CntyQryCensus!$A$306:$GX$348,DY$1) -> 188 | DZ65: =VLOOKUP(DropDownList!$B47,CntyQryCensus!$A$306:$GX$348,DZ$1) -> 132 | EA65: =VLOOKUP(DropDownList!$B47,CntyQryCensus!$A$306:$GX$348,EA$1) -> 8 | EB65: =VLOOKUP(DropDownList!$B47,CntyQryCensus!$A$306:$GX$348,EB$1) -> 8 | EC65: =VLOOKUP(DropDownList!$B47,CntyQryCensus!$A$306:$GX$348,EC$1) -> 0 | ED65: =VLOOKUP(DropDownList!$B47,CntyQryCensus!$A$306:$GX$348,ED$1) -> 0 | EE65: =VLOOKUP(DropDownList!$B47,CntyQryCensus!$A$306:$GX$348,EE$1) -> 0 | EF65: =VLOOKUP(DropDownList!$B47,CntyQryCensus!$A$306:$GX$348,EF$1) -> 0 | EG65: =VLOOKUP(DropDownList!$B47,CntyQryCensus!$A$306:$GX$348,EG$1) -> 0 | EH65: =VLOOKUP(DropDownList!$B47,CntyQryCensus!$A$306:$GX$348,EH$1) -> 40 | EI65: =VLOOKUP(DropDownList!$B47,CntyQryCensus!$A$306:$GX$348,EI$1) -> 0 | EJ65: =VLOOKUP(DropDownList!$B47,CntyQryCensus!$A$306:$GX$348,EJ$1) -> 504 | EK65: =VLOOKUP(DropDownList!$B47,CntyQryCensus!$A$306:$GX$348,EK$1) -> 433 | EL65: =VLOOKUP(DropDownList!$B47,CntyQryCensus!$A$306:$GX$348,EL$1) -> 6 | EM65: =VLOOKUP(DropDownList!$B47,CntyQryCensus!$A$306:$GX$348,EM$1) -> 35 | EN65: =VLOOKUP(DropDownList!$B47,CntyQryCensus!$A$306:$GX$348,EN$1) -> 60 | EO65: =VLOOKUP(DropDownList!$B47,CntyQryCensus!$A$306:$GX$348,EO$1) -> 127 | EP65: =VLOOKUP(DropDownList!$B47,CntyQryCensus!$A$306:$GX$348,EP$1) -> 57 | EQ65: =VLOOKUP(DropDownList!$B47,CntyQryCensus!$A$306:$GX$348,EQ$1) -> 18 | ER65: =VLOOKUP(DropDownList!$B47,CntyQryCensus!$A$306:$GX$348,ER$1) -> 26 | ES65: =VLOOKUP(DropDownList!$B47,CntyQryCensus!$A$306:$GX$348,ES$1) -> 16 | ET65: =VLOOKUP(DropDownList!$B47,CntyQryCensus!$A$306:$GX$348,ET$1) -> 88 | EU65: =VLOOKUP(DropDownList!$B47,CntyQryCensus!$A$306:$GX$348,EU$1) -> 71 | EV65: =VLOOKUP(DropDownList!$B47,CntyQryCensus!$A$306:$GX$348,EV$1) -> 0 | EW65: =VLOOKUP(DropDownList!$B47,CntyQryCensus!$A$306:$GX$348,EW$1) -> 4 | EX65: =VLOOKUP(DropDownList!$B47,CntyQryCensus!$A$306:$GX$348,EX$1) -> 10 | EY65: =VLOOKUP(DropDownList!$B47,CntyQryCensus!$A$306:$GX$348,EY$1) -> 13 | EZ65: =VLOOKUP(DropDownList!$B47,CntyQryCensus!$A$306:$GX$348,EZ$1) -> 13 | FA65: =VLOOKUP(DropDownList!$B47,CntyQryCensus!$A$306:$GX$348,FA$1) -> 10 | FB65: =VLOOKUP(DropDownList!$B47,CntyQryCensus!$A$306:$GX$348,FB$1) -> 3 | FC65: =VLOOKUP(DropDownList!$B47,CntyQryCensus!$A$306:$GX$348,FC$1) -> 0 | FD65: =VLOOKUP(DropDownList!$B47,CntyQryCensus!$A$306:$GX$348,FD$1) -> 18 | FE65: =VLOOKUP(DropDownList!$B47,CntyQryCensus!$A$306:$GX$348,FE$1) -> 504 | FF65: =VLOOKUP(DropDownList!$B47,CntyQryCensus!$A$306:$GX$348,FF$1) -> 3 | FG65: =VLOOKUP(DropDownList!$B47,CntyQryCensus!$A$306:$GX$348,FG$1) -> 70 | FH65: =VLOOKUP(DropDownList!$B47,CntyQryCensus!$A$306:$GX$348,FH$1) -> 9 | FI65: =VLOOKUP(DropDownList!$B47,CntyQryCensus!$A$306:$GX$348,FI$1) -> 280 | FJ65: =VLOOKUP(DropDownList!$B47,CntyQryCensus!$A$306:$GX$348,FJ$1) -> 3 | FK65: =VLOOKUP(DropDownList!$B47,CntyQryCensus!$A$306:$GX$348,FK$1) -> 139 | FL65: =VLOOKUP(DropDownList!$B47,CntyQryCensus!$A$306:$GX$348,FL$1) -> 0 | FM65: =VLOOKUP(DropDownList!$B47,CntyQryCensus!$A$306:$GX$348,FM$1) -> 0 | FN65: =VLOOKUP(DropDownList!$B47,CntyQryCensus!$A$306:$GX$348,FN$1) -> 0 | FO65: =VLOOKUP(DropDownList!$B47,CntyQryCensus!$A$306:$GX$348,FO$1) -> 783 | FP65: =VLOOKUP(DropDownList!$B47,CntyQryCensus!$A$306:$GX$348,FP$1) -> 24 | FQ65: =VLOOKUP(DropDownList!$B47,CntyQryCensus!$A$306:$GX$348,FQ$1) -> 80 | FR65: =VLOOKUP(DropDownList!$B47,CntyQryCensus!$A$306:$GX$348,FR$1) -> 269 | FS65: =VLOOKUP(DropDownList!$B47,CntyQryCensus!$A$306:$GX$348,FS$1) -> 300 | FT65: =VLOOKUP(DropDownList!$B47,CntyQryCensus!$A$306:$GX$348,FT$1) -> 97 | FU65: =VLOOKUP(DropDownList!$B47,CntyQryCensus!$A$306:$GX$348,FU$1) -> 13 | FV65: =VLOOKUP(DropDownList!$B47,CntyQryCensus!$A$306:$GX$348,FV$1) -> 504 | FW65: =VLOOKUP(DropDownList!$B47,CntyQryCensus!$A$306:$GX$348,FW$1) -> 433 | FX65: =VLOOKUP(DropDownList!$B47,CntyQryCensus!$A$306:$GX$348,FX$1) -> 4 | FY65: =VLOOKUP(DropDownList!$B47,CntyQryCensus!$A$306:$GX$348,FY$1) -> 41 | FZ65: =VLOOKUP(DropDownList!$B47,CntyQryCensus!$A$306:$GX$348,FZ$1) -> 140 | GA65: =VLOOKUP(DropDownList!$B47,CntyQryCensus!$A$306:$GX$348,GA$1) -> 179 | GB65: =VLOOKUP(DropDownList!$B47,CntyQryCensus!$A$306:$GX$348,GB$1) -> 64 | GC65: =VLOOKUP(DropDownList!$B47,CntyQryCensus!$A$306:$GX$348,GC$1) -> 5 | GD65: =VLOOKUP(DropDownList!$B47,CntyQryCensus!$A$306:$GX$348,GD$1) -> 71 | GE65: =VLOOKUP(DropDownList!$B47,CntyQryCensus!$A$306:$GX$348,GE$1) -> 6 | GF65: =VLOOKUP(DropDownList!$B47,CntyQryCensus!$A$306:$GX$348,GF$1) -> 8 | GG65: =VLOOKUP(DropDownList!$B47,CntyQryCensus!$A$306:$GX$348,GG$1) -> 23 | GH65: =VLOOKUP(DropDownList!$B47,CntyQryCensus!$A$306:$GX$348,GH$1) -> 17 | GI65: =VLOOKUP(DropDownList!$B47,CntyQryCensus!$A$306:$GX$348,GI$1) -> 9 | GJ65: =VLOOKUP(DropDownList!$B47,CntyQryCensus!$A$306:$GX$348,GJ$1) -> 8 | GK65: =VLOOKUP(DropDownList!$B47,CntyQryCensus!$A$306:$GX$348,GK$1) -> 504 | GL65: =VLOOKUP(DropDownList!$B47,CntyQryCensus!$A$306:$GX$348,GL$1) -> 433 | GM65: =VLOOKUP(DropDownList!$B47,CntyQryCensus!$A$306:$GX$348,GM$1) -> 422 | GN65: =VLOOKUP(DropDownList!$B47,CntyQryCensus!$A$306:$GX$348,GN$1) -> 11 | GO65: =VLOOKUP(DropDownList!$B47,CntyQryCensus!$A$306:$GX$348,GO$1) -> 71 | GP65: =VLOOKUP(DropDownList!$B47,CntyQryCensus!$A$306:$GX$348,GP$1) -> 71 | GQ65: =VLOOKUP(DropDownList!$B47,CntyQryCensus!$A$306:$GX$348,GQ$1) -> 0 | GR65: =VLOOKUP(DropDownList!$B47,CntyQryCensus!$A$306:$GX$348,GR$1) -> 504 | GS65: =VLOOKUP(DropDownList!$B47,CntyQryCensus!$A$306:$GX$348,GS$1) -> 433 | GT65: =VLOOKUP(DropDownList!$B47,CntyQryCensus!$A$306:$GX$348,GT$1) -> 422 | GU65: =VLOOKUP(DropDownList!$B47,CntyQryCensus!$A$306:$GX$348,GU$1) -> 11 | GV65: =VLOOKUP(DropDownList!$B47,CntyQryCensus!$A$306:$GX$348,GV$1) -> 71 | GW65: =VLOOKUP(DropDownList!$B47,CntyQryCensus!$A$306:$GX$348,GW$1) -> 71 | GX65: =VLOOKUP(DropDownList!$B47,CntyQryCensus!$A$306:$GX$348,GX$1) -> 0
A68: Census 2000 SummaryFile3 Sample Data - SF3TownQry8HousingCostA
A69: NAME | B69: LOGRECNO | C69: COUNTY | D69: TotalPop | E69: H62RntrOccHU | F69: H62RntrOccHUwRent | G69: H62ROHUGRent<100 | H69: H62ROHUGRent100to149 | I69: H62ROHUGRent150to199 | J69: H62ROHUGRent200to249 | K69: H62ROHUGRent250to299 | L69: H62ROHUGRent300to349 | M69: H62ROHUGRent350to399 | N69: H62ROHUGRent400to449 | O69: H62ROHUGRent450to499 | P69: H62ROHUGRent500to549 | Q69: H62ROHUGRent550to599 | R69: H62ROHUGRent600to649 | S69: H62ROHUGRent650to699 | T69: H62ROHUGRent700to749 | U69: H62ROHUGRent750to799 | V69: H62ROHUGRent800to899 | W69: H62ROHUGRent900to999 | X69: H62ROHUGRent1000to1249 | Y69: H62ROHUGRent1250to1499 | Z69: H62ROHUGRent1500to1999 | AA69: H62ROHUGRent2000> | AB69: H62ROHUNoGRent | AC69: H63MedianGrossRnt | AD69: H69RenterOccHsU | AE69: H69GRnt<10PctHHInc | AF69: H69GRnt10to15PctHHInc | AG69: H69GRnt15to20PctHHInc | AH69: H69GRnt20to25PctHHInc | AI69: H69GRnt25to30PctHHInc | AJ69: H69GRnt30to35PctHHInc | AK69: H69GRnt35to40PctHHInc | AL69: H69GRnt40to50PctHHInc | AM69: H69GRnt>50PctHHInc | AN69: H69GRntPctNotcomputed | AO69: H73RenterOccHU | AP69: H73ROHUHhInc<10k | AQ69: H73ROHUHhInc<10kRnt<20pct | AR69: H73ROHUHhInc<10kRnt20to25pct | AS69: H73ROHUHhInc<10kRnt25to30pct | AT69: H73ROHUHhInc<10kRnt30to35pct | AU69: H73ROHUHhInc<10kRnt>35pct | AV69: H73ROHUHhInc<10kPctNotComput | AW69: H73ROHUHhInc10to20k | AX69: H73ROHUHhInc10to20kRnt<20pct | AY69: H73ROHUHhInc10to20kRnt20to25pct | AZ69: H73ROHUHhInc10to20kRnt25to30pct | BA69: H73ROHUHhInc10to20kRnt30to35pct | BB69: H73ROHUHhInc10to20kRnt>35pct | BC69: H73ROHUHhInc10to20kRntPctNC | BD69: H73ROHUHhInc20to35k | BE69: H73ROHUHhInc20to35kRnt<20pct | BF69: H73ROHUHhInc20to35kRnt20to25pct | BG69: H73ROHUHhInc20to35kRnt25to30pct | BH69: H73ROHUHhInc20to35kRnt30to35pct | BI69: H73ROHUHhInc20to35kRnt>35pct | BJ69: H73ROHUHhInc20to35kRntPctNC | BK69: H73ROHUHhInc35to40k | BL69: H73ROHUHhInc35to40kRnt<20pct | BM69: H73ROHUHhInc35to40kRnt20to25pct | BN69: H73ROHUHhInc35to40kRnt25to30pct | BO69: H73ROHUHhInc35to40kRnt30to35pct | BP69: H73ROHUHhInc35to40kRnt>35pct | BQ69: H73ROHUHhInc35to40kRntPctNC | BR69: H73ROHUHhInc50to75k | BS69: H73ROHUHhInc50to75kRnt<20pct | BT69: H73ROHUHhInc50to75kRnt20to25pct | BU69: H73ROHUHhInc50to75kRnt25to30pct | BV69: H73ROHUHhInc50to75kRnt30to35pct | BW69: H73ROHUHhInc50to75kRnt>35pct | BX69: H73ROHUHhInc50to75kRntPctNC | BY69: H73ROHUHhInc75to100k | BZ69: H73ROHUHhInc75to100kRnt<20pct | CA69: H73ROHUHhInc75to100kRnt20to25pct | CB69: H73ROHUHhInc75to100kRnt25to30pct | CC69: H73ROHUHhInc75to100kRnt30to35pct | CD69: H73ROHUHhInc75to100kRnt>35pct | CE69: H73ROHUHhInc75to100kRntPctNC | CF69: H73ROHUHhInc>100k | CG69: H73ROHUHhInc>100kRnt<20pct | CH69: H73ROHUHhInc>100kRnt20to25pct | CI69: H73ROHUHhInc>100kRnt25to30pct | CJ69: H73ROHUHhInc>100kRnt30to35pct | CK69: H73ROHUHhInc>100kRnt>35pct | CL69: H73ROHUHhInc>100kRntPctNC | CM69: H73ROHUHhInc>100kRntPctNC
A70: =VLOOKUP(DropDownList!$B$47,CntyQryCensus!$A$357:$CM$399,A$1) -> Alexandria | B70: =VLOOKUP(DropDownList!$B$47,CntyQryCensus!$A$357:$CM$399,B$1) -> 0001149 | C70: =VLOOKUP(DropDownList!$B$47,CntyQryCensus!$A$357:$CM$399,C$1) -> 00580 | D70: =VLOOKUP(DropDownList!$B$47,CntyQryCensus!$A$357:$CM$399,D$1) -> 1329 | E70: =VLOOKUP(DropDownList!$B$47,CntyQryCensus!$A$357:$CM$399,E$1) -> 58 | F70: =VLOOKUP(DropDownList!$B$47,CntyQryCensus!$A$357:$CM$399,F$1) -> 53 | G70: =VLOOKUP(DropDownList!$B$47,CntyQryCensus!$A$357:$CM$399,G$1) -> 0 | H70: =VLOOKUP(DropDownList!$B$47,CntyQryCensus!$A$357:$CM$399,H$1) -> 0 | I70: =VLOOKUP(DropDownList!$B$47,CntyQryCensus!$A$357:$CM$399,I$1) -> 2 | J70: =VLOOKUP(DropDownList!$B$47,CntyQryCensus!$A$357:$CM$399,J$1) -> 0 | K70: =VLOOKUP(DropDownList!$B$47,CntyQryCensus!$A$357:$CM$399,K$1) -> 0 | L70: =VLOOKUP(DropDownList!$B$47,CntyQryCensus!$A$357:$CM$399,L$1) -> 2 | M70: =VLOOKUP(DropDownList!$B$47,CntyQryCensus!$A$357:$CM$399,M$1) -> 5 | N70: =VLOOKUP(DropDownList!$B$47,CntyQryCensus!$A$357:$CM$399,N$1) -> 2 | O70: =VLOOKUP(DropDownList!$B$47,CntyQryCensus!$A$357:$CM$399,O$1) -> 8 | P70: =VLOOKUP(DropDownList!$B$47,CntyQryCensus!$A$357:$CM$399,P$1) -> 4 | Q70: =VLOOKUP(DropDownList!$B$47,CntyQryCensus!$A$357:$CM$399,Q$1) -> 4 | R70: =VLOOKUP(DropDownList!$B$47,CntyQryCensus!$A$357:$CM$399,R$1) -> 5 | S70: =VLOOKUP(DropDownList!$B$47,CntyQryCensus!$A$357:$CM$399,S$1) -> 6 | T70: =VLOOKUP(DropDownList!$B$47,CntyQryCensus!$A$357:$CM$399,T$1) -> 5 | U70: =VLOOKUP(DropDownList!$B$47,CntyQryCensus!$A$357:$CM$399,U$1) -> 2 | V70: =VLOOKUP(DropDownList!$B$47,CntyQryCensus!$A$357:$CM$399,V$1) -> 6 | W70: =VLOOKUP(DropDownList!$B$47,CntyQryCensus!$A$357:$CM$399,W$1) -> 2 | X70: =VLOOKUP(DropDownList!$B$47,CntyQryCensus!$A$357:$CM$399,X$1) -> 0 | Y70: =VLOOKUP(DropDownList!$B$47,CntyQryCensus!$A$357:$CM$399,Y$1) -> 0 | Z70: =VLOOKUP(DropDownList!$B$47,CntyQryCensus!$A$357:$CM$399,Z$1) -> 0 | AA70: =VLOOKUP(DropDownList!$B$47,CntyQryCensus!$A$357:$CM$399,AA$1) -> 0 | AB70: =VLOOKUP(DropDownList!$B$47,CntyQryCensus!$A$357:$CM$399,AB$1) -> 5 | AC70: =VLOOKUP(DropDownList!$B$47,CntyQryCensus!$A$357:$CM$399,AC$1) -> 594 | AD70: =VLOOKUP(DropDownList!$B$47,CntyQryCensus!$A$357:$CM$399,AD$1) -> 58 | AE70: =VLOOKUP(DropDownList!$B$47,CntyQryCensus!$A$357:$CM$399,AE$1) -> 7 | AF70: =VLOOKUP(DropDownList!$B$47,CntyQryCensus!$A$357:$CM$399,AF$1) -> 18 | AG70: =VLOOKUP(DropDownList!$B$47,CntyQryCensus!$A$357:$CM$399,AG$1) -> 7 | AH70: =VLOOKUP(DropDownList!$B$47,CntyQryCensus!$A$357:$CM$399,AH$1) -> 7 | AI70: =VLOOKUP(DropDownList!$B$47,CntyQryCensus!$A$357:$CM$399,AI$1) -> 6 | AJ70: =VLOOKUP(DropDownList!$B$47,CntyQryCensus!$A$357:$CM$399,AJ$1) -> 2 | AK70: =VLOOKUP(DropDownList!$B$47,CntyQryCensus!$A$357:$CM$399,AK$1) -> 0 | AL70: =VLOOKUP(DropDownList!$B$47,CntyQryCensus!$A$357:$CM$399,AL$1) -> 2 | AM70: =VLOOKUP(DropDownList!$B$47,CntyQryCensus!$A$357:$CM$399,AM$1) -> 4 | AN70: =VLOOKUP(DropDownList!$B$47,CntyQryCensus!$A$357:$CM$399,AN$1) -> 5 | AO70: =VLOOKUP(DropDownList!$B$47,CntyQryCensus!$A$357:$CM$399,AO$1) -> 58 | AP70: =VLOOKUP(DropDownList!$B$47,CntyQryCensus!$A$357:$CM$399,AP$1) -> 2 | AQ70: =VLOOKUP(DropDownList!$B$47,CntyQryCensus!$A$357:$CM$399,AQ$1) -> 0 | AR70: =VLOOKUP(DropDownList!$B$47,CntyQryCensus!$A$357:$CM$399,AR$1) -> 0 | AS70: =VLOOKUP(DropDownList!$B$47,CntyQryCensus!$A$357:$CM$399,AS$1) -> 0 | AT70: =VLOOKUP(DropDownList!$B$47,CntyQryCensus!$A$357:$CM$399,AT$1) -> 0 | AU70: =VLOOKUP(DropDownList!$B$47,CntyQryCensus!$A$357:$CM$399,AU$1) -> 2 | AV70: =VLOOKUP(DropDownList!$B$47,CntyQryCensus!$A$357:$CM$399,AV$1) -> 0 | AW70: =VLOOKUP(DropDownList!$B$47,CntyQryCensus!$A$357:$CM$399,AW$1) -> 8 | AX70: =VLOOKUP(DropDownList!$B$47,CntyQryCensus!$A$357:$CM$399,AX$1) -> 2 | AY70: =VLOOKUP(DropDownList!$B$47,CntyQryCensus!$A$357:$CM$399,AY$1) -> 0 | AZ70: =VLOOKUP(DropDownList!$B$47,CntyQryCensus!$A$357:$CM$399,AZ$1) -> 0 | BA70: =VLOOKUP(DropDownList!$B$47,CntyQryCensus!$A$357:$CM$399,BA$1) -> 2 | BB70: =VLOOKUP(DropDownList!$B$47,CntyQryCensus!$A$357:$CM$399,BB$1) -> 2 | BC70: =VLOOKUP(DropDownList!$B$47,CntyQryCensus!$A$357:$CM$399,BC$1) -> 2 | BD70: =VLOOKUP(DropDownList!$B$47,CntyQryCensus!$A$357:$CM$399,BD$1) -> 19 | BE70: =VLOOKUP(DropDownList!$B$47,CntyQryCensus!$A$357:$CM$399,BE$1) -> 4 | BF70: =VLOOKUP(DropDownList!$B$47,CntyQryCensus!$A$357:$CM$399,BF$1) -> 4 | BG70: =VLOOKUP(DropDownList!$B$47,CntyQryCensus!$A$357:$CM$399,BG$1) -> 6 | BH70: =VLOOKUP(DropDownList!$B$47,CntyQryCensus!$A$357:$CM$399,BH$1) -> 0 | BI70: =VLOOKUP(DropDownList!$B$47,CntyQryCensus!$A$357:$CM$399,BI$1) -> 2 | BJ70: =VLOOKUP(DropDownList!$B$47,CntyQryCensus!$A$357:$CM$399,BJ$1) -> 3 | BK70: =VLOOKUP(DropDownList!$B$47,CntyQryCensus!$A$357:$CM$399,BK$1) -> 11 | BL70: =VLOOKUP(DropDownList!$B$47,CntyQryCensus!$A$357:$CM$399,BL$1) -> 8 | BM70: =VLOOKUP(DropDownList!$B$47,CntyQryCensus!$A$357:$CM$399,BM$1) -> 3 | BN70: =VLOOKUP(DropDownList!$B$47,CntyQryCensus!$A$357:$CM$399,BN$1) -> 0 | BO70: =VLOOKUP(DropDownList!$B$47,CntyQryCensus!$A$357:$CM$399,BO$1) -> 0 | BP70: =VLOOKUP(DropDownList!$B$47,CntyQryCensus!$A$357:$CM$399,BP$1) -> 0 | BQ70: =VLOOKUP(DropDownList!$B$47,CntyQryCensus!$A$357:$CM$399,BQ$1) -> 0 | BR70: =VLOOKUP(DropDownList!$B$47,CntyQryCensus!$A$357:$CM$399,BR$1) -> 11 | BS70: =VLOOKUP(DropDownList!$B$47,CntyQryCensus!$A$357:$CM$399,BS$1) -> 11 | BT70: =VLOOKUP(DropDownList!$B$47,CntyQryCensus!$A$357:$CM$399,BT$1) -> 0 | BU70: =VLOOKUP(DropDownList!$B$47,CntyQryCensus!$A$357:$CM$399,BU$1) -> 0 | BV70: =VLOOKUP(DropDownList!$B$47,CntyQryCensus!$A$357:$CM$399,BV$1) -> 0 | BW70: =VLOOKUP(DropDownList!$B$47,CntyQryCensus!$A$357:$CM$399,BW$1) -> 0 | BX70: =VLOOKUP(DropDownList!$B$47,CntyQryCensus!$A$357:$CM$399,BX$1) -> 0 | BY70: =VLOOKUP(DropDownList!$B$47,CntyQryCensus!$A$357:$CM$399,BY$1) -> 3 | BZ70: =VLOOKUP(DropDownList!$B$47,CntyQryCensus!$A$357:$CM$399,BZ$1) -> 3 | CA70: =VLOOKUP(DropDownList!$B$47,CntyQryCensus!$A$357:$CM$399,CA$1) -> 0 | CB70: =VLOOKUP(DropDownList!$B$47,CntyQryCensus!$A$357:$CM$399,CB$1) -> 0 | CC70: =VLOOKUP(DropDownList!$B$47,CntyQryCensus!$A$357:$CM$399,CC$1) -> 0 | CD70: =VLOOKUP(DropDownList!$B$47,CntyQryCensus!$A$357:$CM$399,CD$1) -> 0 | CE70: =VLOOKUP(DropDownList!$B$47,CntyQryCensus!$A$357:$CM$399,CE$1) -> 0 | CF70: =VLOOKUP(DropDownList!$B$47,CntyQryCensus!$A$357:$CM$399,CF$1) -> 4 | CG70: =VLOOKUP(DropDownList!$B$47,CntyQryCensus!$A$357:$CM$399,CG$1) -> 4 | CH70: =VLOOKUP(DropDownList!$B$47,CntyQryCensus!$A$357:$CM$399,CH$1) -> 0 | CI70: =VLOOKUP(DropDownList!$B$47,CntyQryCensus!$A$357:$CM$399,CI$1) -> 0 | CJ70: =VLOOKUP(DropDownList!$B$47,CntyQryCensus!$A$357:$CM$399,CJ$1) -> 0 | CK70: =VLOOKUP(DropDownList!$B$47,CntyQryCensus!$A$357:$CM$399,CK$1) -> 0 | CL70: =VLOOKUP(DropDownList!$B$47,CntyQryCensus!$A$357:$CM$399,CL$1) -> 0 | CM70: =VLOOKUP(DropDownList!$B$47,CntyQryCensus!$A$357:$CM$399,CM$1) -> 0
A73: Census 2000 SummaryFile3 Sample Data - SF3TownQry8HousingCostB
A74: NAME | B74: LOGRECNO | C74: COUNTY | D74: TotalPop | E74: H74SpecOwnerOccHU | F74: H74OOHU<10k | G74: H74OOHU10to15k | H74: H74OOHU15to20k | I74: H74OOHU20to25k | J74: H74OOHU25to30k | K74: H74OOHU30to35k | L74: H74OOHU35to40k | M74: H74OOHU40to50k | N74: H74OOHU50to60k | O74: H74OOHU60to70k | P74: H74OOHU70to80k | Q74: H74OOHU80to90k | R74: H74OOHU90to100k | S74: H74OOHU100to125k | T74: H74OOHU125to150k | U74: H74OOHU150to175k | V74: H74OOHU175to200k | W74: H74OOHU200to250k | X74: H74OOHU250to300k | Y74: H74OOHU300to400k | Z74: H74OOHU400to500k | AA74: H74OOHU500to750k | AB74: H74OOHU750to1000k | AC74: H74OOHU1000kmore | AD74: H76OOHUMedianVal | AE74: H84OwnerOccHU | AF74: H84AllOOHU<10k | AG74: H84AllOOHU10to15k | AH74: H84AllOOHU15to20k | AI74: H84AllOOHU20to25k | AJ74: H84AllOOHU25to30k | AK74: H84AllOOHU30to35k | AL74: H84AllOOHU35to40k | AM74: H84AllOOHU40to50k | AN74: H84AllOOHU50to60k | AO74: H84AllOOHU60to70k | AP74: H84AllOOHU70to80k | AQ74: H84AllOOHU80to90k | AR74: H84AllOOHU90to100k | AS74: H84AllOOHU100to125k | AT74: H84AllOOHU125to150k | AU74: H84AllOOHU150to175k | AV74: H84AllOOHU175to200k | AW74: H84AllOOHU200to250k | AX74: H84AllOOHU250to300k | AY74: H84AllOOHU300to400k | AZ74: H84AllOOHU400to500k | BA74: H84AllOOHU500to750k | BB74: H84AllOOHU750to1000k | BC74: H84AllOOHU1000kmore | BD74: H85OOHUMedVal | BE74: H90SOOHU | BF74: H90HUwMorgt | BG74: H90HUwMtgHC<200 | BH74: H90HUwMtgHC200to300 | BI74: H90HUwMtgHC300to400 | BJ74: H90HUwMtgHC400to500 | BK74: H90HUwMtgHC500to600 | BL74: H90HUwMtgHC600to700 | BM74: H90HUwMtgHC700to800 | BN74: H90HUwMtgHC800to900 | BO74: H90HUwMtgHC900to1000 | BP74: H90HUwMtgHC1000to1250 | BQ74: H90HUwMtgHC1250to1500 | BR74: H90HUwMtgHC1500to2000 | BS74: H90HUwMtgHC2000to2500 | BT74: H90HUwMtgHC2500to3000 | BU74: H90HUwMtgHC3000orMore | BV74: H90HUwOutMorgt | BW74: H90HUwOutMtgHC<100 | BX74: H90HUwOutMtgHC100to150 | BY74: H90HUwOutMtgHC150to200 | BZ74: H90HUwOutMtgHC200to250 | CA74: H90HUwOutMtgHC250to300 | CB74: H90HUwOutMtgHC300to350 | CC74: H90HUwOutMtgHC350to400 | CD74: H90HUwOutMtgHC400to500 | CE74: H90HUwOutMtgHC500to600 | CF74: H90HUwOutMtgHC600to700 | CG74: H90HUwOutMtgHC700to800 | CH74: H90HUwOutMtgHC800to900 | CI74: H90HUwOutMtgHC900to1000 | CJ74: H90HUwOutMtgHC1000orMore | CK74: H91MedianOCHUwMtg | CL74: H91MedianOCHUwOutMtg | CM74: H94SpecOOHU | CN74: H94HUwMortg | CO74: H94HUwMtgHC<10pct | CP74: H94HUwMtgHC10to15pct | CQ74: H94HUwMtgHC15to20pct | CR74: H94HUwMtgHC20to25pct | CS74: H94HUwMtgHC25to30pct | CT74: H94HUwMtgHC30to35pct | CU74: H94HUwMtgHC35to40pct | CV74: H94HUwMtgHC40to50pct | CW74: H94HUwMtgHC50pctOrMore | CX74: H94HUwMtgHCpctNotComp | CY74: H94HUWOutMortg | CZ74: H94HUWOutMortgHC<10pct | DA74: H94HUWOutMortgHC10to15pct | DB74: H94HUWOutMortgHC15to20pct | DC74: H94HUWOutMortgHC20to25pct | DD74: H94HUWOutMortgHC25to30pct | DE74: H94HUWOutMortgHC30to35pct | DF74: H94HUWOutMortgHC35to40pct | DG74: H94HUWOutMortgHC40to50pct | DH74: H94HUWOutMortgHC50pctOrMore | DI74: H94HUWOutMortgHCpctNotComp | DJ74: H97SpecifOwnOccHU | DK74: H97SOOHUInc<10k | DL74: H97SOOHUInc<10kHC<20pct | DM74: H97SOOHUInc<10kHC20to25pct | DN74: H97SOOHUInc<10kHC25to30pct | DO74: H97SOOHUInc<10kHC30to35pct | DP74: H97SOOHUInc<10kHC>35pct | DQ74: H97SOOHUInc<10kHCpctNotComput | DR74: H97SOOHUInc10to20k | DS74: H97SOOHUInc10to20kHC<20pct | DT74: H97SOOHUInc10to20kHC20to25pct | DU74: H97SOOHUInc10to20kHC25to30pct | DV74: H97SOOHUInc10to20kHC30to35pct | DW74: H97SOOHUInc10to20kHC>35pct | DX74: H97SOOHUInc10to20kHCpctNotComput | DY74: H97SOOHUInc20to35k | DZ74: H97SOOHUInc20to35kRC<20pct | EA74: H97SOOHUInc20to35kRC20to25pct | EB74: H97SOOHUInc20to35kRC25to30pct | EC74: H97SOOHUInc20to35kRC30to35pct | ED74: H97SOOHUInc20to35kRC>35pct | EE74: H97SOOHUInc20to35kRCpctNotComput | EF74: H97SOOHUInc35to50k | EG74: H97SOOHUInc35to50kRC<20pct | EH74: H97SOOHUInc35to50kRC20to25pct | EI74: H97SOOHUInc35to50kRC25to30pct | EJ74: H97SOOHUInc35to50kRC30to35pct | EK74: H97SOOHUInc35to50kRC>35pct | EL74: H97SOOHUInc35to50kRCpctNotCompute | EM74: H97SOOHUInc50to75k | EN74: H97SOOHUInc50to75kRC<20pct | EO74: H97SOOHUInc50to75kRC20to25pct | EP74: H97SOOHUInc50to75kRC25to30pct | EQ74: H97SOOHUInc50to75kRC30to35pct | ER74: H97SOOHUInc50to75kRC>35pct | ES74: H97SOOHUInc50to75kRCpctNotComput | ET74: H97SOOHUInc75to100k | EU74: H97SOOHUInc75to100kRC<20pct | EV74: H97SOOHUInc75to100kRC20to25pct | EW74: H97SOOHUInc75to100kRC25to30pct | EX74: H97SOOHUInc75to100kRC30to35pct | EY74: H97SOOHUInc75to100kRC>35pct | EZ74: H97SOOHUInc75to100kRCpctNotCompute | FA74: H97SOOHUInc100to150k | FB74: H97SOOHUInc100to150kRC<20pct | FC74: H97SOOHUInc100to150kRC20to25pct | FD74: H97SOOHUInc100to150kRC25to30pct | FE74: H97SOOHUInc100to150kRC30to35pct | FF74: H97SOOHUInc100to150kRC>35pct | FG74: H97SOOHUInc100to150kRCpctNotCompute | FH74: H97SOOHUInc>150k | FI74: H97SOOHUInc>150kRC<20pct | FJ74: H97SOOHUInc>150kRC20to25pct | FK74: H97SOOHUInc>150kRC25to30pct | FL74: H97SOOHUInc>150kRC30to35pct | FM74: H97SOOHUInc>150kRC>35pct | FN74: H97SOOHUInc>150kRCpctNotCompute
A75: =VLOOKUP(DropDownList!$B$47,CntyQryCensus!$A$408:$FN$450,A$1) -> Alexandria | B75: =VLOOKUP(DropDownList!$B$47,CntyQryCensus!$A$408:$FN$450,B$1) -> 0001149 | C75: =VLOOKUP(DropDownList!$B$47,CntyQryCensus!$A$408:$FN$450,C$1) -> 00580 | D75: =VLOOKUP(DropDownList!$B$47,CntyQryCensus!$A$408:$FN$450,D$1) -> 1329 | E75: =VLOOKUP(DropDownList!$B$47,CntyQryCensus!$A$408:$FN$450,E$1) -> 266 | F75: =VLOOKUP(DropDownList!$B$47,CntyQryCensus!$A$408:$FN$450,F$1) -> 0 | G75: =VLOOKUP(DropDownList!$B$47,CntyQryCensus!$A$408:$FN$450,G$1) -> 0 | H75: =VLOOKUP(DropDownList!$B$47,CntyQryCensus!$A$408:$FN$450,H$1) -> 3 | I75: =VLOOKUP(DropDownList!$B$47,CntyQryCensus!$A$408:$FN$450,I$1) -> 0 | J75: =VLOOKUP(DropDownList!$B$47,CntyQryCensus!$A$408:$FN$450,J$1) -> 0 | K75: =VLOOKUP(DropDownList!$B$47,CntyQryCensus!$A$408:$FN$450,K$1) -> 0 | L75: =VLOOKUP(DropDownList!$B$47,CntyQryCensus!$A$408:$FN$450,L$1) -> 2 | M75: =VLOOKUP(DropDownList!$B$47,CntyQryCensus!$A$408:$FN$450,M$1) -> 18 | N75: =VLOOKUP(DropDownList!$B$47,CntyQryCensus!$A$408:$FN$450,N$1) -> 17 | O75: =VLOOKUP(DropDownList!$B$47,CntyQryCensus!$A$408:$FN$450,O$1) -> 25 | P75: =VLOOKUP(DropDownList!$B$47,CntyQryCensus!$A$408:$FN$450,P$1) -> 25 | Q75: =VLOOKUP(DropDownList!$B$47,CntyQryCensus!$A$408:$FN$450,Q$1) -> 65 | R75: =VLOOKUP(DropDownList!$B$47,CntyQryCensus!$A$408:$FN$450,R$1) -> 29 | S75: =VLOOKUP(DropDownList!$B$47,CntyQryCensus!$A$408:$FN$450,S$1) -> 30 | T75: =VLOOKUP(DropDownList!$B$47,CntyQryCensus!$A$408:$FN$450,T$1) -> 19 | U75: =VLOOKUP(DropDownList!$B$47,CntyQryCensus!$A$408:$FN$450,U$1) -> 21 | V75: =VLOOKUP(DropDownList!$B$47,CntyQryCensus!$A$408:$FN$450,V$1) -> 2 | W75: =VLOOKUP(DropDownList!$B$47,CntyQryCensus!$A$408:$FN$450,W$1) -> 2 | X75: =VLOOKUP(DropDownList!$B$47,CntyQryCensus!$A$408:$FN$450,X$1) -> 4 | Y75: =VLOOKUP(DropDownList!$B$47,CntyQryCensus!$A$408:$FN$450,Y$1) -> 2 | Z75: =VLOOKUP(DropDownList!$B$47,CntyQryCensus!$A$408:$FN$450,Z$1) -> 2 | AA75: =VLOOKUP(DropDownList!$B$47,CntyQryCensus!$A$408:$FN$450,AA$1) -> 0 | AB75: =VLOOKUP(DropDownList!$B$47,CntyQryCensus!$A$408:$FN$450,AB$1) -> 0 | AC75: =VLOOKUP(DropDownList!$B$47,CntyQryCensus!$A$408:$FN$450,AC$1) -> 0 | AD75: =VLOOKUP(DropDownList!$B$47,CntyQryCensus!$A$408:$FN$450,AD$1) -> 86600 | AE75: =VLOOKUP(DropDownList!$B$47,CntyQryCensus!$A$408:$FN$450,AE$1) -> 433 | AF75: =VLOOKUP(DropDownList!$B$47,CntyQryCensus!$A$408:$FN$450,AF$1) -> 0 | AG75: =VLOOKUP(DropDownList!$B$47,CntyQryCensus!$A$408:$FN$450,AG$1) -> 4 | AH75: =VLOOKUP(DropDownList!$B$47,CntyQryCensus!$A$408:$FN$450,AH$1) -> 3 | AI75: =VLOOKUP(DropDownList!$B$47,CntyQryCensus!$A$408:$FN$450,AI$1) -> 0 | AJ75: =VLOOKUP(DropDownList!$B$47,CntyQryCensus!$A$408:$FN$450,AJ$1) -> 9 | AK75: =VLOOKUP(DropDownList!$B$47,CntyQryCensus!$A$408:$FN$450,AK$1) -> 2 | AL75: =VLOOKUP(DropDownList!$B$47,CntyQryCensus!$A$408:$FN$450,AL$1) -> 2 | AM75: =VLOOKUP(DropDownList!$B$47,CntyQryCensus!$A$408:$FN$450,AM$1) -> 25 | AN75: =VLOOKUP(DropDownList!$B$47,CntyQryCensus!$A$408:$FN$450,AN$1) -> 21 | AO75: =VLOOKUP(DropDownList!$B$47,CntyQryCensus!$A$408:$FN$450,AO$1) -> 33 | AP75: =VLOOKUP(DropDownList!$B$47,CntyQryCensus!$A$408:$FN$450,AP$1) -> 34 | AQ75: =VLOOKUP(DropDownList!$B$47,CntyQryCensus!$A$408:$FN$450,AQ$1) -> 83 | AR75: =VLOOKUP(DropDownList!$B$47,CntyQryCensus!$A$408:$FN$450,AR$1) -> 33 | AS75: =VLOOKUP(DropDownList!$B$47,CntyQryCensus!$A$408:$FN$450,AS$1) -> 74 | AT75: =VLOOKUP(DropDownList!$B$47,CntyQryCensus!$A$408:$FN$450,AT$1) -> 42 | AU75: =VLOOKUP(DropDownList!$B$47,CntyQryCensus!$A$408:$FN$450,AU$1) -> 30 | AV75: =VLOOKUP(DropDownList!$B$47,CntyQryCensus!$A$408:$FN$450,AV$1) -> 7 | AW75: =VLOOKUP(DropDownList!$B$47,CntyQryCensus!$A$408:$FN$450,AW$1) -> 16 | AX75: =VLOOKUP(DropDownList!$B$47,CntyQryCensus!$A$408:$FN$450,AX$1) -> 9 | AY75: =VLOOKUP(DropDownList!$B$47,CntyQryCensus!$A$408:$FN$450,AY$1) -> 4 | AZ75: =VLOOKUP(DropDownList!$B$47,CntyQryCensus!$A$408:$FN$450,AZ$1) -> 2 | BA75: =VLOOKUP(DropDownList!$B$47,CntyQryCensus!$A$408:$FN$450,BA$1) -> 0 | BB75: =VLOOKUP(DropDownList!$B$47,CntyQryCensus!$A$408:$FN$450,BB$1) -> 0 | BC75: =VLOOKUP(DropDownList!$B$47,CntyQryCensus!$A$408:$FN$450,BC$1) -> 0 | BD75: =VLOOKUP(DropDownList!$B$47,CntyQryCensus!$A$408:$FN$450,BD$1) -> 90200 | BE75: =VLOOKUP(DropDownList!$B$47,CntyQryCensus!$A$408:$FN$450,BE$1) -> 266 | BF75: =VLOOKUP(DropDownList!$B$47,CntyQryCensus!$A$408:$FN$450,BF$1) -> 170 | BG75: =VLOOKUP(DropDownList!$B$47,CntyQryCensus!$A$408:$FN$450,BG$1) -> 0 | BH75: =VLOOKUP(DropDownList!$B$47,CntyQryCensus!$A$408:$FN$450,BH$1) -> 2 | BI75: =VLOOKUP(DropDownList!$B$47,CntyQryCensus!$A$408:$FN$450,BI$1) -> 4 | BJ75: =VLOOKUP(DropDownList!$B$47,CntyQryCensus!$A$408:$FN$450,BJ$1) -> 7 | BK75: =VLOOKUP(DropDownList!$B$47,CntyQryCensus!$A$408:$FN$450,BK$1) -> 19 | BL75: =VLOOKUP(DropDownList!$B$47,CntyQryCensus!$A$408:$FN$450,BL$1) -> 16 | BM75: =VLOOKUP(DropDownList!$B$47,CntyQryCensus!$A$408:$FN$450,BM$1) -> 36 | BN75: =VLOOKUP(DropDownList!$B$47,CntyQryCensus!$A$408:$FN$450,BN$1) -> 19 | BO75: =VLOOKUP(DropDownList!$B$47,CntyQryCensus!$A$408:$FN$450,BO$1) -> 24 | BP75: =VLOOKUP(DropDownList!$B$47,CntyQryCensus!$A$408:$FN$450,BP$1) -> 24 | BQ75: =VLOOKUP(DropDownList!$B$47,CntyQryCensus!$A$408:$FN$450,BQ$1) -> 5 | BR75: =VLOOKUP(DropDownList!$B$47,CntyQryCensus!$A$408:$FN$450,BR$1) -> 14 | BS75: =VLOOKUP(DropDownList!$B$47,CntyQryCensus!$A$408:$FN$450,BS$1) -> 0 | BT75: =VLOOKUP(DropDownList!$B$47,CntyQryCensus!$A$408:$FN$450,BT$1) -> 0 | BU75: =VLOOKUP(DropDownList!$B$47,CntyQryCensus!$A$408:$FN$450,BU$1) -> 0 | BV75: =VLOOKUP(DropDownList!$B$47,CntyQryCensus!$A$408:$FN$450,BV$1) -> 96 | BW75: =VLOOKUP(DropDownList!$B$47,CntyQryCensus!$A$408:$FN$450,BW$1) -> 2 | BX75: =VLOOKUP(DropDownList!$B$47,CntyQryCensus!$A$408:$FN$450,BX$1) -> 8 | BY75: =VLOOKUP(DropDownList!$B$47,CntyQryCensus!$A$408:$FN$450,BY$1) -> 6 | BZ75: =VLOOKUP(DropDownList!$B$47,CntyQryCensus!$A$408:$FN$450,BZ$1) -> 16 | CA75: =VLOOKUP(DropDownList!$B$47,CntyQryCensus!$A$408:$FN$450,CA$1) -> 10 | CB75: =VLOOKUP(DropDownList!$B$47,CntyQryCensus!$A$408:$FN$450,CB$1) -> 21 | CC75: =VLOOKUP(DropDownList!$B$47,CntyQryCensus!$A$408:$FN$450,CC$1) -> 16 | CD75: =VLOOKUP(DropDownList!$B$47,CntyQryCensus!$A$408:$FN$450,CD$1) -> 9 | CE75: =VLOOKUP(DropDownList!$B$47,CntyQryCensus!$A$408:$FN$450,CE$1) -> 4 | CF75: =VLOOKUP(DropDownList!$B$47,CntyQryCensus!$A$408:$FN$450,CF$1) -> 2 | CG75: =VLOOKUP(DropDownList!$B$47,CntyQryCensus!$A$408:$FN$450,CG$1) -> 0 | CH75: =VLOOKUP(DropDownList!$B$47,CntyQryCensus!$A$408:$FN$450,CH$1) -> 0 | CI75: =VLOOKUP(DropDownList!$B$47,CntyQryCensus!$A$408:$FN$450,CI$1) -> 0 | CJ75: =VLOOKUP(DropDownList!$B$47,CntyQryCensus!$A$408:$FN$450,CJ$1) -> 2 | CK75: =VLOOKUP(DropDownList!$B$47,CntyQryCensus!$A$408:$FN$450,CK$1) -> 805 | CL75: =VLOOKUP(DropDownList!$B$47,CntyQryCensus!$A$408:$FN$450,CL$1) -> 314 | CM75: =VLOOKUP(DropDownList!$B$47,CntyQryCensus!$A$408:$FN$450,CM$1) -> 266 | CN75: =VLOOKUP(DropDownList!$B$47,CntyQryCensus!$A$408:$FN$450,CN$1) -> 170 | CO75: =VLOOKUP(DropDownList!$B$47,CntyQryCensus!$A$408:$FN$450,CO$1) -> 11 | CP75: =VLOOKUP(DropDownList!$B$47,CntyQryCensus!$A$408:$FN$450,CP$1) -> 30 | CQ75: =VLOOKUP(DropDownList!$B$47,CntyQryCensus!$A$408:$FN$450,CQ$1) -> 41 | CR75: =VLOOKUP(DropDownList!$B$47,CntyQryCensus!$A$408:$FN$450,CR$1) -> 25 | CS75: =VLOOKUP(DropDownList!$B$47,CntyQryCensus!$A$408:$FN$450,CS$1) -> 23 | CT75: =VLOOKUP(DropDownList!$B$47,CntyQryCensus!$A$408:$FN$450,CT$1) -> 10 | CU75: =VLOOKUP(DropDownList!$B$47,CntyQryCensus!$A$408:$FN$450,CU$1) -> 8 | CV75: =VLOOKUP(DropDownList!$B$47,CntyQryCensus!$A$408:$FN$450,CV$1) -> 9 | CW75: =VLOOKUP(DropDownList!$B$47,CntyQryCensus!$A$408:$FN$450,CW$1) -> 10 | CX75: =VLOOKUP(DropDownList!$B$47,CntyQryCensus!$A$408:$FN$450,CX$1) -> 3 | CY75: =VLOOKUP(DropDownList!$B$47,CntyQryCensus!$A$408:$FN$450,CY$1) -> 96 | CZ75: =VLOOKUP(DropDownList!$B$47,CntyQryCensus!$A$408:$FN$450,CZ$1) -> 34 | DA75: =VLOOKUP(DropDownList!$B$47,CntyQryCensus!$A$408:$FN$450,DA$1) -> 15 | DB75: =VLOOKUP(DropDownList!$B$47,CntyQryCensus!$A$408:$FN$450,DB$1) -> 21 | DC75: =VLOOKUP(DropDownList!$B$47,CntyQryCensus!$A$408:$FN$450,DC$1) -> 16 | DD75: =VLOOKUP(DropDownList!$B$47,CntyQryCensus!$A$408:$FN$450,DD$1) -> 4 | DE75: =VLOOKUP(DropDownList!$B$47,CntyQryCensus!$A$408:$FN$450,DE$1) -> 2 | DF75: =VLOOKUP(DropDownList!$B$47,CntyQryCensus!$A$408:$FN$450,DF$1) -> 2 | DG75: =VLOOKUP(DropDownList!$B$47,CntyQryCensus!$A$408:$FN$450,DG$1) -> 0 | DH75: =VLOOKUP(DropDownList!$B$47,CntyQryCensus!$A$408:$FN$450,DH$1) -> 2 | DI75: =VLOOKUP(DropDownList!$B$47,CntyQryCensus!$A$408:$FN$450,DI$1) -> 0 | DJ75: =VLOOKUP(DropDownList!$B$47,CntyQryCensus!$A$408:$FN$450,DJ$1) -> 266 | DK75: =VLOOKUP(DropDownList!$B$47,CntyQryCensus!$A$408:$FN$450,DK$1) -> 7 | DL75: =VLOOKUP(DropDownList!$B$47,CntyQryCensus!$A$408:$FN$450,DL$1) -> 2 | DM75: =VLOOKUP(DropDownList!$B$47,CntyQryCensus!$A$408:$FN$450,DM$1) -> 0 | DN75: =VLOOKUP(DropDownList!$B$47,CntyQryCensus!$A$408:$FN$450,DN$1) -> 0 | DO75: =VLOOKUP(DropDownList!$B$47,CntyQryCensus!$A$408:$FN$450,DO$1) -> 0 | DP75: =VLOOKUP(DropDownList!$B$47,CntyQryCensus!$A$408:$FN$450,DP$1) -> 2 | DQ75: =VLOOKUP(DropDownList!$B$47,CntyQryCensus!$A$408:$FN$450,DQ$1) -> 3 | DR75: =VLOOKUP(DropDownList!$B$47,CntyQryCensus!$A$408:$FN$450,DR$1) -> 34 | DS75: =VLOOKUP(DropDownList!$B$47,CntyQryCensus!$A$408:$FN$450,DS$1) -> 8 | DT75: =VLOOKUP(DropDownList!$B$47,CntyQryCensus!$A$408:$FN$450,DT$1) -> 10 | DU75: =VLOOKUP(DropDownList!$B$47,CntyQryCensus!$A$408:$FN$450,DU$1) -> 4 | DV75: =VLOOKUP(DropDownList!$B$47,CntyQryCensus!$A$408:$FN$450,DV$1) -> 2 | DW75: =VLOOKUP(DropDownList!$B$47,CntyQryCensus!$A$408:$FN$450,DW$1) -> 10 | DX75: =VLOOKUP(DropDownList!$B$47,CntyQryCensus!$A$408:$FN$450,DX$1) -> 0 | DY75: =VLOOKUP(DropDownList!$B$47,CntyQryCensus!$A$408:$FN$450,DY$1) -> 67 | DZ75: =VLOOKUP(DropDownList!$B$47,CntyQryCensus!$A$408:$FN$450,DZ$1) -> 33 | EA75: =VLOOKUP(DropDownList!$B$47,CntyQryCensus!$A$408:$FN$450,EA$1) -> 11 | EB75: =VLOOKUP(DropDownList!$B$47,CntyQryCensus!$A$408:$FN$450,EB$1) -> 4 | EC75: =VLOOKUP(DropDownList!$B$47,CntyQryCensus!$A$408:$FN$450,EC$1) -> 4 | ED75: =VLOOKUP(DropDownList!$B$47,CntyQryCensus!$A$408:$FN$450,ED$1) -> 15 | EE75: =VLOOKUP(DropDownList!$B$47,CntyQryCensus!$A$408:$FN$450,EE$1) -> 0 | EF75: =VLOOKUP(DropDownList!$B$47,CntyQryCensus!$A$408:$FN$450,EF$1) -> 52 | EG75: =VLOOKUP(DropDownList!$B$47,CntyQryCensus!$A$408:$FN$450,EG$1) -> 16 | EH75: =VLOOKUP(DropDownList!$B$47,CntyQryCensus!$A$408:$FN$450,EH$1) -> 16 | EI75: =VLOOKUP(DropDownList!$B$47,CntyQryCensus!$A$408:$FN$450,EI$1) -> 12 | EJ75: =VLOOKUP(DropDownList!$B$47,CntyQryCensus!$A$408:$FN$450,EJ$1) -> 6 | EK75: =VLOOKUP(DropDownList!$B$47,CntyQryCensus!$A$408:$FN$450,EK$1) -> 2 | EL75: =VLOOKUP(DropDownList!$B$47,CntyQryCensus!$A$408:$FN$450,EL$1) -> 0 | EM75: =VLOOKUP(DropDownList!$B$47,CntyQryCensus!$A$408:$FN$450,EM$1) -> 60 | EN75: =VLOOKUP(DropDownList!$B$47,CntyQryCensus!$A$408:$FN$450,EN$1) -> 49 | EO75: =VLOOKUP(DropDownList!$B$47,CntyQryCensus!$A$408:$FN$450,EO$1) -> 2 | EP75: =VLOOKUP(DropDownList!$B$47,CntyQryCensus!$A$408:$FN$450,EP$1) -> 7 | EQ75: =VLOOKUP(DropDownList!$B$47,CntyQryCensus!$A$408:$FN$450,EQ$1) -> 0 | ER75: =VLOOKUP(DropDownList!$B$47,CntyQryCensus!$A$408:$FN$450,ER$1) -> 2 | ES75: =VLOOKUP(DropDownList!$B$47,CntyQryCensus!$A$408:$FN$450,ES$1) -> 0 | ET75: =VLOOKUP(DropDownList!$B$47,CntyQryCensus!$A$408:$FN$450,ET$1) -> 31 | EU75: =VLOOKUP(DropDownList!$B$47,CntyQryCensus!$A$408:$FN$450,EU$1) -> 29 | EV75: =VLOOKUP(DropDownList!$B$47,CntyQryCensus!$A$408:$FN$450,EV$1) -> 2 | EW75: =VLOOKUP(DropDownList!$B$47,CntyQryCensus!$A$408:$FN$450,EW$1) -> 0 | EX75: =VLOOKUP(DropDownList!$B$47,CntyQryCensus!$A$408:$FN$450,EX$1) -> 0 | EY75: =VLOOKUP(DropDownList!$B$47,CntyQryCensus!$A$408:$FN$450,EY$1) -> 0 | EZ75: =VLOOKUP(DropDownList!$B$47,CntyQryCensus!$A$408:$FN$450,EZ$1) -> 0 | FA75: =VLOOKUP(DropDownList!$B$47,CntyQryCensus!$A$408:$FN$450,FA$1) -> 6 | FB75: =VLOOKUP(DropDownList!$B$47,CntyQryCensus!$A$408:$FN$450,FB$1) -> 6 | FC75: =VLOOKUP(DropDownList!$B$47,CntyQryCensus!$A$408:$FN$450,FC$1) -> 0 | FD75: =VLOOKUP(DropDownList!$B$47,CntyQryCensus!$A$408:$FN$450,FD$1) -> 0 | FE75: =VLOOKUP(DropDownList!$B$47,CntyQryCensus!$A$408:$FN$450,FE$1) -> 0 | FF75: =VLOOKUP(DropDownList!$B$47,CntyQryCensus!$A$408:$FN$450,FF$1) -> 0 | FG75: =VLOOKUP(DropDownList!$B$47,CntyQryCensus!$A$408:$FN$450,FG$1) -> 0 | FH75: =VLOOKUP(DropDownList!$B$47,CntyQryCensus!$A$408:$FN$450,FH$1) -> 9 | FI75: =VLOOKUP(DropDownList!$B$47,CntyQryCensus!$A$408:$FN$450,FI$1) -> 9 | FJ75: =VLOOKUP(DropDownList!$B$47,CntyQryCensus!$A$408:$FN$450,FJ$1) -> 0 | FK75: =VLOOKUP(DropDownList!$B$47,CntyQryCensus!$A$408:$FN$450,FK$1) -> 0 | FL75: =VLOOKUP(DropDownList!$B$47,CntyQryCensus!$A$408:$FN$450,FL$1) -> 0 | FM75: =VLOOKUP(DropDownList!$B$47,CntyQryCensus!$A$408:$FN$450,FM$1) -> 0 | FN75: =VLOOKUP(DropDownList!$B$47,CntyQryCensus!$A$408:$FN$450,FN$1) -> 0
A78: Census 2000 SummaryFile3 Sample Data - SF3TownQry9HHIncomeByTenure
A79: NAME | B79: LOGRECNO | C79: COUNTY | D79: TotalPop | E79: HCT11OccHU | F79: HCT11OwnOccHU | G79: HCT11OOHUInc<5K | H79: HCT11OOHUInc5to10K | I79: HCT11OOHUInc10to15K | J79: HCT11OOHUInc15to20K | K79: HCT11OOHUInc20to25K | L79: HCT11OOHUInc25to35K | M79: HCT11OOHUInc35to50K | N79: HCT11OOHUInc50to75K | O79: HCT11OOHUInc75to100K | P79: HCT11OOHUInc100to150K | Q79: HCT11OOHUInc>150K | R79: HCT11RentOccHU | S79: HCT11ROHUInc<5K | T79: HCT11ROHUInc5to10K | U79: HCT11ROHUInc10to15K | V79: HCT11ROHUInc15to20K | W79: HCT11ROHUInc20to25K | X79: HCT11ROHUInc25to35K | Y79: HCT11ROHUInc35to50K | Z79: HCT11ROHUInc50to75K | AA79: HCT11ROHUInc75to100K | AB79: HCT11ROHUInc100to150K | AC79: HCT11ROHUInc>150K | AD79: HCT12MedHHInc | AE79: HCT12MedOwnOccHHInc | AF79: HCT12MedRentOccHHInc | AG79: Summary Level
A80: =VLOOKUP(DropDownList!$B$47,CntyQryCensus!$A$459:$AG$501,A$1) -> Alexandria | B80: =VLOOKUP(DropDownList!$B$47,CntyQryCensus!$A$459:$AG$501,B$1) -> 0001149 | C80: =VLOOKUP(DropDownList!$B$47,CntyQryCensus!$A$459:$AG$501,C$1) -> 00580 | D80: =VLOOKUP(DropDownList!$B$47,CntyQryCensus!$A$459:$AG$501,D$1) -> Alexandria town | E80: =VLOOKUP(DropDownList!$B$47,CntyQryCensus!$A$459:$AG$501,E$1) -> 009 | F80: =VLOOKUP(DropDownList!$B$47,CntyQryCensus!$A$459:$AG$501,F$1) -> 1329 | G80: =VLOOKUP(DropDownList!$B$47,CntyQryCensus!$A$459:$AG$501,G$1) -> 504 | H80: =VLOOKUP(DropDownList!$B$47,CntyQryCensus!$A$459:$AG$501,H$1) -> 433 | I80: =VLOOKUP(DropDownList!$B$47,CntyQryCensus!$A$459:$AG$501,I$1) -> 8 | J80: =VLOOKUP(DropDownList!$B$47,CntyQryCensus!$A$459:$AG$501,J$1) -> 4 | K80: =VLOOKUP(DropDownList!$B$47,CntyQryCensus!$A$459:$AG$501,K$1) -> 24 | L80: =VLOOKUP(DropDownList!$B$47,CntyQryCensus!$A$459:$AG$501,L$1) -> 26 | M80: =VLOOKUP(DropDownList!$B$47,CntyQryCensus!$A$459:$AG$501,M$1) -> 33 | N80: =VLOOKUP(DropDownList!$B$47,CntyQryCensus!$A$459:$AG$501,N$1) -> 68 | O80: =VLOOKUP(DropDownList!$B$47,CntyQryCensus!$A$459:$AG$501,O$1) -> 88 | P80: =VLOOKUP(DropDownList!$B$47,CntyQryCensus!$A$459:$AG$501,P$1) -> 106 | Q80: =VLOOKUP(DropDownList!$B$47,CntyQryCensus!$A$459:$AG$501,Q$1) -> 45 | R80: =VLOOKUP(DropDownList!$B$47,CntyQryCensus!$A$459:$AG$501,R$1) -> 15 | S80: =VLOOKUP(DropDownList!$B$47,CntyQryCensus!$A$459:$AG$501,S$1) -> 16 | T80: =VLOOKUP(DropDownList!$B$47,CntyQryCensus!$A$459:$AG$501,T$1) -> 71 | U80: =VLOOKUP(DropDownList!$B$47,CntyQryCensus!$A$459:$AG$501,U$1) -> 2 | V80: =VLOOKUP(DropDownList!$B$47,CntyQryCensus!$A$459:$AG$501,V$1) -> 0 | W80: =VLOOKUP(DropDownList!$B$47,CntyQryCensus!$A$459:$AG$501,W$1) -> 2 | X80: =VLOOKUP(DropDownList!$B$47,CntyQryCensus!$A$459:$AG$501,X$1) -> 8 | Y80: =VLOOKUP(DropDownList!$B$47,CntyQryCensus!$A$459:$AG$501,Y$1) -> 2 | Z80: =VLOOKUP(DropDownList!$B$47,CntyQryCensus!$A$459:$AG$501,Z$1) -> 19 | AA80: =VLOOKUP(DropDownList!$B$47,CntyQryCensus!$A$459:$AG$501,AA$1) -> 15 | AB80: =VLOOKUP(DropDownList!$B$47,CntyQryCensus!$A$459:$AG$501,AB$1) -> 13 | AC80: =VLOOKUP(DropDownList!$B$47,CntyQryCensus!$A$459:$AG$501,AC$1) -> 6 | AD80: =VLOOKUP(DropDownList!$B$47,CntyQryCensus!$A$459:$AG$501,AD$1) -> 1 | AE80: =VLOOKUP(DropDownList!$B$47,CntyQryCensus!$A$459:$AG$501,AE$1) -> 3 | AF80: =VLOOKUP(DropDownList!$B$47,CntyQryCensus!$A$459:$AG$501,AF$1) -> 42069 | AG80: =VLOOKUP(DropDownList!$B$47,CntyQryCensus!$A$459:$AG$501,AG$1) -> 42574
A86: =VLOOKUP(DropDownList!$B$47,CntyQryCensus!$A$510:$DA$552,A$1) -> Alexandria
A94: Census 2000 SummaryFile3 Sample Data - SF3TownQry10Disabil
A95: NAME | B95: LOGRECNO | C95: COUNTY | D95: TotalPop | E95: PCT026001-NonInstPop5yrs+ | F95: PCT026002-MaleNonInstPop5yrs+ | G95: PCT026003 | H95: PCT026004 | I95: PCT026005 | J95: PCT026006 | K95: PCT026007 | L95: PCT026008 | M95: PCT026009 | N95: PCT026010 | O95: PCT026011 | P95: PCT026012 | Q95: PCT026013 | R95: PCT026014 | S95: PCT026015 | T95: PCT026016 | U95: PCT026017 | V95: PCT026018 | W95: PCT026019 | X95: PCT026020 | Y95: PCT026021 | Z95: PCT026022 | AA95: PCT026023 | AB95: PCT026024 | AC95: PCT026025 | AD95: PCT026026 | AE95: PCT026027 | AF95: PCT026028 | AG95: PCT026029 | AH95: PCT026030 | AI95: PCT026031 | AJ95: PCT026032 | AK95: PCT026033 | AL95: PCT026034 | AM95: PCT026035 | AN95: PCT026036 | AO95: PCT026037 | AP95: PCT026038 | AQ95: PCT026039 | AR95: PCT026040 | AS95: PCT026041 | AT95: PCT026042 | AU95: PCT026043 | AV95: PCT026044 | AW95: PCT026045 | AX95: PCT026046 | AY95: PCT026047 | AZ95: PCT026048 | BA95: PCT026049 | BB95: PCT026050 | BC95: PCT026051 | BD95: PCT026052 | BE95: PCT026053 | BF95: PCT026054 | BG95: PCT026055 | BH95: PCT026056 | BI95: PCT026057 | BJ95: PCT026058 | BK95: PCT026059 | BL95: PCT026060 | BM95: PCT026061 | BN95: PCT026062 | BO95: PCT026063 | BP95: PCT026064 | BQ95: PCT026065 | BR95: PCT026066 | BS95: PCT026067 | BT95: PCT026068 | BU95: PCT026069 | BV95: PCT026070 | BW95: PCT026071 | BX95: PCT026072 | BY95: PCT026073 | BZ95: PCT026074 | CA95: PCT026075 | CB95: PCT026076 | CC95: PCT026077 | CD95: PCT026078 | CE95: PCT026079 | CF95: PCT026080 | CG95: PCT026081 | CH95: PCT026082 | CI95: PCT026083 | CJ95: PCT026084 | CK95: PCT026085 | CL95: PCT026086 | CM95: PCT026087 | CN95: PCT026088 | CO95: PCT026089 | CP95: PCT026090 | CQ95: PCT026091 | CR95: PCT026092 | CS95: PCT026093 | CT95: PCT026094 | CU95: PCT026095 | CV95: PCT026096 | CW95: PCT026097 | CX95: PCT026098 | CY95: PCT026099 | CZ95: PCT026100 | DA95: PCT026101
A96: =VLOOKUP(DropDownList!$B$47,CntyQryCensus!$A$510:$DA$552,A$1) -> Alexandria | B96: =VLOOKUP(DropDownList!$B$47,CntyQryCensus!$A$510:$DA$552,B$1) -> 0001149 | C96: =VLOOKUP(DropDownList!$B$47,CntyQryCensus!$A$510:$DA$552,C$1) -> 00580 | D96: =VLOOKUP(DropDownList!$B$47,CntyQryCensus!$A$510:$DA$552,D$1) -> 1329 | E96: =VLOOKUP(DropDownList!$B$47,CntyQryCensus!$A$510:$DA$552,E$1) -> 1236 | F96: =VLOOKUP(DropDownList!$B$47,CntyQryCensus!$A$510:$DA$552,F$1) -> 619 | G96: =VLOOKUP(DropDownList!$B$47,CntyQryCensus!$A$510:$DA$552,G$1) -> 89 | H96: =VLOOKUP(DropDownList!$B$47,CntyQryCensus!$A$510:$DA$552,H$1) -> 8 | I96: =VLOOKUP(DropDownList!$B$47,CntyQryCensus!$A$510:$DA$552,I$1) -> 2 | J96: =VLOOKUP(DropDownList!$B$47,CntyQryCensus!$A$510:$DA$552,J$1) -> 6 | K96: =VLOOKUP(DropDownList!$B$47,CntyQryCensus!$A$510:$DA$552,K$1) -> 81 | L96: =VLOOKUP(DropDownList!$B$47,CntyQryCensus!$A$510:$DA$552,L$1) -> 5 | M96: =VLOOKUP(DropDownList!$B$47,CntyQryCensus!$A$510:$DA$552,M$1) -> 76 | N96: =VLOOKUP(DropDownList!$B$47,CntyQryCensus!$A$510:$DA$552,N$1) -> 50 | O96: =VLOOKUP(DropDownList!$B$47,CntyQryCensus!$A$510:$DA$552,O$1) -> 10 | P96: =VLOOKUP(DropDownList!$B$47,CntyQryCensus!$A$510:$DA$552,P$1) -> 3 | Q96: =VLOOKUP(DropDownList!$B$47,CntyQryCensus!$A$510:$DA$552,Q$1) -> 7 | R96: =VLOOKUP(DropDownList!$B$47,CntyQryCensus!$A$510:$DA$552,R$1) -> 40 | S96: =VLOOKUP(DropDownList!$B$47,CntyQryCensus!$A$510:$DA$552,S$1) -> 0 | T96: =VLOOKUP(DropDownList!$B$47,CntyQryCensus!$A$510:$DA$552,T$1) -> 40 | U96: =VLOOKUP(DropDownList!$B$47,CntyQryCensus!$A$510:$DA$552,U$1) -> 408 | V96: =VLOOKUP(DropDownList!$B$47,CntyQryCensus!$A$510:$DA$552,V$1) -> 125 | W96: =VLOOKUP(DropDownList!$B$47,CntyQryCensus!$A$510:$DA$552,W$1) -> 9 | X96: =VLOOKUP(DropDownList!$B$47,CntyQryCensus!$A$510:$DA$552,X$1) -> 116 | Y96: =VLOOKUP(DropDownList!$B$47,CntyQryCensus!$A$510:$DA$552,Y$1) -> 283 | Z96: =VLOOKUP(DropDownList!$B$47,CntyQryCensus!$A$510:$DA$552,Z$1) -> 10 | AA96: =VLOOKUP(DropDownList!$B$47,CntyQryCensus!$A$510:$DA$552,AA$1) -> 273 | AB96: =VLOOKUP(DropDownList!$B$47,CntyQryCensus!$A$510:$DA$552,AB$1) -> 72 | AC96: =VLOOKUP(DropDownList!$B$47,CntyQryCensus!$A$510:$DA$552,AC$1) -> 39 | AD96: =VLOOKUP(DropDownList!$B$47,CntyQryCensus!$A$510:$DA$552,AD$1) -> 0 | AE96: =VLOOKUP(DropDownList!$B$47,CntyQryCensus!$A$510:$DA$552,AE$1) -> 39 | AF96: =VLOOKUP(DropDownList!$B$47,CntyQryCensus!$A$510:$DA$552,AF$1) -> 33 | AG96: =VLOOKUP(DropDownList!$B$47,CntyQryCensus!$A$510:$DA$552,AG$1) -> 0 | AH96: =VLOOKUP(DropDownList!$B$47,CntyQryCensus!$A$510:$DA$552,AH$1) -> 33 | AI96: =VLOOKUP(DropDownList!$B$47,CntyQryCensus!$A$510:$DA$552,AI$1) -> 617 | AJ96: =VLOOKUP(DropDownList!$B$47,CntyQryCensus!$A$510:$DA$552,AJ$1) -> 103 | AK96: =VLOOKUP(DropDownList!$B$47,CntyQryCensus!$A$510:$DA$552,AK$1) -> 6 | AL96: =VLOOKUP(DropDownList!$B$47,CntyQryCensus!$A$510:$DA$552,AL$1) -> 0 | AM96: =VLOOKUP(DropDownList!$B$47,CntyQryCensus!$A$510:$DA$552,AM$1) -> 6 | AN96: =VLOOKUP(DropDownList!$B$47,CntyQryCensus!$A$510:$DA$552,AN$1) -> 97 | AO96: =VLOOKUP(DropDownList!$B$47,CntyQryCensus!$A$510:$DA$552,AO$1) -> 8 | AP96: =VLOOKUP(DropDownList!$B$47,CntyQryCensus!$A$510:$DA$552,AP$1) -> 89 | AQ96: =VLOOKUP(DropDownList!$B$47,CntyQryCensus!$A$510:$DA$552,AQ$1) -> 36 | AR96: =VLOOKUP(DropDownList!$B$47,CntyQryCensus!$A$510:$DA$552,AR$1) -> 8 | AS96: =VLOOKUP(DropDownList!$B$47,CntyQryCensus!$A$510:$DA$552,AS$1) -> 0 | AT96: =VLOOKUP(DropDownList!$B$47,CntyQryCensus!$A$510:$DA$552,AT$1) -> 8 | AU96: =VLOOKUP(DropDownList!$B$47,CntyQryCensus!$A$510:$DA$552,AU$1) -> 28 | AV96: =VLOOKUP(DropDownList!$B$47,CntyQryCensus!$A$510:$DA$552,AV$1) -> 1 | AW96: =VLOOKUP(DropDownList!$B$47,CntyQryCensus!$A$510:$DA$552,AW$1) -> 27 | AX96: =VLOOKUP(DropDownList!$B$47,CntyQryCensus!$A$510:$DA$552,AX$1) -> 411 | AY96: =VLOOKUP(DropDownList!$B$47,CntyQryCensus!$A$510:$DA$552,AY$1) -> 116 | AZ96: =VLOOKUP(DropDownList!$B$47,CntyQryCensus!$A$510:$DA$552,AZ$1) -> 13 | BA96: =VLOOKUP(DropDownList!$B$47,CntyQryCensus!$A$510:$DA$552,BA$1) -> 103 | BB96: =VLOOKUP(DropDownList!$B$47,CntyQryCensus!$A$510:$DA$552,BB$1) -> 295 | BC96: =VLOOKUP(DropDownList!$B$47,CntyQryCensus!$A$510:$DA$552,BC$1) -> 18 | BD96: =VLOOKUP(DropDownList!$B$47,CntyQryCensus!$A$510:$DA$552,BD$1) -> 277 | BE96: =VLOOKUP(DropDownList!$B$47,CntyQryCensus!$A$510:$DA$552,BE$1) -> 67 | BF96: =VLOOKUP(DropDownList!$B$47,CntyQryCensus!$A$510:$DA$552,BF$1) -> 14 | BG96: =VLOOKUP(DropDownList!$B$47,CntyQryCensus!$A$510:$DA$552,BG$1) -> 0 | BH96: =VLOOKUP(DropDownList!$B$47,CntyQryCensus!$A$510:$DA$552,BH$1) -> 14 | BI96: =VLOOKUP(DropDownList!$B$47,CntyQryCensus!$A$510:$DA$552,BI$1) -> 53 | BJ96: =VLOOKUP(DropDownList!$B$47,CntyQryCensus!$A$510:$DA$552,BJ$1) -> 0 | BK96: =VLOOKUP(DropDownList!$B$47,CntyQryCensus!$A$510:$DA$552,BK$1) -> 53 | BL96: =VLOOKUP(DropDownList!$B$47,CntyQryCensus!$A$510:$DA$552,BL$1) -> 0 | BM96: =VLOOKUP(DropDownList!$B$47,CntyQryCensus!$A$510:$DA$552,BM$1) -> 0 | BN96: =VLOOKUP(DropDownList!$B$47,CntyQryCensus!$A$510:$DA$552,BN$1) -> 0 | BO96: =VLOOKUP(DropDownList!$B$47,CntyQryCensus!$A$510:$DA$552,BO$1) -> 0 | BP96: =VLOOKUP(DropDownList!$B$47,CntyQryCensus!$A$510:$DA$552,BP$1) -> 0 | BQ96: =VLOOKUP(DropDownList!$B$47,CntyQryCensus!$A$510:$DA$552,BQ$1) -> 0 | BR96: =VLOOKUP(DropDownList!$B$47,CntyQryCensus!$A$510:$DA$552,BR$1) -> 0 | BS96: =VLOOKUP(DropDownList!$B$47,CntyQryCensus!$A$510:$DA$552,BS$1) -> 0 | BT96: =VLOOKUP(DropDownList!$B$47,CntyQryCensus!$A$510:$DA$552,BT$1) -> 0 | BU96: =VLOOKUP(DropDownList!$B$47,CntyQryCensus!$A$510:$DA$552,BU$1) -> 0 | BV96: =VLOOKUP(DropDownList!$B$47,CntyQryCensus!$A$510:$DA$552,BV$1) -> 0 | BW96: =VLOOKUP(DropDownList!$B$47,CntyQryCensus!$A$510:$DA$552,BW$1) -> 0 | BX96: =VLOOKUP(DropDownList!$B$47,CntyQryCensus!$A$510:$DA$552,BX$1) -> 0 | BY96: =VLOOKUP(DropDownList!$B$47,CntyQryCensus!$A$510:$DA$552,BY$1) -> 0 | BZ96: =VLOOKUP(DropDownList!$B$47,CntyQryCensus!$A$510:$DA$552,BZ$1) -> 0 | CA96: =VLOOKUP(DropDownList!$B$47,CntyQryCensus!$A$510:$DA$552,CA$1) -> 0 | CB96: =VLOOKUP(DropDownList!$B$47,CntyQryCensus!$A$510:$DA$552,CB$1) -> 0 | CC96: =VLOOKUP(DropDownList!$B$47,CntyQryCensus!$A$510:$DA$552,CC$1) -> 0 | CD96: =VLOOKUP(DropDownList!$B$47,CntyQryCensus!$A$510:$DA$552,CD$1) -> 0 | CE96: =VLOOKUP(DropDownList!$B$47,CntyQryCensus!$A$510:$DA$552,CE$1) -> 0 | CF96: =VLOOKUP(DropDownList!$B$47,CntyQryCensus!$A$510:$DA$552,CF$1) -> 0 | CG96: =VLOOKUP(DropDownList!$B$47,CntyQryCensus!$A$510:$DA$552,CG$1) -> 0 | CH96: =VLOOKUP(DropDownList!$B$47,CntyQryCensus!$A$510:$DA$552,CH$1) -> 0 | CI96: =VLOOKUP(DropDownList!$B$47,CntyQryCensus!$A$510:$DA$552,CI$1) -> 0 | CJ96: =VLOOKUP(DropDownList!$B$47,CntyQryCensus!$A$510:$DA$552,CJ$1) -> 0 | CK96: =VLOOKUP(DropDownList!$B$47,CntyQryCensus!$A$510:$DA$552,CK$1) -> 0 | CL96: =VLOOKUP(DropDownList!$B$47,CntyQryCensus!$A$510:$DA$552,CL$1) -> 0 | CM96: =VLOOKUP(DropDownList!$B$47,CntyQryCensus!$A$510:$DA$552,CM$1) -> 0 | CN96: =VLOOKUP(DropDownList!$B$47,CntyQryCensus!$A$510:$DA$552,CN$1) -> 0 | CO96: =VLOOKUP(DropDownList!$B$47,CntyQryCensus!$A$510:$DA$552,CO$1) -> 0 | CP96: =VLOOKUP(DropDownList!$B$47,CntyQryCensus!$A$510:$DA$552,CP$1) -> 0 | CQ96: =VLOOKUP(DropDownList!$B$47,CntyQryCensus!$A$510:$DA$552,CQ$1) -> 0 | CR96: =VLOOKUP(DropDownList!$B$47,CntyQryCensus!$A$510:$DA$552,CR$1) -> 0 | CS96: =VLOOKUP(DropDownList!$B$47,CntyQryCensus!$A$510:$DA$552,CS$1) -> 0 | CT96: =VLOOKUP(DropDownList!$B$47,CntyQryCensus!$A$510:$DA$552,CT$1) -> 0 | CU96: =VLOOKUP(DropDownList!$B$47,CntyQryCensus!$A$510:$DA$552,CU$1) -> 0 | CV96: =VLOOKUP(DropDownList!$B$47,CntyQryCensus!$A$510:$DA$552,CV$1) -> 0 | CW96: =VLOOKUP(DropDownList!$B$47,CntyQryCensus!$A$510:$DA$552,CW$1) -> 0 | CX96: =VLOOKUP(DropDownList!$B$47,CntyQryCensus!$A$510:$DA$552,CX$1) -> 0 | CY96: =VLOOKUP(DropDownList!$B$47,CntyQryCensus!$A$510:$DA$552,CY$1) -> 0 | CZ96: =VLOOKUP(DropDownList!$B$47,CntyQryCensus!$A$510:$DA$552,CZ$1) -> 0 | DA96: =VLOOKUP(DropDownList!$B$47,CntyQryCensus!$A$510:$DA$552,DA$1) -> 0
A101: =VLOOKUP(DropDownList!$B$47,CntyQryCensus!$A$510:$DA$552,A$1) -> Alexandria
A105: ACS | B105: 2 | C105: =B105+1 -> 3 | D105: =C105+1 -> 4 | E105: 5 | F105: 6 | G105: 7 | H105: 8 | I105: 9 | J105: 10 | K105: 11 | L105: =K105+1 -> 12 | M105: 13 | N105: 14 | O105: 15 | P105: =O105+1 -> 16 | Q105: 17 | R105: 18 | S105: 19 | T105: 20 | U105: 21 | V105: 22 | W105: 23 | X105: 24 | Y105: 25 | Z105: 26 | AA105: 27 | AB105: 28 | AC105: 29 | AD105: 30 | AE105: 31 | AF105: 32 | AG105: 33 | AH105: 34 | AI105: 35 | AJ105: 36 | AK105: 37 | AL105: 38 | AM105: 39 | AN105: 40 | AO105: 41 | AP105: 42 | AQ105: 43 | AR105: 44 | AS105: 45 | AT105: 46 | AU105: 47 | AV105: 48 | AW105: 49 | AX105: 50 | AY105: 51 | AZ105: 52 | BA105: 53 | BB105: 54 | BC105: 55 | BD105: 56 | BE105: 57 | BF105: 58 | BG105: 59 | BH105: 60 | BI105: 61 | BJ105: 62 | BK105: 63 | BL105: 64 | BM105: 65 | BN105: 66 | BO105: 67 | BP105: =BO105+1 -> 68 | BQ105: 69 | BR105: 70 | BS105: 71 | BT105: 72 | BU105: 73 | BV105: 74 | BW105: 75 | BX105: 76 | BY105: 77 | BZ105: 78 | CA105: 79 | CB105: 80 | CC105: 81 | CD105: 82 | CE105: 83 | CF105: 84 | CG105: 85 | CH105: 86 | CI105: 87 | CJ105: 88 | CK105: 89 | CL105: 90 | CM105: 91 | CN105: 92 | CO105: 93 | CP105: 94 | CQ105: 95 | CR105: 96 | CS105: 97 | CT105: 98 | CU105: 99 | CV105: 100 | CW105: 101 | CX105: 102 | CY105: 103 | CZ105: 104 | DA105: 105 | DB105: 106 | DC105: 107 | DD105: 108 | DE105: 109 | DF105: 110 | DG105: 111 | DH105: 112 | DI105: 113 | DJ105: 114 | DK105: 115 | DL105: 116 | DM105: 117 | DN105: 118 | DO105: 119 | DP105: 120 | DQ105: 121 | DR105: 122 | DS105: 123 | DT105: 124 | DU105: 125
A106: Househould Data (Housing Unit Type)
A107: NAME | B107: TotalHU | C107: ="MOE "&B107 -> MOE TotalHU | D107: TotalOccHU | E107: ="MOE "&D107 -> MOE TotalOccHU | F107: TotalOwnerOccUn | G107: ="MOE "&F107 -> MOE TotalOwnerOccUn | H107: TotalRenterOccn | I107: ="MOE "&H107 -> MOE TotalRenterOccn | J107: TotalVacantUntis | K107: ="MOE "&J107 -> MOE TotalVacantUntis | L107: VacantUnitsForRent | M107: ="MOE "&L107 -> MOE VacantUnitsForRent | N107: VacantUnitRentedNotOcc | O107: ="MOE "&N107 -> MOE VacantUnitRentedNotOcc | P107: VacantUnitForSale | Q107: ="MOE "&P107 -> MOE VacantUnitForSale | R107: VacantUnitSoldNotOcc | S107: ="MOE "&R107 -> MOE VacantUnitSoldNotOcc | T107: VacantUnitSeasonalRec | U107: ="MOE "&T107 -> MOE VacantUnitSeasonalRec | V107: TotalPopInHousingUnits | W107: ="MOE "&V107 -> MOE TotalPopInHousingUnits | X107: OwnerOccPopHousingUnits | Y107: ="MOE "&X107 -> MOE OwnerOccPopHousingUnits | Z107: RenterOccPopHousingUnits | AA107: ="MOE "&Z107 -> MOE RenterOccPopHousingUnits | AB107: TotalUntis | AC107: ="MOE "&AB107 -> MOE TotalUntis | AD107: TotalOwnerOccUnits | AE107: ="MOE "&AD107 -> MOE TotalOwnerOccUnits | AF107: SigFamOwnerOcc | AG107: ="MOE "&AF107 -> MOE SigFamOwnerOcc | AH107: MultiFamOwnerOcc | AI107: ="MOE "&AH107 -> MOE MultiFamOwnerOcc | AJ107: MobileOwnerOcc | AK107: ="MOE "&AJ107 -> MOE MobileOwnerOcc | AL107: TotalRenterOccUnits | AM107: ="MOE "&AL107 -> MOE TotalRenterOccUnits | AN107: SigFamRenterOcc | AO107: ="MOE "&AN107 -> MOE SigFamRenterOcc | AP107: MultiFamRenterOcc | AQ107: ="MOE "&AP107 -> MOE MultiFamRenterOcc | AR107: MobileRenterOcc | AS107: ="MOE "&AR107 -> MOE MobileRenterOcc | AT107: TotalSigFamilyUnits | AU107: ="MOE "&AT107 -> MOE TotalSigFamilyUnits | AV107: TotalMultiFamilyUnits | AW107: ="MOE "&AV107 -> MOE TotalMultiFamilyUnits | AX107: TotalMobileUnits | AY107: ="MOE "&AX107 -> MOE TotalMobileUnits | AZ107: YrHouseBuilt2014Later | BA107: ="MOE "&AZ107 -> MOE YrHouseBuilt2014Later | BB107: YrHouseBuilt2010-2013 | BC107: ="MOE "&BB107 -> MOE YrHouseBuilt2010-2013 | BD107: YrHouseBuilt2000-2009 | BE107: ="MOE "&BD107 -> MOE YrHouseBuilt2000-2009 | BF107: YrHouseBuilt1990-1999 | BG107: ="MOE "&BF107 -> MOE YrHouseBuilt1990-1999 | BH107: YrHouseBuilt1980-1989 | BI107: ="MOE "&BH107 -> MOE YrHouseBuilt1980-1989 | BJ107: YrHouseBuilt1970-1979 | BK107: ="MOE "&BJ107 -> MOE YrHouseBuilt1970-1979 | BL107: YrHouseBuilt1960-1969 | BM107: ="MOE "&BL107 -> MOE YrHouseBuilt1960-1969 | BN107: YrHouseBuilt1950-1959 | BO107: ="MOE "&BN107 -> MOE YrHouseBuilt1950-1959 | BP107: YrHouseBuilt1940-1949 | BQ107: ="MOE "&BP107 -> MOE YrHouseBuilt1940-1949 | BR107: YrHouseBuilt1939orEarlier | BS107: ="MOE "&BR107 -> MOE YrHouseBuilt1939orEarlier | BT107: NoBedrooms | BU107: ="MOE "&BT107 -> MOE NoBedrooms | BV107: 1Bedroom | BW107: ="MOE "&BV107 -> MOE 1Bedroom | BX107: 2Bedroom | BY107: ="MOE "&BX107 -> MOE 2Bedroom | BZ107: 3Bedroom | CA107: ="MOE "&BZ107 -> MOE 3Bedroom | CB107: 4+Bedroom | CC107: ="MOE "&CB107 -> MOE 4+Bedroom
A108: =VLOOKUP(DropDownList!$B$47,CntyQryCensus!$A$510:$DA$552,A$1) -> Alexandria | B108: 1017 | C108: 82 | D108: 715 | E108: 64 | F108: 640 | G108: 58 | H108: 75 | I108: 30 | J108: 302 | K108: 76 | L108: 0 | M108: 11 | N108: 0 | O108: 11 | P108: 0 | Q108: 11 | R108: 8 | S108: 13 | T108: 274 | U108: 76 | V108: 2006 | W108: 227 | X108: 1835 | Y108: 217 | Z108: 171 | AA108: 64 | AB108: 715 | AC108: 64 | AD108: 640 | AE108: 58 | AF108: 564 | AG108: 61 | AH108: 25 | AI108: 26.94438717 | AJ108: 51 | AK108: 25.49509757 | AL108: 75 | AM108: 30 | AN108: 35 | AO108: 20 | AP108: 23 | AQ108: 30.70830507 | AR108: 17 | AS108: 21.09502311 | AT108: 739 | AU108: 70 | AV108: 132 | AW108: 46.31414471 | AX108: 146 | AY108: 65.9241989 | AZ108: 10 | BA108: 8 | BB108: 7 | BC108: 7 | BD108: 232 | BE108: 56 | BF108: 132 | BG108: 32 | BH108: 269 | BI108: 60 | BJ108: 120 | BK108: 67 | BL108: 34 | BM108: 17 | BN108: 51 | BO108: 25 | BP108: 11 | BQ108: 10 | BR108: 151 | BS108: 44 | BT108: 40 | BU108: 24 | BV108: 80 | BW108: 33 | BX108: 299 | BY108: 63 | BZ108: 518 | CA108: 82 | CB108: 80 | CC108: 26.90724809
A110: Disability Data
A111: NAME | B111: TotalPop | C111: ="MOE "&B111 -> MOE TotalPop | D111: PopUnder 5 years: | E111: ="MOE "&D111 -> MOE PopUnder 5 years: | F111: =D$111&"-WithDisability" -> PopUnder 5 years:-WithDisability | G111: ="MOE "&F111 -> MOE PopUnder 5 years:-WithDisability | H111: =D111&"-NoDisability" -> PopUnder 5 years:-NoDisability | I111: ="MOE "&H111 -> MOE PopUnder 5 years:-NoDisability | J111: PopUnder 5 to 17years: | K111: ="MOE "&J111 -> MOE PopUnder 5 to 17years: | L111: =J$111&"-WithDisability" -> PopUnder 5 to 17years:-WithDisability | M111: ="MOE "&L111 -> MOE PopUnder 5 to 17years:-WithDisability | N111: =J111&"-NoDisability" -> PopUnder 5 to 17years:-NoDisability | O111: ="MOE "&N111 -> MOE PopUnder 5 to 17years:-NoDisability | P111: PopUnder 18 to 34 years: | Q111: ="MOE "&P111 -> MOE PopUnder 18 to 34 years: | R111: =P$111&"-WithDisability" -> PopUnder 18 to 34 years:-WithDisability | S111: ="MOE "&R111 -> MOE PopUnder 18 to 34 years:-WithDisability | T111: =P111&"-NoDisability" -> PopUnder 18 to 34 years:-NoDisability | U111: ="MOE "&T111 -> MOE PopUnder 18 to 34 years:-NoDisability | V111: Pop 35 years to 64: | W111: ="MOE "&V111 -> MOE Pop 35 years to 64: | X111: =$V$111&"-WithDisability" -> Pop 35 years to 64:-WithDisability | Y111: ="MOE "&X111 -> MOE Pop 35 years to 64:-WithDisability | Z111: =$V$111&"-NoDisability" -> Pop 35 years to 64:-NoDisability | AA111: ="MOE "&Z111 -> MOE Pop 35 years to 64:-NoDisability | AB111: Pop 65 years to 74: | AC111: ="MOE "&AB111 -> MOE Pop 65 years to 74: | AD111: =$AB$111&"-WithDisability" -> Pop 65 years to 74:-WithDisability | AE111: ="MOE "&AD111 -> MOE Pop 65 years to 74:-WithDisability | AF111: =$AB$111&"-NoDisability" -> Pop 65 years to 74:-NoDisability | AG111: ="MOE "&AF111 -> MOE Pop 65 years to 74:-NoDisability | AH111: Pop 75 and older: | AI111: ="MOE "&AH111 -> MOE Pop 75 and older: | AJ111: =$AH$111&"-WithDisability" -> Pop 75 and older:-WithDisability | AK111: ="MOE "&AJ111 -> MOE Pop 75 and older:-WithDisability | AL111: =$AH$111&"-NoDisability" -> Pop 75 and older:-NoDisability | AM111: ="MOE "&AL111 -> MOE Pop 75 and older:-NoDisability | AN111: TotalPopUnder5_HearingDisability | AO111: ="MOE "&AN111 -> MOE TotalPopUnder5_HearingDisability | AP111: TotalPopUnder5_HearingDisability | AQ111: ="MOE "&AP111 -> MOE TotalPopUnder5_HearingDisability | AR111: TotalPop18To34_HearingDisability | AS111: ="MOE "&AR111 -> MOE TotalPop18To34_HearingDisability | AT111: TotalPop35To64_HearingDisability | AU111: ="MOE "&AT111 -> MOE TotalPop35To64_HearingDisability | AV111: TotalPop65To74_HearingDisability | AW111: ="MOE "&AV111 -> MOE TotalPop65To74_HearingDisability | AX111: TotalPop75andOlder_HearingDisability | AY111: ="MOE "&AX111 -> MOE TotalPop75andOlder_HearingDisability | AZ111: TotalPopUnder5_VisionDisability | BA111: ="MOE "&AZ111 -> MOE TotalPopUnder5_VisionDisability | BB111: TotalPop5To17_VisionDisability | BC111: ="MOE "&BB111 -> MOE TotalPop5To17_VisionDisability | BD111: TotalPop18To34_VisionDisability | BE111: ="MOE "&BD111 -> MOE TotalPop18To34_VisionDisability | BF111: TotalPop35To64_VisionDisability | BG111: ="MOE "&BF111 -> MOE TotalPop35To64_VisionDisability | BH111: TotalPop65To74_VisionDisability | BI111: ="MOE "&BH111 -> MOE TotalPop65To74_VisionDisability | BJ111: TotalPop75andOlder_VisionDisability | BK111: ="MOE "&BJ111 -> MOE TotalPop75andOlder_VisionDisability | BL111: TotalPop5To17_CongnitiveDisability | BM111: ="MOE "&BL111 -> MOE TotalPop5To17_CongnitiveDisability | BN111: TotalPop18To34_CongnitiveDisability | BO111: ="MOE "&BN111 -> MOE TotalPop18To34_CongnitiveDisability | BP111: TotalPop35To64_CongnitiveDisability | BQ111: ="MOE "&BP111 -> MOE TotalPop35To64_CongnitiveDisability | BR111: TotalPop65To74_CongnitiveDisability | BS111: ="MOE "&BR111 -> MOE TotalPop65To74_CongnitiveDisability | BT111: TotalPop75andOlder_CongnitiveDisability | BU111: ="MOE "&BT111 -> MOE TotalPop75andOlder_CongnitiveDisability | BV111: TotalPop5To17_AmbulatoryDisability | BW111: ="MOE "&BV111 -> MOE TotalPop5To17_AmbulatoryDisability | BX111: TotalPop18To34_AmbulatoryDisability | BY111: ="MOE "&BX111 -> MOE TotalPop18To34_AmbulatoryDisability | BZ111: TotalPop35To64_AmbulatoryDisability | CA111: ="MOE "&BZ111 -> MOE TotalPop35To64_AmbulatoryDisability | CB111: TotalPop65To74_AmbulatoryDisability | CC111: ="MOE "&CB111 -> MOE TotalPop65To74_AmbulatoryDisability | CD111: TotalPop75andOlder_AmbulatoryDisability | CE111: ="MOE "&CD111 -> MOE TotalPop75andOlder_AmbulatoryDisability | CF111: TotalPop5To17_SelfCareDisability | CG111: ="MOE "&CF111 -> MOE TotalPop5To17_SelfCareDisability | CH111: TotalPop18To34_SelfCareDisability | CI111: ="MOE "&CH111 -> MOE TotalPop18To34_SelfCareDisability | CJ111: TotalPop35To64_SelfCareDisability | CK111: ="MOE "&CJ111 -> MOE TotalPop35To64_SelfCareDisability | CL111: TotalPop65To74_SelfCareDisability | CM111: ="MOE "&CL111 -> MOE TotalPop65To74_SelfCareDisability | CN111: TotalPop75andOlder_SelfCareDisability | CO111: ="MOE "&CN111 -> MOE TotalPop75andOlder_SelfCareDisability | CP111: TotalPop18To34_IndependantLivingDisability | CQ111: ="MOE "&CP111 -> MOE TotalPop18To34_IndependantLivingDisability | CR111: TotalPop35To64_IndependantLivingDisability | CS111: ="MOE "&CR111 -> MOE TotalPop35To64_IndependantLivingDisability | CT111: TotalPop65To74_IndependantLivingDisability | CU111: ="MOE "&CT111 -> MOE TotalPop65To74_IndependantLivingDisability | CV111: TotalPop75andOlder_IndependantLivingDisability | CW111: ="MOE "&CV111 -> MOE TotalPop75andOlder_IndependantLivingDisability | CX111: TotalUnder5_HearingorVisionDisability | CY111: ="MOE "&CX111 -> MOE TotalUnder5_HearingorVisionDisability | CZ111: TotalUnder5_HearingandVisionDisability | DA111: ="MOE "&CZ111 -> MOE TotalUnder5_HearingandVisionDisability | DB111: 5to17YearWIthOneDisability | DC111: ="MOE "&DB111 -> MOE 5to17YearWIthOneDisability | DD111: 5to17YearWIthTwoOrMoreDisability | DE111: ="MOE "&DD111 -> MOE 5to17YearWIthTwoOrMoreDisability | DF111: 18to34YearWIthOneDisability | DG111: ="MOE "&DF111 -> MOE 18to34YearWIthOneDisability | DH111: 18to34YearWIthTwoOrMoreDisability | DI111: ="MOE "&DH111 -> MOE 18to34YearWIthTwoOrMoreDisability | DJ111: 35to64YearWIthOneDisability | DK111: ="MOE "&DJ111 -> MOE 35to64YearWIthOneDisability | DL111: 35to64YearWIthTwoOrMoreDisability | DM111: ="MOE "&DL111 -> MOE 35to64YearWIthTwoOrMoreDisability | DN111: 65to74YearWIthOneDisability | DO111: ="MOE "&DN111 -> MOE 65to74YearWIthOneDisability | DP111: 65to74YearWIthTwoOrMoreDisability | DQ111: ="MOE "&DP111 -> MOE 65to74YearWIthTwoOrMoreDisability | DR111: 75AndOlderWIthOneDisability | DS111: ="MOE "&DR111 -> MOE 75AndOlderWIthOneDisability | DT111: 75AndOlderWIthTwoOrMoreDisability | DU111: ="MOE "&DT111 -> MOE 75AndOlderWIthTwoOrMoreDisability
A112: =VLOOKUP(DropDownList!$B$47,CntyQryCensus!$A$510:$DA$552,A$1) -> Alexandria | B112: 2004 | C112: 227 | D112: 53 | E112: 30.08321791 | F112: 0 | G112: 15.55634919 | H112: 53 | I112: 30.08321791 | J112: 266 | K112: 66.64833081 | L112: 8 | M112: 14.86606875 | N112: 258 | O112: 64.88451279 | P112: 350 | Q112: 96.87620967 | R112: 55 | S112: 26.17250466 | T112: 295 | U112: 91.96738552 | V112: 954 | W112: 91.92388155 | X112: 107 | Y112: 32.75667871 | Z112: 847 | AA112: 88.39117603 | AB112: 236 | AC112: 50.44799302 | AD112: 36 | AE112: 19.41648784 | AF112: 200 | AG112: 49.04079934 | AH112: 145 | AI112: 35.35533906 | AJ112: 88 | AK112: 30.61045573 | AL112: 57 | AM112: 21.21320344 | AN112: 0 | AO112: 15.55634919 | AP112: 0 | AQ112: 15.55634919 | AR112: 8 | AS112: 13.60147051 | AT112: 12 | AU112: 9.433981132 | AV112: 10 | AW112: 13.60147051 | AX112: 54 | AY112: 25.8069758 | AZ112: 0 | BA112: 15.55634919 | BB112: 16 | BC112: 17.80449381 | BD112: 0 | BE112: 15.55634919 | BF112: 13 | BG112: 12.64911064 | BH112: 6 | BI112: 7.071067812 | BJ112: 5 | BK112: 12.52996409 | BL112: 8 | BM112: 14.86606875 | BN112: 41 | BO112: 23.43074903 | BP112: 35 | BQ112: 16.40121947 | BR112: 4 | BS112: 12.08304597 | BT112: 6 | BU112: 12.52996409 | BV112: 6 | BW112: 14.2126704 | BX112: 19 | BY112: 15 | BZ112: 69 | CA112: 29.06888371 | CB112: 22 | CC112: 15.65247584 | CD112: 55 | CE112: 23.60084744 | CF112: 6 | CG112: 14.2126704 | CH112: 15 | CI112: 12.72792206 | CJ112: 15 | CK112: 15.55634919 | CL112: 0 | CM112: 15.55634919 | CN112: 9 | CO112: 7.810249676 | CP112: 40 | CQ112: 21.9317122 | CR112: 9 | CS112: 8.602325267 | CT112: 16 | CU112: 15.26433752 | CV112: 15 | CW112: 9.848857802 | CX112: 2 | CY112: 4 | CZ112: 6 | DA112: 9 | DB112: 106 | DC112: 30 | DD112: 56 | DE112: 28 | DF112: 61 | DG112: 27 | DH112: 63 | DI112: 25
A114: Househould Income By Age
A115: NAME | B115: TotalHouseholds | C115: ="MOE "&B115 -> MOE TotalHouseholds | D115: HHInc<10K | E115: ="MOE "&D115 -> MOE HHInc<10K | F115: HHInc10to15K | G115: ="MOE "&F115 -> MOE HHInc10to15K | H115: HHInc15to20K | I115: ="MOE "&H115 -> MOE HHInc15to20K | J115: HHInc20to25K | K115: ="MOE "&J115 -> MOE HHInc20to25K | L115: HHInc25to30K | M115: ="MOE "&L115 -> MOE HHInc25to30K | N115: HHInc30to35K | O115: ="MOE "&N115 -> MOE HHInc30to35K | P115: HHInc35to40K | Q115: ="MOE "&P115 -> MOE HHInc35to40K | R115: HHInc40to45K | S115: ="MOE "&R115 -> MOE HHInc40to45K | T115: HHInc45to50K | U115: ="MOE "&T115 -> MOE HHInc45to50K | V115: HHInc50to60K | W115: ="MOE "&V115 -> MOE HHInc50to60K | X115: HHInc60to75K | Y115: ="MOE "&X115 -> MOE HHInc60to75K | Z115: HHInc75to100K | AA115: ="MOE "&Z115 -> MOE HHInc75to100K | AB115: HHInc100to125K | AC115: ="MOE "&AB115 -> MOE HHInc100to125K | AD115: HHInc125to150K | AE115: ="MOE "&AD115 -> MOE HHInc125to150K | AF115: HHInc150to200K | AG115: ="MOE "&AF115 -> MOE HHInc150to200K | AH115: HHInc>200K | AI115: ="MOE "&AH115 -> MOE HHInc>200K | AJ115: TotalHH | AK115: ="MOE "&AJ115 -> MOE TotalHH | AL115: HHAgeHHUnder25yrs | AM115: ="MOE "&AL115 -> MOE HHAgeHHUnder25yrs | AN115: HHAgeHH<25HHInc<10K | AO115: ="MOE "&AN115 -> MOE HHAgeHH<25HHInc<10K | AP115: HHAgeHH<25HHInc10to15K | AQ115: ="MOE "&AP115 -> MOE HHAgeHH<25HHInc10to15K | AR115: HHAgeHH<25HHInc15to20K | AS115: ="MOE "&AR115 -> MOE HHAgeHH<25HHInc15to20K | AT115: HHAgeHH<25HHInc20to25K | AU115: ="MOE "&AT115 -> MOE HHAgeHH<25HHInc20to25K | AV115: HHAgeHH<25HHInc25to30K | AW115: ="MOE "&AV115 -> MOE HHAgeHH<25HHInc25to30K | AX115: HHAgeHH<25HHInc30to35K | AY115: ="MOE "&AX115 -> MOE HHAgeHH<25HHInc30to35K | AZ115: HHAgeHH<25HHInc35to40K | BA115: ="MOE "&AZ115 -> MOE HHAgeHH<25HHInc35to40K | BB115: HHAgeHH<25HHInc40to45K | BC115: ="MOE "&BB115 -> MOE HHAgeHH<25HHInc40to45K | BD115: HHAgeHH<25HHInc45to50K | BE115: ="MOE "&BD115 -> MOE HHAgeHH<25HHInc45to50K | BF115: HHAgeHH<25HHInc50to60K | BG115: ="MOE "&BF115 -> MOE HHAgeHH<25HHInc50to60K | BH115: HHAgeHH<25HHInc60to75K | BI115: ="MOE "&BH115 -> MOE HHAgeHH<25HHInc60to75K | BJ115: HHAgeHH<25HHInc75to100K | BK115: ="MOE "&BJ115 -> MOE HHAgeHH<25HHInc75to100K | BL115: HHAgeHH<25HHInc100to125K | BM115: ="MOE "&BL115 -> MOE HHAgeHH<25HHInc100to125K | BN115: HHAgeHH<25HHInc125to150K | BO115: ="MOE "&BN115 -> MOE HHAgeHH<25HHInc125to150K | BP115: HHAgeHH<25HHInc150to200K | BQ115: ="MOE "&BP115 -> MOE HHAgeHH<25HHInc150to200K | BR115: HHAge<25HHInc>200K | BS115: ="MOE "&BR115 -> MOE HHAge<25HHInc>200K | BT115: HHAgeHH25to44yrs | BU115: ="MOE "&BT115 -> MOE HHAgeHH25to44yrs | BV115: HHAgeHH25To44yrsHHInc<10K | BW115: ="MOE "&BV115 -> MOE HHAgeHH25To44yrsHHInc<10K | BX115: HHAgeHH25To44yrsHHInc10to15K | BY115: ="MOE "&BX115 -> MOE HHAgeHH25To44yrsHHInc10to15K | BZ115: HHAgeHH25To44yrsHHInc15to20K | CA115: ="MOE "&BZ115 -> MOE HHAgeHH25To44yrsHHInc15to20K | CB115: HHAgeHH25To44yrsHHInc20to25K | CC115: ="MOE "&CB115 -> MOE HHAgeHH25To44yrsHHInc20to25K | CD115: HHAgeHH25To44yrsHHInc25to30K | CE115: ="MOE "&CD115 -> MOE HHAgeHH25To44yrsHHInc25to30K | CF115: HHAgeHH25To44yrsHHInc30to35K | CG115: ="MOE "&CF115 -> MOE HHAgeHH25To44yrsHHInc30to35K | CH115: HHAgeHH25To44yrsHHInc35to40K | CI115: ="MOE "&CH115 -> MOE HHAgeHH25To44yrsHHInc35to40K | CJ115: HHAgeHH25To44yrsHHInc40to45K | CK115: ="MOE "&CJ115 -> MOE HHAgeHH25To44yrsHHInc40to45K | CL115: HHAgeHH25To44yrsHHInc45to50K | CM115: ="MOE "&CL115 -> MOE HHAgeHH25To44yrsHHInc45to50K | CN115: HHAgeHH25To44yrsHHInc50to60K | CO115: ="MOE "&CN115 -> MOE HHAgeHH25To44yrsHHInc50to60K | CP115: HHAgeHH25To44yrsHHInc60to75K | CQ115: ="MOE "&CP115 -> MOE HHAgeHH25To44yrsHHInc60to75K | CR115: HHAgeHH25To44yrsHHInc75to100K | CS115: ="MOE "&CR115 -> MOE HHAgeHH25To44yrsHHInc75to100K | CT115: HHAgeHH25To44yrsHHInc100to125K | CU115: ="MOE "&CT115 -> MOE HHAgeHH25To44yrsHHInc100to125K | CV115: HHAgeHH25To44yrsHHInc125to150K | CW115: ="MOE "&CV115 -> MOE HHAgeHH25To44yrsHHInc125to150K | CX115: HHAgeHH25To44yrsHHInc150to200K | CY115: ="MOE "&CX115 -> MOE HHAgeHH25To44yrsHHInc150to200K | CZ115: HHAge25To44yrsHHInc>200K | DA115: ="MOE "&CZ115 -> MOE HHAge25To44yrsHHInc>200K | DB115: HHAgeHH45To64yrs | DC115: ="MOE "&DB115 -> MOE HHAgeHH45To64yrs | DD115: HHAgeHH45To64yrsHHInc<10K | DE115: ="MOE "&DD115 -> MOE HHAgeHH45To64yrsHHInc<10K | DF115: HHAgeHH45To64yrsHHInc10to15K | DG115: ="MOE "&DF115 -> MOE HHAgeHH45To64yrsHHInc10to15K | DH115: HHAgeHH45To64yrsHHInc15to20K | DI115: ="MOE "&DH115 -> MOE HHAgeHH45To64yrsHHInc15to20K | DJ115: HHAgeHH45To64yrsHHInc20to25K | DK115: ="MOE "&DJ115 -> MOE HHAgeHH45To64yrsHHInc20to25K | DL115: HHAgeHH45To64yrsHHInc25to30K | DM115: ="MOE "&DL115 -> MOE HHAgeHH45To64yrsHHInc25to30K | DN115: HHAgeHH45To64yrsHHInc30to35K | DO115: ="MOE "&DN115 -> MOE HHAgeHH45To64yrsHHInc30to35K | DP115: HHAgeHH45To64yrsHHInc35to40K | DQ115: ="MOE "&DP115 -> MOE HHAgeHH45To64yrsHHInc35to40K | DR115: HHAgeHH45To64yrsHHInc40to45K | DS115: ="MOE "&DR115 -> MOE HHAgeHH45To64yrsHHInc40to45K | DT115: HHAgeHH45To64yrsHHInc45to50K | DU115: ="MOE "&DT115 -> MOE HHAgeHH45To64yrsHHInc45to50K | DV115: HHAgeHH45To64yrsHHInc50to60K | DW115: ="MOE "&DV115 -> MOE HHAgeHH45To64yrsHHInc50to60K | DX115: HHAgeHH45To64yrsHHInc60to75K | DY115: ="MOE "&DX115 -> MOE HHAgeHH45To64yrsHHInc60to75K | DZ115: HHAgeHH45To64yrsHHInc75to100K | EA115: ="MOE "&DZ115 -> MOE HHAgeHH45To64yrsHHInc75to100K | EB115: HHAgeHH45To64yrsHHInc100to125K | EC115: ="MOE "&EB115 -> MOE HHAgeHH45To64yrsHHInc100to125K | ED115: HHAgeHH45To64yrsHHInc125to150K | EE115: ="MOE "&ED115 -> MOE HHAgeHH45To64yrsHHInc125to150K | EF115: HHAgeHH45To64yrsHHInc150to200K | EG115: ="MOE "&EF115 -> MOE HHAgeHH45To64yrsHHInc150to200K | EH115: HHAge45To64yrsHHInc>200K | EI115: ="MOE "&EH115 -> MOE HHAge45To64yrsHHInc>200K | EJ115: HHAgeHH65yrsorOlder | EK115: ="MOE "&EJ115 -> MOE HHAgeHH65yrsorOlder | EL115: HHAgeHH65yrsorOlderHHInc<10K | EM115: ="MOE "&EL115 -> MOE HHAgeHH65yrsorOlderHHInc<10K | EN115: HHAgeHH65yrsorOlderHHInc10to15K | EO115: ="MOE "&EN115 -> MOE HHAgeHH65yrsorOlderHHInc10to15K | EP115: HHAgeHH65yrsorOlderHHInc15to20K | EQ115: ="MOE "&EP115 -> MOE HHAgeHH65yrsorOlderHHInc15to20K | ER115: HHAgeHH65yrsorOlderHHInc20to25K | ES115: ="MOE "&ER115 -> MOE HHAgeHH65yrsorOlderHHInc20to25K | ET115: HHAgeHH65yrsorOlderHHInc25to30K | EU115: ="MOE "&ET115 -> MOE HHAgeHH65yrsorOlderHHInc25to30K | EV115: HHAgeHH65yrsorOlderHHInc30to35K | EW115: ="MOE "&EV115 -> MOE HHAgeHH65yrsorOlderHHInc30to35K | EX115: HHAgeHH65yrsorOlderHHInc35to40K | EY115: ="MOE "&EX115 -> MOE HHAgeHH65yrsorOlderHHInc35to40K | EZ115: HHAgeHH65yrsorOlderHHInc40to45K | FA115: ="MOE "&EZ115 -> MOE HHAgeHH65yrsorOlderHHInc40to45K | FB115: HHAgeHH65yrsorOlderHHInc45to50K | FC115: ="MOE "&FB115 -> MOE HHAgeHH65yrsorOlderHHInc45to50K | FD115: HHAgeHH65yrsorOlderHHInc50to60K | FE115: ="MOE "&FD115 -> MOE HHAgeHH65yrsorOlderHHInc50to60K | FF115: HHAgeHH65yrsorOlderHHInc60to75K | FG115: ="MOE "&FF115 -> MOE HHAgeHH65yrsorOlderHHInc60to75K | FH115: HHAgeHH65yrsorOlderHHInc75to100K | FI115: ="MOE "&FH115 -> MOE HHAgeHH65yrsorOlderHHInc75to100K | FJ115: HHAgeHH65yrsorOlderHHInc100to125K | FK115: ="MOE "&FJ115 -> MOE HHAgeHH65yrsorOlderHHInc100to125K | FL115: HHAgeHH65yrsorOlderHHInc125to150K | FM115: ="MOE "&FL115 -> MOE HHAgeHH65yrsorOlderHHInc125to150K | FN115: HHAgeHH65yrsorOlderHHInc150to200K | FO115: ="MOE "&FN115 -> MOE HHAgeHH65yrsorOlderHHInc150to200K | FP115: HHAge65yrsorOlderHHInc>200K | FQ115: ="MOE "&FP115 -> MOE HHAge65yrsorOlderHHInc>200K | FR115: MedianHHInc | FS115: ="MOE "&FR115 -> MOE MedianHHInc | FT115: HH under 25 years | FU115: ="MOE "&FT115 -> MOE HH under 25 years | FV115: Householder 25 to 44 years | FW115: ="MOE "&FV115 -> MOE Householder 25 to 44 years | FX115: Householder 45 to 64 years | FY115: ="MOE "&FX115 -> MOE Householder 45 to 64 years | FZ115: Householder 65 years and over | GA115: ="MOE "&FZ115 -> MOE Householder 65 years and over
A116: =VLOOKUP(DropDownList!$B$47,CntyQryCensus!$A$510:$DA$552,A$1) -> Alexandria | B116: 715 | C116: 64 | D116: 20 | E116: 13 | F116: 25 | G116: 14 | H116: 34 | I116: 21 | J116: 33 | K116: 19 | L116: 25 | M116: 13 | N116: 26 | O116: 14 | P116: 18 | Q116: 14 | R116: 34 | S116: 20 | T116: 48 | U116: 27 | V116: 42 | W116: 20 | X116: 96 | Y116: 33 | Z116: 143 | AA116: 43 | AB116: 75 | AC116: 23 | AD116: 59 | AE116: 24 | AF116: 13 | AG116: 12 | AH116: 24 | AI116: 15 | AJ116: 715 | AK116: 64 | AL116: 8 | AM116: 10 | AN116: 0 | AO116: 11 | AP116: 0 | AQ116: 11 | AR116: 0 | AS116: 11 | AT116: 0 | AU116: 11 | AV116: 0 | AW116: 11 | AX116: 3 | AY116: 5 | AZ116: 0 | BA116: 11 | BB116: 0 | BC116: 11 | BD116: 0 | BE116: 11 | BF116: 5 | BG116: 7 | BH116: 0 | BI116: 11 | BJ116: 0 | BK116: 11 | BL116: 0 | BM116: 11 | BN116: 0 | BO116: 11 | BP116: 0 | BQ116: 11 | BR116: 0 | BS116: 11 | BT116: 147 | BU116: 36 | BV116: 8 | BW116: 8 | BX116: 7 | BY116: 8 | BZ116: 0 | CA116: 11 | CB116: 3 | CC116: 5 | CD116: 4 | CE116: 5 | CF116: 4 | CG116: 6 | CH116: 0 | CI116: 11 | CJ116: 16 | CK116: 17 | CL116: 0 | CM116: 11 | CN116: 5 | CO116: 7 | CP116: 21 | CQ116: 13 | CR116: 51 | CS116: 27 | CT116: 15 | CU116: 12 | CV116: 13 | CW116: 14 | CX116: 0 | CY116: 11 | CZ116: 0 | DA116: 11 | DB116: 352 | DC116: 48 | DD116: 5 | DE116: 6 | DF116: 4 | DG116: 5 | DH116: 22 | DI116: 17 | DJ116: 16 | DK116: 15 | DL116: 12 | DM116: 10 | DN116: 4 | DO116: 5 | DP116: 8 | DQ116: 8 | DR116: 11 | DS116: 8 | DT116: 26 | DU116: 20 | DV116: 20 | DW116: 17 | DX116: 49 | DY116: 25 | DZ116: 70 | EA116: 27 | EB116: 45 | EC116: 16 | ED116: 30 | EE116: 13 | EF116: 13 | EG116: 12 | EH116: 17 | EI116: 14 | EJ116: 208 | EK116: 35 | EL116: 7 | EM116: 7 | EN116: 14 | EO116: 9 | EP116: 12 | EQ116: 9 | ER116: 14 | ES116: 9 | ET116: 9 | EU116: 7 | EV116: 15 | EW116: 11 | EX116: 10 | EY116: 13 | EZ116: 7 | FA116: 7 | FB116: 22 | FC116: 20 | FD116: 12 | FE116: 8 | FF116: 26 | FG116: 18 | FH116: 22 | FI116: 16 | FJ116: 15 | FK116: 15 | FL116: 16 | FM116: 18 | FN116: 0 | FO116: 11 | FP116: 7 | FQ116: 7 | FR116: 69718 | FS116: 4507 | FT116: - | FU116: ** | FV116: 80417 | FW116: 13134 | FX116: 72292 | FY116: 13671 | FZ116: 49167 | GA116: 10753
A118: Number of Households by Income
A119: NAME | B119: HHIncLessThn10k | C119: ="MOE "&B119 -> MOE HHIncLessThn10k | D119: HHInc10to15K | E119: ="MOE "&D119 -> MOE HHInc10to15K | F119: HHInc15to25K | G119: ="MOE "&F119 -> MOE HHInc15to25K | H119: HHInc25to35K | I119: ="MOE "&H119 -> MOE HHInc25to35K | J119: HHInc35to50K | K119: ="MOE "&J119 -> MOE HHInc35to50K | L119: HHInc50to75K | M119: ="MOE "&L119 -> MOE HHInc50to75K | N119: HHInc75to100K | O119: ="MOE "&N119 -> MOE HHInc75to100K | P119: HHInc100to150K | Q119: ="MOE "&P119 -> MOE HHInc100to150K | R119: HHInc150to200K | S119: ="MOE "&R119 -> MOE HHInc150to200K | T119: HHIncOver200K | U119: ="MOE "&T119 -> MOE HHIncOver200K
A120: =VLOOKUP(DropDownList!$B$47,CntyQryCensus!$A$510:$DA$552,A$1) -> Alexandria | B120: 20 | C120: 13 | D120: 25 | E120: 14 | F120: 67 | G120: 28.31960452 | H120: 51 | I120: 19.10497317 | J120: 100 | K120: 36.40054945 | L120: 138 | M120: 38.58756276 | N120: 143 | O120: 43 | P120: 134 | Q120: 33.24154028 | R120: 13 | S120: 12 | T120: 24 | U120: 15 | V120: 92 | W120: 26 | X120: 100 | Y120: 34 | Z120: 70 | AA120: 30 | AB120: 10 | AC120: 8 | AD120: 9 | AE120: 7 | AF120: 7 | AG120: 7
A123: NAME | B123: TotalPop | C123: ="MOE "&B123 -> MOE TotalPop | D123: Total Individuals living in Poverty | E123: ="MOE "&D123 -> MOE Total Individuals living in Poverty | F123: Under 5 yrs. | G123: ="MOE "&F123 -> MOE Under 5 yrs. | H123: 5 to 17 yrs. | I123: ="MOE "&H123 -> MOE 5 to 17 yrs. | J123: 18 to 64 yrs. | K123: ="MOE "&J123 -> MOE 18 to 64 yrs. | L123: 65 to 74 yrs. | M123: ="MOE "&L123 -> MOE 65 to 74 yrs. | N123: 75 yrs. & Over | O123: ="MOE "&N123 -> MOE 75 yrs. & Over | P123: Total Individuals Not living Poverty | Q123: ="MOE "&P123 -> MOE Total Individuals Not living Poverty | R123: Under 5 yrs. | S123: ="MOE "&R123 -> MOE Under 5 yrs. | T123: 5 to 17 yrs. | U123: ="MOE "&T123 -> MOE 5 to 17 yrs. | V123: 18 to 64 yrs. | W123: ="MOE "&V123 -> MOE 18 to 64 yrs. | X123: 65 to 74 yrs. | Y123: ="MOE "&X123 -> MOE 65 to 74 yrs. | Z123: 75 yrs. & Over | AA123: ="MOE "&Z123 -> MOE 75 yrs. & Over | AB123: Total HH | AC123: ="MOE "&AB123 -> MOE Total HH | AD123: Total Households Below Poverty | AE123: ="MOE "&AD123 -> MOE Total Households Below Poverty | AF123: Family Households in Poverty | AG123: ="MOE "&AF123 -> MOE Family Households in Poverty | AH123: Married Couple Fam HH | AI123: ="MOE "&AH123 -> MOE Married Couple Fam HH | AJ123: Other Family | AK123: ="MOE "&AJ123 -> MOE Other Family | AL123: Male Head of Family HH no wife | AM123: ="MOE "&AL123 -> MOE Male Head of Family HH no wife | AN123: Female Head of Family HH no husband | AO123: ="MOE "&AN123 -> MOE Female Head of Family HH no husband | AP123: Non-Family HH | AQ123: ="MOE "&AP123 -> MOE Non-Family HH | AR123: Non-Family Male HH | AS123: ="MOE "&AR123 -> MOE Non-Family Male HH | AT123: Non-Family Female HH | AU123: ="MOE "&AT123 -> MOE Non-Family Female HH | AV123: Total Households at or Above Poverty | AW123: ="MOE "&AV123 -> MOE Total Households at or Above Poverty | AX123: Family Households above Poverty | AY123: ="MOE "&AX123 -> MOE Family Households above Poverty | AZ123: Married Couple Fam HH | BA123: ="MOE "&AZ123 -> MOE Married Couple Fam HH | BB123: Other Family | BC123: ="MOE "&BB123 -> MOE Other Family | BD123: Male Head of Family HH no wife | BE123: ="MOE "&BD123 -> MOE Male Head of Family HH no wife | BF123: Female Head of Family HH no husband | BG123: ="MOE "&BF123 -> MOE Female Head of Family HH no husband | BH123: Non-Family HH | BI123: ="MOE "&BH123 -> MOE Non-Family HH | BJ123: Non-Family Male HH | BK123: ="MOE "&BJ123 -> MOE Non-Family Male HH | BL123: Non-Family Female HH | BM123: ="MOE "&BL123 -> MOE Non-Family Female HH | BN123: Married Couple with Children Below Poverty | BO123: ="MOE "&BN123 -> MOE Married Couple with Children Below Poverty | BP123: Male HH with children below poverty | BQ123: ="MOE "&BP123 -> MOE Male HH with children below poverty | BR123: Female HH with children below poverty | BS123: ="MOE "&BR123 -> MOE Female HH with children below poverty | BT123: Married Couple with Children At or Above Poverty | BU123: ="MOE "&BT123 -> MOE Married Couple with Children At or Above Poverty | BV123: Male HH with children at or above poverty | BW123: ="MOE "&BV123 -> MOE Male HH with children at or above poverty | BX123: Female HH with children at or above poverty | BY123: ="MOE "&BX123 -> MOE Female HH with children at or above poverty
A124: =VLOOKUP(DropDownList!$B$47,CntyQryCensus!$A$510:$DA$552,A$1) -> Alexandria | B124: 1998 | C124: 228 | D124: 163 | E124: 50 | F124: 4 | G124: 18.68154169 | H124: 27 | I124: 29.58039892 | J124: 91 | K124: 32.64965543 | L124: 18 | M124: 12.64911064 | N124: 23 | O124: 12.80624847 | P124: 1835 | Q124: 232 | R124: 49 | S124: 30.08321791 | T124: 231 | U124: 57.18391382 | V124: 1215 | W124: 131.1945121 | X124: 218 | Y124: 47.50789408 | Z124: 122 | AA124: 33.24154028 | AB124: 715 | AC124: 64 | AD124: 65 | AE124: 22 | AF124: 24 | AG124: 15 | AH124: 9 | AI124: 7 | AJ124: 15 | AK124: 14 | AL124: 0 | AM124: 11 | AN124: 15 | AO124: 14 | AP124: 41 | AQ124: 18 | AR124: 18 | AS124: 11 | AT124: 23 | AU124: 15 | AV124: 650 | AW124: 64 | AX124: 496 | AY124: 58 | AZ124: 475 | BA124: 60 | BB124: 21 | BC124: 13 | BD124: 0 | BE124: 11 | BF124: 21 | BG124: 13 | BH124: 154 | BI124: 45 | BJ124: 93 | BK124: 31 | BL124: 61 | BM124: 30 | BN124: 3 | BO124: 4 | BP124: 0 | BQ124: 11 | BR124: 12 | BS124: 13 | BT124: 141 | BU124: 36 | BV124: 0 | BW124: 11 | BX124: 16 | BY124: 12
A126: Household Income By Tenure
A127: NAME | B127: TotalOccHU | C127: ="MOE "&B127 -> MOE TotalOccHU | D127: OwnOccHU | E127: ="MOE "&D127 -> MOE OwnOccHU | F127: OOHUInc<5K | G127: ="MOE "&F127 -> MOE OOHUInc<5K | H127: OOHUInc5to10K | I127: ="MOE "&H127 -> MOE OOHUInc5to10K | J127: OOHUInc10to15K | K127: ="MOE "&J127 -> MOE OOHUInc10to15K | L127: OOHUInc15to20K | M127: ="MOE "&L127 -> MOE OOHUInc15to20K | N127: OOHUInc20to25K | O127: ="MOE "&N127 -> MOE OOHUInc20to25K | P127: OOHUInc25to35K | Q127: ="MOE "&P127 -> MOE OOHUInc25to35K | R127: OOHUInc35to50K | S127: ="MOE "&R127 -> MOE OOHUInc35to50K | T127: OOHUInc50to75K | U127: ="MOE "&T127 -> MOE OOHUInc50to75K | V127: OOHUInc75to100K | W127: ="MOE "&V127 -> MOE OOHUInc75to100K | X127: OOHUInc100to150K | Y127: ="MOE "&X127 -> MOE OOHUInc100to150K | Z127: OOHUInc>150K | AA127: ="MOE "&Z127 -> MOE OOHUInc>150K | AB127: RentOccHU | AC127: ="MOE "&AB127 -> MOE RentOccHU | AD127: ROHUInc<5K | AE127: ="MOE "&AD127 -> MOE ROHUInc<5K | AF127: ROHUInc5to10K | AG127: ="MOE "&AF127 -> MOE ROHUInc5to10K | AH127: ROHUInc10to15K | AI127: ="MOE "&AH127 -> MOE ROHUInc10to15K | AJ127: ROHUInc15to20K | AK127: ="MOE "&AJ127 -> MOE ROHUInc15to20K | AL127: ROHUInc20to25K | AM127: ="MOE "&AL127 -> MOE ROHUInc20to25K | AN127: ROHUInc25to35K | AO127: ="MOE "&AN127 -> MOE ROHUInc25to35K | AP127: ROHUInc35to50K | AQ127: ="MOE "&AP127 -> MOE ROHUInc35to50K | AR127: ROHUInc50to75K | AS127: ="MOE "&AR127 -> MOE ROHUInc50to75K | AT127: ROHUInc75to100K | AU127: ="MOE "&AT127 -> MOE ROHUInc75to100K | AV127: ROHUInc100to150K | AW127: ="MOE "&AV127 -> MOE ROHUInc100to150K | AX127: ROHUInc>150K | AY127: ="MOE "&AX127 -> MOE ROHUInc>150K | AZ127: Total OCC HUInc<5K | BA127: ="MOE "&AZ127 -> MOE Total OCC HUInc<5K | BB127: Total OCC HUInc5to10K | BC127: ="MOE "&BB127 -> MOE Total OCC HUInc5to10K | BD127: Total OCC HUInc10to15K | BE127: ="MOE "&BD127 -> MOE Total OCC HUInc10to15K | BF127: Total OCC HUInc15to20K | BG127: ="MOE "&BF127 -> MOE Total OCC HUInc15to20K | BH127: Total OCC HUInc20to25K | BI127: ="MOE "&BH127 -> MOE Total OCC HUInc20to25K | BJ127: Total OCC HUInc25to35K | BK127: ="MOE "&BJ127 -> MOE Total OCC HUInc25to35K | BL127: Total OCC HUInc35to50K | BM127: ="MOE "&BL127 -> MOE Total OCC HUInc35to50K | BN127: Total OCC HUInc50to75K | BO127: ="MOE "&BN127 -> MOE Total OCC HUInc50to75K | BP127: Total OCC HUInc75to100K | BQ127: ="MOE "&BP127 -> MOE Total OCC HUInc75to100K | BR127: Total OCC HUInc100to150K | BS127: ="MOE "&BR127 -> MOE Total OCC HUInc100to150K | BT127: Total OCC HUInc>150K | BU127: ="MOE "&BT127 -> MOE Total OCC HUInc>150K | BV127: MedHHInc | BW127: ="MOE "&BV127 -> MOE MedHHInc | BX127: MedOwnOccHHInc | BY127: ="MOE "&BX127 -> MOE MedOwnOccHHInc | BZ127: MedRentOccHHInc | CA127: ="MOE "&BZ127 -> MOE MedRentOccHHInc
A128: =VLOOKUP(DropDownList!$B$47,CntyQryCensus!$A$510:$DA$552,A$1) -> Alexandria | B128: 715 | C128: 64 | D128: 640 | E128: 58 | F128: 18 | G128: 12 | H128: 2 | I128: 4 | J128: 16 | K128: 11 | L128: 31 | M128: 21 | N128: 22 | O128: 13 | P128: 41 | Q128: 18 | R128: 85 | S128: 33 | T128: 117 | U128: 34 | V128: 139 | W128: 42 | X128: 132 | Y128: 33 | Z128: 37 | AA128: 18 | AB128: 75 | AC128: 30 | AD128: 0 | AE128: 11 | AF128: 0 | AG128: 11 | AH128: 9 | AI128: 9 | AJ128: 3 | AK128: 4 | AL128: 11 | AM128: 16 | AN128: 10 | AO128: 9 | AP128: 15 | AQ128: 18 | AR128: 21 | AS128: 17 | AT128: 4 | AU128: 5 | AV128: 2 | AW128: 5 | AX128: 0 | AY128: 11 | AZ128: 18 | BA128: 16.2788206 | BB128: 2 | BC128: 11.70469991 | BD128: 25 | BE128: 14.2126704 | BF128: 34 | BG128: 21.37755833 | BH128: 33 | BI128: 20.61552813 | BJ128: 51 | BK128: 20.1246118 | BL128: 100 | BM128: 37.58989226 | BN128: 138 | BO128: 38.01315562 | BP128: 143 | BQ128: 42.29657197 | BR128: 134 | BS128: 33.37663854 | BT128: 37 | BU128: 21.09502311 | BV128: 69718 | BW128: 4507 | BX128: 72121 | BY128: 7865 | BZ128: 47614 | CA128: 33680
A130: Population Data
A131: NAME | B131: Total Population | C131: MOE Total Population | D131: Under 15 Years | E131: MOE Under 15 yrs. | F131: 15 to 24 yrs. | G131: MOE 15 to 24 yrs. | H131: 25 to 34 yrs. | I131: MOE 25 to 34 yrs. | J131: 35 to 44 yrs. | K131: MOE 35 to 44 yrs. | L131: 45 to 54 yrs. | M131: MOE 45 to 54 yrs. | N131: 55 to 64 yrs. | O131: MOE 55 to 64 yrs. | P131: 65 to 74 yrs. | Q131: MOE 65 to 74 yrs. | R131: Over 74 yrs. | S131: MOE Over 74 yrs. | T131: TotalHH | U131: MOE TotalHH | V131: FamilyHH | W131: MOE FamilyHH | X131: MarriedFamilyHH | Y131: MOE MarriedFamilyHH | Z131: SingleFamilyHH | AA131: MOE SingleFamilyHH | AB131: Sfamily-MaleHH | AC131: MOE Sfamily-MaleHH | AD131: Sfamily-FemaleHH | AE131: MOE Sfamily-FemaleHH | AF131: NonFamilyHH | AG131: MOE NonFamilyHH | AH131: NonFamilyHH-LivingAlone | AI131: MOE NonFamilyHH-LivingAlone | AJ131: NonFamilyHH-NotLivingAlone | AK131: MOE NonFamilyHH-NotLivingAlone | AL131: PopRaceWhite | AM131: MOE PopRaceWhite | AN131: PopRaceBlack | AO131: MOE PopRaceBlack | AP131: PopRaceAmerican Indian | AQ131: MOE PopRaceAmerican Indian | AR131: PopRaceAsian &Pacific Is. | AS131: MOE PopRaceAsian &Pacific Is. | AT131: PopRaceOther* | AU131: MOE PopRaceOther* | AV131: PopRaceHispanic or Latino: | AW131: MOE PopRaceHispanic or Latino: | AX131: MedianAgeTotalPop | AY131: MOE MedianAgeTotalPop | AZ131: MedianAgeMale | BA131: MOE MedianAgeMale | BB131: MedianAgeFemale | BC131: MOE MedianAgeFemale | BD131: AvgHHSizeTotal | BE131: MOE AvgHHSizeTotal | BF131: AvgHHSizeFamilyHH | BG131: MOE AvgHHSizeFamilyHH | BH131: AvgHHSizeNonFamilyHH | BI131: MOE AvgHHSizeNonFamilyHH
A132: =VLOOKUP(DropDownList!$B$47,CntyQryCensus!$A$510:$DA$552,A$1) -> Alexandria | B132: 2006 | C132: 227 | D132: 207 | E132: 51.49757276 | F132: 273 | G132: 74.27651042 | H132: 191 | I132: 56.86826883 | J132: 247 | K132: 58.62593283 | L132: 339 | M132: 62.24949799 | N132: 368 | O132: 60.91797764 | P132: 236 | Q132: 51.16639522 | R132: 145 | S132: 37.22902094 | T132: 715 | U132: 64 | V132: 520 | W132: 58 | X132: 484 | Y132: 61 | Z132: 36 | AA132: 18 | AB132: 0 | AC132: 11 | AD132: 36 | AE132: 18 | AF132: 195 | AG132: 49 | AH132: 128 | AI132: 40 | AJ132: 67 | AK132: 27 | AL132: 1907 | AM132: 232 | AN132: 0 | AO132: 11 | AP132: 0 | AQ132: 11 | AR132: 35 | AS132: 34.78505426 | AT132: 25 | AU132: 29.42787794 | AV132: 39 | AW132: 39 | AX132: 48.4 | AY132: 2.3 | AZ132: 48.8 | BA132: 3.9 | BB132: 48.2 | BC132: 2.2 | BD132: 2.805594406 | BE132: 0.26 | BF132: 3.294230769 | BG132: 0.5560153208 | BH132: 1.502564103 | BI132: 0.5575548906 | DP132: Alexandria | DR132: Estimate | DS132: Margin Of Error | DT132: 1850 | DU132: 195 | DV132: 442 | DW132: 93.96275858 | DX132: 186 | DY132: 58.39520528 | DZ132: 157 | EA132: 48.47679857 | EB132: 287 | EC132: 62.67375846 | ED132: 284 | EE132: 59.21992908 | EF132: 232 | EG132: 44.27188724 | EH132: 181 | EI132: 40.02499219 | EJ132: 81 | EK132: 27.34958866
A134: Nativity and Prior Place of Residence
A135: NAME | B135: TotalPop | C135: ="MOE "&B135 -> MOE TotalPop | D135: Native: | E135: ="MOE "&D135 -> MOE Native: | F135: NatBornInStateOfResidence | G135: ="MOE "&F135 -> MOE NatBornInStateOfResidence | H135: Born in other state in the United States: | I135: ="MOE "&H135 -> MOE Born in other state in the United States: | J135: Northeast | K135: ="MOE "&J135 -> MOE Northeast | L135: Midwest | M135: ="MOE "&L135 -> MOE Midwest | N135: South | O135: ="MOE "&N135 -> MOE South | P135: West | Q135: ="MOE "&P135 -> MOE West | R135: Born outside the United States: | S135: ="MOE "&R135 -> MOE Born outside the United States: | T135: Puerto Rico | U135: ="MOE "&T135 -> MOE Puerto Rico | V135: U.S. Island Areas | W135: ="MOE "&V135 -> MOE U.S. Island Areas | X135: Born abroad of American parent(s) | Y135: ="MOE "&X135 -> MOE Born abroad of American parent(s) | Z135: Foreign born: | AA135: ="MOE "&Z135 -> MOE Foreign born: | AB135: Naturalized U.S. citizen | AC135: ="MOE "&AB135 -> MOE Naturalized U.S. citizen | AD135: Not a U.S. citizen | AE135: ="MOE "&AD135 -> MOE Not a U.S. citizen | AF135: CurrentResidenceTotal: | AG135: ="MOE "&AF135 -> MOE CurrentResidenceTotal: | AH135: SameHouse: | AI135: ="MOE "&AH135 -> MOE SameHouse: | AJ135: DifferentHouse: | AK135: ="MOE "&AJ135 -> MOE DifferentHouse: | AL135: DiffHouseInNH | AM135: ="MOE "&AL135 -> MOE DiffHouseInNH | AN135: DiffHouseInNHSameCnty | AO135: ="MOE "&AN135 -> MOE DiffHouseInNHSameCnty | AP135: DiffHouseInNHDiffCnty | AQ135: ="MOE "&AP135 -> MOE DiffHouseInNHDiffCnty | AR135: DiffHouseInDiffState | AS135: ="MOE "&AR135 -> MOE DiffHouseInDiffState | AT135: DiffHouseInElsewhere | AU135: ="MOE "&AT135 -> MOE DiffHouseInElsewhere
A136: =VLOOKUP(DropDownList!$B$47,CntyQryCensus!$A$510:$DA$552,A$1) -> Alexandria | B136: 2006 | C136: 227 | D136: 1956 | E136: 224 | F136: 1141 | G136: 150 | H136: 811 | I136: 127 | J136: 667 | K136: 124 | L136: 22 | M136: 17 | N136: 78 | O136: 33 | P136: 44 | Q136: 21 | R136: 4 | S136: 5 | T136: 0 | U136: 11 | V136: 0 | W136: 11 | X136: 4 | Y136: 5 | Z136: 50 | AA136: 26 | AB136: 36 | AC136: 24 | AD136: 14 | AE136: 17 | AF136: 1987 | AG136: 220 | AH136: 1843 | AI136: 205 | AJ136: 144 | AK136: 59.81638571 | AL136: 104 | AM136: 54.91812087 | AN136: 32 | AO136: 30 | AP136: 72 | AQ136: 46 | AR136: 40 | AS136: 21 | AT136: 0 | AU136: 11
A138: School Enrollment - Education
A139: NAME | B139: Total Pop 3 Years and Older | C139: MOE Total Pop 3 Years and Older | D139: SchEnrlPop3yrOver | E139: ="MOE "&D139 -> MOE SchEnrlPop3yrOver | F139: TotalEnrollNursy&Kinder | G139: ="MOE "&F139 -> MOE TotalEnrollNursy&Kinder | H139: NurserSchEnrl | I139: ="MOE "&H139 -> MOE NurserSchEnrl | J139: KinderSchEnrl | K139: ="MOE "&J139 -> MOE KinderSchEnrl | L139: ElemSchEnrl (1-8) | M139: ="MOE "&L139 -> MOE ElemSchEnrl (1-8) | N139: HighSchEnrl(9-12) | O139: ="MOE "&N139 -> MOE HighSchEnrl(9-12) | P139: TotalElementry&HSEnroll | Q139: ="MOE "&P139 -> MOE TotalElementry&HSEnroll | R139: CollGradSchEnrl | S139: ="MOE "&R139 -> MOE CollGradSchEnrl | T139: PopNotEnrolled | U139: MOE PopNotEnrolled | V139: Pop25yrsOver | W139: ="MOE "&V139 -> MOE Pop25yrsOver | X139: EduAtain<9grd | Y139: ="MOE "&X139 -> MOE EduAtain<9grd | Z139: EduAtainHSnoDip | AA139: ="MOE "&Z139 -> MOE EduAtainHSnoDip | AB139: EduAtainHSgrad | AC139: ="MOE "&AB139 -> MOE EduAtainHSgrad | AD139: EduAtainCollNoDeg | AE139: ="MOE "&AD139 -> MOE EduAtainCollNoDeg | AF139: EduAtainAssocDeg | AG139: ="MOE "&AF139 -> MOE EduAtainAssocDeg | AH139: EduAtainBachDeg | AI139: ="MOE "&AH139 -> MOE EduAtainBachDeg | AJ139: EduAtainGradProfDeg | AK139: ="MOE "&AJ139 -> MOE EduAtainGradProfDeg
A140: =VLOOKUP(DropDownList!$B$47,CntyQryCensus!$A$510:$DA$552,A$1) -> Alexandria | B140: 1957 | C140: 215 | D140: 311 | E140: 75 | F140: 9 | G140: 9.219544457 | H140: 4 | I140: 7 | J140: 5 | K140: 6 | L140: 123 | M140: 36.06937759 | N140: 123 | O140: 42 | P140: 246 | Q140: 55.36244214 | R140: 56 | S140: 26.62705391 | T140: 1646 | U140: 202 | V140: 1526 | W140: 151 | X140: 23 | Y140: 27.49545417 | Z140: 88 | AA140: 33.43650699 | AB140: 627 | AC140: 95.60334722 | AD140: 303 | AE140: 58.94913061 | AF140: 160 | AG140: 43.41658669 | AH140: 217 | AI140: 49.57822102 | AJ140: 86 | AK140: 39.69886648 | CF140: Lebanon | CH140: Estimate | CI140: Margin Of Error | CJ140: 12752 | CK140: 163 | CL140: 2969 | CM140: 370 | CN140: 214 | CO140: 118.4060809 | CP140: 99 | CQ140: 72 | CR140: 115 | CS140: 94 | CT140: 1082 | CU140: 194.5584745 | CV140: 562 | CW140: 160 | CX140: 1644 | CY140: 251.8987892 | CZ140: 1111 | DA140: 324.4102341 | DB140: 9783 | DC140: 394
A142: Occupied Owner Housing Value
